Workbook

Sheet ACS_Notes (hidden)
A1: NOTES:
A4: Data are based on a sample and are subject to sampling variability. The degree of uncertainty for an estimate arising from sampling variability is represented through the use of a margin of error. The value shown here is the 90 percent margin of error. The margin of error can be interpreted roughly as providing a 90 percent probability that the interval defined by the estimate minus the margin of error and the estimate plus the margin of error (the lower and upper confidence bounds) contains the true value. In addition to sampling variability, the ACS estimates are subject to nonsampling error (for a discussion of nonsampling variability, see Accuracy of the Data). The effect of nonsampling error is not represented in these tables.
A8: In addition to sampling variability, the ACS estimates are subject to nonsampling error (for a discussion of nonsampling variability, see Accuracy of the Data. The link is located at the end of this worksheet.). The effect of nonsampling error is not represented in these tables.
A11: While the 2005-2009 American Community Survey (ACS) data generally reflect the November 2008 Office of Management and Budget (OMB) definitions of metropolitan and micropolitan statistical areas; in certain instances the names, codes, and boundaries of the principal cities shown in ACS tables may differ from the OMB definitions due to differences in the effective dates of the geographic entities.
A15: Estimates of urban and rural population, housing units, and characteristics reflect boundaries of urban areas defined based on Census 2000 data. Boundaries for urban areas have not been updated since Census 2000. As a result, data for urban and rural areas from the ACS do not necessarily reflect the results of ongoing urbanization.
A17: Explanation of Symbols:
A19: 1. An '**' entry in the margin of error column indicates that either no sample observations or too few sample observations were available to compute a standard error and thus the margin of error. A statistical test is not appropriate.
A21: 2. An '-' entry in the estimate column indicates that either no sample observations or too few sample observations were available to compute an estimate, or a ratio of medians cannot be calculated because one or both of the median estimates falls in the lowest interval or upper interval of an open-ended distribution.
A23: 3. An '-' following a median estimate means the median falls in the lowest interval of an open-ended distribution.
A24: 4. An '+' following a median estimate means the median falls in the upper interval of an open-ended distribution.
A25: 5. An '***' entry in the margin of error column indicates that the median falls in the lowest interval or upper interval of an open-ended distribution. A statistical test is not appropriate.
A26: 6. An '*****' entry in the margin of error column indicates that the estimate is controlled. A statistical test for sampling variability is not appropriate.
A28: Accuracy of Data

Sheet StartInstruction
A1: Demographic Profiles for Municipalities in Carroll County
A3: To view or print a Demographic Profile follow the steps below
A6: Step 1. | C6: Select the municipality you wish to view
C7: from the drop down box below.
A12: Step 2. | C12: Click one of the profile topic buttons below to review or print
C13: the information for the selected geography.
C14: Don't forget to adjust the axis on charts as necessary.
N28: Updated: | P28: 2020-12-18
N30: Next Update: | P30: Fall 2021 - Annual Employment and Wage data

Sheet ACS_Table_B08303 (hidden)
B1: B08303: TRAVEL TIME TO WORK
B2: Universe: Workers 16 years and over who did not work at home
B3: Data Set: 2014-2018 American Community Survey 5-Year Estimates
C5: Albany | E5: Bartlett | G5: Brookfield | I5: Chatham | K5: Conway | M5: Eaton | O5: Effingham | Q5: Freedom | S5: Hale's location | U5: Hart's Location | W5: Jackson | Y5: Madison | AA5: Moultonborough | AC5: Ossipee | AE5: Sandwich | AG5: Tamworth | AI5: Tuftonboro | AK5: Wakefield | AM5: Wolfeboro
C6: Estimates | D6: Margin Of Error | E6: Estimates | F6: Margin Of Error | G6: Estimates | H6: Margin Of Error | I6: Estimates | J6: Margin Of Error | K6: Estimates | L6: Margin Of Error | M6: Estimates | N6: Margin Of Error | O6: Estimates | P6: Margin Of Error | Q6: Estimates | R6: Margin Of Error | S6: Estimates | T6: Margin Of Error | U6: Estimates | V6: Margin Of Error | W6: Estimates | X6: Margin Of Error | Y6: Estimates | Z6: Margin Of Error | AA6: Estimates | AB6: Margin Of Error | AC6: Estimates | AD6: Margin Of Error | AE6: Estimates | AF6: Margin Of Error | AG6: Estimates | AH6: Margin Of Error | AI6: Estimates | AJ6: Margin Of Error | AK6: Estimates | AL6: Margin Of Error | AM6: Estimates | AN6: Margin Of Error
B7: Population Older than 16 not working at hom | C7: 288 | D7: 63 | E7: 1256 | F7: 211 | G7: 339 | H7: 74 | I7: 167 | J7: 64 | K7: 4817 | L7: 421 | M7: 135 | N7: 46 | O7: 672 | P7: 137 | Q7: 522 | R7: 104 | S7: 33 | T7: 17 | U7: 38 | V7: 26 | W7: 466 | X7: 136 | Y7: 1192 | Z7: 132 | AA7: 1692 | AB7: 190 | AC7: 1715 | AD7: 258 | AE7: 557 | AF7: 117 | AG7: 1553 | AH7: 208 | AI7: 858 | AJ7: 136 | AK7: 2401 | AL7: 303 | AM7: 2626 | AN7: 333
B8: Less than 5 minutes | C8: 15 | D8: 15 | E8: 141 | F8: 97 | G8: 19 | H8: 17 | I8: 0 | J8: 11 | K8: 659 | L8: 279 | M8: 12 | N8: 10 | O8: 17 | P8: 11 | Q8: 14 | R8: 19 | S8: 0 | T8: 11 | U8: 5 | V8: 5 | W8: 50 | X8: 40 | Y8: 28 | Z8: 20 | AA8: 131 | AB8: 104 | AC8: 86 | AD8: 83 | AE8: 20 | AF8: 12 | AG8: 192 | AH8: 124 | AI8: 62 | AJ8: 41 | AK8: 121 | AL8: 97 | AM8: 259 | AN8: 188
B9: 5 to 9 minutes | C9: 10 | D9: 7 | E9: 189 | F9: 93 | G9: 10 | H9: 12 | I9: 5 | J9: 8 | K9: 1314 | L9: 392 | M9: 0 | N9: 11 | O9: 23 | P9: 26 | Q9: 23 | R9: 19 | S9: 15 | T9: 13 | U9: 9 | V9: 10 | W9: 107 | X9: 56 | Y9: 81 | Z9: 51 | AA9: 166 | AB9: 78 | AC9: 127 | AD9: 63 | AE9: 45 | AF9: 31 | AG9: 258 | AH9: 156 | AI9: 85 | AJ9: 58 | AK9: 145 | AL9: 126 | AM9: 243 | AN9: 127
B10: 10 to 14 minutes | C10: 34 | D10: 19 | E10: 238 | F10: 119 | G10: 22 | H10: 13 | I10: 0 | J10: 11 | K10: 1007 | L10: 283 | M10: 26 | N10: 20 | O10: 44 | P10: 29 | Q10: 93 | R10: 50 | S10: 6 | T10: 7 | U10: 4 | V10: 7 | W10: 37 | X10: 30 | Y10: 68 | Z10: 42 | AA10: 244 | AB10: 87 | AC10: 167 | AD10: 105 | AE10: 48 | AF10: 31 | AG10: 203 | AH10: 103 | AI10: 64 | AJ10: 31 | AK10: 159 | AL10: 127 | AM10: 721 | AN10: 269
B11: 15 to 19 minutes | C11: 87 | D11: 38 | E11: 254 | F11: 170 | G11: 27 | H11: 19 | I11: 9 | J11: 7 | K11: 863 | L11: 220 | M11: 22 | N11: 20 | O11: 96 | P11: 45 | Q11: 77 | R11: 31 | S11: 2 | T11: 3 | U11: 2 | V11: 3 | W11: 95 | X11: 39 | Y11: 134 | Z11: 54 | AA11: 202 | AB11: 75 | AC11: 158 | AD11: 71 | AE11: 69 | AF11: 41 | AG11: 93 | AH11: 68 | AI11: 198 | AJ11: 74 | AK11: 202 | AL11: 161 | AM11: 236 | AN11: 147
B12: 20 to 24 minutes | C12: 34 | D12: 15 | E12: 264 | F12: 128 | G12: 60 | H12: 27 | I12: 19 | J12: 14 | K12: 323 | L12: 137 | M12: 21 | N12: 16 | O12: 135 | P12: 47 | Q12: 64 | R12: 28 | S12: 4 | T12: 6 | U12: 2 | V12: 3 | W12: 44 | X12: 35 | Y12: 254 | Z12: 72 | AA12: 167 | AB12: 88 | AC12: 107 | AD12: 65 | AE12: 44 | AF12: 22 | AG12: 242 | AH12: 148 | AI12: 107 | AJ12: 34 | AK12: 238 | AL12: 163 | AM12: 190 | AN12: 154
B13: 25 to 29 minutes | C13: 13 | D13: 15 | E13: 0 | F13: 11 | G13: 16 | H13: 10 | I13: 11 | J13: 10 | K13: 76 | L13: 52 | M13: 10 | N13: 8 | O13: 32 | P13: 25 | Q13: 41 | R13: 27 | S13: 0 | T13: 11 | U13: 6 | V13: 8 | W13: 13 | X13: 21 | Y13: 200 | Z13: 85 | AA13: 90 | AB13: 53 | AC13: 140 | AD13: 76 | AE13: 38 | AF13: 23 | AG13: 61 | AH13: 75 | AI13: 27 | AJ13: 23 | AK13: 151 | AL13: 106 | AM13: 85 | AN13: 76
B14: 30 to 34 minutes | C14: 33 | D14: 21 | E14: 26 | F14: 29 | G14: 22 | H14: 13 | I14: 62 | J14: 43 | K14: 157 | L14: 68 | M14: 7 | N14: 9 | O14: 104 | P14: 41 | Q14: 60 | R14: 31 | S14: 0 | T14: 11 | U14: 4 | V14: 6 | W14: 89 | X14: 61 | Y14: 137 | Z14: 71 | AA14: 160 | AB14: 80 | AC14: 201 | AD14: 116 | AE14: 74 | AF14: 33 | AG14: 197 | AH14: 126 | AI14: 76 | AJ14: 34 | AK14: 174 | AL14: 99 | AM14: 121 | AN14: 98
B15: 35 to 39 minutes | C15: 5 | D15: 6 | E15: 0 | F15: 11 | G15: 10 | H15: 9 | I15: 9 | J15: 7 | K15: 9 | L15: 14 | M15: 3 | N15: 4 | O15: 19 | P15: 13 | Q15: 51 | R15: 38 | S15: 0 | T15: 11 | U15: 0 | V15: 11 | W15: 9 | X15: 14 | Y15: 38 | Z15: 33 | AA15: 113 | AB15: 74 | AC15: 9 | AD15: 18 | AE15: 27 | AF15: 25 | AG15: 59 | AH15: 67 | AI15: 0 | AJ15: 11 | AK15: 159 | AL15: 114 | AM15: 13 | AN15: 21
B16: 40 to 44 minutes | C16: 20 | D16: 16 | E16: 0 | F16: 11 | G16: 19 | H16: 16 | I16: 15 | J16: 12 | K16: 97 | L16: 90 | M16: 5 | N16: 5 | O16: 15 | P16: 10 | Q16: 16 | R16: 12 | S16: 0 | T16: 11 | U16: 0 | V16: 11 | W16: 0 | X16: 11 | Y16: 76 | Z16: 42 | AA16: 146 | AB16: 68 | AC16: 132 | AD16: 71 | AE16: 45 | AF16: 31 | AG16: 25 | AH16: 37 | AI16: 44 | AJ16: 28 | AK16: 116 | AL16: 94 | AM16: 241 | AN16: 131
B17: 45 to 59 minutes | C17: 22 | D17: 15 | E17: 64 | F17: 69 | G17: 49 | H17: 21 | I17: 23 | J17: 15 | K17: 132 | L17: 103 | M17: 1 | N17: 3 | O17: 93 | P17: 39 | Q17: 42 | R17: 23 | S17: 2 | T17: 3 | U17: 0 | V17: 11 | W17: 13 | X17: 19 | Y17: 58 | Z17: 44 | AA17: 68 | AB17: 43 | AC17: 280 | AD17: 173 | AE17: 63 | AF17: 32 | AG17: 159 | AH17: 106 | AI17: 75 | AJ17: 69 | AK17: 398 | AL17: 174 | AM17: 126 | AN17: 92
B18: 60 to 89 minutes | C18: 13 | D18: 12 | E18: 68 | F18: 67 | G18: 45 | H18: 21 | I18: 13 | J18: 10 | K18: 49 | L18: 40 | M18: 9 | N18: 9 | O18: 85 | P18: 38 | Q18: 19 | R18: 13 | S18: 0 | T18: 11 | U18: 6 | V18: 9 | W18: 9 | X18: 14 | Y18: 63 | Z18: 39 | AA18: 106 | AB18: 59 | AC18: 216 | AD18: 85 | AE18: 64 | AF18: 29 | AG18: 34 | AH18: 47 | AI18: 73 | AJ18: 39 | AK18: 402 | AL18: 187 | AM18: 291 | AN18: 177
B19: 90 or more minutes | C19: 2 | D19: 4 | E19: 12 | F19: 17 | G19: 40 | H19: 23 | I19: 1 | J19: 2 | K19: 131 | L19: 89 | M19: 19 | N19: 16 | O19: 9 | P19: 9 | Q19: 22 | R19: 21 | S19: 4 | T19: 5 | U19: 0 | V19: 11 | W19: 0 | X19: 11 | Y19: 55 | Z19: 37 | AA19: 99 | AB19: 79 | AC19: 92 | AD19: 74 | AE19: 20 | AF19: 13 | AG19: 30 | AH19: 30 | AI19: 47 | AJ19: 42 | AK19: 136 | AL19: 74 | AM19: 100 | AN19: 81
C39: 479 | D39: 109 | E39: 1383 | F39: 187 | G39: 316 | H39: 81 | I39: 203 | J39: 78 | K39: 4975 | L39: 456 | M39: 229 | N39: 75 | O39: 572 | P39: 103 | Q39: 445 | R39: 82 | S39: 13 | T39: 11 | U39: 31 | V39: 20 | W39: 283 | X39: 85 | Y39: 1144 | Z39: 142 | AA39: 1801 | AB39: 227 | AC39: 1775 | AD39: 226 | AE39: 655 | AF39: 96 | AG39: 1347 | AH39: 153 | AI39: 961 | AJ39: 152 | AK39: 2323 | AL39: 283 | AM39: 2760 | AN39: 296
C40: 25 | D40: 28 | E40: 101 | F40: 73 | G40: 6 | H40: 8 | I40: 10 | J40: 12 | K40: 413 | L40: 207 | M40: 29 | N40: 29 | O40: 6 | P40: 9 | Q40: 47 | R40: 37 | S40: 0 | T40: 114 | U40: 13 | V40: 12 | W40: 35 | X40: 20 | Y40: 78 | Z40: 42 | AA40: 80 | AB40: 77 | AC40: 110 | AD40: 81 | AE40: 19 | AF40: 12 | AG40: 117 | AH40: 60 | AI40: 100 | AJ40: 58 | AK40: 86 | AL40: 59 | AM40: 167 | AN40: 101
C41: 77 | D41: 36 | E41: 225 | F41: 107 | G41: 30 | H41: 24 | I41: 5 | J41: 11 | K41: 1118 | L41: 252 | M41: 9 | N41: 9 | O41: 67 | P41: 39 | Q41: 45 | R41: 25 | S41: 0 | T41: 114 | U41: 0 | V41: 114 | W41: 64 | X41: 34 | Y41: 10 | Z41: 17 | AA41: 308 | AB41: 103 | AC41: 193 | AD41: 92 | AE41: 51 | AF41: 26 | AG41: 201 | AH41: 103 | AI41: 44 | AJ41: 45 | AK41: 330 | AL41: 137 | AM41: 601 | AN41: 208
C42: 53 | D42: 39 | E42: 353 | F42: 132 | G42: 21 | H42: 18 | I42: 1 | J42: 5 | K42: 1009 | L42: 246 | M42: 4 | N42: 7 | O42: 54 | P42: 27 | Q42: 59 | R42: 35 | S42: 7 | T42: 9 | U42: 0 | V42: 114 | W42: 27 | X42: 19 | Y42: 177 | Z42: 101 | AA42: 194 | AB42: 89 | AC42: 201 | AD42: 88 | AE42: 68 | AF42: 32 | AG42: 141 | AH42: 81 | AI42: 153 | AJ42: 88 | AK42: 157 | AL42: 112 | AM42: 652 | AN42: 220
C43: 79 | D43: 34 | E43: 243 | F43: 90 | G43: 34 | H43: 22 | I43: 13 | J43: 15 | K43: 914 | L43: 250 | M43: 46 | N43: 21 | O43: 55 | P43: 29 | Q43: 52 | R43: 26 | S43: 2 | T43: 4 | U43: 0 | V43: 114 | W43: 68 | X43: 38 | Y43: 261 | Z43: 102 | AA43: 226 | AB43: 101 | AC43: 314 | AD43: 125 | AE43: 101 | AF43: 41 | AG43: 170 | AH43: 90 | AI43: 194 | AJ43: 75 | AK43: 129 | AL43: 89 | AM43: 344 | AN43: 161
C44: 107 | D44: 43 | E44: 270 | F44: 158 | G44: 50 | H44: 23 | I44: 37 | J44: 28 | K44: 682 | L44: 217 | M44: 64 | N44: 37 | O44: 133 | P44: 77 | Q44: 57 | R44: 29 | S44: 0 | T44: 114 | U44: 7 | V44: 8 | W44: 28 | X44: 18 | Y44: 226 | Z44: 83 | AA44: 381 | AB44: 142 | AC44: 142 | AD44: 63 | AE44: 105 | AF44: 32 | AG44: 156 | AH44: 64 | AI44: 143 | AJ44: 62 | AK44: 297 | AL44: 151 | AM44: 201 | AN44: 104
C45: 43 | D45: 35 | E45: 62 | F45: 49 | G45: 19 | H45: 20 | I45: 7 | J45: 13 | K45: 90 | L45: 74 | M45: 16 | N45: 15 | O45: 15 | P45: 20 | Q45: 22 | R45: 15 | S45: 0 | T45: 114 | U45: 0 | V45: 114 | W45: 0 | X45: 114 | Y45: 70 | Z45: 46 | AA45: 28 | AB45: 25 | AC45: 145 | AD45: 86 | AE45: 32 | AF45: 17 | AG45: 95 | AH45: 50 | AI45: 23 | AJ45: 18 | AK45: 158 | AL45: 104 | AM45: 64 | AN45: 65
C46: 40 | D46: 48 | E46: 77 | F46: 61 | G46: 34 | H46: 23 | I46: 24 | J46: 18 | K46: 269 | L46: 144 | M46: 24 | N46: 18 | O46: 115 | P46: 58 | Q46: 45 | R46: 18 | S46: 0 | T46: 114 | U46: 2 | V46: 3 | W46: 21 | X46: 23 | Y46: 156 | Z46: 81 | AA46: 173 | AB46: 97 | AC46: 202 | AD46: 127 | AE46: 47 | AF46: 27 | AG46: 267 | AH46: 97 | AI46: 88 | AJ46: 60 | AK46: 438 | AL46: 156 | AM46: 26 | AN46: 32
C47: 3 | D47: 5 | E47: 0 | F47: 114 | G47: 26 | H47: 24 | I47: 10 | J47: 10 | K47: 80 | L47: 72 | M47: 7 | N47: 11 | O47: 7 | P47: 7 | Q47: 18 | R47: 14 | S47: 0 | T47: 114 | U47: 0 | V47: 114 | W47: 5 | X47: 9 | Y47: 0 | Z47: 114 | AA47: 8 | AB47: 13 | AC47: 55 | AD47: 45 | AE47: 40 | AF47: 29 | AG47: 40 | AH47: 32 | AI47: 20 | AJ47: 24 | AK47: 118 | AL47: 96 | AM47: 40 | AN47: 49
C48: 9 | D48: 15 | E48: 0 | F48: 114 | G48: 19 | H48: 17 | I48: 46 | J48: 33 | K48: 35 | L48: 40 | M48: 8 | N48: 9 | O48: 31 | P48: 20 | Q48: 19 | R48: 16 | S48: 0 | T48: 114 | U48: 0 | V48: 114 | W48: 17 | X48: 16 | Y48: 46 | Z48: 42 | AA48: 52 | AB48: 46 | AC48: 10 | AD48: 17 | AE48: 36 | AF48: 23 | AG48: 22 | AH48: 18 | AI48: 30 | AJ48: 30 | AK48: 59 | AL48: 58 | AM48: 90 | AN48: 82
C49: 11 | D49: 12 | E49: 11 | F49: 17 | G49: 22 | H49: 21 | I49: 4 | J49: 6 | K49: 69 | L49: 58 | M49: 15 | N49: 16 | O49: 39 | P49: 23 | Q49: 24 | R49: 20 | S49: 0 | T49: 114 | U49: 0 | V49: 114 | W49: 0 | X49: 114 | Y49: 67 | Z49: 46 | AA49: 106 | AB49: 78 | AC49: 152 | AD49: 101 | AE49: 87 | AF49: 30 | AG49: 85 | AH49: 40 | AI49: 37 | AJ49: 33 | AK49: 135 | AL49: 79 | AM49: 355 | AN49: 190
C50: 29 | D50: 21 | E50: 12 | F50: 19 | G50: 32 | H50: 36 | I50: 35 | J50: 33 | K50: 87 | L50: 57 | M50: 4 | N50: 4 | O50: 41 | P50: 22 | Q50: 53 | R50: 27 | S50: 4 | T50: 6 | U50: 0 | V50: 114 | W50: 7 | X50: 11 | Y50: 29 | Z50: 35 | AA50: 86 | AB50: 92 | AC50: 103 | AD50: 57 | AE50: 57 | AF50: 25 | AG50: 20 | AH50: 18 | AI50: 109 | AJ50: 65 | AK50: 197 | AL50: 127 | AM50: 148 | AN50: 78
C51: 3 | D51: 5 | E51: 29 | F51: 33 | G51: 23 | H51: 15 | I51: 11 | J51: 14 | K51: 209 | L51: 131 | M51: 3 | N51: 6 | O51: 9 | P51: 10 | Q51: 4 | R51: 6 | S51: 0 | T51: 114 | U51: 9 | V51: 15 | W51: 11 | X51: 13 | Y51: 24 | Z51: 23 | AA51: 159 | AB51: 91 | AC51: 148 | AD51: 84 | AE51: 12 | AF51: 11 | AG51: 33 | AH51: 26 | AI51: 20 | AJ51: 18 | AK51: 219 | AL51: 117 | AM51: 72 | AN51: 55

Sheet PopulationCharacteristics (hidden)
B2: =CntyDataLink!$A35 -> Albany
G3: Land Area: | H3: =((CntyDataLink!$F35*10.764)/43560)/640 -> 74.74465707 | K3: Water Area: | L3: 0.5212152247 | M3: =((CntyDataLink!$G35*10.764)/43560)/640 -> 0.3294617833
B4: POPULATION CHARACTERISTICS
B19: Population | C19: ="Source: US Census; New Hampshire Office of Strategic Initiatives; "& L20&", "&P20&", and "&S20&" American Community Survey Table B01001" -> Source: US Census; New Hampshire Office of Strategic Initiatives; 2005-2009, 2009-2013, and 2015-2019 American Community Survey Table B01001 | N19: Population by Age | P19: ="Source: "& L20&", "&P20&", and "&S20&" American Community Survey Tables B01001 and B01002" -> Source: 2005-2009, 2009-2013, and 2015-2019 American Community Survey Tables B01001 and B01002
L20: 2005-2009 | P20: 2009-2013 | S20: 2015-2019
C21: 1980 | D21: 1990 | E21: 2000 | F21: 2015-2019 | G21: 2025 | H21: 2030 | L21: Estimate | N21: Margin of Error | O21: Percent Change | P21: Estimate | Q21: Margin of Error | R21: Percent Change | S21: Estimate | T21: Margin of Error | V21: Percent Change | W21: Statistically Significant Change
C22: =CntyDataLink!$E$20 -> 383 | D22: =CntyDataLink!$F$20 -> 536 | E22: =CntyDataLink!$G$20 -> 654 | F22: =CntyDataLink!$B$132 -> 703 | G22: =CntyDataLink!$I$20 -> 822 | H22: =CntyDataLink!$K$20 -> 870 | K22: Under 15 yrs. | L22: =#REF! ->  | N22: =#REF! ->  | O22: =L22/SUM($L$22:$L$29) ->  | P22: =CntyDataLinkPrior5YearEstimates!$D$132 -> 177 | Q22: =CntyDataLinkPrior5YearEstimates!$E$132 -> 66.8580586 | R22: =P22/SUM($P$22:$P$29) -> 0.22125 | S22: =CntyDataLink!$D$132 -> 91 | T22: =CntyDataLink!$E$132 -> 46.4542786 | U22: =S22/SUM($S$22:$S$29) -> 0.1294452347 | V22: =(S22-P22)/P22 -> -0.4858757062 | W22: =StatisticallySignificantCalcs!$A3 -> Y
K23: 15 to 24 yrs. | L23: =#REF! ->  | N23: =#REF! ->  | O23: =L23/SUM($L$22:$L$29) ->  | P23: =CntyDataLinkPrior5YearEstimates!$F$132 -> 81 | Q23: =CntyDataLinkPrior5YearEstimates!$G$132 -> 46.292548 | R23: 0.10125 | S23: =CntyDataLink!$F$132 -> 85 | T23: =CntyDataLink!$G$132 -> 40.11234224 | U23: 0.1209103841 | V23: 0.04938271605 | W23: =StatisticallySignificantCalcs!$A4 -> Y
B24: Percent Change | K24: 25 to 34 yrs. | L24: =#REF! ->  | N24: =#REF! ->  | O24: =L24/SUM($L$22:$L$29) ->  | P24: =CntyDataLinkPrior5YearEstimates!$H$132 -> 22 | Q24: =CntyDataLinkPrior5YearEstimates!$I$132 -> 26.03843313 | R24: 0.0275 | S24: =CntyDataLink!$H$132 -> 50 | T24: =CntyDataLink!$I$132 -> 32.55764119 | U24: 0.07112375533 | V24: 1.272727273 | W24: =StatisticallySignificantCalcs!$A5 -> Y
D25: =C21&"-"&(D21-1900) -> 1980-90 | E25: 1990-2000 | F25: =E21&"-19" -> 2000-19 | G25: =2019&"-"&(G21) -> 2019-2025 | H25: =G21&"-"&(H21) -> 2025-2030 | K25: 35 to 44 yrs. | L25: =#REF! ->  | N25: =#REF! ->  | P25: =CntyDataLinkPrior5YearEstimates!$J$132 -> 138 | Q25: =CntyDataLinkPrior5YearEstimates!$K$132 -> 45.98912915 | R25: 0.1725 | S25: =CntyDataLink!$J$132 -> 86 | T25: =CntyDataLink!$K$132 -> 36.19392214 | U25: 0.1223328592 | V25: -0.3768115942 | W25: =StatisticallySignificantCalcs!$A6 -> Y
D26: =(D22-C22)/C22 -> 0.3994778068 | E26: =(E22-D22)/D22 -> 0.2201492537 | F26: =(F22-E22)/E22 -> 0.0749235474 | G26: =(G22-F22)/F22 -> 0.1692745377 | H26: =(H22-G22)/G22 -> 0.05839416058 | K26: 45 to 54 yrs. | L26: =#REF! ->  | N26: =#REF! ->  | P26: =CntyDataLinkPrior5YearEstimates!$L$132 -> 160 | Q26: =CntyDataLinkPrior5YearEstimates!$M$132 -> 46.5832588 | R26: 0.2 | S26: =CntyDataLink!$L$132 -> 88 | T26: =CntyDataLink!$M$132 -> 30.3644529 | U26: 0.1251778094 | V26: -0.45 | W26: =StatisticallySignificantCalcs!$A7 -> Y
K27: 55 to 64 yrs. | L27: =#REF! ->  | N27: =#REF! ->  | P27: =CntyDataLinkPrior5YearEstimates!$N$132 -> 88 | Q27: =CntyDataLinkPrior5YearEstimates!$O$132 -> 32.12475681 | R27: 0.11 | S27: =CntyDataLink!$N$132 -> 153 | T27: =CntyDataLink!$O$132 -> 36.138622 | U27: 0.2176386913 | V27: 0.7386363636 | W27: =StatisticallySignificantCalcs!$A8 -> Y
K28: 65 to 74 yrs. | L28: =#REF! ->  | N28: =#REF! ->  | P28: =CntyDataLinkPrior5YearEstimates!$P$132 -> 76 | Q28: =CntyDataLinkPrior5YearEstimates!$Q$132 -> 27.12931993 | R28: 0.095 | S28: =CntyDataLink!$P$132 -> 87 | T28: =CntyDataLink!$Q$132 -> 29.37686164 | U28: 0.1237553343 | V28: 0.1447368421 | W28: =StatisticallySignificantCalcs!$A9 -> Y
K29: Over 74 yrs. | L29: =#REF! ->  | N29: =#REF! ->  | P29: =CntyDataLinkPrior5YearEstimates!$R$132 -> 58 | Q29: =CntyDataLinkPrior5YearEstimates!$S$132 -> 24.39262184 | R29: 0.0725 | S29: =CntyDataLink!$R$132 -> 63 | T29: =CntyDataLink!$S$132 -> 25.01999201 | U29: 0.08961593172 | V29: 0.08620689655 | W29: =StatisticallySignificantCalcs!$A10 -> Y
K30: Median Age (years) | L30: =#REF! ->  | N30: =#REF! ->  | P30: =CntyDataLinkPrior5YearEstimates!$AX132 -> 43.8 | Q30: =CntyDataLinkPrior5YearEstimates!$AY$132 -> 5.2 | S30: =CntyDataLink!$AX$132 -> 50.4 | T30: =CntyDataLink!$AY$132 -> 7.3
B32: Population By Race | M32: Statistically Significant Change
M33: =IF(L36="","-",StatisticallySignificantCalcs!A20) -> 
C34: 2005-2009 | F34: 2009-2013 | I34: 2015-2019 | M34: =IF(L37="","-",StatisticallySignificantCalcs!A21) -> 
C35: Estimate | D35: Margin of Error | F35: Estimate | G35: Margin of Error | I35: Estimate | J35: Margin of Error | L35: Percent Change | M35: =IF(L38="","-",StatisticallySignificantCalcs!A22) -> 
B36: White | C36: =#REF! ->  | D36: =#REF! ->  | E36: =IF(C$36="-","-",VALUE(C36/$C$41)) ->  | F36: =CntyDataLinkPrior5YearEstimates!$AL$132 -> 767 | G36: =CntyDataLinkPrior5YearEstimates!$AM$132 -> 169 | H36: =IF(F$36="-","-",VALUE(F36/$F$41)) -> 0.95875 | I36: =CntyDataLink!$AL$132 -> 670 | J36: =CntyDataLink!$AM$132 -> 130 | K36: =IF(I$36="-","-",VALUE(I36/$I$41)) -> 0.9530583215 | L36: =StatisticallySignificantCalcs!A20 ->  | M36: =StatisticallySignificantCalcs!J20 -> N
B37: Black | C37: =#REF! ->  | D37: =#REF! ->  | E37: =IF(C$37="-","-",VALUE(C37/$C$41)) ->  | F37: =CntyDataLinkPrior5YearEstimates!$AN132 -> 13 | G37: =CntyDataLinkPrior5YearEstimates!$AO$132 -> 16 | H37: =IF(F$37="-","-",VALUE(F37/$F$41)) -> 0.01625 | I37: =CntyDataLink!$AN$132 -> 0 | J37: =CntyDataLink!$AO$132 -> 11 | K37: =IF(I$37="-","-",VALUE(I37/$I$41)) -> 0 | L37: =StatisticallySignificantCalcs!A21 ->  | M37: =StatisticallySignificantCalcs!J21 -> N
B38: American Indian | C38: =#REF! ->  | D38: =#REF! ->  | E38: =IF(C$38="-","-",VALUE(C38/$C$41)) ->  | F38: =CntyDataLinkPrior5YearEstimates!$AP$132 -> 0 | G38: =CntyDataLinkPrior5YearEstimates!$AQ$132 -> 11 | H38: =IF(F$38="-","-",VALUE(F38/$F$41)) -> 0 | I38: =CntyDataLink!$AP$132 -> 3 | J38: =CntyDataLink!$AQ$132 -> 4 | K38: =IF(I$38="-","-",VALUE(I38/$I$41)) -> 0.00426742532 | L38: =StatisticallySignificantCalcs!A22 ->  | M38: =StatisticallySignificantCalcs!J22 -> N
B39: Asian &Pacific Is. | C39: =#REF! ->  | D39: =#REF! ->  | E39: =IF(C$39="-","-",VALUE(C39/$C$41)) ->  | F39: =CntyDataLinkPrior5YearEstimates!$AR$132 -> 0 | G39: =CntyDataLinkPrior5YearEstimates!$AS$132 -> 15.55634919 | H39: =IF(F$39="-","-",VALUE(F39/$F$41)) -> 0 | I39: =CntyDataLink!$AR$132 -> 4 | J39: =CntyDataLink!$AS$132 -> 12.52996409 | K39: =IF(I$39="-","-",VALUE(I39/$I$41)) -> 0.005689900427 | L39: =StatisticallySignificantCalcs!A23 ->  | M39: =StatisticallySignificantCalcs!J23 -> N
B40: Other* | C40: =#REF! ->  | D40: =#REF! ->  | E40: =IF(C$40="-","-",VALUE(C40/$C$41)) ->  | F40: =CntyDataLinkPrior5YearEstimates!$AT$132 -> 20 | G40: =CntyDataLinkPrior5YearEstimates!$AU$132 -> 23.70653918 | H40: =IF(F$40="-","-",VALUE(F40/$F$41)) -> 0.025 | I40: =CntyDataLink!$AT$132 -> 26 | J40: =CntyDataLink!$AU$132 -> 35.22782991 | K40: =IF(I$40="-","-",VALUE(I40/$I$41)) -> 0.03698435277 | L40: =StatisticallySignificantCalcs!A24 ->  | M40: =StatisticallySignificantCalcs!J24 -> N
B41: Total Population | C41: =#REF! ->  | D41: =#REF! ->  | F41: =CntyDataLinkPrior5YearEstimates!$B$132 -> 800 | G41: =CntyDataLinkPrior5YearEstimates!$C$132 -> 176 | I41: =CntyDataLink!$B$132 -> 703 | J41: =CntyDataLink!$C$132 -> 142
B42: Hispanic | C42: =#REF! ->  | D42: =#REF! ->  | E42: =IF(C$42="-","-",VALUE(C42/$C$41)) ->  | F42: =CntyDataLinkPrior5YearEstimates!$AV132 -> 0 | G42: =CntyDataLinkPrior5YearEstimates!$AW$132 -> 11 | H42: =IF(F$42="-","-",VALUE(F42/$F$41)) -> 0 | I42: =CntyDataLink!$AV$132 -> 0 | J42: =CntyDataLink!$AW$132 -> 11 | K42: =IF(I$42="-","-",VALUE(I42/$I$41)) -> 0 | L42: =StatisticallySignificantCalcs!$A$26 ->  | M42: =StatisticallySignificantCalcs!$J$26 -> N
B44: * | C44: Other includes population of 2 or more races
B46: ="Source: "& L20&", "&P20&", and "&S20&" American Community Survey Table B03002" -> Source: 2005-2009, 2009-2013, and 2015-2019 American Community Survey Table B03002
C48: Households and Families
D49: 2009-2013 | G49: 2009-2013 | J49: 2015-2019 | N49: Percent Change 2009-2019 | P49: Percent Change 2014-2019
D50: Estimate | E50: Margin of Error | G50: Estimate | H50: Margin of Error | J50: Estimate | K50: Margin of Error
C51: Total Households | D51: =#REF! ->  | E51: =#REF! ->  | G51: =CntyDataLinkPrior5YearEstimates!$T$132 -> 308 | H51: =CntyDataLinkPrior5YearEstimates!$U$132 -> 53 | J51: =CntyDataLink!$T$132 -> 307 | K51: =CntyDataLink!$U$132 -> 58 | N51: =(J51-D51)/D51 ->  | P51: =(J51-G51)/G51 -> -0.003246753247
C52: Persons per Household | D52: =#REF! ->  | E52: =#REF! ->  | G52: =CntyDataLinkPrior5YearEstimates!$BD$132 -> 2.597402597 | H52: =CntyDataLinkPrior5YearEstimates!$BE$132 -> 0 | J52: =CntyDataLink!$BD$132 -> 2.28990228 | K52: =CntyDataLink!$BE$132 -> 0.29 | N52: =(J52-D52)/D52 ->  | P52: =(J52-G52)/G52 -> -0.1183876221
C53: Family Households | D53: =#REF! ->  | E53: =#REF! ->  | G53: =CntyDataLinkPrior5YearEstimates!$V$132 -> 227 | H53: =CntyDataLinkPrior5YearEstimates!$U$132 -> 53 | J53: =CntyDataLink!$V$132 -> 212 | K53: =CntyDataLink!$U$132 -> 58 | P53: -0.06607929515
C54: Persons per Family Household | D54: =#REF! ->  | E54: =#REF! ->  | G54: =CntyDataLinkPrior5YearEstimates!$BF$132 -> 3.110132159 | H54: =CntyDataLinkPrior5YearEstimates!$BG$132 -> 0.9059421493 | J54: =CntyDataLink!$BF$132 -> 2.712264151 | K54: =CntyDataLink!$BG$132 -> 0.9059421493 | P54: -0.1279263991
C55: Married-Couple Family Hh | D55: =#REF! ->  | E55: =#REF! ->  | G55: =CntyDataLinkPrior5YearEstimates!$X$132 -> 200 | H55: =CntyDataLinkPrior5YearEstimates!$Y$132 -> 49 | J55: =CntyDataLink!$X$132 -> 162 | K55: =CntyDataLink!$Y$132 -> 42 | P55: -0.19
C56: Single-Parent Family Hh | D56: =#REF! ->  | E56: =#REF! ->  | G56: =CntyDataLinkPrior5YearEstimates!$Z$132 -> 27 | H56: =CntyDataLinkPrior5YearEstimates!$AA$132 -> 25 | J56: =CntyDataLink!$Z$132 -> 50 | K56: =CntyDataLink!$AA$132 -> 26 | P56: 0.8518518519
C57: Non-Family Households* | D57: =#REF! ->  | E57: =#REF! ->  | G57: =CntyDataLinkPrior5YearEstimates!$AF$132 -> 81 | H57: =CntyDataLinkPrior5YearEstimates!$AG$132 -> 28 | J57: =CntyDataLink!$AF$132 -> 95 | K57: =CntyDataLink!$AG$132 -> 32 | P57: 0.1728395062
C58: Persons per Non-Family Hh | D58: =#REF! ->  | E58: =#REF! ->  | G58: =CntyDataLinkPrior5YearEstimates!$BH$132 -> 1.160493827 | H58: =CntyDataLinkPrior5YearEstimates!$BI$132 -> 0.7029791218 | J58: =CntyDataLink!$BH$132 -> 1.347368421 | K58: =CntyDataLink!$BI$132 -> 0.7029791218 | P58: 0.1610302352
B61: As a result of changes in the American Community Survey, direct comparisons between the data should be made with caution.
B63: ="Source: "& L20&", "&P20&", and "&S20&" American Community Survey Table B11001" -> Source: 2005-2009, 2009-2013, and 2015-2019 American Community Survey Table B11001
B64: POPULATION CHARACTERISTICS
B87: As a result of changes in the American Community Survey, direct comparisons between the data should be made with caution.

Sheet SchoolEnrolEduAttain (hidden)
C2: =CntyDataLink!A50 -> Albany
C3: SOCIAL CHARACTERISTICS
C21: School Enrollment | F21: 2005-2009 | I21: 2010-2014 | L21: 2015-2019 | P21: Statistically Significant Change
F22: Estimate | G22: Margin of Error | H22: Percent of Population | I22: Estimate | J22: Margin of Error | K22: Percent of Population | L22: Estimate | M22: Margin of Error | N22: Percent of Population | P22: 2009-2019 | Q22: 2014-2019
C23: Population 3 years and over | F23: =#REF! ->  | G23: =#REF! ->  | I23: =CntyDataLinkPrior5YearEstimates!$B$140 -> 778 | J23: =CntyDataLinkPrior5YearEstimates!$C$140 -> 168 | L23: =CntyDataLink!$B$140 -> 689 | M23: =CntyDataLink!$C$140 -> 137 | P23: =StatisticallySignificantCalcs!$A$45 ->  | Q23: =StatisticallySignificantCalcs!$J$45 -> N
C24: Population 3 years & over enrolled in school | F24: =#REF! ->  | G24: =#REF! ->  | H24: =F24/$F$23 ->  | I24: =CntyDataLinkPrior5YearEstimates!$D$140 -> 200 | J24: =CntyDataLinkPrior5YearEstimates!$E$140 -> 89 | K24: =I24/$I$23 -> 0.2570694087 | L24: =CntyDataLink!$D$140 -> 119 | M24: =CntyDataLink!$E$140 -> 44 | N24: =L24/$L$23 -> 0.1727140784 | P24: =StatisticallySignificantCalcs!$A$46 ->  | Q24: =StatisticallySignificantCalcs!$J$46 -> N
C25: Preprimary (Nursery, Preschool, Kindergarten) | F25: =#REF! ->  | G25: =#REF! ->  | I25: =CntyDataLinkPrior5YearEstimates!$F$140 -> 42 | J25: =CntyDataLinkPrior5YearEstimates!$G$140 -> 34.6554469 | K25: =I25/$I$23 -> 0.05398457584 | L25: =CntyDataLink!$F$140 -> 22 | M25: =CntyDataLink!$G$140 -> 20.24845673 | N25: =L25/$L$23 -> 0.03193033382 | P25: =StatisticallySignificantCalcs!$A$47 ->  | Q25: =StatisticallySignificantCalcs!$J$47 -> N
C26: Nursery school and Preschool | F26: =#REF! ->  | G26: =#REF! ->  | I26: =CntyDataLinkPrior5YearEstimates!$H$140 -> 27 | J26: =CntyDataLinkPrior5YearEstimates!$I$140 -> 25 | K26: 0.03470437018 | L26: =CntyDataLink!$H$140 -> 14 | M26: =CntyDataLink!$I$140 -> 17 | N26: =L26/$L$23 -> 0.02031930334 | P26: =StatisticallySignificantCalcs!$A$48 ->  | Q26: =StatisticallySignificantCalcs!$J$48 -> N
C27: Kindergarten | F27: =#REF! ->  | G27: =#REF! ->  | I27: =CntyDataLinkPrior5YearEstimates!$J$140 -> 15 | J27: =CntyDataLinkPrior5YearEstimates!$K$140 -> 24 | K27: 0.01928020566 | L27: =CntyDataLink!$J$140 -> 8 | M27: =CntyDataLink!$K$140 -> 11 | N27: 0.01161103048 | P27: =StatisticallySignificantCalcs!$A$49 ->  | Q27: =StatisticallySignificantCalcs!$J$49 -> N
C28: Elementary through High school | F28: =#REF! ->  | G28: =#REF! ->  | I28: =CntyDataLinkPrior5YearEstimates!$P$140 -> 140 | J28: =CntyDataLinkPrior5YearEstimates!$Q$140 -> 55.4977477 | K28: 0.1799485861 | L28: =CntyDataLink!$P$140 -> 85 | M28: =CntyDataLink!$Q$140 -> 34.42382896 | N28: 0.1233671988 | P28: =StatisticallySignificantCalcs!$A$50 ->  | Q28: =StatisticallySignificantCalcs!$J$50 -> N
C29: Elementary school (grades 1-8) | F29: =#REF! ->  | G29: =#REF! ->  | I29: =CntyDataLinkPrior5YearEstimates!$L$140 -> 102 | J29: =CntyDataLinkPrior5YearEstimates!$M$140 -> 46.69047012 | K29: =I29/$I$23 -> 0.1311053985 | L29: =CntyDataLink!$L$140 -> 44 | M29: =CntyDataLink!$M$140 -> 25.61249695 | N29: 0.06386066763 | P29: =StatisticallySignificantCalcs!$A$51 ->  | Q29: =StatisticallySignificantCalcs!$J$51 -> Y
C30: High school (grades 9-12) | F30: =#REF! ->  | G30: =#REF! ->  | I30: =CntyDataLinkPrior5YearEstimates!$N$140 -> 38 | J30: =CntyDataLinkPrior5YearEstimates!$O$140 -> 30 | K30: 0.04884318766 | L30: =CntyDataLink!$N$140 -> 41 | M30: =CntyDataLink!$O$140 -> 23 | N30: 0.0595065312 | P30: =StatisticallySignificantCalcs!$A$52 ->  | Q30: =StatisticallySignificantCalcs!$J$52 -> N
C31: College or Graduate School | F31: =#REF! ->  | G31: =#REF! ->  | I31: =CntyDataLinkPrior5YearEstimates!$R$140 -> 18 | J31: =CntyDataLinkPrior5YearEstimates!$S$140 -> 14.14213562 | K31: 0.02313624679 | L31: =CntyDataLink!$R$140 -> 12 | M31: =CntyDataLink!$S$140 -> 13.34166406 | N31: 0.01741654572 | P31: =StatisticallySignificantCalcs!$A$53 ->  | Q31: =StatisticallySignificantCalcs!$J$53 -> N
C33: ="Source: "&F21&", "& I21&" and "&L21&" American Community Survey Table B14001" -> Source: 2005-2009, 2010-2014 and 2015-2019 American Community Survey Table B14001
C50: Educational Attainment | F50: 2005-2009 | I50: 2010-2014 | L50: 2015.-2019 | P50: Statistically Significant Change
F51: Estimate | G51: Margin of Error | H51: Percent of Population | I51: Estimate | J51: Margin of Error | K51: Percent of Population | L51: Estimate | M51: Margin of Error | N51: Percent of Population | P51: 2009-2019 | Q51: 2014-2019
C52: Population 25 years and over | F52: =#REF! ->  | G52: =#REF! ->  | I52: =CntyDataLinkPrior5YearEstimates!$V$140 -> 542 | J52: =CntyDataLinkPrior5YearEstimates!$W$140 -> 95 | L52: =CntyDataLink!$V$140 -> 527 | M52: =CntyDataLink!$W$140 -> 107 | P52: =StatisticallySignificantCalcs!A54 ->  | Q52: =StatisticallySignificantCalcs!$J$54 -> N
C53: Less than 9th Grade | F53: =#REF! ->  | G53: =#REF! ->  | H53: =F53/$F$52 ->  | I53: =CntyDataLinkPrior5YearEstimates!$X$140 -> 2 | J53: =CntyDataLinkPrior5YearEstimates!$Y$140 -> 24.91987159 | K53: =I53/$I$52 -> 0.0036900369 | L53: =CntyDataLink!$X$140 -> 4 | M53: =CntyDataLink!$Y$140 -> 22.71563338 | N53: =L53/$L$52 -> 0.007590132827 | P53: =StatisticallySignificantCalcs!A55 ->  | Q53: =StatisticallySignificantCalcs!$J$55 -> N
C54: 9th to 12th Grade, no Diploma | F54: =#REF! ->  | G54: =#REF! ->  | H54: =F54/$F$52 ->  | I54: =CntyDataLinkPrior5YearEstimates!$Z$140 -> 44 | J54: =CntyDataLinkPrior5YearEstimates!$AA$140 -> 34.0147027 | K54: 0.08118081181 | L54: =CntyDataLink!$Z$140 -> 2 | M54: =CntyDataLink!$AA$140 -> 29.25747768 | N54: 0.003795066414 | P54: =StatisticallySignificantCalcs!A56 ->  | Q54: =StatisticallySignificantCalcs!$J$56 -> N
C55: High School Graduate | F55: =#REF! ->  | G55: =#REF! ->  | I55: =CntyDataLinkPrior5YearEstimates!$AB$140 -> 218 | J55: =CntyDataLinkPrior5YearEstimates!$AC$140 -> 52.63078947 | K55: 0.4022140221 | L55: =CntyDataLink!$AB$140 -> 124 | M55: =CntyDataLink!$AC$140 -> 35.4682957 | N55: 0.2352941176 | P55: =StatisticallySignificantCalcs!A57 ->  | Q55: =StatisticallySignificantCalcs!$J$57 -> Y
C56: Some College, No Degree | F56: =#REF! ->  | G56: =#REF! ->  | I56: =CntyDataLinkPrior5YearEstimates!$AD$140 -> 127 | J56: =CntyDataLinkPrior5YearEstimates!$AE$140 -> 44.72135955 | K56: 0.2343173432 | L56: =CntyDataLink!$AD$140 -> 118 | M56: =CntyDataLink!$AE$140 -> 33.77869151 | N56: 0.2239089184 | P56: =StatisticallySignificantCalcs!A58 ->  | Q56: =StatisticallySignificantCalcs!$J$58 -> N
C57: Associate Degree | F57: =#REF! ->  | G57: =#REF! ->  | I57: =CntyDataLinkPrior5YearEstimates!$AF$140 -> 24 | J57: =CntyDataLinkPrior5YearEstimates!$AG$140 -> 12.80624847 | K57: 0.0442804428 | L57: =CntyDataLink!$AF$140 -> 55 | M57: =CntyDataLink!$AG$140 -> 22.82542442 | N57: 0.1043643264 | P57: =StatisticallySignificantCalcs!A59 ->  | Q57: =StatisticallySignificantCalcs!$J$59 -> Y
C58: Bachelor's Degree | F58: =#REF! ->  | G58: =#REF! ->  | I58: =CntyDataLinkPrior5YearEstimates!$AH$140 -> 71 | J58: =CntyDataLinkPrior5YearEstimates!$AI$140 -> 25.8069758 | K58: 0.13099631 | L58: =CntyDataLink!$AH$140 -> 133 | M58: =CntyDataLink!$AI$140 -> 51.89412298 | N58: 0.2523719165 | P58: =StatisticallySignificantCalcs!A60 ->  | Q58: =StatisticallySignificantCalcs!$J$60 -> Y
C59: Graduate or Professional Degree | F59: =#REF! ->  | G59: =#REF! ->  | I59: =CntyDataLinkPrior5YearEstimates!$AJ$140 -> 56 | J59: =CntyDataLinkPrior5YearEstimates!$AK$140 -> 25.84569597 | K59: 0.1033210332 | L59: =CntyDataLink!$AJ$140 -> 91 | M59: =CntyDataLink!$AK$140 -> 27.94637722 | N59: 0.1726755218 | P59: =StatisticallySignificantCalcs!A61 ->  | Q59: =StatisticallySignificantCalcs!$J$61 -> N
C61: Percent of High School Graduate or Higher | H61: =SUM(F55:F59)/F52 ->  | K61: =SUM(I55:I59)/I52 -> 0.9151291513 | N61: =SUM(L55:L59)/L52 -> 0.9886148008
C62: Percent of Bachelor's Degree or Higher | H62: =SUM(F58:F59)/F52 ->  | K62: =SUM(I58:I59)/I52 -> 0.2343173432 | N62: =SUM(L58:L59)/L52 -> 0.4250474383
C64: ="Source: "&F21&", "&I21&" and "&L21&" American Community Survey Table B15002" -> Source: 2005-2009, 2010-2014 and 2015-2019 American Community Survey Table B15002
C66: As a result of changes in the American Community Survey, direct comparisons between the data should be made with caution.
C67: Data from the American Community Survey are estimates

Sheet HousingCharacteristics (hidden)
B2: =CntyDataLink!$A35 -> Albany
B4: HOUSING CHARACTERISTICS
D27: ="Source: "& " "&D69&", "&G69&" and "&J69& " American Community Survey Table B25024; B25032" -> Source: 2005-2009, 2010-2014 and 2015-2019 American Community Survey Table B25024; B25032
B28: Units by Tenure & Vacancy
C30: 2005-2009 | F30: 2010-2014 | I30: 2015-2019 | L30: Percent Change | O30: Statistically Significant Change
C31: Estimate | D31: Margin of Error | E31: % | F31: Estimate | G31: Margin of Error | H31: % | I31: Estimate | J31: Margin of Error | K31: % | L31: 2009-2019 | M31: 2014-2019 | O31: 2009-2019 | P31: 2014-2019
B32: Total Units | C32: =#REF! ->  | D32: =CntyDataLinkPrior5YearEstimates!$C$108 -> 74 | F32: =CntyDataLinkPrior5YearEstimates!$B$108 -> 557 | G32: =CntyDataLinkPrior5YearEstimates!$C$108 -> 74 | I32: =CntyDataLink!$B$108 -> 542 | J32: =CntyDataLink!$C$108 -> 74 | L32: =IF(I32="-","-",(I32-C32)/C32) ->  | M32: =IF(I32="-","-",(I32-F32)/F32) -> -0.02692998205 | O32: =StatisticallySignificantCalcs!$A62 ->  | P32: =StatisticallySignificantCalcs!$J62 -> N
B33: Occupied Units | C33: =#REF! ->  | D33: =CntyDataLinkPrior5YearEstimates!$E$108 -> 53 | E33: =ROUND(C33/C32,2)*100&"% of Total" ->  | F33: =CntyDataLinkPrior5YearEstimates!$D$108 -> 308 | G33: =CntyDataLinkPrior5YearEstimates!$E$108 -> 53 | H33: =ROUND(F33/F32,2)*100&"% of Total" -> 55% of Total | I33: =CntyDataLink!$D$108 -> 307 | J33: =CntyDataLink!$E$108 -> 58 | K33: =ROUND(I33/I32,2)*100&"% of Total" -> 57% of Total | L33: =IF(I33="-","-",(I33-C33)/C33) ->  | M33: =IF(I33="-","-",(I33-F33)/F33) -> -0.003246753247 | O33: =StatisticallySignificantCalcs!$A63 ->  | P33: =StatisticallySignificantCalcs!$J63 -> N
B34: Owner Occupied | C34: =#REF! ->  | D34: =CntyDataLinkPrior5YearEstimates!$G$108 -> 55 | E34: =ROUND(C34/C33,2)*100&"% of Occ." ->  | F34: =CntyDataLinkPrior5YearEstimates!$F$108 -> 263 | G34: =CntyDataLinkPrior5YearEstimates!$G$108 -> 55 | H34: =ROUND(F34/F33,2)*100&"% of Occ." -> 85% of Occ. | I34: =CntyDataLink!$F$108 -> 272 | J34: =CntyDataLink!$G$108 -> 56 | K34: =ROUND(I34/I33,2)*100&"% of Occ." -> 89% of Occ. | L34: =IF(I34="-","-",(I34-C34)/C34) ->  | M34: 0.03422053232 | O34: =StatisticallySignificantCalcs!$A64 ->  | P34: =StatisticallySignificantCalcs!$J64 -> N
B35: Renter Occupied | C35: =#REF! ->  | D35: =CntyDataLinkPrior5YearEstimates!$I$108 -> 20 | E35: =ROUND(C35/C33,2)*100&"% of Occ." ->  | F35: =CntyDataLinkPrior5YearEstimates!$H$108 -> 45 | G35: =CntyDataLinkPrior5YearEstimates!$I$108 -> 20 | H35: =ROUND(F35/F33,2)*100&"% of Occ." -> 15% of Occ. | I35: =CntyDataLink!$H$108 -> 35 | J35: =CntyDataLink!$I$108 -> 17 | K35: =ROUND(I35/I33,2)*100&"% of Occ." -> 11% of Occ. | L35: =IF(I35="-","-",(I35-C35)/C35) ->  | M35: -0.2222222222 | O35: =StatisticallySignificantCalcs!$A65 ->  | P35: =StatisticallySignificantCalcs!$J65 -> N
B36: Vacant Units | C36: =#REF! ->  | D36: =CntyDataLinkPrior5YearEstimates!$K$108 -> 51 | E36: =ROUND(C36/C32,2)*100&"% of Total" ->  | F36: =CntyDataLinkPrior5YearEstimates!$J$108 -> 249 | G36: =CntyDataLinkPrior5YearEstimates!$K$108 -> 51 | H36: =ROUND(F36/F32,2)*100&"% of Total" -> 45% of Total | I36: =CntyDataLink!$J$108 -> 235 | J36: =CntyDataLink!$K$108 -> 53 | K36: =ROUND(I36/I32,2)*100&"% of Total" -> 43% of Total | L36: =IF(I36="-",I36,VALUE((I36-C36)/C36)) ->  | M36: -0.0562248996 | O36: =StatisticallySignificantCalcs!$A66 ->  | P36: =StatisticallySignificantCalcs!$J66 -> N
B37: Vacant For Sale | C37: =#REF! ->  | D37: =CntyDataLinkPrior5YearEstimates!$Q$108 -> 9 | E37: =ROUND(C37/(C34+C37),3)*100&"% Vac." ->  | F37: =CntyDataLinkPrior5YearEstimates!$P$108 -> 6 | G37: =CntyDataLinkPrior5YearEstimates!$Q$108 -> 9 | H37: =ROUND(F37/(F34+F37),3)*100&"% Vac." -> 2.2% Vac. | I37: =CntyDataLink!$P$108 -> 12 | J37: =CntyDataLink!$Q$108 -> 13 | K37: =ROUND(I37/(I34+I37),3)*100&"% Vac." -> 4.2% Vac. | L37: =IF(I37="-",I37,VALUE((I37-C37)/C37)) ->  | M37: 1 | O37: =StatisticallySignificantCalcs!$A67 ->  | P37: =StatisticallySignificantCalcs!$J67 -> N
B38: Vacant For Rent | C38: =#REF! ->  | D38: =CntyDataLinkPrior5YearEstimates!$M$108 -> 4 | E38: =ROUND(C38/(C35+C38),3)*100&"% Vac." ->  | F38: =CntyDataLinkPrior5YearEstimates!$L$108 -> 3 | G38: =CntyDataLinkPrior5YearEstimates!$M$108 -> 4 | H38: =ROUND(F38/(F35+F38),3)*100&"% Vac." -> 6.3% Vac. | I38: =CntyDataLink!$L$108 -> 0 | J38: =CntyDataLink!$M$108 -> 11 | K38: =ROUND(I38/(I35+I38),3)*100&"% Vac." -> 0% Vac. | L38: =IF(I38="-",I38,VALUE((I38-C38)/C38)) ->  | M38: -1 | O38: =StatisticallySignificantCalcs!$A68 ->  | P38: =StatisticallySignificantCalcs!$J68 -> N
B39: Vacant Seasonal | C39: =#REF! ->  | D39: =CntyDataLinkPrior5YearEstimates!$U$108 -> 48 | E39: =ROUND(C39/C32,2)*100&"% of Total" ->  | F39: =CntyDataLinkPrior5YearEstimates!$T$108 -> 213 | G39: =CntyDataLinkPrior5YearEstimates!$U$108 -> 48 | H39: =ROUND(F39/F32,2)*100&"% of Total" -> 38% of Total | I39: =CntyDataLink!$T$108 -> 199 | J39: =CntyDataLink!$U$108 -> 50 | K39: =ROUND(I39/I32,2)*100&"% of Total" -> 37% of Total | L39: =IF(I39="-",I39,VALUE((I39-C39)/C39)) ->  | M39: -0.06572769953 | O39: =StatisticallySignificantCalcs!$A69 ->  | P39: =StatisticallySignificantCalcs!$J69 -> N
B41: Data from the American Community Survey are estimates
D65: ="Source: "& " "&D69&", "&G69&" and "&J69& " American Community Survey Table B25024; B25032" -> Source: 2005-2009, 2010-2014 and 2015-2019 American Community Survey Table B25024; B25032
C67: Units by Type
D69: 2005-2009 | G69: 2010-2014 | J69: 2015-2019 | M69: Percent Change | O69: Statistically Significant Change
D70: Estimate | E70: Margin of Error | F70: % of Total | G70: Estimate | H70: Margin of Error | I70: % of Total | J70: Estimate | K70: Margin of Error | L70: % of Total | M70: 2009-2019 | N70: 2014-2019 | O70: 2009-2019 | P70: 2014-2019
C71: Total Units | D71: =#REF! ->  | E71: =#REF! ->  | G71: =CntyDataLinkPrior5YearEstimates!$B$108 -> 557 | H71: =CntyDataLinkPrior5YearEstimates!$C$108 -> 74 | J71: =CntyDataLink!$B$108 -> 542 | K71: =CntyDataLink!$C$108 -> 74 | O71: =StatisticallySignificantCalcs!$A70 ->  | P71: =StatisticallySignificantCalcs!$J70 -> N
C72: Single Family Units | D72: =#REF! ->  | E72: =#REF! ->  | F72: =IF(D72="-","-",($D$72/$D$71)) ->  | G72: =CntyDataLinkPrior5YearEstimates!$AT$108 -> 459 | H72: =CntyDataLinkPrior5YearEstimates!$AU$108 -> 67 | I72: =IF(G72="-","-",($G$72/$G$71)) -> 0.8240574506 | J72: =CntyDataLink!$AT$108 -> 434 | K72: =CntyDataLink!$AU$108 -> 68 | L72: =IF(J72="-","-",($J$72/$J$71)) -> 0.8007380074 | M72: =IF(J72="-","-",($J72-$D72)/$D72) ->  | N72: =IF(J72="-","-",($J72-$G72)/$G72) -> -0.05446623094 | O72: =StatisticallySignificantCalcs!$A71 ->  | P72: =StatisticallySignificantCalcs!$J71 -> N
C73: SF Owner Occ. | D73: =#REF! ->  | E73: =#REF! ->  | G73: =CntyDataLinkPrior5YearEstimates!$AF$108 -> 197 | H73: =CntyDataLinkPrior5YearEstimates!$AG$108 -> 45 | J73: =CntyDataLink!$AF$108 -> 216 | K73: =CntyDataLink!$AG$108 -> 46 | O73: =StatisticallySignificantCalcs!$A72 ->  | P73: =StatisticallySignificantCalcs!$J72 -> N
C74: SF Renter Occ. | D74: =#REF! ->  | E74: =#REF! ->  | G74: =CntyDataLinkPrior5YearEstimates!$AN$108 -> 28 | H74: =CntyDataLinkPrior5YearEstimates!$AO$108 -> 15 | J74: =CntyDataLink!$AN$108 -> 11 | K74: =CntyDataLink!$AO$108 -> 9 | O74: =StatisticallySignificantCalcs!$A73 ->  | P74: =StatisticallySignificantCalcs!$J73 -> N
C75: Multi-family Units | D75: =#REF! ->  | E75: =#REF! ->  | F75: =IF(D75="-","-",$D$75/$D$71) ->  | G75: =CntyDataLinkPrior5YearEstimates!$AV$108 -> 24 | H75: =CntyDataLinkPrior5YearEstimates!$AW$108 -> 30.18277655 | I75: =IF(G75="-","-",$G$75/$G$71) -> 0.04308797127 | J75: =CntyDataLink!$AV$108 -> 25 | K75: =CntyDataLink!$AW$108 -> 31.48015248 | L75: =IF(J75="-","-",$J$75/$J$71) -> 0.04612546125 | M75: =IF(J75="-","-",($J75-$D75)/$D75) ->  | N75: =IF(J75="-","-",($J75-$G75)/$G75) -> 0.04166666667 | O75: =StatisticallySignificantCalcs!$A74 ->  | P75: =StatisticallySignificantCalcs!$J74 -> N
C76: MF Owner Occ. | D76: =#REF! ->  | E76: =#REF! ->  | G76: =CntyDataLinkPrior5YearEstimates!$AH$108 -> 10 | H76: =CntyDataLinkPrior5YearEstimates!$AI$108 -> 26.36285265 | J76: =CntyDataLink!$AH$108 -> 9 | K76: =CntyDataLink!$AI$108 -> 29.9165506 | O76: =StatisticallySignificantCalcs!$A75 ->  | P76: =StatisticallySignificantCalcs!$J75 -> N
C77: MF Renter Occ. | D77: =#REF! ->  | E77: =#REF! ->  | G77: =CntyDataLinkPrior5YearEstimates!$AP$108 -> 8 | H77: =CntyDataLinkPrior5YearEstimates!$AQ$108 -> 28.74021573 | J77: =CntyDataLink!$AP$108 -> 16 | K77: =CntyDataLink!$AQ$108 -> 29.24038303 | O77: =StatisticallySignificantCalcs!$A76 ->  | P77: =StatisticallySignificantCalcs!$J76 -> N
C78: Mobile Home & Other | D78: =#REF! ->  | E78: =#REF! ->  | F78: =IF(D78="-","-",($D$78/$D$71)) ->  | G78: =CntyDataLinkPrior5YearEstimates!$AX$108 -> 74 | H78: =CntyDataLinkPrior5YearEstimates!$AY$108 -> 34.78505426 | I78: =IF(G78="-","-",($G$78/$G$71)) -> 0.1328545781 | J78: =CntyDataLink!$AX$108 -> 83 | K78: =CntyDataLink!$AY$108 -> 29.15475947 | L78: =IF(J78="-","-",($J$78/$J$71)) -> 0.1531365314 | M78: =IF(J78="-","-",($J78-$D78)/$D78) ->  | N78: =IF(J78="-","-",($J78-$G78)/$G78) -> 0.1216216216 | O78: =StatisticallySignificantCalcs!$A77 ->  | P78: =StatisticallySignificantCalcs!$J77 -> N
B80: Data from the American Community Survey are estimates
B83: Units by Number of Bedrooms
D84: ="Source: "& " "&D69&", "&G69&" and "&J69& " American Community Survey Table B25041" -> Source: 2005-2009, 2010-2014 and 2015-2019 American Community Survey Table B25041
C86: 2005-2009 | G86: 2010-2014 | K86: 2015-2019 | O86: Statistically Significant Change
B87: Bedrooms | C87: Estimate | D87: Margin of Error | E87: % of Total | G87: Estimate | H87: Margin of Error | I87: % of Total | K87: Estimate | L87: Margin of Error | M87: % of Total | O87: 2009-2019 | P87: 2014-2019
B88: No Bedrooms | C88: =#REF! ->  | D88: =#REF! ->  | E88: =C88/SUM($C$88:$C$92) ->  | G88: =CntyDataLinkPrior5YearEstimates!$BR$108 -> 11 | H88: =CntyDataLinkPrior5YearEstimates!$BS$108 -> 11 | I88: =G88/SUM($G$88:$G$92) -> 0.0197486535 | K88: =CntyDataLink!$BT$108 -> 46 | L88: =CntyDataLink!$BU$108 -> 26 | M88: =K88/SUM($K$88:$K$92) -> 0.08487084871 | O88: =StatisticallySignificantCalcs!$A78 ->  | P88: =StatisticallySignificantCalcs!$J78 -> Y
B89: 1 Bedroom | C89: =#REF! ->  | D89: =#REF! ->  | E89: =C89/SUM($C$88:$C$92) ->  | G89: =CntyDataLinkPrior5YearEstimates!$BT$108 -> 67 | H89: =CntyDataLinkPrior5YearEstimates!$BU$108 -> 29 | I89: =G89/SUM($G$88:$G$92) -> 0.1202872531 | K89: =CntyDataLink!$BV$108 -> 39 | L89: =CntyDataLink!$BW$108 -> 22 | M89: =K89/SUM($K$88:$K$92) -> 0.07195571956 | O89: =StatisticallySignificantCalcs!$A79 ->  | P89: =StatisticallySignificantCalcs!$J79 -> N
B90: 2 Bedrooms | C90: =#REF! ->  | D90: =#REF! ->  | E90: =C90/SUM($C$88:$C$92) ->  | G90: =CntyDataLinkPrior5YearEstimates!$BV$108 -> 160 | H90: =CntyDataLinkPrior5YearEstimates!$BW$108 -> 46 | I90: =G90/SUM($G$88:$G$92) -> 0.2872531418 | K90: =CntyDataLink!$BX$108 -> 204 | L90: =CntyDataLink!$BY$108 -> 45 | M90: =K90/SUM($K$88:$K$92) -> 0.3763837638 | O90: =StatisticallySignificantCalcs!$A80 ->  | P90: =StatisticallySignificantCalcs!$J80 -> N
B91: 3 Bedrooms | C91: =#REF! ->  | D91: =#REF! ->  | E91: =C91/SUM($C$88:$C$92) ->  | G91: =CntyDataLinkPrior5YearEstimates!$BX$108 -> 274 | H91: =CntyDataLinkPrior5YearEstimates!$BY$108 -> 57 | I91: =G91/SUM($G$88:$G$92) -> 0.4919210054 | K91: =CntyDataLink!$BZ$108 -> 194 | L91: =CntyDataLink!$CA$108 -> 50 | M91: =K91/SUM($K$88:$K$92) -> 0.3579335793 | O91: =StatisticallySignificantCalcs!$A81 ->  | P91: =StatisticallySignificantCalcs!$J81 -> Y
B92: 4+ Bedrooms | C92: =#REF! ->  | D92: =#REF! ->  | E92: =C92/SUM($C$88:$C$92) ->  | G92: =CntyDataLinkPrior5YearEstimates!$BZ$108 -> 45 | H92: =CntyDataLinkPrior5YearEstimates!$CA$108 -> 27.31300057 | I92: =G92/SUM($G$88:$G$92) -> 0.08078994614 | K92: =CntyDataLink!$CB$108 -> 59 | L92: =CntyDataLink!$CC$108 -> 26.62705391 | M92: =K92/SUM($K$88:$K$92) -> 0.1088560886 | O92: =StatisticallySignificantCalcs!$A82 ->  | P92: =StatisticallySignificantCalcs!$J82 -> N
B94: As a result of changes in the American Community Survey, direct comparisons between the 2009-2013 and 2015-2019 data should be made with caution.
B95: Data from the American Community Survey are estimates
B97: Units by Year Built
B98: ="Source: "&K86& " American Community Survey Table B25034" -> Source: 2015-2019 American Community Survey Table B25034
D100: Year Built | G100: Units | I100: % of Total | K100: Margin of Error
F101: 2014 or later | G101: =CntyDataLink!$AZ$108 -> 3 | I101: =G101/SUM($G$101:$G$110) -> 0.005535055351 | K101: =CntyDataLink!$BA$108 -> 4
F102: 2010 through 2013 | G102: =CntyDataLink!$BB$108 -> 22 | I102: 0.0405904059 | K102: =CntyDataLink!$BC$108 -> 12
F103: 2000 through 2009 | G103: =CntyDataLink!$BD$108 -> 66 | I103: 0.1217712177 | K103: =CntyDataLink!$BE$108 -> 25
F104: 1990 through 1999 | G104: =CntyDataLink!$BF$108 -> 40 | I104: 0.07380073801 | K104: =CntyDataLink!$BG$108 -> 18
F105: 1980 through 1989 | G105: =CntyDataLink!$BH$108 -> 109 | I105: 0.2011070111 | K105: =CntyDataLink!$BI$108 -> 36
F106: 1970 through 1979 | G106: =CntyDataLink!$BJ$108 -> 92 | I106: 0.1697416974 | K106: =CntyDataLink!$BK$108 -> 35
F107: 1960 through 1969 | G107: =CntyDataLink!$BL$108 -> 64 | I107: 0.1180811808 | K107: =CntyDataLink!$BM$108 -> 31
F108: 1950 through 1959 | G108: =CntyDataLink!$BN$108 -> 36 | I108: 0.06642066421 | K108: =CntyDataLink!$BO$108 -> 21
F109: 1940 through 1949 | G109: =CntyDataLink!$BP$108 -> 22 | I109: 0.0405904059 | K109: =CntyDataLink!$BQ$108 -> 17
F110: 1939 and earlier | G110: =CntyDataLink!$BR$108 -> 88 | I110: 0.1623616236 | K110: =CntyDataLink!$BS$108 -> 30
B112: Data from the American Community Survey are estimates

Sheet CntyDataLink (hidden)
A1: 1 | B1: =A1+1 -> 2 | C1: =B1+1 -> 3 | D1: 4 | E1: 5 | F1: 6 | G1: 7 | H1: 8 | I1: 9 | J1: 10 | K1: 11 | L1: 12 | M1: 13 | N1: 14 | O1: 15 | P1: =O1+1 -> 16 | Q1: 17 | R1: 18 | S1: 19 | T1: 20 | U1: 21 | V1: 22 | W1: 23 | X1: 24 | Y1: 25 | Z1: 26 | AA1: 27 | AB1: 28 | AC1: 29 | AD1: 30 | AE1: 31 | AF1: 32 | AG1: 33 | AH1: 34 | AI1: 35 | AJ1: 36 | AK1: 37 | AL1: 38 | AM1: 39 | AN1: 40 | AO1: 41 | AP1: 42 | AQ1: 43 | AR1: 44 | AS1: 45 | AT1: 46 | AU1: 47 | AV1: 48 | AW1: 49 | AX1: 50 | AY1: 51 | AZ1: 52 | BA1: 53 | BB1: 54 | BC1: 55 | BD1: 56 | BE1: 57 | BF1: 58 | BG1: 59 | BH1: 60 | BI1: 61 | BJ1: 62 | BK1: 63 | BL1: 64 | BM1: 65 | BN1: 66 | BO1: =BN1+1 -> 67 | BP1: 68 | BQ1: 69 | BR1: 70 | BS1: 71 | BT1: 72 | BU1: 73 | BV1: 74 | BW1: 75 | BX1: 76 | BY1: 77 | BZ1: 78 | CA1: 79 | CB1: 80 | CC1: 81 | CD1: 82 | CE1: 83 | CF1: 84 | CG1: 85 | CH1: 86 | CI1: 87 | CJ1: 88 | CK1: 89 | CL1: 90 | CM1: 91 | CN1: 92 | CO1: 93 | CP1: 94 | CQ1: 95 | CR1: 96 | CS1: 97 | CT1: 98 | CU1: 99 | CV1: 100 | CW1: 101 | CX1: 102 | CY1: 103 | CZ1: 104 | DA1: 105 | DB1: 106 | DC1: 107 | DD1: 108 | DE1: 109 | DF1: 110 | DG1: 111 | DH1: 112 | DI1: 113 | DJ1: 114 | DK1: 115 | DL1: 116 | DM1: 117 | DN1: 118 | DO1: 119 | DP1: 120 | DQ1: 121 | DR1: 122 | DS1: 123 | DT1: 124 | DU1: 125 | DV1: 126 | DW1: 127 | DX1: 128 | DY1: 129 | DZ1: 130 | EA1: =DZ1+1 -> 131 | EB1: 132 | EC1: 133 | ED1: 134 | EE1: 135 | EF1: 136 | EG1: 137 | EH1: 138 | EI1: 139 | EJ1: 140 | EK1: 141 | EL1: 142 | EM1: 143 | EN1: 144 | EO1: 145 | EP1: 146 | EQ1: 147 | ER1: 148 | ES1: 149 | ET1: 150 | EU1: 151 | EV1: 152 | EW1: 153 | EX1: 154 | EY1: 155 | EZ1: 156 | FA1: 157 | FB1: 158 | FC1: 159 | FD1: 160 | FE1: 161 | FF1: 162 | FG1: 163 | FH1: 164 | FI1: 165 | FJ1: 166 | FK1: 167 | FL1: 168 | FM1: 169 | FN1: 170 | FO1: 171 | FP1: 172 | FQ1: 173 | FR1: 174 | FS1: 175 | FT1: 176 | FU1: 177 | FV1: 178 | FW1: 179 | FX1: 180 | FY1: 181 | FZ1: 182 | GA1: 183 | GB1: 184 | GC1: 185 | GD1: 186 | GE1: 187 | GF1: 188 | GG1: 189 | GH1: 190 | GI1: 191 | GJ1: 192 | GK1: 193 | GL1: 194 | GM1: =GL1+1 -> 195 | GN1: 196 | GO1: 197 | GP1: 198 | GQ1: 199 | GR1: 200 | GS1: 201 | GT1: 202 | GU1: 203 | GV1: 204 | GW1: 205 | GX1: 206 | GY1: 207 | GZ1: 208 | HA1: 209 | HB1: 210 | HC1: 211 | HD1: 212 | HE1: 213 | HF1: 214 | HG1: 215 | HH1: 216 | HI1: 217 | HJ1: 218 | HK1: 219 | HL1: 220 | HM1: 221 | HN1: 222 | HO1: 223 | HP1: 224 | HQ1: 225 | HR1: 226 | HS1: 227 | HT1: 228 | HU1: 229 | HV1: 230 | HW1: 231 | HX1: 232 | HY1: 233 | HZ1: 234 | IA1: 235 | IB1: 236 | IC1: 237 | ID1: 238 | IE1: 239 | IF1: 240 | IG1: 241 | IH1: 242 | II1: 243 | IJ1: 244 | IK1: 245 | IL1: 246 | IM1: 247 | IN1: 248 | IO1: 249 | IP1: 250 | IQ1: 251 | IR1: 252 | IS1: 253 | IT1: 254 | IU1: 255
A3: Census 1990 Data - Query Name: DPCnty90Census
A4: TownName | B4: Cnty_Code | C4: Census_Cnty_Code | D4: LandAcres | E4: WaterAcres | F4: HousingUnits90Cen | G4: Persons90Cen | H4: Families90Cen | I4: Households90cen | J4: MalePop90cen | K4: FemalePop90cen | L4: WhitePop | M4: BlackPop | N4: AmerIndianPop | O4: AsianPIPop | P4: OtherRacePop | Q4: HispanicOrPop | R4: AgeUnder15_90cen | S4: Age15to24_90cen | T4: Age25to34_90cen | U4: Age35to44_90cen | V4: Age45to54_90cen | W4: Age55to64_90cen | X4: Age65to74_90cen | Y4: Age75andOver_90cen | Z4: PersonsInHH90cen | AA4: PersonsInFamHH90cen | AB4: PersonsInGC | AC4: PersonsPerHH90cen | AD4: PersonsPerFam90Cen | AE4: SinglePersonHH90cen | AF4: MarriedCoupleHH90cen | AG4: SingleParentHH90cen | AH4: NonFamilyHH90cen | AI4: TotalHousingUnits | AJ4: OccupiedHousingUnits | AK4: VacantHousingUnits | AL4: OwnerOccHU | AM4: RenterOccHU | AN4: VacantForRent90 | AO4: VacantForSale90 | AP4: VacantSeasonalRec | AQ4: SingFamHU90cen | AR4: MultiFamHU90cen | AS4: MobileHom90cen | AT4: SingFamOwnHU90cen | AU4: MultiFamOwnHU90cen | AV4: MobileHomOwnHU90cen | AW4: SingFamRntrHU90cen | AX4: MultiFamRntrHU90cen | AY4: MobileHomRntrHU90cen | AZ4: HU<5yrs90cen | BA4: HU5to20yrs90cen | BB4: HU20to50yrs90cen | BC4: HU>50yrs90cen | BD4: Units0Bedroom90cen | BE4: Units1Bedroom90cen | BF4: Units2Bedroom90cen | BG4: Units3Bedroom90cen | BH4: Units4+Bedroom90cen | BI4: HI<5K | BJ4: HI5Kto10K | BK4: HI10Kto15K | BL4: HI15Kto25K | BM4: HI25Kto35K | BN4: HI35Kto50K | BO4: HI50Kto75K | BP4: HI75Kto100K | BQ4: HI>100K | BR4: MedHI | BS4: HH<25HI<5K | BT4: HH<25HI5Kto10K | BU4: HH<25HI10Kto15K | BV4: HH<25HI15Kto25K | BW4: HH<25HI25Kto35K | BX4: HH<25HI35Kto50K | BY4: HH<25HI50Kto75K | BZ4: HH<25HI75Kto100K | CA4: HH<25HI>100K | CB4: HH25to34HI<5K | CC4: HH25to34HI5Kto10K | CD4: HH25to34HI10Kto15K | CE4: HH25to34HI15Kto25K | CF4: HH25to34HI25Kto35K | CG4: HH25to34HI35Kto50K | CH4: HH25to34HI50Kto75K | CI4: HH25to34HI75Kto100K | CJ4: HH25to34HI>100K | CK4: HH35to44HI<5K | CL4: HH35to44HI5Kto10K | CM4: HH35to44HI10Kto15K | CN4: HH35to44HI15Kto25K | CO4: HH35to44HI25Kto35K | CP4: HH35to44HI35Kto50K | CQ4: HH35to44HI50Kto75K | CR4: HH35to44HI75Kto100K | CS4: HH35to44HI>100K | CT4: HH45to54HI<5K | CU4: HH45to54HI5Kto10K | CV4: HH45to54HI10Kto15K | CW4: HH45to54HI15Kto25K | CX4: HH45to54HI25Kto35K | CY4: HH45to54HI35Kto50K | CZ4: HH45to54HI50Kto75K | DA4: HH45to54HI75Kto100K | DB4: HH45to54HI>100K | DC4: HH55to64HI<5K | DD4: HH55to64HI5Kto10K | DE4: HH55to64HI10Kto15K | DF4: HH55to64HI15Kto25K | DG4: HH55to64HI25Kto35K | DH4: HH55to64HI35Kto50K | DI4: HH55to64HI50Kto75K | DJ4: HH55to64HI75Kto100K | DK4: HH55to64HI>100K | DL4: HH65to74HI<5K | DM4: HH65to74HI5Kto10K | DN4: HH65to74HI10Kto15K | DO4: HH65to74HI15Kto25K | DP4: HH65to74HI25Kto35K | DQ4: HH65to74HI35Kto50K | DR4: HH65to74HI50Kto75K | DS4: HH65to74HI75Kto100K | DT4: HH65to74HI>100K | DU4: HH>75HI<5K | DV4: HH>75HI5Kto10K | DW4: HH>75HI10Kto15K | DX4: HH>75HI15Kto25K | DY4: HH>75HI25Kto35K | DZ4: HH>75HI35Kto50K | EA4: HH>75HI50Kto75K | EB4: HH>75HI75Kto100K | EC4: HH>75HI>100K | ED4: SchoolEnrollment1thru12 | EE4: Pop25andOver | EF4: HSGradorHigher | EG4: CollGradorHigher | EH4: NativePop | EI4: ForeignBornPop | EJ4: BornStateOfRes | EK4: NativePop2 | EL4: ForeignBornPop2 | EM4: DroveAlone | EN4: CarPooled | EO4: PublicTranspt | EP4: Walked | EQ4: OtherMeans | ER4: WorkedAtHome | ES4: HHInc<10K | ET4: HHInc10to15K | EU4: HHInc15to25K | EV4: HHInc25to35K | EW4: HHInc35to50K | EX4: HHInc50to75K | EY4: HHInc75to100K | EZ4: HHInc100to150K | FA4: HHInc>150K
A5: =VLOOKUP(DropDownList!$A$24,CntyQuery!$A$4:$FA$22,A1) -> Albany | B5: =VLOOKUP(DropDownList!$A$24,CntyQuery!$A$4:$FA$22,B$1) -> 3005 | C5: =VLOOKUP(DropDownList!$A$24,CntyQuery!$A$4:$FA$22,C$1) -> 00420 | D5: =VLOOKUP(DropDownList!$A$24,CntyQuery!$A$4:$FA$22,D$1) -> 48252.96 | E5: =VLOOKUP(DropDownList!$A$24,CntyQuery!$A$4:$FA$22,E$1) -> 222.58 | F5: =VLOOKUP(DropDownList!$A$24,CntyQuery!$A$4:$FA$22,F$1) -> 451 | G5: =VLOOKUP(DropDownList!$A$24,CntyQuery!$A$4:$FA$22,G$1) -> 536 | H5: =VLOOKUP(DropDownList!$A$24,CntyQuery!$A$4:$FA$22,H$1) -> 142 | I5: =VLOOKUP(DropDownList!$A$24,CntyQuery!$A$4:$FA$22,I$1) -> 214 | J5: =VLOOKUP(DropDownList!$A$24,CntyQuery!$A$4:$FA$22,J$1) -> 268 | K5: =VLOOKUP(DropDownList!$A$24,CntyQuery!$A$4:$FA$22,K$1) -> 268 | L5: =VLOOKUP(DropDownList!$A$24,CntyQuery!$A$4:$FA$22,L$1) -> 531 | M5: =VLOOKUP(DropDownList!$A$24,CntyQuery!$A$4:$FA$22,M$1) -> 0 | N5: =VLOOKUP(DropDownList!$A$24,CntyQuery!$A$4:$FA$22,N$1) -> 5 | O5: =VLOOKUP(DropDownList!$A$24,CntyQuery!$A$4:$FA$22,O$1) -> 0 | P5: =VLOOKUP(DropDownList!$A$24,CntyQuery!$A$4:$FA$22,P$1) -> 0 | Q5: =VLOOKUP(DropDownList!$A$24,CntyQuery!$A$4:$FA$22,Q$1) -> 1 | R5: =VLOOKUP(DropDownList!$A$24,CntyQuery!$A$4:$FA$22,R$1) -> 126 | S5: =VLOOKUP(DropDownList!$A$24,CntyQuery!$A$4:$FA$22,S$1) -> 58 | T5: =VLOOKUP(DropDownList!$A$24,CntyQuery!$A$4:$FA$22,T$1) -> 123 | U5: =VLOOKUP(DropDownList!$A$24,CntyQuery!$A$4:$FA$22,U$1) -> 82 | V5: =VLOOKUP(DropDownList!$A$24,CntyQuery!$A$4:$FA$22,V$1) -> 56 | W5: =VLOOKUP(DropDownList!$A$24,CntyQuery!$A$4:$FA$22,W$1) -> 45 | X5: =VLOOKUP(DropDownList!$A$24,CntyQuery!$A$4:$FA$22,X$1) -> 32 | Y5: =VLOOKUP(DropDownList!$A$24,CntyQuery!$A$4:$FA$22,Y$1) -> 14 | Z5: =VLOOKUP(DropDownList!$A$24,CntyQuery!$A$4:$FA$22,Z$1) -> 536 | AA5: =VLOOKUP(DropDownList!$A$24,CntyQuery!$A$4:$FA$22,AA$1) -> 433 | AB5: =VLOOKUP(DropDownList!$A$24,CntyQuery!$A$4:$FA$22,AB$1) -> 0 | AC5: =VLOOKUP(DropDownList!$A$24,CntyQuery!$A$4:$FA$22,AC$1) -> 2.504672897 | AD5: =VLOOKUP(DropDownList!$A$24,CntyQuery!$A$4:$FA$22,AD$1) -> 3.049295775 | AE5: =VLOOKUP(DropDownList!$A$24,CntyQuery!$A$4:$FA$22,AE$1) -> 46 | AF5: =VLOOKUP(DropDownList!$A$24,CntyQuery!$A$4:$FA$22,AF$1) -> 121 | AG5: =VLOOKUP(DropDownList!$A$24,CntyQuery!$A$4:$FA$22,AG$1) -> 21 | AH5: =VLOOKUP(DropDownList!$A$24,CntyQuery!$A$4:$FA$22,AH$1) -> 26 | AI5: =VLOOKUP(DropDownList!$A$24,CntyQuery!$A$4:$FA$22,AI$1) -> 451 | AJ5: =VLOOKUP(DropDownList!$A$24,CntyQuery!$A$4:$FA$22,AJ$1) -> 214 | AK5: =VLOOKUP(DropDownList!$A$24,CntyQuery!$A$4:$FA$22,AK$1) -> 237 | AL5: =VLOOKUP(DropDownList!$A$24,CntyQuery!$A$4:$FA$22,AL$1) -> 165 | AM5: =VLOOKUP(DropDownList!$A$24,CntyQuery!$A$4:$FA$22,AM$1) -> 49 | AN5: =VLOOKUP(DropDownList!$A$24,CntyQuery!$A$4:$FA$22,AN$1) -> 18 | AO5: =VLOOKUP(DropDownList!$A$24,CntyQuery!$A$4:$FA$22,AO$1) -> 11 | AP5: =VLOOKUP(DropDownList!$A$24,CntyQuery!$A$4:$FA$22,AP$1) -> 175 | AQ5: =VLOOKUP(DropDownList!$A$24,CntyQuery!$A$4:$FA$22,AQ$1) -> 337 | AR5: =VLOOKUP(DropDownList!$A$24,CntyQuery!$A$4:$FA$22,AR$1) -> 27 | AS5: =VLOOKUP(DropDownList!$A$24,CntyQuery!$A$4:$FA$22,AS$1) -> 87 | AT5: =VLOOKUP(DropDownList!$A$24,CntyQuery!$A$4:$FA$22,AT$1) -> 113 | AU5: =VLOOKUP(DropDownList!$A$24,CntyQuery!$A$4:$FA$22,AU$1) -> 4 | AV5: =VLOOKUP(DropDownList!$A$24,CntyQuery!$A$4:$FA$22,AV$1) -> 87 | AW5: =VLOOKUP(DropDownList!$A$24,CntyQuery!$A$4:$FA$22,AW$1) -> 24 | AX5: =VLOOKUP(DropDownList!$A$24,CntyQuery!$A$4:$FA$22,AX$1) -> 18 | AY5: =VLOOKUP(DropDownList!$A$24,CntyQuery!$A$4:$FA$22,AY$1) -> 7 | AZ5: =VLOOKUP(DropDownList!$A$24,CntyQuery!$A$4:$FA$22,AZ$1) -> 126 | BA5: =VLOOKUP(DropDownList!$A$24,CntyQuery!$A$4:$FA$22,BA$1) -> 165 | BB5: =VLOOKUP(DropDownList!$A$24,CntyQuery!$A$4:$FA$22,BB$1) -> 62 | BC5: =VLOOKUP(DropDownList!$A$24,CntyQuery!$A$4:$FA$22,BC$1) -> 113 | BD5: =VLOOKUP(DropDownList!$A$24,CntyQuery!$A$4:$FA$22,BD$1) -> 11 | BE5: =VLOOKUP(DropDownList!$A$24,CntyQuery!$A$4:$FA$22,BE$1) -> 62 | BF5: =VLOOKUP(DropDownList!$A$24,CntyQuery!$A$4:$FA$22,BF$1) -> 202 | BG5: =VLOOKUP(DropDownList!$A$24,CntyQuery!$A$4:$FA$22,BG$1) -> 139 | BH5: =VLOOKUP(DropDownList!$A$24,CntyQuery!$A$4:$FA$22,BH$1) -> 52 | BI5: =VLOOKUP(DropDownList!$A$24,CntyQuery!$A$4:$FA$22,BI$1) -> 2 | BJ5: =VLOOKUP(DropDownList!$A$24,CntyQuery!$A$4:$FA$22,BJ$1) -> 24 | BK5: =VLOOKUP(DropDownList!$A$24,CntyQuery!$A$4:$FA$22,BK$1) -> 25 | BL5: =VLOOKUP(DropDownList!$A$24,CntyQuery!$A$4:$FA$22,BL$1) -> 53 | BM5: =VLOOKUP(DropDownList!$A$24,CntyQuery!$A$4:$FA$22,BM$1) -> 51 | BN5: =VLOOKUP(DropDownList!$A$24,CntyQuery!$A$4:$FA$22,BN$1) -> 31 | BO5: =VLOOKUP(DropDownList!$A$24,CntyQuery!$A$4:$FA$22,BO$1) -> 18 | BP5: =VLOOKUP(DropDownList!$A$24,CntyQuery!$A$4:$FA$22,BP$1) -> 6 | BQ5: =VLOOKUP(DropDownList!$A$24,CntyQuery!$A$4:$FA$22,BQ$1) -> 2 | BR5: =VLOOKUP(DropDownList!$A$24,CntyQuery!$A$4:$FA$22,BR$1) -> 25455 | BS5: =VLOOKUP(DropDownList!$A$24,CntyQuery!$A$4:$FA$22,BS$1) -> 0 | BT5: =VLOOKUP(DropDownList!$A$24,CntyQuery!$A$4:$FA$22,BT$1) -> 5 | BU5: =VLOOKUP(DropDownList!$A$24,CntyQuery!$A$4:$FA$22,BU$1) -> 5 | BV5: =VLOOKUP(DropDownList!$A$24,CntyQuery!$A$4:$FA$22,BV$1) -> 5 | BW5: =VLOOKUP(DropDownList!$A$24,CntyQuery!$A$4:$FA$22,BW$1) -> 3 | BX5: =VLOOKUP(DropDownList!$A$24,CntyQuery!$A$4:$FA$22,BX$1) -> 0 | BY5: =VLOOKUP(DropDownList!$A$24,CntyQuery!$A$4:$FA$22,BY$1) -> 0 | BZ5: =VLOOKUP(DropDownList!$A$24,CntyQuery!$A$4:$FA$22,BZ$1) -> 0 | CA5: =VLOOKUP(DropDownList!$A$24,CntyQuery!$A$4:$FA$22,CA$1) -> 0 | CB5: =VLOOKUP(DropDownList!$A$24,CntyQuery!$A$4:$FA$22,CB$1) -> 2 | CC5: =VLOOKUP(DropDownList!$A$24,CntyQuery!$A$4:$FA$22,CC$1) -> 2 | CD5: =VLOOKUP(DropDownList!$A$24,CntyQuery!$A$4:$FA$22,CD$1) -> 8 | CE5: =VLOOKUP(DropDownList!$A$24,CntyQuery!$A$4:$FA$22,CE$1) -> 27 | CF5: =VLOOKUP(DropDownList!$A$24,CntyQuery!$A$4:$FA$22,CF$1) -> 18 | CG5: =VLOOKUP(DropDownList!$A$24,CntyQuery!$A$4:$FA$22,CG$1) -> 9 | CH5: =VLOOKUP(DropDownList!$A$24,CntyQuery!$A$4:$FA$22,CH$1) -> 6 | CI5: =VLOOKUP(DropDownList!$A$24,CntyQuery!$A$4:$FA$22,CI$1) -> 3 | CJ5: =VLOOKUP(DropDownList!$A$24,CntyQuery!$A$4:$FA$22,CJ$1) -> 0 | CK5: =VLOOKUP(DropDownList!$A$24,CntyQuery!$A$4:$FA$22,CK$1) -> 0 | CL5: =VLOOKUP(DropDownList!$A$24,CntyQuery!$A$4:$FA$22,CL$1) -> 0 | CM5: =VLOOKUP(DropDownList!$A$24,CntyQuery!$A$4:$FA$22,CM$1) -> 8 | CN5: =VLOOKUP(DropDownList!$A$24,CntyQuery!$A$4:$FA$22,CN$1) -> 9 | CO5: =VLOOKUP(DropDownList!$A$24,CntyQuery!$A$4:$FA$22,CO$1) -> 11 | CP5: =VLOOKUP(DropDownList!$A$24,CntyQuery!$A$4:$FA$22,CP$1) -> 6 | CQ5: =VLOOKUP(DropDownList!$A$24,CntyQuery!$A$4:$FA$22,CQ$1) -> 5 | CR5: =VLOOKUP(DropDownList!$A$24,CntyQuery!$A$4:$FA$22,CR$1) -> 0 | CS5: =VLOOKUP(DropDownList!$A$24,CntyQuery!$A$4:$FA$22,CS$1) -> 2 | CT5: =VLOOKUP(DropDownList!$A$24,CntyQuery!$A$4:$FA$22,CT$1) -> 0 | CU5: =VLOOKUP(DropDownList!$A$24,CntyQuery!$A$4:$FA$22,CU$1) -> 4 | CV5: =VLOOKUP(DropDownList!$A$24,CntyQuery!$A$4:$FA$22,CV$1) -> 0 | CW5: =VLOOKUP(DropDownList!$A$24,CntyQuery!$A$4:$FA$22,CW$1) -> 2 | CX5: =VLOOKUP(DropDownList!$A$24,CntyQuery!$A$4:$FA$22,CX$1) -> 8 | CY5: =VLOOKUP(DropDownList!$A$24,CntyQuery!$A$4:$FA$22,CY$1) -> 9 | CZ5: =VLOOKUP(DropDownList!$A$24,CntyQuery!$A$4:$FA$22,CZ$1) -> 3 | DA5: =VLOOKUP(DropDownList!$A$24,CntyQuery!$A$4:$FA$22,DA$1) -> 0 | DB5: =VLOOKUP(DropDownList!$A$24,CntyQuery!$A$4:$FA$22,DB$1) -> 0 | DC5: =VLOOKUP(DropDownList!$A$24,CntyQuery!$A$4:$FA$22,DC$1) -> 0 | DD5: =VLOOKUP(DropDownList!$A$24,CntyQuery!$A$4:$FA$22,DD$1) -> 4 | DE5: =VLOOKUP(DropDownList!$A$24,CntyQuery!$A$4:$FA$22,DE$1) -> 0 | DF5: =VLOOKUP(DropDownList!$A$24,CntyQuery!$A$4:$FA$22,DF$1) -> 6 | DG5: =VLOOKUP(DropDownList!$A$24,CntyQuery!$A$4:$FA$22,DG$1) -> 8 | DH5: =VLOOKUP(DropDownList!$A$24,CntyQuery!$A$4:$FA$22,DH$1) -> 4 | DI5: =VLOOKUP(DropDownList!$A$24,CntyQuery!$A$4:$FA$22,DI$1) -> 2 | DJ5: =VLOOKUP(DropDownList!$A$24,CntyQuery!$A$4:$FA$22,DJ$1) -> 3 | DK5: =VLOOKUP(DropDownList!$A$24,CntyQuery!$A$4:$FA$22,DK$1) -> 0 | DL5: =VLOOKUP(DropDownList!$A$24,CntyQuery!$A$4:$FA$22,DL$1) -> 0 | DM5: =VLOOKUP(DropDownList!$A$24,CntyQuery!$A$4:$FA$22,DM$1) -> 3 | DN5: =VLOOKUP(DropDownList!$A$24,CntyQuery!$A$4:$FA$22,DN$1) -> 2 | DO5: =VLOOKUP(DropDownList!$A$24,CntyQuery!$A$4:$FA$22,DO$1) -> 4 | DP5: =VLOOKUP(DropDownList!$A$24,CntyQuery!$A$4:$FA$22,DP$1) -> 3 | DQ5: =VLOOKUP(DropDownList!$A$24,CntyQuery!$A$4:$FA$22,DQ$1) -> 3 | DR5: =VLOOKUP(DropDownList!$A$24,CntyQuery!$A$4:$FA$22,DR$1) -> 2 | DS5: =VLOOKUP(DropDownList!$A$24,CntyQuery!$A$4:$FA$22,DS$1) -> 0 | DT5: =VLOOKUP(DropDownList!$A$24,CntyQuery!$A$4:$FA$22,DT$1) -> 0 | DU5: =VLOOKUP(DropDownList!$A$24,CntyQuery!$A$4:$FA$22,DU$1) -> 0 | DV5: =VLOOKUP(DropDownList!$A$24,CntyQuery!$A$4:$FA$22,DV$1) -> 6 | DW5: =VLOOKUP(DropDownList!$A$24,CntyQuery!$A$4:$FA$22,DW$1) -> 2 | DX5: =VLOOKUP(DropDownList!$A$24,CntyQuery!$A$4:$FA$22,DX$1) -> 0 | DY5: =VLOOKUP(DropDownList!$A$24,CntyQuery!$A$4:$FA$22,DY$1) -> 0 | DZ5: =VLOOKUP(DropDownList!$A$24,CntyQuery!$A$4:$FA$22,DZ$1) -> 0 | EA5: =VLOOKUP(DropDownList!$A$24,CntyQuery!$A$4:$FA$22,EA$1) -> 0 | EB5: =VLOOKUP(DropDownList!$A$24,CntyQuery!$A$4:$FA$22,EB$1) -> 0 | EC5: =VLOOKUP(DropDownList!$A$24,CntyQuery!$A$4:$FA$22,EC$1) -> 0 | ED5: =VLOOKUP(DropDownList!$A$24,CntyQuery!$A$4:$FA$22,ED$1) -> 72 | EE5: =VLOOKUP(DropDownList!$A$24,CntyQuery!$A$4:$FA$22,EE$1) -> 330 | EF5: =VLOOKUP(DropDownList!$A$24,CntyQuery!$A$4:$FA$22,EF$1) -> 247 | EG5: =VLOOKUP(DropDownList!$A$24,CntyQuery!$A$4:$FA$22,EG$1) -> 41 | EH5: =VLOOKUP(DropDownList!$A$24,CntyQuery!$A$4:$FA$22,EH$1) -> 520 | EI5: =VLOOKUP(DropDownList!$A$24,CntyQuery!$A$4:$FA$22,EI$1) -> 10 | EJ5: =VLOOKUP(DropDownList!$A$24,CntyQuery!$A$4:$FA$22,EJ$1) -> 226 | EK5: =VLOOKUP(DropDownList!$A$24,CntyQuery!$A$4:$FA$22,EK$1) -> 520 | EL5: =VLOOKUP(DropDownList!$A$24,CntyQuery!$A$4:$FA$22,EL$1) -> 10 | EM5: =VLOOKUP(DropDownList!$A$24,CntyQuery!$A$4:$FA$22,EM$1) -> 216 | EN5: =VLOOKUP(DropDownList!$A$24,CntyQuery!$A$4:$FA$22,EN$1) -> 22 | EO5: =VLOOKUP(DropDownList!$A$24,CntyQuery!$A$4:$FA$22,EO$1) -> 0 | EP5: =VLOOKUP(DropDownList!$A$24,CntyQuery!$A$4:$FA$22,EP$1) -> 2 | EQ5: =VLOOKUP(DropDownList!$A$24,CntyQuery!$A$4:$FA$22,EQ$1) -> 4 | ER5: =VLOOKUP(DropDownList!$A$24,CntyQuery!$A$4:$FA$22,ER$1) -> 20 | ES5: =VLOOKUP(DropDownList!$A$24,CntyQuery!$A$4:$FA$22,ES$1) -> 26 | ET5: =VLOOKUP(DropDownList!$A$24,CntyQuery!$A$4:$FA$22,ET$1) -> 25 | EU5: =VLOOKUP(DropDownList!$A$24,CntyQuery!$A$4:$FA$22,EU$1) -> 53 | EV5: =VLOOKUP(DropDownList!$A$24,CntyQuery!$A$4:$FA$22,EV$1) -> 51 | EW5: =VLOOKUP(DropDownList!$A$24,CntyQuery!$A$4:$FA$22,EW$1) -> 31 | EX5: =VLOOKUP(DropDownList!$A$24,CntyQuery!$A$4:$FA$22,EX$1) -> 18 | EY5: =VLOOKUP(DropDownList!$A$24,CntyQuery!$A$4:$FA$22,EY$1) -> 6 | EZ5: =VLOOKUP(DropDownList!$A$24,CntyQuery!$A$4:$FA$22,EZ$1) -> 2 | FA5: =VLOOKUP(DropDownList!$A$24,CntyQuery!$A$4:$FA$22,FA$1) -> 0
A8: Census 1990 Data - Query Name: TownSTF1Qry1
A9: NAME | B9: COUSUBFP | C9: Census_Cnty_Code | D9: FIPS | E9: LandAcres | F9: WaterAcres | G9: HousingUnits90Cen | H9: P01Persons90Cen | I9: P02Families90Cen | J9: P03Households90cen | K9: P05MalePop90cen | L9: P05FemalePop90cen | M9: P06WhitePop | N9: P06BlackPop | O9: P06AmerIndianPop | P9: P06AsianPIPop | Q9: P06OtherRacePop | R9: P08HispanicOrPop | S9: P11AgeUnder15_90cen | T9: P11Age15to24_90cen | U9: P11Age25to34_90cen | V9: P11Age35to44_90cen | W9: P11Age45to54_90cen | X9: P11Age55to64_90cen | Y9: P11Age65to74_90cen | Z9: P11Age75andOver_90cen | AA9: P15PersonsInHH90cen | AB9: P15PersonsInFamHH90cen | AC9: P15PersonsInGC | AD9: PersonsPerHH90cen | AE9: PersonsPerFam90Cen | AF9: P16SinglePersonHH90cen | AG9: P16MarriedCoupleHH90cen | AH9: P16SingleParentHH90cen | AI9: P16NonFamilyHH90cen | AJ9: H01TotalHousingUnits | AK9: H02OccupiedHousingUnits | AL9: H02VacantHousingUnits | AM9: H03OwnerOccHU | AN9: H03RenterOccHU | AO9: H05VacantForRent90 | AP9: H05VacantForSale90 | AQ9: H05VacantSeasonalRec | AR9: H23OOHUVal<15k | AS9: H23OOHUVal15to19k | AT9: H23OOHUVal20to24k | AU9: H23OOHUVal25to29k | AV9: H23OOHUVal30to34k | AW9: H23OOHUVal35to39k | AX9: H23OOHUVal40to44k | AY9: H23OOHUVal45to49k | AZ9: H23OOHUVal50to59k | BA9: H23OOHUVal60to74k | BB9: H23OOHUVal75to99k | BC9: H23OOHUVal100to124k | BD9: H23OOHUVal125to149k | BE9: H23OOHUVal150to174k | BF9: H23OOHUVal175to199k | BG9: H23OOHUVal200to249k | BH9: H23OOHUVal250to299k | BI9: H23OOHUVal300to399k | BJ9: H23OOHUVal400to499k | BK9: H23OOHUVal500kOrMore | BL9: H23BOOHUMedVal | BM9: H41SingFamHU90cen | BN9: H41MultiFamHU90cen | BO9: H41MobileHom90cen | BP9: H43SingFamOwnHU90cen | BQ9: H43MultiFamOwnHU90cen | BR9: H43MobileHomOwnHU90cen | BS9: H43SingFamRntrHU90cen | BT9: H43MultiFamRntrHU90cen | BU9: H43MobileHomRntrHU90cen | BV9: H41HU1UnitDet | BW9: H41HU1UnitAtt | BX9: H41HU2Unit | BY9: H41HU3to4Unit | BZ9: H41HU5to9Unit | CA9: H41HU10to19Unit | CB9: H41HU20to49Unit | CC9: H41HU50PlusUnit | CD9: H41HUMobilH | CE9: H41HUOther
A10: =VLOOKUP(DropDownList!$B$24,CntyQuery!$A$37:$CE$45,A$1) ->  | B10: =VLOOKUP(DropDownList!$B$24,CntyQuery!$A$37:$CE$45,B$1) ->  | C10: =VLOOKUP(DropDownList!$B$24,CntyQuery!$A$37:$CE$45,C$1) ->  | D10: =VLOOKUP(DropDownList!$B$24,CntyQuery!$A$37:$CE$45,D$1) ->  | E10: =VLOOKUP(DropDownList!$B$24,CntyQuery!$A$37:$CE$45,E$1) ->  | F10: =VLOOKUP(DropDownList!$B$24,CntyQuery!$A$37:$CE$45,F$1) ->  | G10: =VLOOKUP(DropDownList!$B$24,CntyQuery!$A$37:$CE$45,G$1) ->  | H10: =VLOOKUP(DropDownList!$B$24,CntyQuery!$A$37:$CE$45,H$1) ->  | I10: =VLOOKUP(DropDownList!$B$24,CntyQuery!$A$37:$CE$45,I$1) ->  | J10: =VLOOKUP(DropDownList!$B$24,CntyQuery!$A$37:$CE$45,J$1) ->  | K10: =VLOOKUP(DropDownList!$B$24,CntyQuery!$A$37:$CE$45,K$1) ->  | L10: =VLOOKUP(DropDownList!$B$24,CntyQuery!$A$37:$CE$45,L$1) ->  | M10: =VLOOKUP(DropDownList!$B$24,CntyQuery!$A$37:$CE$45,M$1) ->  | N10: =VLOOKUP(DropDownList!$B$24,CntyQuery!$A$37:$CE$45,N$1) ->  | O10: =VLOOKUP(DropDownList!$B$24,CntyQuery!$A$37:$CE$45,O$1) ->  | P10: =VLOOKUP(DropDownList!$B$24,CntyQuery!$A$37:$CE$45,P$1) ->  | Q10: =VLOOKUP(DropDownList!$B$24,CntyQuery!$A$37:$CE$45,Q$1) ->  | R10: =VLOOKUP(DropDownList!$B$24,CntyQuery!$A$37:$CE$45,R$1) ->  | S10: =VLOOKUP(DropDownList!$B$24,CntyQuery!$A$37:$CE$45,S$1) ->  | T10: =VLOOKUP(DropDownList!$B$24,CntyQuery!$A$37:$CE$45,T$1) ->  | U10: =VLOOKUP(DropDownList!$B$24,CntyQuery!$A$37:$CE$45,U$1) ->  | V10: =VLOOKUP(DropDownList!$B$24,CntyQuery!$A$37:$CE$45,V$1) ->  | W10: =VLOOKUP(DropDownList!$B$24,CntyQuery!$A$37:$CE$45,W$1) ->  | X10: =VLOOKUP(DropDownList!$B$24,CntyQuery!$A$37:$CE$45,X$1) ->  | Y10: =VLOOKUP(DropDownList!$B$24,CntyQuery!$A$37:$CE$45,Y$1) ->  | Z10: =VLOOKUP(DropDownList!$B$24,CntyQuery!$A$37:$CE$45,Z$1) ->  | AA10: =VLOOKUP(DropDownList!$B$24,CntyQuery!$A$37:$CE$45,AA$1) ->  | AB10: =VLOOKUP(DropDownList!$B$24,CntyQuery!$A$37:$CE$45,AB$1) ->  | AC10: =VLOOKUP(DropDownList!$B$24,CntyQuery!$A$37:$CE$45,AC$1) ->  | AD10: =VLOOKUP(DropDownList!$B$24,CntyQuery!$A$37:$CE$45,AD$1) ->  | AE10: =VLOOKUP(DropDownList!$B$24,CntyQuery!$A$37:$CE$45,AE$1) ->  | AF10: =VLOOKUP(DropDownList!$B$24,CntyQuery!$A$37:$CE$45,AF$1) ->  | AG10: =VLOOKUP(DropDownList!$B$24,CntyQuery!$A$37:$CE$45,AG$1) ->  | AH10: =VLOOKUP(DropDownList!$B$24,CntyQuery!$A$37:$CE$45,AH$1) ->  | AI10: =VLOOKUP(DropDownList!$B$24,CntyQuery!$A$37:$CE$45,AI$1) ->  | AJ10: =VLOOKUP(DropDownList!$B$24,CntyQuery!$A$37:$CE$45,AJ$1) ->  | AK10: =VLOOKUP(DropDownList!$B$24,CntyQuery!$A$37:$CE$45,AK$1) ->  | AL10: =VLOOKUP(DropDownList!$B$24,CntyQuery!$A$37:$CE$45,AL$1) ->  | AM10: =VLOOKUP(DropDownList!$B$24,CntyQuery!$A$37:$CE$45,AM$1) ->  | AN10: =VLOOKUP(DropDownList!$B$24,CntyQuery!$A$37:$CE$45,AN$1) ->  | AO10: =VLOOKUP(DropDownList!$B$24,CntyQuery!$A$37:$CE$45,AO$1) ->  | AP10: =VLOOKUP(DropDownList!$B$24,CntyQuery!$A$37:$CE$45,AP$1) ->  | AQ10: =VLOOKUP(DropDownList!$B$24,CntyQuery!$A$37:$CE$45,AQ$1) ->  | AR10: =VLOOKUP(DropDownList!$B$24,CntyQuery!$A$37:$CE$45,AR$1) ->  | AS10: =VLOOKUP(DropDownList!$B$24,CntyQuery!$A$37:$CE$45,AS$1) ->  | AT10: =VLOOKUP(DropDownList!$B$24,CntyQuery!$A$37:$CE$45,AT$1) ->  | AU10: =VLOOKUP(DropDownList!$B$24,CntyQuery!$A$37:$CE$45,AU$1) ->  | AV10: =VLOOKUP(DropDownList!$B$24,CntyQuery!$A$37:$CE$45,AV$1) ->  | AW10: =VLOOKUP(DropDownList!$B$24,CntyQuery!$A$37:$CE$45,AW$1) ->  | AX10: =VLOOKUP(DropDownList!$B$24,CntyQuery!$A$37:$CE$45,AX$1) ->  | AY10: =VLOOKUP(DropDownList!$B$24,CntyQuery!$A$37:$CE$45,AY$1) ->  | AZ10: =VLOOKUP(DropDownList!$B$24,CntyQuery!$A$37:$CE$45,AZ$1) ->  | BA10: =VLOOKUP(DropDownList!$B$24,CntyQuery!$A$37:$CE$45,BA$1) ->  | BB10: =VLOOKUP(DropDownList!$B$24,CntyQuery!$A$37:$CE$45,BB$1) ->  | BC10: =VLOOKUP(DropDownList!$B$24,CntyQuery!$A$37:$CE$45,BC$1) ->  | BD10: =VLOOKUP(DropDownList!$B$24,CntyQuery!$A$37:$CE$45,BD$1) ->  | BE10: =VLOOKUP(DropDownList!$B$24,CntyQuery!$A$37:$CE$45,BE$1) ->  | BF10: =VLOOKUP(DropDownList!$B$24,CntyQuery!$A$37:$CE$45,BF$1) ->  | BG10: =VLOOKUP(DropDownList!$B$24,CntyQuery!$A$37:$CE$45,BG$1) ->  | BH10: =VLOOKUP(DropDownList!$B$24,CntyQuery!$A$37:$CE$45,BH$1) ->  | BI10: =VLOOKUP(DropDownList!$B$24,CntyQuery!$A$37:$CE$45,BI$1) ->  | BJ10: =VLOOKUP(DropDownList!$B$24,CntyQuery!$A$37:$CE$45,BJ$1) ->  | BK10: =VLOOKUP(DropDownList!$B$24,CntyQuery!$A$37:$CE$45,BK$1) ->  | BL10: =VLOOKUP(DropDownList!$B$24,CntyQuery!$A$37:$CE$45,BL$1) ->  | BM10: =VLOOKUP(DropDownList!$B$24,CntyQuery!$A$37:$CE$45,BM$1) ->  | BN10: =VLOOKUP(DropDownList!$B$24,CntyQuery!$A$37:$CE$45,BN$1) ->  | BO10: =VLOOKUP(DropDownList!$B$24,CntyQuery!$A$37:$CE$45,BO$1) ->  | BP10: =VLOOKUP(DropDownList!$B$24,CntyQuery!$A$37:$CE$45,BP$1) ->  | BQ10: =VLOOKUP(DropDownList!$B$24,CntyQuery!$A$37:$CE$45,BQ$1) ->  | BR10: =VLOOKUP(DropDownList!$B$24,CntyQuery!$A$37:$CE$45,BR$1) ->  | BS10: =VLOOKUP(DropDownList!$B$24,CntyQuery!$A$37:$CE$45,BS$1) ->  | BT10: =VLOOKUP(DropDownList!$B$24,CntyQuery!$A$37:$CE$45,BT$1) ->  | BU10: =VLOOKUP(DropDownList!$B$24,CntyQuery!$A$37:$CE$45,BU$1) ->  | BV10: =VLOOKUP(DropDownList!$B$24,CntyQuery!$A$37:$CE$45,BV$1) ->  | BW10: =VLOOKUP(DropDownList!$B$24,CntyQuery!$A$37:$CE$45,BW$1) ->  | BX10: =VLOOKUP(DropDownList!$B$24,CntyQuery!$A$37:$CE$45,BX$1) ->  | BY10: =VLOOKUP(DropDownList!$B$24,CntyQuery!$A$37:$CE$45,BY$1) ->  | BZ10: =VLOOKUP(DropDownList!$B$24,CntyQuery!$A$37:$CE$45,BZ$1) ->  | CA10: =VLOOKUP(DropDownList!$B$24,CntyQuery!$A$37:$CE$45,CA$1) ->  | CB10: =VLOOKUP(DropDownList!$B$24,CntyQuery!$A$37:$CE$45,CB$1) ->  | CC10: =VLOOKUP(DropDownList!$B$24,CntyQuery!$A$37:$CE$45,CC$1) ->  | CD10: =VLOOKUP(DropDownList!$B$24,CntyQuery!$A$37:$CE$45,CD$1) ->  | CE10: =VLOOKUP(DropDownList!$B$24,CntyQuery!$A$37:$CE$45,CE$1) -> 
A13: Census 1990 Data - Query Name: TownSTF3Qry1
A14: NAME | B14: FIPS | C14: COUSUBFP | D14: LandAcres | E14: WaterAcres | F14: HousingUnits90Cen | G14: P01Persons90Cen | H14: P02Families90Cen | I14: P03Households90cen | J14: H25HU<5yrs90cen | K14: H25HU5to20yrs90cen | L14: H25HU20to50yrs90cen | M14: H25HU>50yrs90cen | N14: H31Units0Bedroom90cen | O14: H31Units1Bedroom90cen | P14: H31Units2Bedroom90cen | Q14: H31Units3Bedroom90cen | R14: H31Units4Bedroom90cen | S14: H31Units5+Bedroom90cen | T14: P80HI<5K | U14: P80HI5Kto10K | V14: P80HI10Kto15K | W14: P80HI15Kto25K | X14: P80HI25Kto35K | Y14: P80HI35Kto50K | Z14: P80HI50Kto75K | AA14: P80HI75Kto100K | AB14: P80HI>100K | AC14: P80AMedHI | AD14: P86HH<25HI<5K | AE14: P86HH<25HI5Kto10K | AF14: P86HH<25HI10Kto15K | AG14: P86HH<25HI15Kto25K | AH14: P86HH<25HI25Kto35K | AI14: P86HH<25HI35Kto50K | AJ14: P86HH<25HI50Kto75K | AK14: P86HH<25HI75Kto100K | AL14: P86HH<25HI>100K | AM14: P86HH25to34HI<5K | AN14: P86HH25to34HI5Kto10K | AO14: P86HH25to34HI10Kto15K | AP14: P86HH25to34HI15Kto25K | AQ14: P86HH25to34HI25Kto35K | AR14: P86HH25to34HI35Kto50K | AS14: P86HH25to34HI50Kto75K | AT14: P86HH25to34HI75Kto100K | AU14: P86HH25to34HI>100K | AV14: P86HH35to44HI<5K | AW14: P86HH35to44HI5Kto10K | AX14: P86HH35to44HI10Kto15K | AY14: P86HH35to44HI15Kto25K | AZ14: P86HH35to44HI25Kto35K | BA14: P86HH35to44HI35Kto50K | BB14: P86HH35to44HI50Kto75K | BC14: P86HH35to44HI75Kto100K | BD14: P86HH35to44HI>100K | BE14: P86HH45to54HI<5K | BF14: P86HH45to54HI5Kto10K | BG14: P86HH45to54HI10Kto15K | BH14: P86HH45to54HI15Kto25K | BI14: P86HH45to54HI25Kto35K | BJ14: P86HH45to54HI35Kto50K | BK14: P86HH45to54HI50Kto75K | BL14: P86HH45to54HI75Kto100K | BM14: P86HH45to54HI>100K | BN14: P86HH55to64HI<5K | BO14: P86HH55to64HI5Kto10K | BP14: P86HH55to64HI10Kto15K | BQ14: P86HH55to64HI15Kto25K | BR14: P86HH55to64HI25Kto35K | BS14: P86HH55to64HI35Kto50K | BT14: P86HH55to64HI50Kto75K | BU14: P86HH55to64HI75Kto100K | BV14: P86HH55to64HI>100K | BW14: P86HH65to74HI<5K | BX14: P86HH65to74HI5Kto10K | BY14: P86HH65to74HI10Kto15K | BZ14: P86HH65to74HI15Kto25K | CA14: P86HH65to74HI25Kto35K | CB14: P86HH65to74HI35Kto50K | CC14: P86HH65to74HI50Kto75K | CD14: P86HH65to74HI75Kto100K | CE14: P86HH65to74HI>100K | CF14: P86HH>75HI<5K | CG14: P86HH>75HI5Kto10K | CH14: P86HH>75HI10Kto15K | CI14: P86HH>75HI15Kto25K | CJ14: P86HH>75HI25Kto35K | CK14: P86HH>75HI35Kto50K | CL14: P86HH>75HI50Kto75K | CM14: P86HH>75HI75Kto100K | CN14: P86HH>75HI>100K | CO14: P54SchlEnrlPrePrim | CP14: P54SchlEnrlElemThrHS | CQ14: P54SchlEnrlCollege | CR14: P54NotEnrlInSch | CS14: P57Pop25andOver | CT14: P57LessThan9thGrade | CU14: P579thto12thNoDip | CV14: P57HSGrad | CW14: P57SomeCollege | CX14: P57AssocDeg | CY14: P57BachelDeg | CZ14: P57GradorProfDeg | DA14: P57HSGradorHigher | DB14: P57CollGradorHigher | DC14: P42NativePop | DD14: P42ForeignBornPop | DE14: P42BornStateOfRes | DF14: P37NativePop2 | DG14: P37ForeignBornPop2 | DH14: P49DroveAlone | DI14: P49CarPooled | DJ14: P49PublicTranspt | DK14: P49Walked | DL14: P49OtherMeans | DM14: P49WorkedAtHome | DN14: P80HHInc<10K | DO14: P80HHInc10to15K | DP14: P80HHInc15to25K | DQ14: P80HHInc25to35K | DR14: P80HHInc35to50K | DS14: P80HHInc50to75K | DT14: P80HHInc75to100K | DU14: P80HHInc100to150K | DV14: P80HHInc>150K | DW14: H25YearStBlt89to90 | DX14: H25YearStBlt85to88 | DY14: H25YearStBlt80to84 | DZ14: H25YearStBlt70to79 | EA14: H25YearStBlt60to69 | EB14: H25YearStBlt50to59 | EC14: H25YearStBlt40to49 | ED14: H25YearStBlt39earlier | EE14: P107FamInc<10K | EF14: P107FamInc10to15K | EG14: P107FamInc15to25K | EH14: P107FamInc25to35K | EI14: P107FamInc35to50K | EJ14: P107FamInc50to75K | EK14: P107FamInc75to100K | EL14: P107FamInc100to150K | EM14: P107FamInc>150K | EN14: P107AMedFamInc | EO14: P110NonFamInc<10K | EP14: P110NonFamInc10to15K | EQ14: P110NonFamInc15to25K | ER14: P110NonFamInc25to35K | ES14: P110NonFamInc35to50K | ET14: P110NonFamInc50to75K | EU14: P110NonFamInc75to100K | EV14: P110NonFamInc100to150K | EW14: P110NonFamInc>150K | EX14: P110AMedNonFamInc | EY14: H16HU1Room | EZ14: H16HU2Room | FA14: H16HU3Room | FB14: H16HU4Room | FC14: H16HU5Room | FD14: H16HU6Room | FE14: H16HU7Room | FF14: H16HU8Room | FG14: H16HU9+Room | FH14: H43GrossRnt<100 | FI14: H43GrossRnt100to149 | FJ14: H43GrossRnt150to199 | FK14: H43GrossRnt200to249 | FL14: H43GrossRnt250to299 | FM14: H43GrossRnt300to349 | FN14: H43GrossRnt350to399 | FO14: H43GrossRnt400to449 | FP14: H43GrossRnt450to499 | FQ14: H43GrossRnt500to549 | FR14: H43GrossRnt550to599 | FS14: H43GrossRnt600to649 | FT14: H43GrossRnt650to699 | FU14: H43GrossRnt700to749 | FV14: H43GrossRnt750to999 | FW14: H43GrossRnt1000Plus | FX14: H43NoCashRent | FY14: H43MedGrossRent | FZ14: H51GrossRnt<20PctHHInc | GA14: H51GrossRnt20to24PctHHInc | GB14: H51GrossRnt25to29PctHHInc | GC14: H51GrossRnt30to34PctHHInc | GD14: H51GrossRnt35PctOrMoreHHInc | GE14: H51GrossRntAsPctHHIncNotComp | GF14: H52HUwMtgMoOwnCst<200 | GG14: H52HUwMtgMoOwnCst200to299 | GH14: H52HUwMtgMoOwnCst300to399 | GI14: H52HUwMtgMoOwnCst400to499 | GJ14: H52HUwMtgMoOwnCst500to599 | GK14: H52HUwMtgMoOwnCst600to699 | GL14: H52HUwMtgMoOwnCst700to799 | GM14: H52HUwMtgMoOwnCst800to899 | GN14: H52HUwMtgMoOwnCst900to999 | GO14: H52HUwMtgMoOwnCst1000to1249 | GP14: H52HUwMtgMoOwnCst1250to1499 | GQ14: H52HUwMtgMoOwnCst1500to1999 | GR14: H52HUwMtgMoOwnCst2000More | GS14: H52HUwNoMtgMoOwnCst<100 | GT14: H52HUwNoMtgMoOwnCst100to149 | GU14: H52HUwNoMtgMoOwnCst150to199 | GV14: H52HUwNoMtgMoOwnCst200to249 | GW14: H52HUwNoMtgMoOwnCst250to299 | GX14: H52HUwNoMtgMoOwnCst300to349 | GY14: H52HUwNoMtgMoOwnCst350to399 | GZ14: H52HUwNoMtgMoOwnCst400More | HA14: H52AMedMoOwnCstWMortg | HB14: H52AMedMoOwnCstWNoMortg | HC14: H58HUwMtgMOC<20pHHInc | HD14: H58HUwMtgMOC20to24pHHInc | HE14: H58HUwMtgMOC25to29pHHInc | HF14: H58HUwMtgMOC30to34pHHInc | HG14: H58wMtgMOC>35pHHInc | HH14: H58HUwMtgMOCNotComp | HI14: H58HUwNoMtgMOC<20pHHInc | HJ14: H58HUwNoMtgMOC20to24pHHInc | HK14: H58HUwNoMtgMOC25to29pHHInc | HL14: H58HUwNoMtgMOC30to34pHHInc | HM14: H58wNoMtgMOC>35pHHInc | HN14: H58HUwNoMtgMOCNotComp | HO14: H61OOHUVal<15k | HP14: H61OOHUVal15to19k | HQ14: H61OOHUVal20to24k | HR14: H61OOHUVal25to29k | HS14: H61OOHUVal30to34k | HT14: H61OOHUVal35to39k | HU14: H61OOHUVal40to44k | HV14: H61OOHUVal45to49k | HW14: H61OOHUVal50to59k | HX14: H61OOHUVal60to74k | HY14: H61OOHUVal75to99k | HZ14: H61OOHUVal100to124k | IA14: H61OOHUVal125to149k | IB14: H61OOHUVal150to174k | IC14: H61OOHUVal175to199k | ID14: H61OOHUVal200to249k | IE14: H61OOHUVal250to299k | IF14: H61OOHUVal300to399k | IG14: H61OOHUVal400to499k | IH14: H61OOHUVal500kOrMore | II14: H61aOOHUMedVal
A15: =A20 -> Albany | B15: =VLOOKUP(DropDownList!$B$24,CntyQuery!$A$52:$II$62,B$1) ->  | C15: =VLOOKUP(DropDownList!$B$24,CntyQuery!$A$52:$II$62,C$1) ->  | D15: =VLOOKUP(DropDownList!$B$24,CntyQuery!$A$52:$II$62,D$1) ->  | E15: =VLOOKUP(DropDownList!$B$24,CntyQuery!$A$52:$II$62,E$1) ->  | F15: =VLOOKUP(DropDownList!$B$24,CntyQuery!$A$52:$II$62,F$1) ->  | G15: =VLOOKUP(DropDownList!$B$24,CntyQuery!$A$52:$II$62,G$1) ->  | H15: =VLOOKUP(DropDownList!$B$24,CntyQuery!$A$52:$II$62,H$1) ->  | I15: =VLOOKUP(DropDownList!$B$24,CntyQuery!$A$52:$II$62,I$1) ->  | J15: =VLOOKUP(DropDownList!$B$24,CntyQuery!$A$52:$II$62,J$1) ->  | K15: =VLOOKUP(DropDownList!$B$24,CntyQuery!$A$52:$II$62,K$1) ->  | L15: =VLOOKUP(DropDownList!$B$24,CntyQuery!$A$52:$II$62,L$1) ->  | M15: =VLOOKUP(DropDownList!$B$24,CntyQuery!$A$52:$II$62,M$1) ->  | N15: =VLOOKUP(DropDownList!$B$24,CntyQuery!$A$52:$II$62,N$1) ->  | O15: =VLOOKUP(DropDownList!$B$24,CntyQuery!$A$52:$II$62,O$1) ->  | P15: =VLOOKUP(DropDownList!$B$24,CntyQuery!$A$52:$II$62,P$1) ->  | Q15: =VLOOKUP(DropDownList!$B$24,CntyQuery!$A$52:$II$62,Q$1) ->  | R15: =VLOOKUP(DropDownList!$B$24,CntyQuery!$A$52:$II$62,R$1) ->  | S15: =VLOOKUP(DropDownList!$B$24,CntyQuery!$A$52:$II$62,S$1) ->  | T15: =VLOOKUP(DropDownList!$B$24,CntyQuery!$A$52:$II$62,T$1) ->  | U15: =VLOOKUP(DropDownList!$B$24,CntyQuery!$A$52:$II$62,U$1) ->  | V15: =VLOOKUP(DropDownList!$B$24,CntyQuery!$A$52:$II$62,V$1) ->  | W15: =VLOOKUP(DropDownList!$B$24,CntyQuery!$A$52:$II$62,W$1) ->  | X15: =VLOOKUP(DropDownList!$B$24,CntyQuery!$A$52:$II$62,X$1) ->  | Y15: =VLOOKUP(DropDownList!$B$24,CntyQuery!$A$52:$II$62,Y$1) ->  | Z15: =VLOOKUP(DropDownList!$B$24,CntyQuery!$A$52:$II$62,Z$1) ->  | AA15: =VLOOKUP(DropDownList!$B$24,CntyQuery!$A$52:$II$62,AA$1) ->  | AB15: =VLOOKUP(DropDownList!$B$24,CntyQuery!$A$52:$II$62,AB$1) ->  | AC15: =VLOOKUP(DropDownList!$B$24,CntyQuery!$A$52:$II$62,AC$1) ->  | AD15: =VLOOKUP(DropDownList!$B$24,CntyQuery!$A$52:$II$62,AD$1) ->  | AE15: =VLOOKUP(DropDownList!$B$24,CntyQuery!$A$52:$II$62,AE$1) ->  | AF15: =VLOOKUP(DropDownList!$B$24,CntyQuery!$A$52:$II$62,AF$1) ->  | AG15: =VLOOKUP(DropDownList!$B$24,CntyQuery!$A$52:$II$62,AG$1) ->  | AH15: =VLOOKUP(DropDownList!$B$24,CntyQuery!$A$52:$II$62,AH$1) ->  | AI15: =VLOOKUP(DropDownList!$B$24,CntyQuery!$A$52:$II$62,AI$1) ->  | AJ15: =VLOOKUP(DropDownList!$B$24,CntyQuery!$A$52:$II$62,AJ$1) ->  | AK15: =VLOOKUP(DropDownList!$B$24,CntyQuery!$A$52:$II$62,AK$1) ->  | AL15: =VLOOKUP(DropDownList!$B$24,CntyQuery!$A$52:$II$62,AL$1) ->  | AM15: =VLOOKUP(DropDownList!$B$24,CntyQuery!$A$52:$II$62,AM$1) ->  | AN15: =VLOOKUP(DropDownList!$B$24,CntyQuery!$A$52:$II$62,AN$1) ->  | AO15: =VLOOKUP(DropDownList!$B$24,CntyQuery!$A$52:$II$62,AO$1) ->  | AP15: =VLOOKUP(DropDownList!$B$24,CntyQuery!$A$52:$II$62,AP$1) ->  | AQ15: =VLOOKUP(DropDownList!$B$24,CntyQuery!$A$52:$II$62,AQ$1) ->  | AR15: =VLOOKUP(DropDownList!$B$24,CntyQuery!$A$52:$II$62,AR$1) ->  | AS15: =VLOOKUP(DropDownList!$B$24,CntyQuery!$A$52:$II$62,AS$1) ->  | AT15: =VLOOKUP(DropDownList!$B$24,CntyQuery!$A$52:$II$62,AT$1) ->  | AU15: =VLOOKUP(DropDownList!$B$24,CntyQuery!$A$52:$II$62,AU$1) ->  | AV15: =VLOOKUP(DropDownList!$B$24,CntyQuery!$A$52:$II$62,AV$1) ->  | AW15: =VLOOKUP(DropDownList!$B$24,CntyQuery!$A$52:$II$62,AW$1) ->  | AX15: =VLOOKUP(DropDownList!$B$24,CntyQuery!$A$52:$II$62,AX$1) ->  | AY15: =VLOOKUP(DropDownList!$B$24,CntyQuery!$A$52:$II$62,AY$1) ->  | AZ15: =VLOOKUP(DropDownList!$B$24,CntyQuery!$A$52:$II$62,AZ$1) ->  | BA15: =VLOOKUP(DropDownList!$B$24,CntyQuery!$A$52:$II$62,BA$1) ->  | BB15: =VLOOKUP(DropDownList!$B$24,CntyQuery!$A$52:$II$62,BB$1) ->  | BC15: =VLOOKUP(DropDownList!$B$24,CntyQuery!$A$52:$II$62,BC$1) ->  | BD15: =VLOOKUP(DropDownList!$B$24,CntyQuery!$A$52:$II$62,BD$1) ->  | BE15: =VLOOKUP(DropDownList!$B$24,CntyQuery!$A$52:$II$62,BE$1) ->  | BF15: =VLOOKUP(DropDownList!$B$24,CntyQuery!$A$52:$II$62,BF$1) ->  | BG15: =VLOOKUP(DropDownList!$B$24,CntyQuery!$A$52:$II$62,BG$1) ->  | BH15: =VLOOKUP(DropDownList!$B$24,CntyQuery!$A$52:$II$62,BH$1) ->  | BI15: =VLOOKUP(DropDownList!$B$24,CntyQuery!$A$52:$II$62,BI$1) ->  | BJ15: =VLOOKUP(DropDownList!$B$24,CntyQuery!$A$52:$II$62,BJ$1) ->  | BK15: =VLOOKUP(DropDownList!$B$24,CntyQuery!$A$52:$II$62,BK$1) ->  | BL15: =VLOOKUP(DropDownList!$B$24,CntyQuery!$A$52:$II$62,BL$1) ->  | BM15: =VLOOKUP(DropDownList!$B$24,CntyQuery!$A$52:$II$62,BM$1) ->  | BN15: =VLOOKUP(DropDownList!$B$24,CntyQuery!$A$52:$II$62,BN$1) ->  | BO15: =VLOOKUP(DropDownList!$B$24,CntyQuery!$A$52:$II$62,BO$1) ->  | BP15: =VLOOKUP(DropDownList!$B$24,CntyQuery!$A$52:$II$62,BP$1) ->  | BQ15: =VLOOKUP(DropDownList!$B$24,CntyQuery!$A$52:$II$62,BQ$1) ->  | BR15: =VLOOKUP(DropDownList!$B$24,CntyQuery!$A$52:$II$62,BR$1) ->  | BS15: =VLOOKUP(DropDownList!$B$24,CntyQuery!$A$52:$II$62,BS$1) ->  | BT15: =VLOOKUP(DropDownList!$B$24,CntyQuery!$A$52:$II$62,BT$1) ->  | BU15: =VLOOKUP(DropDownList!$B$24,CntyQuery!$A$52:$II$62,BU$1) ->  | BV15: =VLOOKUP(DropDownList!$B$24,CntyQuery!$A$52:$II$62,BV$1) ->  | BW15: =VLOOKUP(DropDownList!$B$24,CntyQuery!$A$52:$II$62,BW$1) ->  | BX15: =VLOOKUP(DropDownList!$B$24,CntyQuery!$A$52:$II$62,BX$1) ->  | BY15: =VLOOKUP(DropDownList!$B$24,CntyQuery!$A$52:$II$62,BY$1) ->  | BZ15: =VLOOKUP(DropDownList!$B$24,CntyQuery!$A$52:$II$62,BZ$1) ->  | CA15: =VLOOKUP(DropDownList!$B$24,CntyQuery!$A$52:$II$62,CA$1) ->  | CB15: =VLOOKUP(DropDownList!$B$24,CntyQuery!$A$52:$II$62,CB$1) ->  | CC15: =VLOOKUP(DropDownList!$B$24,CntyQuery!$A$52:$II$62,CC$1) ->  | CD15: =VLOOKUP(DropDownList!$B$24,CntyQuery!$A$52:$II$62,CD$1) ->  | CE15: =VLOOKUP(DropDownList!$B$24,CntyQuery!$A$52:$II$62,CE$1) ->  | CF15: =VLOOKUP(DropDownList!$B$24,CntyQuery!$A$52:$II$62,CF$1) ->  | CG15: =VLOOKUP(DropDownList!$B$24,CntyQuery!$A$52:$II$62,CG$1) ->  | CH15: =VLOOKUP(DropDownList!$B$24,CntyQuery!$A$52:$II$62,CH$1) ->  | CI15: =VLOOKUP(DropDownList!$B$24,CntyQuery!$A$52:$II$62,CI$1) ->  | CJ15: =VLOOKUP(DropDownList!$B$24,CntyQuery!$A$52:$II$62,CJ$1) ->  | CK15: =VLOOKUP(DropDownList!$B$24,CntyQuery!$A$52:$II$62,CK$1) ->  | CL15: =VLOOKUP(DropDownList!$B$24,CntyQuery!$A$52:$II$62,CL$1) ->  | CM15: =VLOOKUP(DropDownList!$B$24,CntyQuery!$A$52:$II$62,CM$1) ->  | CN15: =VLOOKUP(DropDownList!$B$24,CntyQuery!$A$52:$II$62,CN$1) ->  | CO15: =VLOOKUP(DropDownList!$B$24,CntyQuery!$A$52:$II$62,CO$1) ->  | CP15: =VLOOKUP(DropDownList!$B$24,CntyQuery!$A$52:$II$62,CP$1) ->  | CQ15: =VLOOKUP(DropDownList!$B$24,CntyQuery!$A$52:$II$62,CQ$1) ->  | CR15: =VLOOKUP(DropDownList!$B$24,CntyQuery!$A$52:$II$62,CR$1) ->  | CS15: =VLOOKUP(DropDownList!$B$24,CntyQuery!$A$52:$II$62,CS$1) ->  | CT15: =VLOOKUP(DropDownList!$B$24,CntyQuery!$A$52:$II$62,CT$1) ->  | CU15: =VLOOKUP(DropDownList!$B$24,CntyQuery!$A$52:$II$62,CU$1) ->  | CV15: =VLOOKUP(DropDownList!$B$24,CntyQuery!$A$52:$II$62,CV$1) ->  | CW15: =VLOOKUP(DropDownList!$B$24,CntyQuery!$A$52:$II$62,CW$1) ->  | CX15: =VLOOKUP(DropDownList!$B$24,CntyQuery!$A$52:$II$62,CX$1) ->  | CY15: =VLOOKUP(DropDownList!$B$24,CntyQuery!$A$52:$II$62,CY$1) ->  | CZ15: =VLOOKUP(DropDownList!$B$24,CntyQuery!$A$52:$II$62,CZ$1) ->  | DA15: =VLOOKUP(DropDownList!$B$24,CntyQuery!$A$52:$II$62,DA$1) ->  | DB15: =VLOOKUP(DropDownList!$B$24,CntyQuery!$A$52:$II$62,DB$1) ->  | DC15: =VLOOKUP(DropDownList!$B$24,CntyQuery!$A$52:$II$62,DC$1) ->  | DD15: =VLOOKUP(DropDownList!$B$24,CntyQuery!$A$52:$II$62,DD$1) ->  | DE15: =VLOOKUP(DropDownList!$B$24,CntyQuery!$A$52:$II$62,DE$1) ->  | DF15: =VLOOKUP(DropDownList!$B$24,CntyQuery!$A$52:$II$62,DF$1) ->  | DG15: =VLOOKUP(DropDownList!$B$24,CntyQuery!$A$52:$II$62,DG$1) ->  | DH15: =VLOOKUP(DropDownList!$B$24,CntyQuery!$A$52:$II$62,DH$1) ->  | DI15: =VLOOKUP(DropDownList!$B$24,CntyQuery!$A$52:$II$62,DI$1) ->  | DJ15: =VLOOKUP(DropDownList!$B$24,CntyQuery!$A$52:$II$62,DJ$1) ->  | DK15: =VLOOKUP(DropDownList!$B$24,CntyQuery!$A$52:$II$62,DK$1) ->  | DL15: =VLOOKUP(DropDownList!$B$24,CntyQuery!$A$52:$II$62,DL$1) ->  | DM15: =VLOOKUP(DropDownList!$B$24,CntyQuery!$A$52:$II$62,DM$1) ->  | DN15: =VLOOKUP(DropDownList!$B$24,CntyQuery!$A$52:$II$62,DN$1) ->  | DO15: =VLOOKUP(DropDownList!$B$24,CntyQuery!$A$52:$II$62,DO$1) ->  | DP15: =VLOOKUP(DropDownList!$B$24,CntyQuery!$A$52:$II$62,DP$1) ->  | DQ15: =VLOOKUP(DropDownList!$B$24,CntyQuery!$A$52:$II$62,DQ$1) ->  | DR15: =VLOOKUP(DropDownList!$B$24,CntyQuery!$A$52:$II$62,DR$1) ->  | DS15: =VLOOKUP(DropDownList!$B$24,CntyQuery!$A$52:$II$62,DS$1) ->  | DT15: =VLOOKUP(DropDownList!$B$24,CntyQuery!$A$52:$II$62,DT$1) ->  | DU15: =VLOOKUP(DropDownList!$B$24,CntyQuery!$A$52:$II$62,DU$1) ->  | DV15: =VLOOKUP(DropDownList!$B$24,CntyQuery!$A$52:$II$62,DV$1) ->  | DW15: =VLOOKUP(DropDownList!$B$24,CntyQuery!$A$52:$II$62,DW$1) ->  | DX15: =VLOOKUP(DropDownList!$B$24,CntyQuery!$A$52:$II$62,DX$1) ->  | DY15: =VLOOKUP(DropDownList!$B$24,CntyQuery!$A$52:$II$62,DY$1) ->  | DZ15: =VLOOKUP(DropDownList!$B$24,CntyQuery!$A$52:$II$62,DZ$1) ->  | EA15: =VLOOKUP(DropDownList!$B$24,CntyQuery!$A$52:$II$62,EA$1) ->  | EB15: =VLOOKUP(DropDownList!$B$24,CntyQuery!$A$52:$II$62,EB$1) ->  | EC15: =VLOOKUP(DropDownList!$B$24,CntyQuery!$A$52:$II$62,EC$1) ->  | ED15: =VLOOKUP(DropDownList!$B$24,CntyQuery!$A$52:$II$62,ED$1) ->  | EE15: =VLOOKUP(DropDownList!$B$24,CntyQuery!$A$52:$II$62,EE$1) ->  | EF15: =VLOOKUP(DropDownList!$B$24,CntyQuery!$A$52:$II$62,EF$1) ->  | EG15: =VLOOKUP(DropDownList!$B$24,CntyQuery!$A$52:$II$62,EG$1) ->  | EH15: =VLOOKUP(DropDownList!$B$24,CntyQuery!$A$52:$II$62,EH$1) ->  | EI15: =VLOOKUP(DropDownList!$B$24,CntyQuery!$A$52:$II$62,EI$1) ->  | EJ15: =VLOOKUP(DropDownList!$B$24,CntyQuery!$A$52:$II$62,EJ$1) ->  | EK15: =VLOOKUP(DropDownList!$B$24,CntyQuery!$A$52:$II$62,EK$1) ->  | EL15: =VLOOKUP(DropDownList!$B$24,CntyQuery!$A$52:$II$62,EL$1) ->  | EM15: =VLOOKUP(DropDownList!$B$24,CntyQuery!$A$52:$II$62,EM$1) ->  | EN15: =VLOOKUP(DropDownList!$B$24,CntyQuery!$A$52:$II$62,EN$1) ->  | EO15: =VLOOKUP(DropDownList!$B$24,CntyQuery!$A$52:$II$62,EO$1) ->  | EP15: =VLOOKUP(DropDownList!$B$24,CntyQuery!$A$52:$II$62,EP$1) ->  | EQ15: =VLOOKUP(DropDownList!$B$24,CntyQuery!$A$52:$II$62,EQ$1) ->  | ER15: =VLOOKUP(DropDownList!$B$24,CntyQuery!$A$52:$II$62,ER$1) ->  | ES15: =VLOOKUP(DropDownList!$B$24,CntyQuery!$A$52:$II$62,ES$1) ->  | ET15: =VLOOKUP(DropDownList!$B$24,CntyQuery!$A$52:$II$62,ET$1) ->  | EU15: =VLOOKUP(DropDownList!$B$24,CntyQuery!$A$52:$II$62,EU$1) ->  | EV15: =VLOOKUP(DropDownList!$B$24,CntyQuery!$A$52:$II$62,EV$1) ->  | EW15: =VLOOKUP(DropDownList!$B$24,CntyQuery!$A$52:$II$62,EW$1) ->  | EX15: =VLOOKUP(DropDownList!$B$24,CntyQuery!$A$52:$II$62,EX$1) ->  | EY15: =VLOOKUP(DropDownList!$B$24,CntyQuery!$A$52:$II$62,EY$1) ->  | EZ15: =VLOOKUP(DropDownList!$B$24,CntyQuery!$A$52:$II$62,EZ$1) ->  | FA15: =VLOOKUP(DropDownList!$B$24,CntyQuery!$A$52:$II$62,FA$1) ->  | FB15: =VLOOKUP(DropDownList!$B$24,CntyQuery!$A$52:$II$62,FB$1) ->  | FC15: =VLOOKUP(DropDownList!$B$24,CntyQuery!$A$52:$II$62,FC$1) ->  | FD15: =VLOOKUP(DropDownList!$B$24,CntyQuery!$A$52:$II$62,FD$1) ->  | FE15: =VLOOKUP(DropDownList!$B$24,CntyQuery!$A$52:$II$62,FE$1) ->  | FF15: =VLOOKUP(DropDownList!$B$24,CntyQuery!$A$52:$II$62,FF$1) ->  | FG15: =VLOOKUP(DropDownList!$B$24,CntyQuery!$A$52:$II$62,FG$1) ->  | FH15: =VLOOKUP(DropDownList!$B$24,CntyQuery!$A$52:$II$62,FH$1) ->  | FI15: =VLOOKUP(DropDownList!$B$24,CntyQuery!$A$52:$II$62,FI$1) ->  | FJ15: =VLOOKUP(DropDownList!$B$24,CntyQuery!$A$52:$II$62,FJ$1) ->  | FK15: =VLOOKUP(DropDownList!$B$24,CntyQuery!$A$52:$II$62,FK$1) ->  | FL15: =VLOOKUP(DropDownList!$B$24,CntyQuery!$A$52:$II$62,FL$1) ->  | FM15: =VLOOKUP(DropDownList!$B$24,CntyQuery!$A$52:$II$62,FM$1) ->  | FN15: =VLOOKUP(DropDownList!$B$24,CntyQuery!$A$52:$II$62,FN$1) ->  | FO15: =VLOOKUP(DropDownList!$B$24,CntyQuery!$A$52:$II$62,FO$1) ->  | FP15: =VLOOKUP(DropDownList!$B$24,CntyQuery!$A$52:$II$62,FP$1) ->  | FQ15: =VLOOKUP(DropDownList!$B$24,CntyQuery!$A$52:$II$62,FQ$1) ->  | FR15: =VLOOKUP(DropDownList!$B$24,CntyQuery!$A$52:$II$62,FR$1) ->  | FS15: =VLOOKUP(DropDownList!$B$24,CntyQuery!$A$52:$II$62,FS$1) ->  | FT15: =VLOOKUP(DropDownList!$B$24,CntyQuery!$A$52:$II$62,FT$1) ->  | FU15: =VLOOKUP(DropDownList!$B$24,CntyQuery!$A$52:$II$62,FU$1) ->  | FV15: =VLOOKUP(DropDownList!$B$24,CntyQuery!$A$52:$II$62,FV$1) ->  | FW15: =VLOOKUP(DropDownList!$B$24,CntyQuery!$A$52:$II$62,FW$1) ->  | FX15: =VLOOKUP(DropDownList!$B$24,CntyQuery!$A$52:$II$62,FX$1) ->  | FY15: =VLOOKUP(DropDownList!$B$24,CntyQuery!$A$52:$II$62,FY$1) ->  | FZ15: =VLOOKUP(DropDownList!$B$24,CntyQuery!$A$52:$II$62,FZ$1) ->  | GA15: =VLOOKUP(DropDownList!$B$24,CntyQuery!$A$52:$II$62,GA$1) ->  | GB15: =VLOOKUP(DropDownList!$B$24,CntyQuery!$A$52:$II$62,GB$1) ->  | GC15: =VLOOKUP(DropDownList!$B$24,CntyQuery!$A$52:$II$62,GC$1) ->  | GD15: =VLOOKUP(DropDownList!$B$24,CntyQuery!$A$52:$II$62,GD$1) ->  | GE15: =VLOOKUP(DropDownList!$B$24,CntyQuery!$A$52:$II$62,GE$1) ->  | GF15: =VLOOKUP(DropDownList!$B$24,CntyQuery!$A$52:$II$62,GF$1) ->  | GG15: =VLOOKUP(DropDownList!$B$24,CntyQuery!$A$52:$II$62,GG$1) ->  | GH15: =VLOOKUP(DropDownList!$B$24,CntyQuery!$A$52:$II$62,GH$1) ->  | GI15: =VLOOKUP(DropDownList!$B$24,CntyQuery!$A$52:$II$62,GI$1) ->  | GJ15: =VLOOKUP(DropDownList!$B$24,CntyQuery!$A$52:$II$62,GJ$1) ->  | GK15: =VLOOKUP(DropDownList!$B$24,CntyQuery!$A$52:$II$62,GK$1) ->  | GL15: =VLOOKUP(DropDownList!$B$24,CntyQuery!$A$52:$II$62,GL$1) ->  | GM15: =VLOOKUP(DropDownList!$B$24,CntyQuery!$A$52:$II$62,GM$1) ->  | GN15: =VLOOKUP(DropDownList!$B$24,CntyQuery!$A$52:$II$62,GN$1) ->  | GO15: =VLOOKUP(DropDownList!$B$24,CntyQuery!$A$52:$II$62,GO$1) ->  | GP15: =VLOOKUP(DropDownList!$B$24,CntyQuery!$A$52:$II$62,GP$1) ->  | GQ15: =VLOOKUP(DropDownList!$B$24,CntyQuery!$A$52:$II$62,GQ$1) ->  | GR15: =VLOOKUP(DropDownList!$B$24,CntyQuery!$A$52:$II$62,GR$1) ->  | GS15: =VLOOKUP(DropDownList!$B$24,CntyQuery!$A$52:$II$62,GS$1) ->  | GT15: =VLOOKUP(DropDownList!$B$24,CntyQuery!$A$52:$II$62,GT$1) ->  | GU15: =VLOOKUP(DropDownList!$B$24,CntyQuery!$A$52:$II$62,GU$1) ->  | GV15: =VLOOKUP(DropDownList!$B$24,CntyQuery!$A$52:$II$62,GV$1) ->  | GW15: =VLOOKUP(DropDownList!$B$24,CntyQuery!$A$52:$II$62,GW$1) ->  | GX15: =VLOOKUP(DropDownList!$B$24,CntyQuery!$A$52:$II$62,GX$1) ->  | GY15: =VLOOKUP(DropDownList!$B$24,CntyQuery!$A$52:$II$62,GY$1) ->  | GZ15: =VLOOKUP(DropDownList!$B$24,CntyQuery!$A$52:$II$62,GZ$1) ->  | HA15: =VLOOKUP(DropDownList!$B$24,CntyQuery!$A$52:$II$62,HA$1) ->  | HB15: =VLOOKUP(DropDownList!$B$24,CntyQuery!$A$52:$II$62,HB$1) ->  | HC15: =VLOOKUP(DropDownList!$B$24,CntyQuery!$A$52:$II$62,HC$1) ->  | HD15: =VLOOKUP(DropDownList!$B$24,CntyQuery!$A$52:$II$62,HD$1) ->  | HE15: =VLOOKUP(DropDownList!$B$24,CntyQuery!$A$52:$II$62,HE$1) ->  | HF15: =VLOOKUP(DropDownList!$B$24,CntyQuery!$A$52:$II$62,HF$1) ->  | HG15: =VLOOKUP(DropDownList!$B$24,CntyQuery!$A$52:$II$62,HG$1) ->  | HH15: =VLOOKUP(DropDownList!$B$24,CntyQuery!$A$52:$II$62,HH$1) ->  | HI15: =VLOOKUP(DropDownList!$B$24,CntyQuery!$A$52:$II$62,HI$1) ->  | HJ15: =VLOOKUP(DropDownList!$B$24,CntyQuery!$A$52:$II$62,HJ$1) ->  | HK15: =VLOOKUP(DropDownList!$B$24,CntyQuery!$A$52:$II$62,HK$1) ->  | HL15: =VLOOKUP(DropDownList!$B$24,CntyQuery!$A$52:$II$62,HL$1) ->  | HM15: =VLOOKUP(DropDownList!$B$24,CntyQuery!$A$52:$II$62,HM$1) ->  | HN15: =VLOOKUP(DropDownList!$B$24,CntyQuery!$A$52:$II$62,HN$1) ->  | HO15: =VLOOKUP(DropDownList!$B$24,CntyQuery!$A$52:$II$62,HO$1) ->  | HP15: =VLOOKUP(DropDownList!$B$24,CntyQuery!$A$52:$II$62,HP$1) ->  | HQ15: =VLOOKUP(DropDownList!$B$24,CntyQuery!$A$52:$II$62,HQ$1) ->  | HR15: =VLOOKUP(DropDownList!$B$24,CntyQuery!$A$52:$II$62,HR$1) ->  | HS15: =VLOOKUP(DropDownList!$B$24,CntyQuery!$A$52:$II$62,HS$1) ->  | HT15: =VLOOKUP(DropDownList!$B$24,CntyQuery!$A$52:$II$62,HT$1) ->  | HU15: =VLOOKUP(DropDownList!$B$24,CntyQuery!$A$52:$II$62,HU$1) ->  | HV15: =VLOOKUP(DropDownList!$B$24,CntyQuery!$A$52:$II$62,HV$1) ->  | HW15: =VLOOKUP(DropDownList!$B$24,CntyQuery!$A$52:$II$62,HW$1) ->  | HX15: =VLOOKUP(DropDownList!$B$24,CntyQuery!$A$52:$II$62,HX$1) ->  | HY15: =VLOOKUP(DropDownList!$B$24,CntyQuery!$A$52:$II$62,HY$1) ->  | HZ15: =VLOOKUP(DropDownList!$B$24,CntyQuery!$A$52:$II$62,HZ$1) ->  | IA15: =VLOOKUP(DropDownList!$B$24,CntyQuery!$A$52:$II$62,IA$1) ->  | IB15: =VLOOKUP(DropDownList!$B$24,CntyQuery!$A$52:$II$62,IB$1) ->  | IC15: =VLOOKUP(DropDownList!$B$24,CntyQuery!$A$52:$II$62,IC$1) ->  | ID15: =VLOOKUP(DropDownList!$B$24,CntyQuery!$A$52:$II$62,ID$1) ->  | IE15: =VLOOKUP(DropDownList!$B$24,CntyQuery!$A$52:$II$62,IE$1) ->  | IF15: =VLOOKUP(DropDownList!$B$24,CntyQuery!$A$52:$II$62,IF$1) ->  | IG15: =VLOOKUP(DropDownList!$B$24,CntyQuery!$A$52:$II$62,IG$1) ->  | IH15: =VLOOKUP(DropDownList!$B$24,CntyQuery!$A$52:$II$62,IH$1) ->  | II15: =VLOOKUP(DropDownList!$B$24,CntyQuery!$A$52:$II$62,II$1) -> 
A19: TOWN_NAME | B19: FIPS | C19: TOWNCNTY | D19: COUSUB | E19: POP80 | F19: POP90CDCEN | G19: POP2000CEN | H19: POP2010CEN | I19: POP2020-Proj | J19: POP2025-Proj | K19: POP2030-Proj | L19: SF80 | M19: MF80 | N19: MH80 | O19: SF81 | P19: MF81 | Q19: MH81 | R19: SF82 | S19: MF82 | T19: MH82 | U19: SF83 | V19: MF83 | W19: MH83 | X19: SF84_OSP | Y19: MF84_OSP | Z19: MH84_OSP | AA19: SF85_OSP | AB19: MF85_OSP | AC19: MH85_OSP | AD19: SF86_OSP | AE19: MF86_OSP | AF19: MH86_OSP | AG19: SF87_OSP | AH19: MF87_OSP | AI19: MH87_OSP | AJ19: SF88_OSP | AK19: MF88_OSP | AL19: MH88_OSP | AM19: SF89_OSP | AN19: MF89_OSP | AO19: MH89_OSP | AP19: SF90_OSP | AQ19: MF90_OSP | AR19: MH90_OSP | AS19: SF91_OSP | AT19: MF91_OSP | AU19: MH91_OSP | AV19: SF92_OSP | AW19: MF92_OSP | AX19: MH92_OSP | AY19: SF93_OSP | AZ19: MF93_OSP | BA19: MH93_OSP | BB19: SF94_OSP | BC19: MF94_OSP | BD19: MH94_OSP | BE19: SF95_OSP | BF19: MF95_OSP | BG19: MH95_OSP | BH19: SF96_OSP | BI19: MF96_OSP | BJ19: MH96_OSP | BK19: SF97_OSP | BL19: MF97_OSP | BM19: MH97_OSP | BN19: SF98_OSP | BO19: MF98_OSP | BP19: MH98_OSP | BQ19: SF99_OSP | BR19: MF99_OSP | BS19: MH99_OSP | BT19: SF00_OSP | BU19: MF00_OSP | BV19: MH00_OSP | BW19: SF01_OSP | BX19: MF01_OSP | BY19: MH01_OSP | BZ19: SF02_OSP | CA19: MF02_OSP | CB19: MH02_OSP | CC19: SF03_OSP | CD19: MF03_OSP | CE19: MH03_OSP | CF19: SF04_OSP | CG19: MF04_OSP | CH19: MH04_OSP | CI19: SF05_OSP | CJ19: MF05_OSP | CK19: MH05_OSP | CL19: SF06_OSP | CM19: MF06_OSP | CN19: MH06_OSP | CO19: SF07_OSP | CP19: MF07_OSP | CQ19: MH07_OSP | CR19: SF08_OSP | CS19: MF08_OSP | CT19: MH08_OSP | CU19: SF09_OSP | CV19: MF09_OSP | CW19: MH09_OSP | CX19: SF10_OSP | CY19: MF10_OSP | CZ19: MH10_OSP | DA19: SF11_OSP | DB19: MF11_OSP | DC19: MH11_OSP | DD19: SF12_OSP | DE19: MF12_OSP | DF19: MH12_OSP | DG19: SF13_OSP | DH19: MF13_OSP | DI19: MH13_OSP | DJ19: SF14_OSP | DK19: MF14_OSP | DL19: MH14_OSP | DM19: SF15_OSP | DN19: MF15_OSP | DO19: MH15_OSP | DP19: SF16_OSP | DQ19: MF16_OSP | DR19: MH16_OSP | DS19: SF17_OSP | DT19: MF17_OSP | DU19: MH17_OSP | DV19: SF18_OSP | DW19: MF18_OSP | DX19: MH18_OSP | DY19: SF19_OSP | DZ19: MF19_OSP | EA19: MH19_OSP | EB19: COMMENTS
A20: =VLOOKUP(DropDownList!$B$24,CntyQuery!$A$99:$FZ$117,A$1) -> Albany | B20: =VLOOKUP(DropDownList!$B$24,CntyQuery!$A$99:$FZ$117,B$1) -> 2 | C20: =VLOOKUP(DropDownList!$B$24,CntyQuery!$A$70:$FZ$88,C$1) -> 201 | D20: =VLOOKUP(DropDownList!$B$24,CntyQuery!$A$70:$FZ$88,D$1) -> 00420 | E20: =VLOOKUP(DropDownList!$B$24,CntyQuery!$A$70:$FZ$88,E$1) -> 383 | F20: =VLOOKUP(DropDownList!$B$24,CntyQuery!$A$70:$FZ$88,F$1) -> 536 | G20: =VLOOKUP(DropDownList!$B$24,CntyQuery!$A$70:$FZ$88,G$1) -> 654 | H20: =VLOOKUP(DropDownList!$B$24,CntyQuery!$A$70:$FZ$88,H$1) -> 735 | I20: =VLOOKUP(DropDownList!$B$24,CntyQuery!$A$70:$FZ$88,I$1) -> 822 | J20: =VLOOKUP(DropDownList!$B$24,CntyQuery!$A$70:$FZ$88,J$1) -> 846 | K20: =VLOOKUP(DropDownList!$B$24,CntyQuery!$A$70:$FZ$88,K$1) -> 870 | L20: =VLOOKUP(DropDownList!$B$24,CntyQuery!$A$70:$FZ$88,L$1) -> 2 | M20: =VLOOKUP(DropDownList!$B$24,CntyQuery!$A$70:$FZ$88,M$1) -> 5 | N20: =VLOOKUP(DropDownList!$B$24,CntyQuery!$A$70:$FZ$88,N$1) -> 0 | O20: =VLOOKUP(DropDownList!$B$24,CntyQuery!$A$70:$FZ$88,O$1) -> -2 | P20: =VLOOKUP(DropDownList!$B$24,CntyQuery!$A$70:$FZ$88,P$1) -> 0 | Q20: =VLOOKUP(DropDownList!$B$24,CntyQuery!$A$70:$FZ$88,Q$1) -> 0 | R20: =VLOOKUP(DropDownList!$B$24,CntyQuery!$A$70:$FZ$88,R$1) -> 0 | S20: =VLOOKUP(DropDownList!$B$24,CntyQuery!$A$70:$FZ$88,S$1) -> 0 | T20: =VLOOKUP(DropDownList!$B$24,CntyQuery!$A$70:$FZ$88,T$1) -> 0 | U20: =VLOOKUP(DropDownList!$B$24,CntyQuery!$A$70:$FZ$88,U$1) -> 1 | V20: =VLOOKUP(DropDownList!$B$24,CntyQuery!$A$70:$FZ$88,V$1) -> 0 | W20: =VLOOKUP(DropDownList!$B$24,CntyQuery!$A$70:$FZ$88,W$1) -> 1 | X20: =VLOOKUP(DropDownList!$B$24,CntyQuery!$A$70:$FZ$88,X$1) -> 1 | Y20: =VLOOKUP(DropDownList!$B$24,CntyQuery!$A$70:$FZ$88,Y$1) -> 0 | Z20: =VLOOKUP(DropDownList!$B$24,CntyQuery!$A$70:$FZ$88,Z$1) -> -1 | AA20: =VLOOKUP(DropDownList!$B$24,CntyQuery!$A$70:$FZ$88,AA$1) -> 1 | AB20: =VLOOKUP(DropDownList!$B$24,CntyQuery!$A$70:$FZ$88,AB$1) -> 0 | AC20: =VLOOKUP(DropDownList!$B$24,CntyQuery!$A$70:$FZ$88,AC$1) -> 12 | AD20: =VLOOKUP(DropDownList!$B$24,CntyQuery!$A$70:$FZ$88,AD$1) -> 17 | AE20: =VLOOKUP(DropDownList!$B$24,CntyQuery!$A$70:$FZ$88,AE$1) -> 0 | AF20: =VLOOKUP(DropDownList!$B$24,CntyQuery!$A$70:$FZ$88,AF$1) -> 9 | AG20: =VLOOKUP(DropDownList!$B$24,CntyQuery!$A$70:$FZ$88,AG$1) -> 5 | AH20: =VLOOKUP(DropDownList!$B$24,CntyQuery!$A$70:$FZ$88,AH$1) -> 2 | AI20: =VLOOKUP(DropDownList!$B$24,CntyQuery!$A$70:$FZ$88,AI$1) -> 8 | AJ20: =VLOOKUP(DropDownList!$B$24,CntyQuery!$A$70:$FZ$88,AJ$1) -> 9 | AK20: =VLOOKUP(DropDownList!$B$24,CntyQuery!$A$70:$FZ$88,AK$1) -> 0 | AL20: =VLOOKUP(DropDownList!$B$24,CntyQuery!$A$70:$FZ$88,AL$1) -> 1 | AM20: =VLOOKUP(DropDownList!$B$24,CntyQuery!$A$70:$FZ$88,AM$1) -> 8 | AN20: =VLOOKUP(DropDownList!$B$24,CntyQuery!$A$70:$FZ$88,AN$1) -> 0 | AO20: =VLOOKUP(DropDownList!$B$24,CntyQuery!$A$70:$FZ$88,AO$1) -> 1 | AP20: =VLOOKUP(DropDownList!$B$24,CntyQuery!$A$70:$FZ$88,AP$1) -> 4 | AQ20: =VLOOKUP(DropDownList!$B$24,CntyQuery!$A$70:$FZ$88,AQ$1) -> 0 | AR20: =VLOOKUP(DropDownList!$B$24,CntyQuery!$A$70:$FZ$88,AR$1) -> 6 | AS20: =VLOOKUP(DropDownList!$B$24,CntyQuery!$A$70:$FZ$88,AS$1) -> 6 | AT20: =VLOOKUP(DropDownList!$B$24,CntyQuery!$A$70:$FZ$88,AT$1) -> 0 | AU20: =VLOOKUP(DropDownList!$B$24,CntyQuery!$A$70:$FZ$88,AU$1) -> 1 | AV20: =VLOOKUP(DropDownList!$B$24,CntyQuery!$A$70:$FZ$88,AV$1) -> 3 | AW20: =VLOOKUP(DropDownList!$B$24,CntyQuery!$A$70:$FZ$88,AW$1) -> 0 | AX20: =VLOOKUP(DropDownList!$B$24,CntyQuery!$A$70:$FZ$88,AX$1) -> 2 | AY20: =VLOOKUP(DropDownList!$B$24,CntyQuery!$A$70:$FZ$88,AY$1) -> 5 | AZ20: =VLOOKUP(DropDownList!$B$24,CntyQuery!$A$70:$FZ$88,AZ$1) -> 0 | BA20: =VLOOKUP(DropDownList!$B$24,CntyQuery!$A$70:$FZ$88,BA$1) -> 0 | BB20: =VLOOKUP(DropDownList!$B$24,CntyQuery!$A$70:$FZ$88,BB$1) -> 1 | BC20: =VLOOKUP(DropDownList!$B$24,CntyQuery!$A$70:$FZ$88,BC$1) -> 0 | BD20: =VLOOKUP(DropDownList!$B$24,CntyQuery!$A$70:$FZ$88,BD$1) -> 3 | BE20: =VLOOKUP(DropDownList!$B$24,CntyQuery!$A$70:$FZ$88,BE$1) -> 6 | BF20: =VLOOKUP(DropDownList!$B$24,CntyQuery!$A$70:$FZ$88,BF$1) -> 0 | BG20: =VLOOKUP(DropDownList!$B$24,CntyQuery!$A$70:$FZ$88,BG$1) -> 1 | BH20: =VLOOKUP(DropDownList!$B$24,CntyQuery!$A$70:$FZ$88,BH$1) -> 4 | BI20: =VLOOKUP(DropDownList!$B$24,CntyQuery!$A$70:$FZ$88,BI$1) -> 0 | BJ20: =VLOOKUP(DropDownList!$B$24,CntyQuery!$A$70:$FZ$88,BJ$1) -> 7 | BK20: =VLOOKUP(DropDownList!$B$24,CntyQuery!$A$70:$FZ$88,BK$1) -> 3 | BL20: =VLOOKUP(DropDownList!$B$24,CntyQuery!$A$70:$FZ$88,BL$1) -> 0 | BM20: =VLOOKUP(DropDownList!$B$24,CntyQuery!$A$70:$FZ$88,BM$1) -> 0 | BN20: =VLOOKUP(DropDownList!$B$24,CntyQuery!$A$70:$FZ$88,BN$1) -> 1 | BO20: =VLOOKUP(DropDownList!$B$24,CntyQuery!$A$70:$FZ$88,BO$1) -> 0 | BP20: =VLOOKUP(DropDownList!$B$24,CntyQuery!$A$70:$FZ$88,BP$1) -> 0 | BQ20: =VLOOKUP(DropDownList!$B$24,CntyQuery!$A$70:$FZ$88,BQ$1) -> 7 | BR20: =VLOOKUP(DropDownList!$B$24,CntyQuery!$A$70:$FZ$88,BR$1) -> 0 | BS20: =VLOOKUP(DropDownList!$B$24,CntyQuery!$A$70:$FZ$88,BS$1) -> 0 | BT20: =VLOOKUP(DropDownList!$B$24,CntyQuery!$A$70:$FZ$88,BT$1) -> 2 | BU20: =VLOOKUP(DropDownList!$B$24,CntyQuery!$A$70:$FZ$88,BU$1) -> 0 | BV20: =VLOOKUP(DropDownList!$B$24,CntyQuery!$A$70:$FZ$88,BV$1) -> 0 | BW20: =VLOOKUP(DropDownList!$B$24,CntyQuery!$A$70:$FZ$88,BW$1) -> 3 | BX20: =VLOOKUP(DropDownList!$B$24,CntyQuery!$A$70:$FZ$88,BX$1) -> 0 | BY20: =VLOOKUP(DropDownList!$B$24,CntyQuery!$A$70:$FZ$88,BY$1) -> 0 | BZ20: =VLOOKUP(DropDownList!$B$24,CntyQuery!$A$70:$FZ$88,BZ$1) -> 11 | CA20: =VLOOKUP(DropDownList!$B$24,CntyQuery!$A$70:$FZ$88,CA$1) -> 1 | CB20: =VLOOKUP(DropDownList!$B$24,CntyQuery!$A$70:$FZ$88,CB$1) -> 0 | CC20: =VLOOKUP(DropDownList!$B$24,CntyQuery!$A$70:$FZ$88,CC$1) -> 8 | CD20: =VLOOKUP(DropDownList!$B$24,CntyQuery!$A$70:$FZ$88,CD$1) -> 0 | CE20: =VLOOKUP(DropDownList!$B$24,CntyQuery!$A$70:$FZ$88,CE$1) -> 0 | CF20: =VLOOKUP(DropDownList!$B$24,CntyQuery!$A$70:$FZ$88,CF$1) -> 16 | CG20: =VLOOKUP(DropDownList!$B$24,CntyQuery!$A$70:$FZ$88,CG$1) -> 0 | CH20: =VLOOKUP(DropDownList!$B$24,CntyQuery!$A$70:$FZ$88,CH$1) -> 1 | CI20: =VLOOKUP(DropDownList!$B$24,CntyQuery!$A$70:$FZ$88,CI$1) -> 5 | CJ20: =VLOOKUP(DropDownList!$B$24,CntyQuery!$A$70:$FZ$88,CJ$1) -> 0 | CK20: =VLOOKUP(DropDownList!$B$24,CntyQuery!$A$70:$FZ$88,CK$1) -> 1 | CL20: =VLOOKUP(DropDownList!$B$24,CntyQuery!$A$70:$FZ$88,CL$1) -> 4 | CM20: =VLOOKUP(DropDownList!$B$24,CntyQuery!$A$70:$FZ$88,CM$1) -> 0 | CN20: =VLOOKUP(DropDownList!$B$24,CntyQuery!$A$70:$FZ$88,CN$1) -> 1 | CO20: =VLOOKUP(DropDownList!$B$24,CntyQuery!$A$70:$FZ$88,CO$1) -> 2 | CP20: =VLOOKUP(DropDownList!$B$24,CntyQuery!$A$70:$FZ$88,CP$1) -> 0 | CQ20: =VLOOKUP(DropDownList!$B$24,CntyQuery!$A$70:$FZ$88,CQ$1) -> 0 | CR20: =VLOOKUP(DropDownList!$B$24,CntyQuery!$A$70:$FZ$88,CR$1) -> 3 | CS20: =VLOOKUP(DropDownList!$B$24,CntyQuery!$A$70:$FZ$88,CS$1) -> 0 | CT20: =VLOOKUP(DropDownList!$B$24,CntyQuery!$A$70:$FZ$88,CT$1) -> 0 | CU20: =VLOOKUP(DropDownList!$B$24,CntyQuery!$A$70:$FZ$88,CU$1) -> 3 | CV20: =VLOOKUP(DropDownList!$B$24,CntyQuery!$A$70:$FZ$88,CV$1) -> 0 | CW20: =VLOOKUP(DropDownList!$B$24,CntyQuery!$A$70:$FZ$88,CW$1) -> 0 | CX20: =VLOOKUP(DropDownList!$B$24,CntyQuery!$A$70:$FZ$88,CX$1) -> 0 | CY20: =VLOOKUP(DropDownList!$B$24,CntyQuery!$A$70:$FZ$88,CY$1) -> 0 | CZ20: =VLOOKUP(DropDownList!$B$24,CntyQuery!$A$70:$FZ$88,CZ$1) -> 1 | DA20: =VLOOKUP(DropDownList!$B$24,CntyQuery!$A$70:$FZ$88,DA$1) -> 2 | DB20: =VLOOKUP(DropDownList!$B$24,CntyQuery!$A$70:$FZ$88,DB$1) -> 0 | DC20: =VLOOKUP(DropDownList!$B$24,CntyQuery!$A$70:$FZ$88,DC$1) -> -1 | DD20: =VLOOKUP(DropDownList!$B$24,CntyQuery!$A$70:$FZ$88,DD$1) -> 2 | DE20: =VLOOKUP(DropDownList!$B$24,CntyQuery!$A$70:$FZ$88,DE$1) -> 0 | DF20: =VLOOKUP(DropDownList!$B$24,CntyQuery!$A$70:$FZ$88,DF$1) -> -2 | DG20: =VLOOKUP(DropDownList!$B$24,CntyQuery!$A$70:$FZ$88,DG$1) -> 2 | DH20: =VLOOKUP(DropDownList!$B$24,CntyQuery!$A$70:$FZ$88,DH$1) -> 0 | DI20: =VLOOKUP(DropDownList!$B$24,CntyQuery!$A$70:$FZ$88,DI$1) -> 0 | DJ20: =VLOOKUP(DropDownList!$B$24,CntyQuery!$A$70:$FZ$88,DJ$1) -> 3 | DK20: =VLOOKUP(DropDownList!$B$24,CntyQuery!$A$70:$FZ$88,DK$1) -> 0 | DL20: =VLOOKUP(DropDownList!$B$24,CntyQuery!$A$70:$FZ$88,DL$1) -> 0 | DM20: =VLOOKUP(DropDownList!$B$24,CntyQuery!$A$70:$FZ$88,DM$1) -> 1 | DN20: =VLOOKUP(DropDownList!$B$24,CntyQuery!$A$70:$FZ$88,DN$1) -> 0 | DO20: =VLOOKUP(DropDownList!$B$24,CntyQuery!$A$70:$FZ$88,DO$1) -> 1 | DP20: =VLOOKUP(DropDownList!$B$24,CntyQuery!$A$70:$FZ$88,DP$1) -> 1 | DQ20: =VLOOKUP(DropDownList!$B$24,CntyQuery!$A$70:$FZ$88,DQ$1) -> 0 | DR20: =VLOOKUP(DropDownList!$B$24,CntyQuery!$A$70:$FZ$88,DR$1) -> 0 | DS20: =VLOOKUP(DropDownList!$B$24,CntyQuery!$A$70:$FZ$88,DS$1) -> 2 | DT20: =VLOOKUP(DropDownList!$B$24,CntyQuery!$A$70:$FZ$88,DT$1) -> 0 | DU20: =VLOOKUP(DropDownList!$B$24,CntyQuery!$A$70:$FZ$88,DU$1) -> 2 | DV20: =VLOOKUP(DropDownList!$B$24,CntyQuery!$A$70:$FZ$88,DV$1) -> 7 | DW20: =VLOOKUP(DropDownList!$B$24,CntyQuery!$A$70:$FZ$88,DW$1) -> 0 | DX20: =VLOOKUP(DropDownList!$B$24,CntyQuery!$A$70:$FZ$88,DX$1) -> 0 | DY20: =VLOOKUP(DropDownList!$B$24,CntyQuery!$A$70:$FZ$88,DY$1) -> 1 | DZ20: =VLOOKUP(DropDownList!$B$24,CntyQuery!$A$70:$FZ$88,DZ$1) -> 0 | EA20: =VLOOKUP(DropDownList!$B$24,CntyQuery!$A$70:$FZ$88,EA$1) -> 0 | EB20: =VLOOKUP(DropDownList!$B$24,CntyQuery!$A$70:$FZ$88,EB$1) -> 
A23: NH Employment Data | B23: Query Name: DPQryEmploymentByCnty
A24: AreaName | B24: COUNTYCODE | C24: TOTP & G2001 | D24: TOT2001 | E24: GOODPRO2001 | F24: SERVICEPROMAN2001 | G24: WAGEP & G2001 | H24: WAGETOT2001 | I24: WAGEGOODPRO2001 | J24: WAGESERVICEPRO2001 | K24: TOTP & G2002 | L24: TOT2002 | M24: GOODPRO2002 | N24: SERVICEPROMAN2002 | O24: WAGEP & G2002 | P24: WAGETOT2002 | Q24: WAGEGOODPRO2002 | R24: WAGESERVICEPRO2002 | S24: TOTP & G2003 | T24: TOT2003 | U24: GOODPRO2003 | V24: SERVICEPROMAN2003 | W24: WAGEP & G2003 | X24: WAGETOT2003 | Y24: WAGEGOODPRO2003 | Z24: WAGESERVICEPRO2003 | AA24: TOTP & G2004 | AB24: TOT2004 | AC24: GOODPRO2004 | AD24: SERVICEPROMAN2004 | AE24: WAGEP & G2004 | AF24: WAGETOT2004 | AG24: WAGEGOODPRO2004 | AH24: WAGESERVICEPRO2004 | AI24: TOTP & G2005 | AJ24: TOT2005 | AK24: GOODPRO2005 | AL24: SERVICEPROMAN2005 | AM24: WAGEP & G2005 | AN24: WAGETOT2005 | AO24: WAGEGOODPRO2005 | AP24: WAGESERVICEPRO2005 | AQ24: TOTP & G2006 | AR24: TOT2006 | AS24: GOODPRO2006 | AT24: SERVICEPROMAN2006 | AU24: WAGEP & G2006 | AV24: WAGETOT2006 | AW24: WAGEGOODPRO2006 | AX24: WAGESERVICEPRO2006 | AY24: TOTP & G2007 | AZ24: TOT2007 | BA24: GOODPRO2007 | BB24: SERVICEPROMAN2007 | BC24: WAGEP & G2007 | BD24: WAGETOT2007 | BE24: WAGEGOODPRO2007 | BF24: WAGESERVICEPRO2007 | BG24: TOTP & G2008 | BH24: TOT2008 | BI24: GOODPRO2008 | BJ24: SERVICEPROMAN2008 | BK24: WAGEP & G2008 | BL24: WAGETOT2008 | BM24: WAGEGOODPRO2008 | BN24: WAGESERVICEPRO2008 | BO24: TOTP & G2009 | BP24: TOT2009 | BQ24: GOODPRO2009 | BR24: SERVICEPROMAN2009 | BS24: WAGEP & G2009 | BT24: WAGETOT2009 | BU24: WAGEGOODPRO2009 | BV24: WAGESERVICEPRO2009 | BW24: TOTP & G2010 | BX24: TOT2010 | BY24: GOODPRO2010 | BZ24: SERVICEPROMAN2010 | CA24: WAGEP & G2010 | CB24: WAGETOT2010 | CC24: WAGEGOODPRO2010 | CD24: WAGESERVICEPRO2010 | CE24: TOTP & G2011 | CF24: TOT2011 | CG24: GOODPRO2011 | CH24: SERVICEPROMAN2011 | CI24: WAGEP & G2011 | CJ24: WAGETOT2011 | CK24: WAGEGOODPRO2011 | CL24: WAGESERVICEPRO2011 | CM24: TOTP & G2012 | CN24: TOT2012 | CO24: GOODPRO2012 | CP24: SERVICEPROMAN2012 | CQ24: WAGEP & G2012 | CR24: WAGETOT2012 | CS24: WAGEGOODPRO2012 | CT24: WAGESERVICEPRO2012 | CU24: TOTP & G2013 | CV24: TOT2013 | CW24: GOODPRO2013 | CX24: SERVICEPROMAN2013 | CY24: WAGEP & G2013 | CZ24: WAGETOT2013 | DA24: WAGEGOODPRO2013 | DB24: WAGESERVICEPRO2013 | DC24: TOTP & G2014 | DD24: TOT2014 | DE24: GOODPRO2014 | DF24: SERVICEPROMAN2014 | DG24: WAGEP & G2014 | DH24: WAGETOT2014 | DI24: WAGEGOODPRO2014 | DJ24: WAGESERVICEPRO2014 | DK24: TOTP & G2015 | DL24: TOT2015 | DM24: GOODPRO2015 | DN24: SERVICEPROMAN2015 | DO24: WAGEP & G2015 | DP24: WAGETOT2015 | DQ24: WAGEGOODPRO2015 | DR24: WAGESERVICEPRO2015 | DS24: TOTP & G2016 | DT24: TOT2016 | DU24: GOODPRO2016 | DV24: SERVICEPROMAN2016 | DW24: WAGEP & G2016 | DX24: WAGETOT2016 | DY24: WAGEGOODPRO2016 | DZ24: WAGESERVICEPRO2016 | EA24: TOTP & G2017 | EB24: TOT2017 | EC24: GOODPRO2017 | ED24: SERVICEPROMAN2017 | EE24: WAGEP & G2017 | EF24: WAGETOT2017 | EG24: WAGEGOODPRO2017 | EH24: WAGESERVICEPRO2017 | EI24: TOTP & G2018 | EJ24: TOT2018 | EK24: GOODPRO2018 | EL24: SERVICEPROMAN2018 | EM24: WAGEP & G2018 | EN24: WAGETOT2018 | EO24: WAGEGOODPRO2018 | EP24: WAGESERVICEPRO2018 | EQ24: TOTP & G2019 | ER24: TOT2019 | ES24: TOTGov2019 | ET24: GOODPRO2019 | EU24: SERVICEPROMAN2019 | EV24: WAGEP & G2019 | EW24: WAGETOT2019 | EX24: WAGEGov2019 | EY24: WAGEGOODPRO2019 | EZ24: WAGESERVICEPRO2019 | FA24: SummaryLevel
A25: =VLOOKUP(DropDownList!$B$24,CntyQuery!$A$99:$FX$117,A$1) -> Albany | B25: =VLOOKUP(DropDownList!$B$24,CntyQuery!$A$99:$FX$117,B$1) -> 2 | C25: =VLOOKUP(DropDownList!$B$24,CntyQuery!$A$99:$FX$117,C$1) -> 86 | D25: =VLOOKUP(DropDownList!$B$24,CntyQuery!$A$99:$FX$117,D$1) -> 78 | E25: =VLOOKUP(DropDownList!$B$24,CntyQuery!$A$99:$FX$117,E$1) -> 51 | F25: =VLOOKUP(DropDownList!$B$24,CntyQuery!$A$99:$FX$117,F$1) -> 28 | G25: =VLOOKUP(DropDownList!$B$24,CntyQuery!$A$99:$FX$117,G$1) -> 677.37 | H25: =VLOOKUP(DropDownList!$B$24,CntyQuery!$A$99:$FX$117,H$1) -> 730.8 | I25: =VLOOKUP(DropDownList!$B$24,CntyQuery!$A$99:$FX$117,I$1) -> 885.02 | J25: =VLOOKUP(DropDownList!$B$24,CntyQuery!$A$99:$FX$117,J$1) -> 447.91 | K25: =VLOOKUP(DropDownList!$B$24,CntyQuery!$A$99:$FX$117,K$1) -> 83 | L25: =VLOOKUP(DropDownList!$B$24,CntyQuery!$A$99:$FX$117,L$1) -> 76 | M25: =VLOOKUP(DropDownList!$B$24,CntyQuery!$A$99:$FX$117,M$1) -> 55 | N25: =VLOOKUP(DropDownList!$B$24,CntyQuery!$A$99:$FX$117,N$1) -> 22 | O25: =VLOOKUP(DropDownList!$B$24,CntyQuery!$A$99:$FX$117,O$1) -> 689.15 | P25: =VLOOKUP(DropDownList!$B$24,CntyQuery!$A$99:$FX$117,P$1) -> 732.58 | Q25: =VLOOKUP(DropDownList!$B$24,CntyQuery!$A$99:$FX$117,Q$1) -> 882.63 | R25: =VLOOKUP(DropDownList!$B$24,CntyQuery!$A$99:$FX$117,R$1) -> 353.41 | S25: =VLOOKUP(DropDownList!$B$24,CntyQuery!$A$99:$FX$117,S$1) -> 76 | T25: =VLOOKUP(DropDownList!$B$24,CntyQuery!$A$99:$FX$117,T$1) -> 70 | U25: =VLOOKUP(DropDownList!$B$24,CntyQuery!$A$99:$FX$117,U$1) -> n | V25: =VLOOKUP(DropDownList!$B$24,CntyQuery!$A$99:$FX$117,V$1) -> n | W25: =VLOOKUP(DropDownList!$B$24,CntyQuery!$A$99:$FX$117,W$1) -> 593.96 | X25: =VLOOKUP(DropDownList!$B$24,CntyQuery!$A$99:$FX$117,X$1) -> 625.03 | Y25: =VLOOKUP(DropDownList!$B$24,CntyQuery!$A$99:$FX$117,Y$1) -> n | Z25: =VLOOKUP(DropDownList!$B$24,CntyQuery!$A$99:$FX$117,Z$1) -> n | AA25: =VLOOKUP(DropDownList!$B$24,CntyQuery!$A$99:$FX$117,AA$1) -> 64 | AB25: =VLOOKUP(DropDownList!$B$24,CntyQuery!$A$99:$FX$117,AB$1) -> 59 | AC25: =VLOOKUP(DropDownList!$B$24,CntyQuery!$A$99:$FX$117,AC$1) -> n | AD25: =VLOOKUP(DropDownList!$B$24,CntyQuery!$A$99:$FX$117,AD$1) -> n | AE25: =VLOOKUP(DropDownList!$B$24,CntyQuery!$A$99:$FX$117,AE$1) -> 483.1 | AF25: =VLOOKUP(DropDownList!$B$24,CntyQuery!$A$99:$FX$117,AF$1) -> 500.11 | AG25: =VLOOKUP(DropDownList!$B$24,CntyQuery!$A$99:$FX$117,AG$1) -> n | AH25: =VLOOKUP(DropDownList!$B$24,CntyQuery!$A$99:$FX$117,AH$1) -> n | AI25: =VLOOKUP(DropDownList!$B$24,CntyQuery!$A$99:$FX$117,AI$1) -> 83 | AJ25: =VLOOKUP(DropDownList!$B$24,CntyQuery!$A$99:$FX$117,AJ$1) -> 78 | AK25: =VLOOKUP(DropDownList!$B$24,CntyQuery!$A$99:$FX$117,AK$1) -> n | AL25: =VLOOKUP(DropDownList!$B$24,CntyQuery!$A$99:$FX$117,AL$1) -> n | AM25: =VLOOKUP(DropDownList!$B$24,CntyQuery!$A$99:$FX$117,AM$1) -> 412.5 | AN25: =VLOOKUP(DropDownList!$B$24,CntyQuery!$A$99:$FX$117,AN$1) -> 422.63 | AO25: =VLOOKUP(DropDownList!$B$24,CntyQuery!$A$99:$FX$117,AO$1) -> n | AP25: =VLOOKUP(DropDownList!$B$24,CntyQuery!$A$99:$FX$117,AP$1) -> n | AQ25: =VLOOKUP(DropDownList!$B$24,CntyQuery!$A$99:$FX$117,AQ$1) -> 119 | AR25: =VLOOKUP(DropDownList!$B$24,CntyQuery!$A$99:$FX$117,AR$1) -> 114 | AS25: =VLOOKUP(DropDownList!$B$24,CntyQuery!$A$99:$FX$117,AS$1) -> 36 | AT25: =VLOOKUP(DropDownList!$B$24,CntyQuery!$A$99:$FX$117,AT$1) -> 78 | AU25: =VLOOKUP(DropDownList!$B$24,CntyQuery!$A$99:$FX$117,AU$1) -> 484.8 | AV25: =VLOOKUP(DropDownList!$B$24,CntyQuery!$A$99:$FX$117,AV$1) -> 492.96 | AW25: =VLOOKUP(DropDownList!$B$24,CntyQuery!$A$99:$FX$117,AW$1) -> 789.77 | AX25: =VLOOKUP(DropDownList!$B$24,CntyQuery!$A$99:$FX$117,AX$1) -> 353.96 | AY25: =VLOOKUP(DropDownList!$B$24,CntyQuery!$A$99:$FX$117,AY$1) -> 109 | AZ25: =VLOOKUP(DropDownList!$B$24,CntyQuery!$A$99:$FX$117,AZ$1) -> 104 | BA25: =VLOOKUP(DropDownList!$B$24,CntyQuery!$A$99:$FX$117,BA$1) -> 38 | BB25: =VLOOKUP(DropDownList!$B$24,CntyQuery!$A$99:$FX$117,BB$1) -> 66 | BC25: =VLOOKUP(DropDownList!$B$24,CntyQuery!$A$99:$FX$117,BC$1) -> 480.9 | BD25: =VLOOKUP(DropDownList!$B$24,CntyQuery!$A$99:$FX$117,BD$1) -> 486.64 | BE25: =VLOOKUP(DropDownList!$B$24,CntyQuery!$A$99:$FX$117,BE$1) -> 740.23 | BF25: =VLOOKUP(DropDownList!$B$24,CntyQuery!$A$99:$FX$117,BF$1) -> 341.87 | BG25: =VLOOKUP(DropDownList!$B$24,CntyQuery!$A$99:$FX$117,BG$1) -> 104 | BH25: =VLOOKUP(DropDownList!$B$24,CntyQuery!$A$99:$FX$117,BH$1) -> 100 | BI25: =VLOOKUP(DropDownList!$B$24,CntyQuery!$A$99:$FX$117,BI$1) -> 39 | BJ25: =VLOOKUP(DropDownList!$B$24,CntyQuery!$A$99:$FX$117,BJ$1) -> 61 | BK25: =VLOOKUP(DropDownList!$B$24,CntyQuery!$A$99:$FX$117,BK$1) -> 481.11 | BL25: =VLOOKUP(DropDownList!$B$24,CntyQuery!$A$99:$FX$117,BL$1) -> 484.88 | BM25: =VLOOKUP(DropDownList!$B$24,CntyQuery!$A$99:$FX$117,BM$1) -> 713.22 | BN25: =VLOOKUP(DropDownList!$B$24,CntyQuery!$A$99:$FX$117,BN$1) -> 337.97 | BO25: =VLOOKUP(DropDownList!$B$24,CntyQuery!$A$99:$FX$117,BO$1) -> 93 | BP25: =VLOOKUP(DropDownList!$B$24,CntyQuery!$A$99:$FX$117,BP$1) -> 89 | BQ25: =VLOOKUP(DropDownList!$B$24,CntyQuery!$A$99:$FX$117,BQ$1) -> 31 | BR25: =VLOOKUP(DropDownList!$B$24,CntyQuery!$A$99:$FX$117,BR$1) -> 58 | BS25: =VLOOKUP(DropDownList!$B$24,CntyQuery!$A$99:$FX$117,BS$1) -> 462.19 | BT25: =VLOOKUP(DropDownList!$B$24,CntyQuery!$A$99:$FX$117,BT$1) -> 465.23 | BU25: =VLOOKUP(DropDownList!$B$24,CntyQuery!$A$99:$FX$117,BU$1) -> 645.57 | BV25: =VLOOKUP(DropDownList!$B$24,CntyQuery!$A$99:$FX$117,BV$1) -> 369.62 | BW25: =VLOOKUP(DropDownList!$B$24,CntyQuery!$A$99:$FX$117,BW$1) -> 105 | BX25: =VLOOKUP(DropDownList!$B$24,CntyQuery!$A$99:$FX$117,BX$1) -> 101 | BY25: =VLOOKUP(DropDownList!$B$24,CntyQuery!$A$99:$FX$117,BY$1) -> 32 | BZ25: =VLOOKUP(DropDownList!$B$24,CntyQuery!$A$99:$FX$117,BZ$1) -> 70 | CA25: =VLOOKUP(DropDownList!$B$24,CntyQuery!$A$99:$FX$117,CA$1) -> 469.17 | CB25: =VLOOKUP(DropDownList!$B$24,CntyQuery!$A$99:$FX$117,CB$1) -> 471.65 | CC25: =VLOOKUP(DropDownList!$B$24,CntyQuery!$A$99:$FX$117,CC$1) -> 669.95 | CD25: =VLOOKUP(DropDownList!$B$24,CntyQuery!$A$99:$FX$117,CD$1) -> 380.83 | CE25: =VLOOKUP(DropDownList!$B$24,CntyQuery!$A$99:$FX$117,CE$1) -> 103 | CF25: =VLOOKUP(DropDownList!$B$24,CntyQuery!$A$99:$FX$117,CF$1) -> 98 | CG25: =VLOOKUP(DropDownList!$B$24,CntyQuery!$A$99:$FX$117,CG$1) -> n | CH25: =VLOOKUP(DropDownList!$B$24,CntyQuery!$A$99:$FX$117,CH$1) -> n | CI25: =VLOOKUP(DropDownList!$B$24,CntyQuery!$A$99:$FX$117,CI$1) -> 482.62 | CJ25: =VLOOKUP(DropDownList!$B$24,CntyQuery!$A$99:$FX$117,CJ$1) -> 486.7 | CK25: =VLOOKUP(DropDownList!$B$24,CntyQuery!$A$99:$FX$117,CK$1) -> n | CL25: =VLOOKUP(DropDownList!$B$24,CntyQuery!$A$99:$FX$117,CL$1) -> n | CM25: =VLOOKUP(DropDownList!$B$24,CntyQuery!$A$99:$FX$117,CM$1) -> 127 | CN25: =VLOOKUP(DropDownList!$B$24,CntyQuery!$A$99:$FX$117,CN$1) -> 121 | CO25: =VLOOKUP(DropDownList!$B$24,CntyQuery!$A$99:$FX$117,CO$1) -> 25 | CP25: =VLOOKUP(DropDownList!$B$24,CntyQuery!$A$99:$FX$117,CP$1) -> 96 | CQ25: =VLOOKUP(DropDownList!$B$24,CntyQuery!$A$99:$FX$117,CQ$1) -> 431.61 | CR25: =VLOOKUP(DropDownList!$B$24,CntyQuery!$A$99:$FX$117,CR$1) -> 438.06 | CS25: =VLOOKUP(DropDownList!$B$24,CntyQuery!$A$99:$FX$117,CS$1) -> 727.6 | CT25: =VLOOKUP(DropDownList!$B$24,CntyQuery!$A$99:$FX$117,CT$1) -> 361.82 | CU25: =VLOOKUP(DropDownList!$B$24,CntyQuery!$A$99:$FX$117,CU$1) -> 107 | CV25: =VLOOKUP(DropDownList!$B$24,CntyQuery!$A$99:$FX$117,CV$1) -> 101 | CW25: =VLOOKUP(DropDownList!$B$24,CntyQuery!$A$99:$FX$117,CW$1) -> 16 | CX25: =VLOOKUP(DropDownList!$B$24,CntyQuery!$A$99:$FX$117,CX$1) -> 84 | CY25: =VLOOKUP(DropDownList!$B$24,CntyQuery!$A$99:$FX$117,CY$1) -> 448.58 | CZ25: =VLOOKUP(DropDownList!$B$24,CntyQuery!$A$99:$FX$117,CZ$1) -> 456.81 | DA25: =VLOOKUP(DropDownList!$B$24,CntyQuery!$A$99:$FX$117,DA$1) -> 751.25 | DB25: =VLOOKUP(DropDownList!$B$24,CntyQuery!$A$99:$FX$117,DB$1) -> 399.38 | DC25: =VLOOKUP(DropDownList!$B$24,CntyQuery!$A$99:$FX$117,DC$1) -> 112 | DD25: =VLOOKUP(DropDownList!$B$24,CntyQuery!$A$99:$FX$117,DD$1) -> 107 | DE25: =VLOOKUP(DropDownList!$B$24,CntyQuery!$A$99:$FX$117,DE$1) -> 15 | DF25: =VLOOKUP(DropDownList!$B$24,CntyQuery!$A$99:$FX$117,DF$1) -> 92 | DG25: =VLOOKUP(DropDownList!$B$24,CntyQuery!$A$99:$FX$117,DG$1) -> 447.3 | DH25: =VLOOKUP(DropDownList!$B$24,CntyQuery!$A$99:$FX$117,DH$1) -> 451.52 | DI25: =VLOOKUP(DropDownList!$B$24,CntyQuery!$A$99:$FX$117,DI$1) -> 695.65 | DJ25: =VLOOKUP(DropDownList!$B$24,CntyQuery!$A$99:$FX$117,DJ$1) -> 411.53 | DK25: =VLOOKUP(DropDownList!$B$24,CntyQuery!$A$99:$FX$117,DK$1) -> 105 | DL25: =VLOOKUP(DropDownList!$B$24,CntyQuery!$A$99:$FX$117,DL$1) -> 99 | DM25: =VLOOKUP(DropDownList!$B$24,CntyQuery!$A$99:$FX$117,DM$1) -> 13 | DN25: =VLOOKUP(DropDownList!$B$24,CntyQuery!$A$99:$FX$117,DN$1) -> 86 | DO25: =VLOOKUP(DropDownList!$B$24,CntyQuery!$A$99:$FX$117,DO$1) -> 448.18 | DP25: =VLOOKUP(DropDownList!$B$24,CntyQuery!$A$99:$FX$117,DP$1) -> 458.44 | DQ25: =VLOOKUP(DropDownList!$B$24,CntyQuery!$A$99:$FX$117,DQ$1) -> 796.77 | DR25: =VLOOKUP(DropDownList!$B$24,CntyQuery!$A$99:$FX$117,DR$1) -> 407.05 | DS25: =VLOOKUP(DropDownList!$B$24,CntyQuery!$A$99:$FX$117,DS$1) -> 123 | DT25: =VLOOKUP(DropDownList!$B$24,CntyQuery!$A$99:$FX$117,DT$1) -> 114 | DU25: =VLOOKUP(DropDownList!$B$24,CntyQuery!$A$99:$FX$117,DU$1) -> n | DV25: =VLOOKUP(DropDownList!$B$24,CntyQuery!$A$99:$FX$117,DV$1) -> n | DW25: =VLOOKUP(DropDownList!$B$24,CntyQuery!$A$99:$FX$117,DW$1) -> 486.97 | DX25: =VLOOKUP(DropDownList!$B$24,CntyQuery!$A$99:$FX$117,DX$1) -> 505.69 | DY25: =VLOOKUP(DropDownList!$B$24,CntyQuery!$A$99:$FX$117,DY$1) -> n | DZ25: =VLOOKUP(DropDownList!$B$24,CntyQuery!$A$99:$FX$117,DZ$1) -> n | EA25: =VLOOKUP(DropDownList!$B$24,CntyQuery!$A$99:$FX$117,EA$1) -> 125 | EB25: =VLOOKUP(DropDownList!$B$24,CntyQuery!$A$99:$FX$117,EB$1) -> 118 | EC25: =VLOOKUP(DropDownList!$B$24,CntyQuery!$A$99:$FX$117,EC$1) -> n | ED25: =VLOOKUP(DropDownList!$B$24,CntyQuery!$A$99:$FX$117,ED$1) -> n | EE25: =VLOOKUP(DropDownList!$B$24,CntyQuery!$A$99:$FX$117,EE$1) -> 538.03 | EF25: =VLOOKUP(DropDownList!$B$24,CntyQuery!$A$99:$FX$117,EF$1) -> 552.39 | EG25: =VLOOKUP(DropDownList!$B$24,CntyQuery!$A$99:$FX$117,EG$1) -> n | EH25: =VLOOKUP(DropDownList!$B$24,CntyQuery!$A$99:$FX$117,EH$1) -> n | EI25: =VLOOKUP(DropDownList!$B$24,CntyQuery!$A$99:$FX$117,EI$1) -> 134 | EJ25: =VLOOKUP(DropDownList!$B$24,CntyQuery!$A$99:$FX$117,EJ$1) -> 126 | EK25: =VLOOKUP(DropDownList!$B$24,CntyQuery!$A$99:$FX$117,EK$1) -> n | EL25: =VLOOKUP(DropDownList!$B$24,CntyQuery!$A$99:$FX$117,EL$1) -> n | EM25: =VLOOKUP(DropDownList!$B$24,CntyQuery!$A$99:$FX$117,EM$1) -> 586.77 | EN25: =VLOOKUP(DropDownList!$B$24,CntyQuery!$A$99:$FX$117,EN$1) -> 609.08 | EO25: =VLOOKUP(DropDownList!$B$24,CntyQuery!$A$99:$FX$117,EO$1) -> n | EP25: =VLOOKUP(DropDownList!$B$24,CntyQuery!$A$99:$FX$117,EP$1) -> n | EQ25: =VLOOKUP(DropDownList!$B$24,CntyQuery!$A$99:$FX$117,EQ$1) -> 128 | ER25: =VLOOKUP(DropDownList!$B$24,CntyQuery!$A$99:$FX$117,ER$1) -> 120 | ES25: =VLOOKUP(DropDownList!$B$24,CntyQuery!$A$99:$FX$117,ES$1) -> 8 | ET25: =VLOOKUP(DropDownList!$B$24,CntyQuery!$A$99:$FX$117,ET$1) -> 27 | EU25: =VLOOKUP(DropDownList!$B$24,CntyQuery!$A$99:$FX$117,EU$1) -> 94 | EV25: =VLOOKUP(DropDownList!$B$24,CntyQuery!$A$99:$FX$117,EV$1) -> 605.94 | EW25: =VLOOKUP(DropDownList!$B$24,CntyQuery!$A$99:$FX$117,EW$1) -> 628.27 | EX25: =VLOOKUP(DropDownList!$B$24,CntyQuery!$A$99:$FX$117,EX$1) -> 266.01 | EY25: =VLOOKUP(DropDownList!$B$24,CntyQuery!$A$99:$FX$117,EY$1) -> 803.32 | EZ25: =VLOOKUP(DropDownList!$B$24,CntyQuery!$A$99:$FX$117,EZ$1) -> 578.52 | FA25: =VLOOKUP(DropDownList!$B$24,CntyQuery!$A$99:$FX$117,FA$1) -> 201
M32: =IF((CntyDataLink!$BL$25)="n",NA(),IF(VALUE(CntyDataLink!$BL$25)="",NA(),VALUE(CntyDataLink!$BL$25))) -> 484.88
A33: Census 2000 - Query Name: TownAllQuery3 | B33: 2 | C33: =B33+1 -> 3 | D33: =C33+1 -> 4 | E33: 5 | F33: 6 | G33: 7 | H33: 8 | I33: 9 | J33: 10 | K33: 11 | L33: 12 | M33: 13 | N33: 14 | O33: 15 | P33: 16 | Q33: 17 | R33: 18 | S33: 19 | T33: 20 | U33: 21 | V33: 22 | W33: 23 | X33: 24 | Y33: 25 | Z33: 26 | AA33: 27 | AB33: 28 | AC33: 29 | AD33: 30 | AE33: 31 | AF33: 32 | AG33: 33 | AH33: 34 | AI33: 35 | AJ33: 36 | AK33: 37 | AL33: 38 | AM33: 39 | AN33: 40 | AO33: 41 | AP33: 42 | AQ33: 43 | AR33: 44 | AS33: 45 | AT33: 46 | AU33: 47 | AV33: 48 | AW33: 49 | AX33: 50 | AY33: 51 | AZ33: 52 | BA33: 53 | BB33: 54 | BC33: 55 | BD33: 56 | BE33: 57 | BF33: 58 | BG33: 59 | BH33: 60 | BI33: 61 | BJ33: 62 | BK33: 63 | BL33: 64 | BM33: 65 | BN33: 66 | BO33: 67 | BP33: =BO33+1 -> 68 | BQ33: 69 | BR33: 70 | BS33: 71 | BT33: 72 | BU33: 73 | BV33: 74 | BW33: 75 | BX33: 76 | BY33: 77 | BZ33: 78 | CA33: 79 | CB33: 80 | CC33: 81 | CD33: 82 | CE33: 83 | CF33: 84 | CG33: 85 | CH33: 86 | CI33: 87 | CJ33: 88 | CK33: 89 | CL33: 90 | CM33: 91 | CN33: 92 | CO33: 93 | CP33: 94 | CQ33: 95 | CR33: 96 | CS33: 97 | CT33: 98 | CU33: 99 | CV33: 100 | CW33: 101 | CX33: 102
A34: NAME | B34: COUNTY | C34: LOGRECNO | D34: COUSUB | E34: TRACT | F34: AREALAND | G34: AREAWATR | H34: POP100 | I34: HU100 | J34: 2000Population | K34: PopOfOneRace | L34: PopWhite | M34: PopBlack | N34: PopAmIndian | O34: PopAsian | P34: PopHawaiian | Q34: PopOtherRace | R34: Pop2orMoreRaces | S34: PopHispanicLatino | T34: PopNotHispanicLatino | U34: PopMale | V34: PopMale<15 | W34: PopMale15to24 | X34: PopMale25to34 | Y34: PopMale35to44 | Z34: PopMale45to54 | AA34: PopMale55to64 | AB34: PopMale65to74 | AC34: PopMale75to84 | AD34: PopMale85andOver | AE34: PopFemale | AF34: PopFemale<15 | AG34: PopFemale15to24 | AH34: PopFemale25to34 | AI34: PopFemale35t44 | AJ34: PopFemale45to54 | AK34: PopFemale55to64 | AL34: PopFemale65to74 | AM34: PopFemale75to84 | AN34: PopFemale85andOver | AO34: Households2000 | AP34: PopInHH | AQ34: AvgHHSize | AR34: HHs1Person | AS34: HHs2orMorePerson | AT34: HHsFamily | AU34: HHMarriedCoupleFam | AV34: HHSingleParentFam | AW34: HHsNonFamily | AX34: Families | AY34: PopInFam | AZ34: AvgFamSize | BA34: TotHsUnits | BB34: OccHsUnits | BC34: OwnerOccHU | BD34: RenterOccHU | BE34: VctHsUnits | BF34: VctHUForRent | BG34: VctHUForSale | BH34: VctHUSeasonal | BI34: PopInOccHU | BJ34: PopInOwnOccHU | BK34: PopInRntOccHU | BL34: AvgHHSize2 | BM34: AvgHHSizOwnOcc | BN34: AvgHHSizRntOcc | BO34: OwnOccWhtHsHldr | BP34: OwnOccBlkHsHldr | BQ34: OwnOccAmIHsHldr | BR34: OwnOccAsnHsHldr | BS34: OwnOccPIsHsHldr | BT34: OwnOccORHsHldr | BU34: OwnOcc2RcHsHldr | BV34: RntOccWhtHsHldr | BW34: RntOccBlkHsHldr | BX34: RntOccAmIHsHldr | BY34: RntOccAsnHsHldr | BZ34: RntOccPIsHsHldr | CA34: RntOccORHsHldr | CB34: RntOcc2RcHsHldr | CC34: OwnOccHH15to24 | CD34: OwnOccHH25to34 | CE34: OwnOccHH35to44 | CF34: OwnOccHH45to54 | CG34: OwnOccHH55to64 | CH34: OwnOccHH65to74 | CI34: OwnOccHH75to84 | CJ34: OwnOccHH85Over | CK34: RntOccHH15to24 | CL34: RntOccHH25to34 | CM34: RntOccHH35to44 | CN34: RntOccHH45to54 | CO34: RntOccHH55to64 | CP34: RntOccHH65to74 | CQ34: RntOccHH75to84 | CR34: RntOccHH85Over | CS34: P27TotalPop | CT34: P27PopInHseHlds | CU34: P27PopInGrpQtrs | CV34: Median Age Total | CW34: Median Age (Male) | CX34: Median Age (Female)
A35: =VLOOKUP(DropDownList!$B$24,CntyQryCensus!$A$4:$CX$22,A$1) -> Albany | B35: =VLOOKUP(DropDownList!$B$24,CntyQryCensus!$A$4:$CX$22,B$1) -> 003 | C35: =VLOOKUP(DropDownList!$B$24,CntyQryCensus!$A$4:$CX$22,C$1) -> 0002057 | D35: =VLOOKUP(DropDownList!$B$24,CntyQryCensus!$A$4:$CX$22,D$1) -> 00420 | E35: =VLOOKUP(DropDownList!$B$24,CntyQryCensus!$A$4:$CX$22,E$1) ->  | F35: =VLOOKUP(DropDownList!$B$24,CntyQryCensus!$A$4:$CX$22,F$1) -> 193586162 | G35: =VLOOKUP(DropDownList!$B$24,CntyQryCensus!$A$4:$CX$22,G$1) -> 853295 | H35: =VLOOKUP(DropDownList!$B$24,CntyQryCensus!$A$4:$CX$22,H$1) -> 654 | I35: =VLOOKUP(DropDownList!$B$24,CntyQryCensus!$A$4:$CX$22,I$1) -> 506 | J35: =VLOOKUP(DropDownList!$B$24,CntyQryCensus!$A$4:$CX$22,J$1) -> 654 | K35: =VLOOKUP(DropDownList!$B$24,CntyQryCensus!$A$4:$CX$22,K$1) -> 650 | L35: =VLOOKUP(DropDownList!$B$24,CntyQryCensus!$A$4:$CX$22,L$1) -> 644 | M35: =VLOOKUP(DropDownList!$B$24,CntyQryCensus!$A$4:$CX$22,M$1) -> 1 | N35: =VLOOKUP(DropDownList!$B$24,CntyQryCensus!$A$4:$CX$22,N$1) -> 2 | O35: =VLOOKUP(DropDownList!$B$24,CntyQryCensus!$A$4:$CX$22,O$1) -> 1 | P35: =VLOOKUP(DropDownList!$B$24,CntyQryCensus!$A$4:$CX$22,P$1) -> 2 | Q35: =VLOOKUP(DropDownList!$B$24,CntyQryCensus!$A$4:$CX$22,Q$1) -> 0 | R35: =VLOOKUP(DropDownList!$B$24,CntyQryCensus!$A$4:$CX$22,R$1) -> 4 | S35: =VLOOKUP(DropDownList!$B$24,CntyQryCensus!$A$4:$CX$22,S$1) -> 5 | T35: =VLOOKUP(DropDownList!$B$24,CntyQryCensus!$A$4:$CX$22,T$1) -> 649 | U35: =VLOOKUP(DropDownList!$B$24,CntyQryCensus!$A$4:$CX$22,U$1) -> 328 | V35: =VLOOKUP(DropDownList!$B$24,CntyQryCensus!$A$4:$CX$22,V$1) -> 68 | W35: =VLOOKUP(DropDownList!$B$24,CntyQryCensus!$A$4:$CX$22,W$1) -> 37 | X35: =VLOOKUP(DropDownList!$B$24,CntyQryCensus!$A$4:$CX$22,X$1) -> 43 | Y35: =VLOOKUP(DropDownList!$B$24,CntyQryCensus!$A$4:$CX$22,Y$1) -> 77 | Z35: =VLOOKUP(DropDownList!$B$24,CntyQryCensus!$A$4:$CX$22,Z$1) -> 43 | AA35: =VLOOKUP(DropDownList!$B$24,CntyQryCensus!$A$4:$CX$22,AA$1) -> 35 | AB35: =VLOOKUP(DropDownList!$B$24,CntyQryCensus!$A$4:$CX$22,AB$1) -> 15 | AC35: =VLOOKUP(DropDownList!$B$24,CntyQryCensus!$A$4:$CX$22,AC$1) -> 6 | AD35: =VLOOKUP(DropDownList!$B$24,CntyQryCensus!$A$4:$CX$22,AD$1) -> 4 | AE35: =VLOOKUP(DropDownList!$B$24,CntyQryCensus!$A$4:$CX$22,AE$1) -> 326 | AF35: =VLOOKUP(DropDownList!$B$24,CntyQryCensus!$A$4:$CX$22,AF$1) -> 82 | AG35: =VLOOKUP(DropDownList!$B$24,CntyQryCensus!$A$4:$CX$22,AG$1) -> 26 | AH35: =VLOOKUP(DropDownList!$B$24,CntyQryCensus!$A$4:$CX$22,AH$1) -> 47 | AI35: =VLOOKUP(DropDownList!$B$24,CntyQryCensus!$A$4:$CX$22,AI$1) -> 73 | AJ35: =VLOOKUP(DropDownList!$B$24,CntyQryCensus!$A$4:$CX$22,AJ$1) -> 36 | AK35: =VLOOKUP(DropDownList!$B$24,CntyQryCensus!$A$4:$CX$22,AK$1) -> 35 | AL35: =VLOOKUP(DropDownList!$B$24,CntyQryCensus!$A$4:$CX$22,AL$1) -> 20 | AM35: =VLOOKUP(DropDownList!$B$24,CntyQryCensus!$A$4:$CX$22,AM$1) -> 5 | AN35: =VLOOKUP(DropDownList!$B$24,CntyQryCensus!$A$4:$CX$22,AN$1) -> 2 | AO35: =VLOOKUP(DropDownList!$B$24,CntyQryCensus!$A$4:$CX$22,AO$1) -> 262 | AP35: =VLOOKUP(DropDownList!$B$24,CntyQryCensus!$A$4:$CX$22,AP$1) -> 651 | AQ35: =VLOOKUP(DropDownList!$B$24,CntyQryCensus!$A$4:$CX$22,AQ$1) -> 2.48 | AR35: =VLOOKUP(DropDownList!$B$24,CntyQryCensus!$A$4:$CX$22,AR$1) -> 61 | AS35: =VLOOKUP(DropDownList!$B$24,CntyQryCensus!$A$4:$CX$22,AS$1) -> 201 | AT35: =VLOOKUP(DropDownList!$B$24,CntyQryCensus!$A$4:$CX$22,AT$1) -> 183 | AU35: =VLOOKUP(DropDownList!$B$24,CntyQryCensus!$A$4:$CX$22,AU$1) -> 135 | AV35: =VLOOKUP(DropDownList!$B$24,CntyQryCensus!$A$4:$CX$22,AV$1) -> 48 | AW35: =VLOOKUP(DropDownList!$B$24,CntyQryCensus!$A$4:$CX$22,AW$1) -> 18 | AX35: =VLOOKUP(DropDownList!$B$24,CntyQryCensus!$A$4:$CX$22,AX$1) -> 183 | AY35: =VLOOKUP(DropDownList!$B$24,CntyQryCensus!$A$4:$CX$22,AY$1) -> 521 | AZ35: =VLOOKUP(DropDownList!$B$24,CntyQryCensus!$A$4:$CX$22,AZ$1) -> 2.85 | BA35: =VLOOKUP(DropDownList!$B$24,CntyQryCensus!$A$4:$CX$22,BA$1) -> 506 | BB35: =VLOOKUP(DropDownList!$B$24,CntyQryCensus!$A$4:$CX$22,BB$1) -> 262 | BC35: =VLOOKUP(DropDownList!$B$24,CntyQryCensus!$A$4:$CX$22,BC$1) -> 221 | BD35: =VLOOKUP(DropDownList!$B$24,CntyQryCensus!$A$4:$CX$22,BD$1) -> 41 | BE35: =VLOOKUP(DropDownList!$B$24,CntyQryCensus!$A$4:$CX$22,BE$1) -> 244 | BF35: =VLOOKUP(DropDownList!$B$24,CntyQryCensus!$A$4:$CX$22,BF$1) -> 6 | BG35: =VLOOKUP(DropDownList!$B$24,CntyQryCensus!$A$4:$CX$22,BG$1) -> 7 | BH35: =VLOOKUP(DropDownList!$B$24,CntyQryCensus!$A$4:$CX$22,BH$1) -> 201 | BI35: =VLOOKUP(DropDownList!$B$24,CntyQryCensus!$A$4:$CX$22,BI$1) -> 651 | BJ35: =VLOOKUP(DropDownList!$B$24,CntyQryCensus!$A$4:$CX$22,BJ$1) -> 539 | BK35: =VLOOKUP(DropDownList!$B$24,CntyQryCensus!$A$4:$CX$22,BK$1) -> 112 | BL35: =VLOOKUP(DropDownList!$B$24,CntyQryCensus!$A$4:$CX$22,BL$1) -> 2.48 | BM35: =VLOOKUP(DropDownList!$B$24,CntyQryCensus!$A$4:$CX$22,BM$1) -> 2.44 | BN35: =VLOOKUP(DropDownList!$B$24,CntyQryCensus!$A$4:$CX$22,BN$1) -> 2.73 | BO35: =VLOOKUP(DropDownList!$B$24,CntyQryCensus!$A$4:$CX$22,BO$1) -> 216 | BP35: =VLOOKUP(DropDownList!$B$24,CntyQryCensus!$A$4:$CX$22,BP$1) -> 0 | BQ35: =VLOOKUP(DropDownList!$B$24,CntyQryCensus!$A$4:$CX$22,BQ$1) -> 1 | BR35: =VLOOKUP(DropDownList!$B$24,CntyQryCensus!$A$4:$CX$22,BR$1) -> 1 | BS35: =VLOOKUP(DropDownList!$B$24,CntyQryCensus!$A$4:$CX$22,BS$1) -> 1 | BT35: =VLOOKUP(DropDownList!$B$24,CntyQryCensus!$A$4:$CX$22,BT$1) -> 0 | BU35: =VLOOKUP(DropDownList!$B$24,CntyQryCensus!$A$4:$CX$22,BU$1) -> 2 | BV35: =VLOOKUP(DropDownList!$B$24,CntyQryCensus!$A$4:$CX$22,BV$1) -> 39 | BW35: =VLOOKUP(DropDownList!$B$24,CntyQryCensus!$A$4:$CX$22,BW$1) -> 1 | BX35: =VLOOKUP(DropDownList!$B$24,CntyQryCensus!$A$4:$CX$22,BX$1) -> 0 | BY35: =VLOOKUP(DropDownList!$B$24,CntyQryCensus!$A$4:$CX$22,BY$1) -> 0 | BZ35: =VLOOKUP(DropDownList!$B$24,CntyQryCensus!$A$4:$CX$22,BZ$1) -> 0 | CA35: =VLOOKUP(DropDownList!$B$24,CntyQryCensus!$A$4:$CX$22,CA$1) -> 0 | CB35: =VLOOKUP(DropDownList!$B$24,CntyQryCensus!$A$4:$CX$22,CB$1) -> 1 | CC35: =VLOOKUP(DropDownList!$B$24,CntyQryCensus!$A$4:$CX$22,CC$1) -> 3 | CD35: =VLOOKUP(DropDownList!$B$24,CntyQryCensus!$A$4:$CX$22,CD$1) -> 33 | CE35: =VLOOKUP(DropDownList!$B$24,CntyQryCensus!$A$4:$CX$22,CE$1) -> 74 | CF35: =VLOOKUP(DropDownList!$B$24,CntyQryCensus!$A$4:$CX$22,CF$1) -> 40 | CG35: =VLOOKUP(DropDownList!$B$24,CntyQryCensus!$A$4:$CX$22,CG$1) -> 36 | CH35: =VLOOKUP(DropDownList!$B$24,CntyQryCensus!$A$4:$CX$22,CH$1) -> 21 | CI35: =VLOOKUP(DropDownList!$B$24,CntyQryCensus!$A$4:$CX$22,CI$1) -> 9 | CJ35: =VLOOKUP(DropDownList!$B$24,CntyQryCensus!$A$4:$CX$22,CJ$1) -> 5 | CK35: =VLOOKUP(DropDownList!$B$24,CntyQryCensus!$A$4:$CX$22,CK$1) -> 5 | CL35: =VLOOKUP(DropDownList!$B$24,CntyQryCensus!$A$4:$CX$22,CL$1) -> 14 | CM35: =VLOOKUP(DropDownList!$B$24,CntyQryCensus!$A$4:$CX$22,CM$1) -> 15 | CN35: =VLOOKUP(DropDownList!$B$24,CntyQryCensus!$A$4:$CX$22,CN$1) -> 3 | CO35: =VLOOKUP(DropDownList!$B$24,CntyQryCensus!$A$4:$CX$22,CO$1) -> 2 | CP35: =VLOOKUP(DropDownList!$B$24,CntyQryCensus!$A$4:$CX$22,CP$1) -> 2 | CQ35: =VLOOKUP(DropDownList!$B$24,CntyQryCensus!$A$4:$CX$22,CQ$1) -> 0 | CR35: =VLOOKUP(DropDownList!$B$24,CntyQryCensus!$A$4:$CX$22,CR$1) -> 0 | CS35: =VLOOKUP(DropDownList!$B$24,CntyQryCensus!$A$4:$CX$22,CS$1) -> 654 | CT35: =VLOOKUP(DropDownList!$B$24,CntyQryCensus!$A$4:$CX$22,CT$1) -> 651 | CU35: =VLOOKUP(DropDownList!$B$24,CntyQryCensus!$A$4:$CX$22,CU$1) -> 3 | CV35: =VLOOKUP(DropDownList!$B$24,CntyQryCensus!$A$4:$CX$22,CV$1) -> 37.4 | CW35: =VLOOKUP(DropDownList!$B$24,CntyQryCensus!$A$4:$CX$22,CW$1) -> 37.8 | CX35: =VLOOKUP(DropDownList!$B$24,CntyQryCensus!$A$4:$CX$22,CX$1) -> 36.6
A38: Census 2000 DemoProfile Sample Data Tables 2&3 - DPTab23TownQry
A39: NAME | B39: COUSUB | C39: AREANAME | D39: PopInSchool | E39: Preschool | F39: Kindergarten | G39: Elementary | H39: HighSchool | I39: College | J39: Pop25andOver | K39: HighSchoolGrad | L39: SomeCollege | M39: AssocDegree | N39: BachelDegree | O39: GradDegree | P39: HSGradorHigher | Q39: CollegeGradorHigher | R39: Pop5to20yrs | S39: Pop5to20wDis | T39: Pop21to64 | U39: Pop21to64wDis | V39: Pop65over | W39: Pop65overwDis | X39: Pop5yrsOver | Y39: SameHUin95 | Z39: DiffHUinUSin95 | AA39: HUinSameCountyin95 | AB39: HUinSameStatein95 | AC39: TotalPop | AD39: NativePop | AE39: NatPopBornUS | AF39: NatPopBornInStatRes | AG39: NatPopBornDiffState | AH39: NatPopBornOutUS | AI39: FornBornPop | AJ39: FornPopEnt90to00 | AK39: FornPopNatCit | AL39: FornPopNotCit | AM39: Households | AN39: HHIncLessThn10k | AO39: HHInc10to15K | AP39: HHInc15to25K | AQ39: HHInc25to35K | AR39: HHInc35to50K | AS39: HHInc50to75K | AT39: HHInc75to100K | AU39: HHInc100to150K | AV39: HHInc150to200K | AW39: HHIncOver200K | AX39: MedianHHInc | AY39: HHwithPubAssistInc | AZ39: MeanPubAssist | BA39: FamilyHH | BB39: FHHIncLessThn10k | BC39: FHHInc10to15K | BD39: FHHInc15to25K | BE39: FHHInc25to35K | BF39: FHHInc35to50K | BG39: FHHInc50to75K | BH39: FHHInc75to100K | BI39: FHHInc100to150K | BJ39: FHHInc150to200K | BK39: FHHIncOver200K | BL39: MedianFHHInc | BM39: PerCapitaInc | BN39: PovStatFamilies | BO39: PovStatFHHwChilUnd18 | BP39: PovStatFHHwChilUnd5 | BQ39: PovStFmalHH | BR39: DP3088 | BS39: DP3089 | BT39: PovStatIndiv | BU39: PovStatIndiv18yrOver | BV39: PovStatIndiv65yrOver | BW39: DP3093 | BX39: DP3094 | BY39: DP3095
A40: =VLOOKUP(DropDownList!$B$24,CntyQryCensus!$A$29:$BY$47,A$1) -> Albany | B40: =VLOOKUP(DropDownList!$B$24,CntyQryCensus!$A$29:$BY$47,B$1) -> 00420 | C40: =VLOOKUP(DropDownList!$B$24,CntyQryCensus!$A$29:$BY$47,C$1) -> Albany town, Carroll County, New Hampshire | D40: =VLOOKUP(DropDownList!$B$24,CntyQryCensus!$A$29:$BY$47,D$1) -> 132 | E40: =VLOOKUP(DropDownList!$B$24,CntyQryCensus!$A$29:$BY$47,E$1) -> 12 | F40: =VLOOKUP(DropDownList!$B$24,CntyQryCensus!$A$29:$BY$47,F$1) -> 8 | G40: =VLOOKUP(DropDownList!$B$24,CntyQryCensus!$A$29:$BY$47,G$1) -> 59 | H40: =VLOOKUP(DropDownList!$B$24,CntyQryCensus!$A$29:$BY$47,H$1) -> 38 | I40: =VLOOKUP(DropDownList!$B$24,CntyQryCensus!$A$29:$BY$47,I$1) -> 15 | J40: =VLOOKUP(DropDownList!$B$24,CntyQryCensus!$A$29:$BY$47,J$1) -> 409 | K40: =VLOOKUP(DropDownList!$B$24,CntyQryCensus!$A$29:$BY$47,K$1) -> 165 | L40: =VLOOKUP(DropDownList!$B$24,CntyQryCensus!$A$29:$BY$47,L$1) -> 69 | M40: =VLOOKUP(DropDownList!$B$24,CntyQryCensus!$A$29:$BY$47,M$1) -> 20 | N40: =VLOOKUP(DropDownList!$B$24,CntyQryCensus!$A$29:$BY$47,N$1) -> 54 | O40: =VLOOKUP(DropDownList!$B$24,CntyQryCensus!$A$29:$BY$47,O$1) -> 21 | P40: =VLOOKUP(DropDownList!$B$24,CntyQryCensus!$A$29:$BY$47,P$1) -> 329 | Q40: =VLOOKUP(DropDownList!$B$24,CntyQryCensus!$A$29:$BY$47,Q$1) -> 75 | R40: =VLOOKUP(DropDownList!$B$24,CntyQryCensus!$A$29:$BY$47,R$1) -> 123 | S40: =VLOOKUP(DropDownList!$B$24,CntyQryCensus!$A$29:$BY$47,S$1) -> 16 | T40: =VLOOKUP(DropDownList!$B$24,CntyQryCensus!$A$29:$BY$47,T$1) -> 386 | U40: =VLOOKUP(DropDownList!$B$24,CntyQryCensus!$A$29:$BY$47,U$1) -> 135 | V40: =VLOOKUP(DropDownList!$B$24,CntyQryCensus!$A$29:$BY$47,V$1) -> 46 | W40: =VLOOKUP(DropDownList!$B$24,CntyQryCensus!$A$29:$BY$47,W$1) -> 21 | X40: =VLOOKUP(DropDownList!$B$24,CntyQryCensus!$A$29:$BY$47,X$1) -> 555 | Y40: =VLOOKUP(DropDownList!$B$24,CntyQryCensus!$A$29:$BY$47,Y$1) -> 336 | Z40: =VLOOKUP(DropDownList!$B$24,CntyQryCensus!$A$29:$BY$47,Z$1) -> 215 | AA40: =VLOOKUP(DropDownList!$B$24,CntyQryCensus!$A$29:$BY$47,AA$1) -> 128 | AB40: =VLOOKUP(DropDownList!$B$24,CntyQryCensus!$A$29:$BY$47,AB$1) -> 87 | AC40: =VLOOKUP(DropDownList!$B$24,CntyQryCensus!$A$29:$BY$47,AC$1) -> 609 | AD40: =VLOOKUP(DropDownList!$B$24,CntyQryCensus!$A$29:$BY$47,AD$1) -> 605 | AE40: =VLOOKUP(DropDownList!$B$24,CntyQryCensus!$A$29:$BY$47,AE$1) -> 605 | AF40: =VLOOKUP(DropDownList!$B$24,CntyQryCensus!$A$29:$BY$47,AF$1) -> 298 | AG40: =VLOOKUP(DropDownList!$B$24,CntyQryCensus!$A$29:$BY$47,AG$1) -> 307 | AH40: =VLOOKUP(DropDownList!$B$24,CntyQryCensus!$A$29:$BY$47,AH$1) -> 0 | AI40: =VLOOKUP(DropDownList!$B$24,CntyQryCensus!$A$29:$BY$47,AI$1) -> 4 | AJ40: =VLOOKUP(DropDownList!$B$24,CntyQryCensus!$A$29:$BY$47,AJ$1) -> 0 | AK40: =VLOOKUP(DropDownList!$B$24,CntyQryCensus!$A$29:$BY$47,AK$1) -> 4 | AL40: =VLOOKUP(DropDownList!$B$24,CntyQryCensus!$A$29:$BY$47,AL$1) -> 0 | AM40: =VLOOKUP(DropDownList!$B$24,CntyQryCensus!$A$29:$BY$47,AM$1) -> 249 | AN40: =VLOOKUP(DropDownList!$B$24,CntyQryCensus!$A$29:$BY$47,AN$1) -> 24 | AO40: =VLOOKUP(DropDownList!$B$24,CntyQryCensus!$A$29:$BY$47,AO$1) -> 25 | AP40: =VLOOKUP(DropDownList!$B$24,CntyQryCensus!$A$29:$BY$47,AP$1) -> 44 | AQ40: =VLOOKUP(DropDownList!$B$24,CntyQryCensus!$A$29:$BY$47,AQ$1) -> 23 | AR40: =VLOOKUP(DropDownList!$B$24,CntyQryCensus!$A$29:$BY$47,AR$1) -> 59 | AS40: =VLOOKUP(DropDownList!$B$24,CntyQryCensus!$A$29:$BY$47,AS$1) -> 50 | AT40: =VLOOKUP(DropDownList!$B$24,CntyQryCensus!$A$29:$BY$47,AT$1) -> 10 | AU40: =VLOOKUP(DropDownList!$B$24,CntyQryCensus!$A$29:$BY$47,AU$1) -> 3 | AV40: =VLOOKUP(DropDownList!$B$24,CntyQryCensus!$A$29:$BY$47,AV$1) -> 8 | AW40: =VLOOKUP(DropDownList!$B$24,CntyQryCensus!$A$29:$BY$47,AW$1) -> 3 | AX40: =VLOOKUP(DropDownList!$B$24,CntyQryCensus!$A$29:$BY$47,AX$1) -> 36635 | AY40: =VLOOKUP(DropDownList!$B$24,CntyQryCensus!$A$29:$BY$47,AY$1) -> 11 | AZ40: =VLOOKUP(DropDownList!$B$24,CntyQryCensus!$A$29:$BY$47,AZ$1) -> 5309 | BA40: =VLOOKUP(DropDownList!$B$24,CntyQryCensus!$A$29:$BY$47,BA$1) -> 167 | BB40: =VLOOKUP(DropDownList!$B$24,CntyQryCensus!$A$29:$BY$47,BB$1) -> 13 | BC40: =VLOOKUP(DropDownList!$B$24,CntyQryCensus!$A$29:$BY$47,BC$1) -> 9 | BD40: =VLOOKUP(DropDownList!$B$24,CntyQryCensus!$A$29:$BY$47,BD$1) -> 27 | BE40: =VLOOKUP(DropDownList!$B$24,CntyQryCensus!$A$29:$BY$47,BE$1) -> 21 | BF40: =VLOOKUP(DropDownList!$B$24,CntyQryCensus!$A$29:$BY$47,BF$1) -> 46 | BG40: =VLOOKUP(DropDownList!$B$24,CntyQryCensus!$A$29:$BY$47,BG$1) -> 36 | BH40: =VLOOKUP(DropDownList!$B$24,CntyQryCensus!$A$29:$BY$47,BH$1) -> 5 | BI40: =VLOOKUP(DropDownList!$B$24,CntyQryCensus!$A$29:$BY$47,BI$1) -> 2 | BJ40: =VLOOKUP(DropDownList!$B$24,CntyQryCensus!$A$29:$BY$47,BJ$1) -> 8 | BK40: =VLOOKUP(DropDownList!$B$24,CntyQryCensus!$A$29:$BY$47,BK$1) -> 0 | BL40: =VLOOKUP(DropDownList!$B$24,CntyQryCensus!$A$29:$BY$47,BL$1) -> 39250 | BM40: =VLOOKUP(DropDownList!$B$24,CntyQryCensus!$A$29:$BY$47,BM$1) -> 20690 | BN40: =VLOOKUP(DropDownList!$B$24,CntyQryCensus!$A$29:$BY$47,BN$1) -> 18 | BO40: =VLOOKUP(DropDownList!$B$24,CntyQryCensus!$A$29:$BY$47,BO$1) -> 16 | BP40: =VLOOKUP(DropDownList!$B$24,CntyQryCensus!$A$29:$BY$47,BP$1) -> 12 | BQ40: =VLOOKUP(DropDownList!$B$24,CntyQryCensus!$A$29:$BY$47,BQ$1) -> 10 | BR40: =VLOOKUP(DropDownList!$B$24,CntyQryCensus!$A$29:$BY$47,BR$1) -> 10 | BS40: =VLOOKUP(DropDownList!$B$24,CntyQryCensus!$A$29:$BY$47,BS$1) -> 8 | BT40: =VLOOKUP(DropDownList!$B$24,CntyQryCensus!$A$29:$BY$47,BT$1) -> 95 | BU40: =VLOOKUP(DropDownList!$B$24,CntyQryCensus!$A$29:$BY$47,BU$1) -> 57 | BV40: =VLOOKUP(DropDownList!$B$24,CntyQryCensus!$A$29:$BY$47,BV$1) -> 2 | BW40: =VLOOKUP(DropDownList!$B$24,CntyQryCensus!$A$29:$BY$47,BW$1) -> 38 | BX40: =VLOOKUP(DropDownList!$B$24,CntyQryCensus!$A$29:$BY$47,BX$1) -> 21 | BY40: =VLOOKUP(DropDownList!$B$24,CntyQryCensus!$A$29:$BY$47,BY$1) -> 34
A43: Census 2000 DemoProfile Sample Data Table 4 - DPTab4TownQry
A44: NAME | B44: COUSUB | C44: TotHousingUnits | D44: 1UnitDet | E44: 1UnitAtt | F44: 2Units | G44: 3to4Units | H44: 5to9Units | I44: 10to19Units | J44: 20orMoreUnits | K44: MobileHomes | L44: BoatRvVan | M44: SingleFamilyUnits | N44: MultiFamUnits | O44: MobileHomeUnits | P44: YearBuilt99to00 | Q44: YearBuilt95to98 | R44: YearBUilt90to94 | S44: YearBuilt80to89 | T44: YearBuilt70to79 | U44: YearBuilt60to69 | V44: YearBuilt40to59 | W44: YearBuilt39orEarlier | X44: Rooms1 | Y44: Rooms2 | Z44: Rooms3 | AA44: Rooms4 | AB44: Rooms5 | AC44: Rooms6 | AD44: Rooms7 | AE44: Rooms8 | AF44: Rooms9orMore | AG44: MedianRooms | AH44: OccHU1 | AI44: YrHHMvdIn99to00 | AJ44: YrHHMvdIn95to98 | AK44: YrHHMvdIn90to94 | AL44: YrHHMvdIn80to89 | AM44: YrHHMvdIn70to79 | AN44: YrHHMvdIn69orBefore | AO44: HeatFuelNatGas | AP44: HeatFuelBotGas | AQ44: HeatFuelElectric | AR44: HeatFuelOil | AS44: HeatFuelCoal | AT44: HeatFuelWood | AU44: HeatFuelSolar | AV44: HeatFuelOther | AW44: HeatFuelNone | AX44: LackCompPlumb | AY44: LackCompKit | AZ44: NoTelephone | BA44: OccHU | BB44: OccPerRm1orLess | BC44: OccPerRm1to1_5 | BD44: OccPerRm1_5orMore | BE44: SpecOwnOccUnits | BF44: Value<50K | BG44: Value50to100K | BH44: Value100to150K | BI44: Value150to200K | BJ44: Value200to300K | BK44: Value300to500K | BL44: Value500Kto1mil | BM44: Value1MilorMore | BN44: MedianValue | BO44: WithMortg | BP44: MnthOwnCst<300 | BQ44: MnthOwnCst300to500 | BR44: MnthOwnCst500to700 | BS44: MnthOwnCst700to1000 | BT44: MnthOwnCst1000to1500 | BU44: MnthOwnCst1500to2000 | BV44: MnthOwnCst2000orMore | BW44: MediMnthOwnCst | BX44: NotMrtg | BY44: NotMrtgMediMnthOwnCst | BZ44: OwnCst%HHInc<15 | CA44: OwnCst%HHInc15to20 | CB44: OwnCst%HHInc20to25 | CC44: OwnCst%HHInc25to30 | CD44: OwnCst%HHInc30to35 | CE44: OwnCst%HHInc35orMor | CF44: NotComputed | CG44: SpecRntOccUnits | CH44: Rnt<200 | CI44: Rnt200to300 | CJ44: Rnt300to500 | CK44: Rnt500to750 | CL44: Rnt750to1000 | CM44: Rnt1000to1500 | CN44: Rnt1500orMore | CO44: NoRent | CP44: MedianRent | CQ44: Rnt%HHInc<15 | CR44: Rnt%HHInc15to20 | CS44: Rnt%HHInc20to25 | CT44: Rnt%HHInc25to30 | CU44: Rnt%HHInc30to35 | CV44: Rnt%HHInc35orMore | CW44: Rnt%NotCompute
A45: =VLOOKUP(DropDownList!$B$24,CntyQryCensus!$A$55:$CW$73,A$1) -> Albany | B45: =VLOOKUP(DropDownList!$B$24,CntyQryCensus!$A$55:$CW$73,B$1) -> 00420 | C45: =VLOOKUP(DropDownList!$B$24,CntyQryCensus!$A$55:$CW$73,C$1) -> 491 | D45: =VLOOKUP(DropDownList!$B$24,CntyQryCensus!$A$55:$CW$73,D$1) -> 393 | E45: =VLOOKUP(DropDownList!$B$24,CntyQryCensus!$A$55:$CW$73,E$1) -> 0 | F45: =VLOOKUP(DropDownList!$B$24,CntyQryCensus!$A$55:$CW$73,F$1) -> 14 | G45: =VLOOKUP(DropDownList!$B$24,CntyQryCensus!$A$55:$CW$73,G$1) -> 0 | H45: =VLOOKUP(DropDownList!$B$24,CntyQryCensus!$A$55:$CW$73,H$1) -> 0 | I45: =VLOOKUP(DropDownList!$B$24,CntyQryCensus!$A$55:$CW$73,I$1) -> 0 | J45: =VLOOKUP(DropDownList!$B$24,CntyQryCensus!$A$55:$CW$73,J$1) -> 0 | K45: =VLOOKUP(DropDownList!$B$24,CntyQryCensus!$A$55:$CW$73,K$1) -> 84 | L45: =VLOOKUP(DropDownList!$B$24,CntyQryCensus!$A$55:$CW$73,L$1) -> 0 | M45: =VLOOKUP(DropDownList!$B$24,CntyQryCensus!$A$55:$CW$73,M$1) -> 393 | N45: =VLOOKUP(DropDownList!$B$24,CntyQryCensus!$A$55:$CW$73,N$1) -> 14 | O45: =VLOOKUP(DropDownList!$B$24,CntyQryCensus!$A$55:$CW$73,O$1) -> 84 | P45: =VLOOKUP(DropDownList!$B$24,CntyQryCensus!$A$55:$CW$73,P$1) -> 7 | Q45: =VLOOKUP(DropDownList!$B$24,CntyQryCensus!$A$55:$CW$73,Q$1) -> 26 | R45: =VLOOKUP(DropDownList!$B$24,CntyQryCensus!$A$55:$CW$73,R$1) -> 35 | S45: =VLOOKUP(DropDownList!$B$24,CntyQryCensus!$A$55:$CW$73,S$1) -> 64 | T45: =VLOOKUP(DropDownList!$B$24,CntyQryCensus!$A$55:$CW$73,T$1) -> 103 | U45: =VLOOKUP(DropDownList!$B$24,CntyQryCensus!$A$55:$CW$73,U$1) -> 64 | V45: =VLOOKUP(DropDownList!$B$24,CntyQryCensus!$A$55:$CW$73,V$1) -> 110 | W45: =VLOOKUP(DropDownList!$B$24,CntyQryCensus!$A$55:$CW$73,W$1) -> 82 | X45: =VLOOKUP(DropDownList!$B$24,CntyQryCensus!$A$55:$CW$73,X$1) -> 16 | Y45: =VLOOKUP(DropDownList!$B$24,CntyQryCensus!$A$55:$CW$73,Y$1) -> 35 | Z45: =VLOOKUP(DropDownList!$B$24,CntyQryCensus!$A$55:$CW$73,Z$1) -> 45 | AA45: =VLOOKUP(DropDownList!$B$24,CntyQryCensus!$A$55:$CW$73,AA$1) -> 125 | AB45: =VLOOKUP(DropDownList!$B$24,CntyQryCensus!$A$55:$CW$73,AB$1) -> 105 | AC45: =VLOOKUP(DropDownList!$B$24,CntyQryCensus!$A$55:$CW$73,AC$1) -> 83 | AD45: =VLOOKUP(DropDownList!$B$24,CntyQryCensus!$A$55:$CW$73,AD$1) -> 46 | AE45: =VLOOKUP(DropDownList!$B$24,CntyQryCensus!$A$55:$CW$73,AE$1) -> 17 | AF45: =VLOOKUP(DropDownList!$B$24,CntyQryCensus!$A$55:$CW$73,AF$1) -> 19 | AG45: =VLOOKUP(DropDownList!$B$24,CntyQryCensus!$A$55:$CW$73,AG$1) -> 4.7 | AH45: =VLOOKUP(DropDownList!$B$24,CntyQryCensus!$A$55:$CW$73,AH$1) -> 237 | AI45: =VLOOKUP(DropDownList!$B$24,CntyQryCensus!$A$55:$CW$73,AI$1) -> 40 | AJ45: =VLOOKUP(DropDownList!$B$24,CntyQryCensus!$A$55:$CW$73,AJ$1) -> 78 | AK45: =VLOOKUP(DropDownList!$B$24,CntyQryCensus!$A$55:$CW$73,AK$1) -> 38 | AL45: =VLOOKUP(DropDownList!$B$24,CntyQryCensus!$A$55:$CW$73,AL$1) -> 51 | AM45: =VLOOKUP(DropDownList!$B$24,CntyQryCensus!$A$55:$CW$73,AM$1) -> 12 | AN45: =VLOOKUP(DropDownList!$B$24,CntyQryCensus!$A$55:$CW$73,AN$1) -> 18 | AO45: =VLOOKUP(DropDownList!$B$24,CntyQryCensus!$A$55:$CW$73,AO$1) -> 0 | AP45: =VLOOKUP(DropDownList!$B$24,CntyQryCensus!$A$55:$CW$73,AP$1) -> 55 | AQ45: =VLOOKUP(DropDownList!$B$24,CntyQryCensus!$A$55:$CW$73,AQ$1) -> 2 | AR45: =VLOOKUP(DropDownList!$B$24,CntyQryCensus!$A$55:$CW$73,AR$1) -> 160 | AS45: =VLOOKUP(DropDownList!$B$24,CntyQryCensus!$A$55:$CW$73,AS$1) -> 0 | AT45: =VLOOKUP(DropDownList!$B$24,CntyQryCensus!$A$55:$CW$73,AT$1) -> 20 | AU45: =VLOOKUP(DropDownList!$B$24,CntyQryCensus!$A$55:$CW$73,AU$1) -> 0 | AV45: =VLOOKUP(DropDownList!$B$24,CntyQryCensus!$A$55:$CW$73,AV$1) -> 0 | AW45: =VLOOKUP(DropDownList!$B$24,CntyQryCensus!$A$55:$CW$73,AW$1) -> 0 | AX45: =VLOOKUP(DropDownList!$B$24,CntyQryCensus!$A$55:$CW$73,AX$1) -> 0 | AY45: =VLOOKUP(DropDownList!$B$24,CntyQryCensus!$A$55:$CW$73,AY$1) -> 0 | AZ45: =VLOOKUP(DropDownList!$B$24,CntyQryCensus!$A$55:$CW$73,AZ$1) -> 6 | BA45: =VLOOKUP(DropDownList!$B$24,CntyQryCensus!$A$55:$CW$73,BA$1) -> 237 | BB45: =VLOOKUP(DropDownList!$B$24,CntyQryCensus!$A$55:$CW$73,BB$1) -> 236 | BC45: =VLOOKUP(DropDownList!$B$24,CntyQryCensus!$A$55:$CW$73,BC$1) -> 1 | BD45: =VLOOKUP(DropDownList!$B$24,CntyQryCensus!$A$55:$CW$73,BD$1) -> 0 | BE45: =VLOOKUP(DropDownList!$B$24,CntyQryCensus!$A$55:$CW$73,BE$1) -> 122 | BF45: =VLOOKUP(DropDownList!$B$24,CntyQryCensus!$A$55:$CW$73,BF$1) -> 6 | BG45: =VLOOKUP(DropDownList!$B$24,CntyQryCensus!$A$55:$CW$73,BG$1) -> 68 | BH45: =VLOOKUP(DropDownList!$B$24,CntyQryCensus!$A$55:$CW$73,BH$1) -> 28 | BI45: =VLOOKUP(DropDownList!$B$24,CntyQryCensus!$A$55:$CW$73,BI$1) -> 16 | BJ45: =VLOOKUP(DropDownList!$B$24,CntyQryCensus!$A$55:$CW$73,BJ$1) -> 2 | BK45: =VLOOKUP(DropDownList!$B$24,CntyQryCensus!$A$55:$CW$73,BK$1) -> 2 | BL45: =VLOOKUP(DropDownList!$B$24,CntyQryCensus!$A$55:$CW$73,BL$1) -> 0 | BM45: =VLOOKUP(DropDownList!$B$24,CntyQryCensus!$A$55:$CW$73,BM$1) -> 0 | BN45: =VLOOKUP(DropDownList!$B$24,CntyQryCensus!$A$55:$CW$73,BN$1) -> 85700 | BO45: =VLOOKUP(DropDownList!$B$24,CntyQryCensus!$A$55:$CW$73,BO$1) -> 84 | BP45: =VLOOKUP(DropDownList!$B$24,CntyQryCensus!$A$55:$CW$73,BP$1) -> 3 | BQ45: =VLOOKUP(DropDownList!$B$24,CntyQryCensus!$A$55:$CW$73,BQ$1) -> 13 | BR45: =VLOOKUP(DropDownList!$B$24,CntyQryCensus!$A$55:$CW$73,BR$1) -> 20 | BS45: =VLOOKUP(DropDownList!$B$24,CntyQryCensus!$A$55:$CW$73,BS$1) -> 32 | BT45: =VLOOKUP(DropDownList!$B$24,CntyQryCensus!$A$55:$CW$73,BT$1) -> 10 | BU45: =VLOOKUP(DropDownList!$B$24,CntyQryCensus!$A$55:$CW$73,BU$1) -> 4 | BV45: =VLOOKUP(DropDownList!$B$24,CntyQryCensus!$A$55:$CW$73,BV$1) -> 2 | BW45: =VLOOKUP(DropDownList!$B$24,CntyQryCensus!$A$55:$CW$73,BW$1) -> 746 | BX45: =VLOOKUP(DropDownList!$B$24,CntyQryCensus!$A$55:$CW$73,BX$1) -> 38 | BY45: =VLOOKUP(DropDownList!$B$24,CntyQryCensus!$A$55:$CW$73,BY$1) -> 350 | BZ45: =VLOOKUP(DropDownList!$B$24,CntyQryCensus!$A$55:$CW$73,BZ$1) -> 29 | CA45: =VLOOKUP(DropDownList!$B$24,CntyQryCensus!$A$55:$CW$73,CA$1) -> 37 | CB45: =VLOOKUP(DropDownList!$B$24,CntyQryCensus!$A$55:$CW$73,CB$1) -> 15 | CC45: =VLOOKUP(DropDownList!$B$24,CntyQryCensus!$A$55:$CW$73,CC$1) -> 12 | CD45: =VLOOKUP(DropDownList!$B$24,CntyQryCensus!$A$55:$CW$73,CD$1) -> 6 | CE45: =VLOOKUP(DropDownList!$B$24,CntyQryCensus!$A$55:$CW$73,CE$1) -> 23 | CF45: =VLOOKUP(DropDownList!$B$24,CntyQryCensus!$A$55:$CW$73,CF$1) -> 0 | CG45: =VLOOKUP(DropDownList!$B$24,CntyQryCensus!$A$55:$CW$73,CG$1) -> 50 | CH45: =VLOOKUP(DropDownList!$B$24,CntyQryCensus!$A$55:$CW$73,CH$1) -> 0 | CI45: =VLOOKUP(DropDownList!$B$24,CntyQryCensus!$A$55:$CW$73,CI$1) -> 3 | CJ45: =VLOOKUP(DropDownList!$B$24,CntyQryCensus!$A$55:$CW$73,CJ$1) -> 8 | CK45: =VLOOKUP(DropDownList!$B$24,CntyQryCensus!$A$55:$CW$73,CK$1) -> 25 | CL45: =VLOOKUP(DropDownList!$B$24,CntyQryCensus!$A$55:$CW$73,CL$1) -> 10 | CM45: =VLOOKUP(DropDownList!$B$24,CntyQryCensus!$A$55:$CW$73,CM$1) -> 0 | CN45: =VLOOKUP(DropDownList!$B$24,CntyQryCensus!$A$55:$CW$73,CN$1) -> 0 | CO45: =VLOOKUP(DropDownList!$B$24,CntyQryCensus!$A$55:$CW$73,CO$1) -> 4 | CP45: =VLOOKUP(DropDownList!$B$24,CntyQryCensus!$A$55:$CW$73,CP$1) -> 675 | CQ45: =VLOOKUP(DropDownList!$B$24,CntyQryCensus!$A$55:$CW$73,CQ$1) -> 9 | CR45: =VLOOKUP(DropDownList!$B$24,CntyQryCensus!$A$55:$CW$73,CR$1) -> 5 | CS45: =VLOOKUP(DropDownList!$B$24,CntyQryCensus!$A$55:$CW$73,CS$1) -> 9 | CT45: =VLOOKUP(DropDownList!$B$24,CntyQryCensus!$A$55:$CW$73,CT$1) -> 4 | CU45: =VLOOKUP(DropDownList!$B$24,CntyQryCensus!$A$55:$CW$73,CU$1) -> 2 | CV45: =VLOOKUP(DropDownList!$B$24,CntyQryCensus!$A$55:$CW$73,CV$1) -> 15 | CW45: =VLOOKUP(DropDownList!$B$24,CntyQryCensus!$A$55:$CW$73,CW$1) -> 6
A48: Census 2000 SummaryFile3 Sample Data - SF3TownQry1SocialChar
A49: NAME | B49: LOGRECNO | C49: COUNTY | D49: P01TotalPopulation | E49: P02SampleCountOfPop | F49: P03Pop100pctCount | G49: P05UrbanPopulation | H49: P05RuralPopulation | I49: P06WhiteAlone | J49: P06BlackOrAfAm | K49: P06AmIndAlone | L49: P06AsianAlone | M49: P06HawaiianOrPI | N49: P06OtherRace | O49: P06TwoPlusRaces | P49: P07NotHispanicOrLatino | Q49: P07HispanicOrLatino | R49: P08MalePop | S49: P08FemalePop | T49: P09PopInHouseholds | U49: P09PopInFamHH | V49: P09PopInNonFamHH | W49: P09PopInGroupQtr | X49: P13TotalHH | Y49: P13FamilyHH | Z49: P13FamHHolder15to24yrs | AA49: P13FamHHolder25to34yrs | AB49: P13FamHHolder35to44yrs | AC49: P13FamHHolder45to54yrs | AD49: P13FamHHolder55to64yrs | AE49: P13FamHHolder65to74yrs | AF49: P13FamHHolder75to84yrs | AG49: P13FamHHolder85yrsOver | AH49: P13NonFamilyHH | AI49: P13NonFamHHolder15to24yrs | AJ49: P13NonFamHHolder25to34yrs | AK49: P13NonFamHHolder35to44yrs | AL49: P13NonFamHHolder45to54yrs | AM49: P13NonFamHHolder55to64yrs | AN49: P13NonFamHHolder65to74yrs | AO49: P13NonFamHHolder75to84yrs | AP49: P13NonFamHHolder85yrsOver | AQ49: P18Pop15yrsOver | AR49: P18MaritalStatNeverMarried | AS49: P18MaritalStatNowMarried | AT49: P18MaritalStatSeparated | AU49: P18MaritalStatWidowed | AV49: P18MaritalStatWidowFemale | AW49: P18MaritalStatDivorced | AX49: P18MaritalStatDivorcedFemale | AY49: P21NativeBornPop | AZ49: P21NatPopBornInState | BA49: P21NatPopBornOtherState | BB49: P021005 | BC49: P021006 | BD49: P021007 | BE49: P021008 | BF49: P21NatPopBornOutUS | BG49: P21ForeignBornPop | BH49: P021014 | BI49: P021015 | BJ49: P24Pop5YrsPlus | BK49: P24ResSameHouseIn95 | BL49: P24ResDiffHouseIn95 | BM49: P24ResDiffHouseInUSIn95 | BN49: P24ResDiffHouseSameCountyIn95 | BO49: P24ResDiffHouseDiffCountyIn95 | BP49: P24ResDiffHouseDiffCntySamStIn95 | BQ49: P24ResDiffHouseDiffCntyDifStIn95 | BR49: P24ResDiffHouseDiffCntyNEStIn95 | BS49: P24ResDiffHouseDiffCntyMWStIn95 | BT49: P24ResDiffHouseDiffCntySoStIn95 | BU49: P24ResDiffHouseDiffCntyWstStIn95 | BV49: P24ResDiffInPR | BW49: P24ResDiffElsewhereIn95 | BX49: P26Workers16yrsOver | BY49: P26WorkedInState | BZ49: P26WorkedInCnty | CA49: P26WorkedOutsideCnty | CB49: P26WorkedOutsideState | CC49: P30Workers16Over | CD49: P30TranspToWrkCar | CE49: P30TranspToWrkPublic | CF49: P30TranspToWrkOther | CG49: P30WrkdAtHome | CH49: P31WrkrsNotWrkAtHom | CI49: P31TravTim<5min | CJ49: P31TravTim5to9Min | CK49: P31TravTim10to14Min | CL49: P31TravTim15to19Min | CM49: P31TravTim20to24Min | CN49: P31TravTim25to29Min | CO49: P31TravTim30to34Min | CP49: P31TravTim35to39Min | CQ49: P31TravTim40to44Min | CR49: P31TravTim45to59Min | CS49: P31TravTim60to89Min | CT49: P31TravTim90MinMore | CU49: P31WorkAtHome | CV49: P36SchEnrlPop3yrOver | CW49: P36NurserSchEnrl | CX49: P36KinderSchEnrl | CY49: P36ElemSchEnrl | CZ49: P36HighSchEnrl | DA49: P36CollGradSchEnrl | DB49: P37Pop25yrsOver | DC49: P37EduAtain<9grd | DD49: P37EduAtainHSnoDip | DE49: P37EduAtainHSgrad | DF49: P37EduAtainCollNoDeg | DG49: P37EduAtainAssocDeg | DH49: P37EduAtainBachDeg | DI49: P37EduAtainGradProfDeg | DJ49: P42NIPop5to15 | DK49: P42NIPop5to15wDisabl | DL49: P42NIPop16to20 | DM49: P42NIPop16to20wDisab | DN49: P42NIPop16to20wDisEmp | DO49: P42NIPop16to21NoDis | DP49: P42NIPop16to21NoDisEmpl | DQ49: P42NIPop21to64 | DR49: P42NIPop21to64wDis | DS49: P42NIPop21to64wDisEmp | DT49: P42NIPop21to64NoDis | DU49: P42NIPop21to64NoDisEmp | DV49: P42NIPop65to74 | DW49: P42NIPop65to74wDis | DX49: P42NIPop75Over | DY49: P42NIPop75OverwDis | DZ49: P43Pop16YrsOver | EA49: P43Pop16OvrInLaborForce | EB49: P43Pop16OvrCivlLabFrc | EC49: P43Pop16OvrCivlLbrFrcEmp | ED49: P48Families | EE49: P48MarriedFam | EF49: P48MarrFamNoWorkers | EG49: P48MarrFam1Worker | EH49: P48MarrFam2Worker | EI49: P48MarrFamHusbWifeWorked | EJ49: P48MarrFamOther | EK49: P48MarrFam3PlusWorker | EL49: P48MarrFam3WorkHsbWif | EM49: P48MarrFam3PlsWrkOther | EN49: P48OtherFam | EO49: P48MaleHHNoWif | EP49: P48MaleHHNoWifNoWorker | EQ49: P48MaleHHNoWif1Worker | ER49: P48MaleHHNoWif2Worker | ES49: P48MaleHHNoWif3PlusWorker | ET49: P48FemaleHHNoHsb | EU49: P48FemaleHHNoHsbNoWorker | EV49: P48FemaleHHNoHsb1Worker | EW49: P48FemaleHHNoHsb2Worker | EX49: P48FemaleHHNoHsb3Worker | EY49: P49EmpCivPop16YrOver | EZ49: P49IndustAgricult | FA49: P49IndustConst | FB49: P49IndustMnftg | FC49: P49IndustWhlslTrd | FD49: P49IndustRtlTrd | FE49: P49IndustTrspWrhsUtlt | FF49: P49IndustInfrm | FG49: P49IndustFinInsRE | FH49: P49IndustPrfsScntfMngmt | FI49: P49IndustEduHlthSocSrv | FJ49: P49IndustArtsEntRec | FK49: P49IndustOthrSrvc | FL49: P49IndustPubAdm | FM49: P50OccupMngmtProfs | FN49: P50OccupService | FO49: P50OccupSalesOff | FP49: P50OccupFarmFishForest | FQ49: P50OccupConstExtrctMaint | FR49: P50OccupPrdctTrnspMatMv
A50: =VLOOKUP(DropDownList!$B$24,CntyQryCensus!$A$83:$FR$101,A$1) -> Albany | B50: =VLOOKUP(DropDownList!$B$24,CntyQryCensus!$A$83:$FR$101,B$1) -> 0000308 | C50: =VLOOKUP(DropDownList!$B$24,CntyQryCensus!$A$83:$FR$101,C$1) -> 00420 | D50: =VLOOKUP(DropDownList!$B$24,CntyQryCensus!$A$83:$FR$101,D$1) -> 609 | E50: =VLOOKUP(DropDownList!$B$24,CntyQryCensus!$A$83:$FR$101,E$1) -> 268 | F50: =VLOOKUP(DropDownList!$B$24,CntyQryCensus!$A$83:$FR$101,F$1) -> 654 | G50: =VLOOKUP(DropDownList!$B$24,CntyQryCensus!$A$83:$FR$101,G$1) -> 0 | H50: =VLOOKUP(DropDownList!$B$24,CntyQryCensus!$A$83:$FR$101,H$1) -> 609 | I50: =VLOOKUP(DropDownList!$B$24,CntyQryCensus!$A$83:$FR$101,I$1) -> 607 | J50: =VLOOKUP(DropDownList!$B$24,CntyQryCensus!$A$83:$FR$101,J$1) -> 0 | K50: =VLOOKUP(DropDownList!$B$24,CntyQryCensus!$A$83:$FR$101,K$1) -> 2 | L50: =VLOOKUP(DropDownList!$B$24,CntyQryCensus!$A$83:$FR$101,L$1) -> 0 | M50: =VLOOKUP(DropDownList!$B$24,CntyQryCensus!$A$83:$FR$101,M$1) -> 0 | N50: =VLOOKUP(DropDownList!$B$24,CntyQryCensus!$A$83:$FR$101,N$1) -> 0 | O50: =VLOOKUP(DropDownList!$B$24,CntyQryCensus!$A$83:$FR$101,O$1) -> 0 | P50: =VLOOKUP(DropDownList!$B$24,CntyQryCensus!$A$83:$FR$101,P$1) -> 602 | Q50: =VLOOKUP(DropDownList!$B$24,CntyQryCensus!$A$83:$FR$101,Q$1) -> 7 | R50: =VLOOKUP(DropDownList!$B$24,CntyQryCensus!$A$83:$FR$101,R$1) -> 307 | S50: =VLOOKUP(DropDownList!$B$24,CntyQryCensus!$A$83:$FR$101,S$1) -> 302 | T50: =VLOOKUP(DropDownList!$B$24,CntyQryCensus!$A$83:$FR$101,T$1) -> 600 | U50: =VLOOKUP(DropDownList!$B$24,CntyQryCensus!$A$83:$FR$101,U$1) -> 499 | V50: =VLOOKUP(DropDownList!$B$24,CntyQryCensus!$A$83:$FR$101,V$1) -> 101 | W50: =VLOOKUP(DropDownList!$B$24,CntyQryCensus!$A$83:$FR$101,W$1) -> 9 | X50: =VLOOKUP(DropDownList!$B$24,CntyQryCensus!$A$83:$FR$101,X$1) -> 249 | Y50: =VLOOKUP(DropDownList!$B$24,CntyQryCensus!$A$83:$FR$101,Y$1) -> 167 | Z50: =VLOOKUP(DropDownList!$B$24,CntyQryCensus!$A$83:$FR$101,Z$1) -> 4 | AA50: =VLOOKUP(DropDownList!$B$24,CntyQryCensus!$A$83:$FR$101,AA$1) -> 47 | AB50: =VLOOKUP(DropDownList!$B$24,CntyQryCensus!$A$83:$FR$101,AB$1) -> 55 | AC50: =VLOOKUP(DropDownList!$B$24,CntyQryCensus!$A$83:$FR$101,AC$1) -> 23 | AD50: =VLOOKUP(DropDownList!$B$24,CntyQryCensus!$A$83:$FR$101,AD$1) -> 25 | AE50: =VLOOKUP(DropDownList!$B$24,CntyQryCensus!$A$83:$FR$101,AE$1) -> 8 | AF50: =VLOOKUP(DropDownList!$B$24,CntyQryCensus!$A$83:$FR$101,AF$1) -> 5 | AG50: =VLOOKUP(DropDownList!$B$24,CntyQryCensus!$A$83:$FR$101,AG$1) -> 0 | AH50: =VLOOKUP(DropDownList!$B$24,CntyQryCensus!$A$83:$FR$101,AH$1) -> 82 | AI50: =VLOOKUP(DropDownList!$B$24,CntyQryCensus!$A$83:$FR$101,AI$1) -> 3 | AJ50: =VLOOKUP(DropDownList!$B$24,CntyQryCensus!$A$83:$FR$101,AJ$1) -> 16 | AK50: =VLOOKUP(DropDownList!$B$24,CntyQryCensus!$A$83:$FR$101,AK$1) -> 12 | AL50: =VLOOKUP(DropDownList!$B$24,CntyQryCensus!$A$83:$FR$101,AL$1) -> 18 | AM50: =VLOOKUP(DropDownList!$B$24,CntyQryCensus!$A$83:$FR$101,AM$1) -> 11 | AN50: =VLOOKUP(DropDownList!$B$24,CntyQryCensus!$A$83:$FR$101,AN$1) -> 13 | AO50: =VLOOKUP(DropDownList!$B$24,CntyQryCensus!$A$83:$FR$101,AO$1) -> 5 | AP50: =VLOOKUP(DropDownList!$B$24,CntyQryCensus!$A$83:$FR$101,AP$1) -> 4 | AQ50: =VLOOKUP(DropDownList!$B$24,CntyQryCensus!$A$83:$FR$101,AQ$1) -> 473 | AR50: =VLOOKUP(DropDownList!$B$24,CntyQryCensus!$A$83:$FR$101,AR$1) -> 102 | AS50: =VLOOKUP(DropDownList!$B$24,CntyQryCensus!$A$83:$FR$101,AS$1) -> 266 | AT50: =VLOOKUP(DropDownList!$B$24,CntyQryCensus!$A$83:$FR$101,AT$1) -> 6 | AU50: =VLOOKUP(DropDownList!$B$24,CntyQryCensus!$A$83:$FR$101,AU$1) -> 34 | AV50: =VLOOKUP(DropDownList!$B$24,CntyQryCensus!$A$83:$FR$101,AV$1) -> 22 | AW50: =VLOOKUP(DropDownList!$B$24,CntyQryCensus!$A$83:$FR$101,AW$1) -> 65 | AX50: =VLOOKUP(DropDownList!$B$24,CntyQryCensus!$A$83:$FR$101,AX$1) -> 24 | AY50: =VLOOKUP(DropDownList!$B$24,CntyQryCensus!$A$83:$FR$101,AY$1) -> 605 | AZ50: =VLOOKUP(DropDownList!$B$24,CntyQryCensus!$A$83:$FR$101,AZ$1) -> 298 | BA50: =VLOOKUP(DropDownList!$B$24,CntyQryCensus!$A$83:$FR$101,BA$1) -> 307 | BB50: =VLOOKUP(DropDownList!$B$24,CntyQryCensus!$A$83:$FR$101,BB$1) -> 272 | BC50: =VLOOKUP(DropDownList!$B$24,CntyQryCensus!$A$83:$FR$101,BC$1) -> 11 | BD50: =VLOOKUP(DropDownList!$B$24,CntyQryCensus!$A$83:$FR$101,BD$1) -> 11 | BE50: =VLOOKUP(DropDownList!$B$24,CntyQryCensus!$A$83:$FR$101,BE$1) -> 13 | BF50: =VLOOKUP(DropDownList!$B$24,CntyQryCensus!$A$83:$FR$101,BF$1) -> 0 | BG50: =VLOOKUP(DropDownList!$B$24,CntyQryCensus!$A$83:$FR$101,BG$1) -> 4 | BH50: =VLOOKUP(DropDownList!$B$24,CntyQryCensus!$A$83:$FR$101,BH$1) -> 4 | BI50: =VLOOKUP(DropDownList!$B$24,CntyQryCensus!$A$83:$FR$101,BI$1) -> 0 | BJ50: =VLOOKUP(DropDownList!$B$24,CntyQryCensus!$A$83:$FR$101,BJ$1) -> 555 | BK50: =VLOOKUP(DropDownList!$B$24,CntyQryCensus!$A$83:$FR$101,BK$1) -> 336 | BL50: =VLOOKUP(DropDownList!$B$24,CntyQryCensus!$A$83:$FR$101,BL$1) -> 219 | BM50: =VLOOKUP(DropDownList!$B$24,CntyQryCensus!$A$83:$FR$101,BM$1) -> 215 | BN50: =VLOOKUP(DropDownList!$B$24,CntyQryCensus!$A$83:$FR$101,BN$1) -> 128 | BO50: =VLOOKUP(DropDownList!$B$24,CntyQryCensus!$A$83:$FR$101,BO$1) -> 87 | BP50: =VLOOKUP(DropDownList!$B$24,CntyQryCensus!$A$83:$FR$101,BP$1) -> 13 | BQ50: =VLOOKUP(DropDownList!$B$24,CntyQryCensus!$A$83:$FR$101,BQ$1) -> 74 | BR50: =VLOOKUP(DropDownList!$B$24,CntyQryCensus!$A$83:$FR$101,BR$1) -> 60 | BS50: =VLOOKUP(DropDownList!$B$24,CntyQryCensus!$A$83:$FR$101,BS$1) -> 0 | BT50: =VLOOKUP(DropDownList!$B$24,CntyQryCensus!$A$83:$FR$101,BT$1) -> 14 | BU50: =VLOOKUP(DropDownList!$B$24,CntyQryCensus!$A$83:$FR$101,BU$1) -> 0 | BV50: =VLOOKUP(DropDownList!$B$24,CntyQryCensus!$A$83:$FR$101,BV$1) -> 0 | BW50: =VLOOKUP(DropDownList!$B$24,CntyQryCensus!$A$83:$FR$101,BW$1) -> 4 | BX50: =VLOOKUP(DropDownList!$B$24,CntyQryCensus!$A$83:$FR$101,BX$1) -> 298 | BY50: =VLOOKUP(DropDownList!$B$24,CntyQryCensus!$A$83:$FR$101,BY$1) -> 275 | BZ50: =VLOOKUP(DropDownList!$B$24,CntyQryCensus!$A$83:$FR$101,BZ$1) -> 267 | CA50: =VLOOKUP(DropDownList!$B$24,CntyQryCensus!$A$83:$FR$101,CA$1) -> 8 | CB50: =VLOOKUP(DropDownList!$B$24,CntyQryCensus!$A$83:$FR$101,CB$1) -> 23 | CC50: =VLOOKUP(DropDownList!$B$24,CntyQryCensus!$A$83:$FR$101,CC$1) -> 298 | CD50: =VLOOKUP(DropDownList!$B$24,CntyQryCensus!$A$83:$FR$101,CD$1) -> 267 | CE50: =VLOOKUP(DropDownList!$B$24,CntyQryCensus!$A$83:$FR$101,CE$1) -> 0 | CF50: =VLOOKUP(DropDownList!$B$24,CntyQryCensus!$A$83:$FR$101,CF$1) -> 0 | CG50: =VLOOKUP(DropDownList!$B$24,CntyQryCensus!$A$83:$FR$101,CG$1) -> 21 | CH50: =VLOOKUP(DropDownList!$B$24,CntyQryCensus!$A$83:$FR$101,CH$1) -> 277 | CI50: =VLOOKUP(DropDownList!$B$24,CntyQryCensus!$A$83:$FR$101,CI$1) -> 18 | CJ50: =VLOOKUP(DropDownList!$B$24,CntyQryCensus!$A$83:$FR$101,CJ$1) -> 26 | CK50: =VLOOKUP(DropDownList!$B$24,CntyQryCensus!$A$83:$FR$101,CK$1) -> 86 | CL50: =VLOOKUP(DropDownList!$B$24,CntyQryCensus!$A$83:$FR$101,CL$1) -> 61 | CM50: =VLOOKUP(DropDownList!$B$24,CntyQryCensus!$A$83:$FR$101,CM$1) -> 16 | CN50: =VLOOKUP(DropDownList!$B$24,CntyQryCensus!$A$83:$FR$101,CN$1) -> 5 | CO50: =VLOOKUP(DropDownList!$B$24,CntyQryCensus!$A$83:$FR$101,CO$1) -> 27 | CP50: =VLOOKUP(DropDownList!$B$24,CntyQryCensus!$A$83:$FR$101,CP$1) -> 2 | CQ50: =VLOOKUP(DropDownList!$B$24,CntyQryCensus!$A$83:$FR$101,CQ$1) -> 3 | CR50: =VLOOKUP(DropDownList!$B$24,CntyQryCensus!$A$83:$FR$101,CR$1) -> 21 | CS50: =VLOOKUP(DropDownList!$B$24,CntyQryCensus!$A$83:$FR$101,CS$1) -> 5 | CT50: =VLOOKUP(DropDownList!$B$24,CntyQryCensus!$A$83:$FR$101,CT$1) -> 7 | CU50: =VLOOKUP(DropDownList!$B$24,CntyQryCensus!$A$83:$FR$101,CU$1) -> 21 | CV50: =VLOOKUP(DropDownList!$B$24,CntyQryCensus!$A$83:$FR$101,CV$1) -> 587 | CW50: =VLOOKUP(DropDownList!$B$24,CntyQryCensus!$A$83:$FR$101,CW$1) -> 12 | CX50: =VLOOKUP(DropDownList!$B$24,CntyQryCensus!$A$83:$FR$101,CX$1) -> 8 | CY50: =VLOOKUP(DropDownList!$B$24,CntyQryCensus!$A$83:$FR$101,CY$1) -> 59 | CZ50: =VLOOKUP(DropDownList!$B$24,CntyQryCensus!$A$83:$FR$101,CZ$1) -> 38 | DA50: =VLOOKUP(DropDownList!$B$24,CntyQryCensus!$A$83:$FR$101,DA$1) -> 15 | DB50: =VLOOKUP(DropDownList!$B$24,CntyQryCensus!$A$83:$FR$101,DB$1) -> 409 | DC50: =VLOOKUP(DropDownList!$B$24,CntyQryCensus!$A$83:$FR$101,DC$1) -> 18 | DD50: =VLOOKUP(DropDownList!$B$24,CntyQryCensus!$A$83:$FR$101,DD$1) -> 62 | DE50: =VLOOKUP(DropDownList!$B$24,CntyQryCensus!$A$83:$FR$101,DE$1) -> 165 | DF50: =VLOOKUP(DropDownList!$B$24,CntyQryCensus!$A$83:$FR$101,DF$1) -> 69 | DG50: =VLOOKUP(DropDownList!$B$24,CntyQryCensus!$A$83:$FR$101,DG$1) -> 20 | DH50: =VLOOKUP(DropDownList!$B$24,CntyQryCensus!$A$83:$FR$101,DH$1) -> 54 | DI50: =VLOOKUP(DropDownList!$B$24,CntyQryCensus!$A$83:$FR$101,DI$1) -> 21 | DJ50: =VLOOKUP(DropDownList!$B$24,CntyQryCensus!$A$83:$FR$101,DJ$1) -> 86 | DK50: =VLOOKUP(DropDownList!$B$24,CntyQryCensus!$A$83:$FR$101,DK$1) -> 3 | DL50: =VLOOKUP(DropDownList!$B$24,CntyQryCensus!$A$83:$FR$101,DL$1) -> 37 | DM50: =VLOOKUP(DropDownList!$B$24,CntyQryCensus!$A$83:$FR$101,DM$1) -> 13 | DN50: =VLOOKUP(DropDownList!$B$24,CntyQryCensus!$A$83:$FR$101,DN$1) -> 12 | DO50: =VLOOKUP(DropDownList!$B$24,CntyQryCensus!$A$83:$FR$101,DO$1) -> 24 | DP50: =VLOOKUP(DropDownList!$B$24,CntyQryCensus!$A$83:$FR$101,DP$1) -> 9 | DQ50: =VLOOKUP(DropDownList!$B$24,CntyQryCensus!$A$83:$FR$101,DQ$1) -> 386 | DR50: =VLOOKUP(DropDownList!$B$24,CntyQryCensus!$A$83:$FR$101,DR$1) -> 135 | DS50: =VLOOKUP(DropDownList!$B$24,CntyQryCensus!$A$83:$FR$101,DS$1) -> 95 | DT50: =VLOOKUP(DropDownList!$B$24,CntyQryCensus!$A$83:$FR$101,DT$1) -> 251 | DU50: =VLOOKUP(DropDownList!$B$24,CntyQryCensus!$A$83:$FR$101,DU$1) -> 188 | DV50: =VLOOKUP(DropDownList!$B$24,CntyQryCensus!$A$83:$FR$101,DV$1) -> 32 | DW50: =VLOOKUP(DropDownList!$B$24,CntyQryCensus!$A$83:$FR$101,DW$1) -> 12 | DX50: =VLOOKUP(DropDownList!$B$24,CntyQryCensus!$A$83:$FR$101,DX$1) -> 14 | DY50: =VLOOKUP(DropDownList!$B$24,CntyQryCensus!$A$83:$FR$101,DY$1) -> 9 | DZ50: =VLOOKUP(DropDownList!$B$24,CntyQryCensus!$A$83:$FR$101,DZ$1) -> 469 | EA50: =VLOOKUP(DropDownList!$B$24,CntyQryCensus!$A$83:$FR$101,EA$1) -> 325 | EB50: =VLOOKUP(DropDownList!$B$24,CntyQryCensus!$A$83:$FR$101,EB$1) -> 325 | EC50: =VLOOKUP(DropDownList!$B$24,CntyQryCensus!$A$83:$FR$101,EC$1) -> 309 | ED50: =VLOOKUP(DropDownList!$B$24,CntyQryCensus!$A$83:$FR$101,ED$1) -> 167 | EE50: =VLOOKUP(DropDownList!$B$24,CntyQryCensus!$A$83:$FR$101,EE$1) -> 128 | EF50: =VLOOKUP(DropDownList!$B$24,CntyQryCensus!$A$83:$FR$101,EF$1) -> 11 | EG50: =VLOOKUP(DropDownList!$B$24,CntyQryCensus!$A$83:$FR$101,EG$1) -> 29 | EH50: =VLOOKUP(DropDownList!$B$24,CntyQryCensus!$A$83:$FR$101,EH$1) -> 72 | EI50: =VLOOKUP(DropDownList!$B$24,CntyQryCensus!$A$83:$FR$101,EI$1) -> 68 | EJ50: =VLOOKUP(DropDownList!$B$24,CntyQryCensus!$A$83:$FR$101,EJ$1) -> 4 | EK50: =VLOOKUP(DropDownList!$B$24,CntyQryCensus!$A$83:$FR$101,EK$1) -> 16 | EL50: =VLOOKUP(DropDownList!$B$24,CntyQryCensus!$A$83:$FR$101,EL$1) -> 16 | EM50: =VLOOKUP(DropDownList!$B$24,CntyQryCensus!$A$83:$FR$101,EM$1) -> 0 | EN50: =VLOOKUP(DropDownList!$B$24,CntyQryCensus!$A$83:$FR$101,EN$1) -> 39 | EO50: =VLOOKUP(DropDownList!$B$24,CntyQryCensus!$A$83:$FR$101,EO$1) -> 17 | EP50: =VLOOKUP(DropDownList!$B$24,CntyQryCensus!$A$83:$FR$101,EP$1) -> 2 | EQ50: =VLOOKUP(DropDownList!$B$24,CntyQryCensus!$A$83:$FR$101,EQ$1) -> 9 | ER50: =VLOOKUP(DropDownList!$B$24,CntyQryCensus!$A$83:$FR$101,ER$1) -> 6 | ES50: =VLOOKUP(DropDownList!$B$24,CntyQryCensus!$A$83:$FR$101,ES$1) -> 0 | ET50: =VLOOKUP(DropDownList!$B$24,CntyQryCensus!$A$83:$FR$101,ET$1) -> 22 | EU50: =VLOOKUP(DropDownList!$B$24,CntyQryCensus!$A$83:$FR$101,EU$1) -> 9 | EV50: =VLOOKUP(DropDownList!$B$24,CntyQryCensus!$A$83:$FR$101,EV$1) -> 13 | EW50: =VLOOKUP(DropDownList!$B$24,CntyQryCensus!$A$83:$FR$101,EW$1) -> 0 | EX50: =VLOOKUP(DropDownList!$B$24,CntyQryCensus!$A$83:$FR$101,EX$1) -> 0 | EY50: =VLOOKUP(DropDownList!$B$24,CntyQryCensus!$A$83:$FR$101,EY$1) -> 309 | EZ50: =VLOOKUP(DropDownList!$B$24,CntyQryCensus!$A$83:$FR$101,EZ$1) -> 2 | FA50: =VLOOKUP(DropDownList!$B$24,CntyQryCensus!$A$83:$FR$101,FA$1) -> 64 | FB50: =VLOOKUP(DropDownList!$B$24,CntyQryCensus!$A$83:$FR$101,FB$1) -> 30 | FC50: =VLOOKUP(DropDownList!$B$24,CntyQryCensus!$A$83:$FR$101,FC$1) -> 3 | FD50: =VLOOKUP(DropDownList!$B$24,CntyQryCensus!$A$83:$FR$101,FD$1) -> 42 | FE50: =VLOOKUP(DropDownList!$B$24,CntyQryCensus!$A$83:$FR$101,FE$1) -> 12 | FF50: =VLOOKUP(DropDownList!$B$24,CntyQryCensus!$A$83:$FR$101,FF$1) -> 5 | FG50: =VLOOKUP(DropDownList!$B$24,CntyQryCensus!$A$83:$FR$101,FG$1) -> 4 | FH50: =VLOOKUP(DropDownList!$B$24,CntyQryCensus!$A$83:$FR$101,FH$1) -> 26 | FI50: =VLOOKUP(DropDownList!$B$24,CntyQryCensus!$A$83:$FR$101,FI$1) -> 47 | FJ50: =VLOOKUP(DropDownList!$B$24,CntyQryCensus!$A$83:$FR$101,FJ$1) -> 40 | FK50: =VLOOKUP(DropDownList!$B$24,CntyQryCensus!$A$83:$FR$101,FK$1) -> 23 | FL50: =VLOOKUP(DropDownList!$B$24,CntyQryCensus!$A$83:$FR$101,FL$1) -> 11 | FM50: =VLOOKUP(DropDownList!$B$24,CntyQryCensus!$A$83:$FR$101,FM$1) -> 82 | FN50: =VLOOKUP(DropDownList!$B$24,CntyQryCensus!$A$83:$FR$101,FN$1) -> 49 | FO50: =VLOOKUP(DropDownList!$B$24,CntyQryCensus!$A$83:$FR$101,FO$1) -> 67 | FP50: =VLOOKUP(DropDownList!$B$24,CntyQryCensus!$A$83:$FR$101,FP$1) -> 2 | FQ50: =VLOOKUP(DropDownList!$B$24,CntyQryCensus!$A$83:$FR$101,FQ$1) -> 61 | FR50: =VLOOKUP(DropDownList!$B$24,CntyQryCensus!$A$83:$FR$101,FR$1) -> 48
A53: Census 2000 SummaryFile3 Sample Data - SF3TownQry2aIncomeChar
A54: NAME | B54: LOGRECNO | C54: COUNTY | D54: TotalPop | E54: P52Households1 | F54: P52HHInc<10K | G54: P52HHInc10to15K | H54: P52HHInc15to20K | I54: P52HHInc20to25K | J54: P52HHInc25to30K | K54: P52HHInc30to35K | L54: P52HHInc35to40K | M54: P52HHInc40to45K | N54: P52HHInc45to50K | O54: P52HHInc50to60K | P54: P52HHInc60to75K | Q54: P52HHInc75to100K | R54: P52HHInc100to125K | S54: P52HHInc125to150K | T54: P52HHInc150to200K | U54: P52HHInc>200K | V54: P53MedianHHInc | W54: P54AggregHHInc | X54: P55Households2 | Y54: P55HHUnder25yrs | Z54: P55HH<25HHInc<10K | AA54: P55HH<25HHInc10to15K | AB54: P55HH<25HHInc15to20K | AC54: P55HH<25HHInc20to25K | AD54: P55HH<25HHInc25to30K | AE54: P55HH<25HHInc30to35K | AF54: P55HH<25HHInc35to40K | AG54: P55HH<25HHInc40to45K | AH54: P55HH<25HHInc45to50K | AI54: P55HH<25HHInc50to60K | AJ54: P55HH<25HHInc60to75K | AK54: P55HH<25HHInc75to100K | AL54: P55HH<25HHInc100to125K | AM54: P55HH<25HHInc125to150K | AN54: P55HH<25HHInc150to200K | AO54: P55HH<25HHInc>200K | AP54: P55HH25to34yrs | AQ54: P55HH25to34HHInc<10K | AR54: P55HH25to34HHInc10to15K | AS54: P55HH25to34HHInc15to20K | AT54: P55HH25to34HHInc20to25K | AU54: P55HH25to34HHInc25to30K | AV54: P55HH25to34HHInc30to35K | AW54: P55HH25to34HHInc35to40K | AX54: P55HH25to34HHInc40to45K | AY54: P55HH25to34HHInc45to50K | AZ54: P55HH25to34HHInc50to60K | BA54: P55HH25to34HHInc60to75K | BB54: P55HH25to34HHInc75to100K | BC54: P55HH25to34HHInc100to125K | BD54: P55HH25to34HHInc125to150K | BE54: P55HH25to34HHInc150to200K | BF54: P55HH25to34HHInc>200K | BG54: P55HH35to44yrs | BH54: P55HH35to44HHInc<10K | BI54: P55HH35to44HHInc10to15K | BJ54: P55HH35to44HHInc15to20K | BK54: P55HH35to44HHInc20to25K | BL54: P55HH35to44HHInc25to30K | BM54: P55HH35to44HHInc30to35K | BN54: P55HH35to44HHInc35to40K | BO54: P55HH35to44HHInc40to45K | BP54: P55HH35to44HHInc45to50K | BQ54: P55HH35to44HHInc50to60K | BR54: P55HH35to44HHInc60to75K | BS54: P55HH35to44HHInc75to100K | BT54: P55HH35to44HHInc100to125K | BU54: P55HH35to44HHInc125to150K | BV54: P55HH35to44HHInc150to200K | BW54: P55HH35to44HHInc>200K | BX54: P55HH45to54yrs | BY54: P55HH45to55HHInc<10K | BZ54: P55HH45to55HHInc10to15K | CA54: P55HH45to55HHInc15to20K | CB54: P55HH45to55HHInc20to25K | CC54: P55HH45to55HHInc25to30K | CD54: P55HH45to55HHInc30to35K | CE54: P55HH45to55HHInc35to40K | CF54: P55HH45to55HHInc40to45K | CG54: P55HH45to55HHInc45to50K | CH54: P55HH45to55HHInc50to60K | CI54: P55HH45to55HHInc60to75K | CJ54: P55HH45to55HHInc75to100K | CK54: P55HH45to55HHInc100to125K | CL54: P55HH45to55HHInc125to150K | CM54: P55HH45to55HHInc150to200K | CN54: P55HH45to55HHInc>200K | CO54: P55HH55to64yrs | CP54: P55HH55to64HHInc<10K | CQ54: P55HH55to64HHInc10to15K | CR54: P55HH55to64HHInc15to20K | CS54: P55HH55to64HHInc20to25K | CT54: P55HH55to64HHInc25to30K | CU54: P55HH55to64HHInc30to35K | CV54: P55HH55to64HHInc35to40K | CW54: P55HH55to64HHInc40to45K | CX54: P55HH55to64HHInc45to50K | CY54: P55HH55to64HHInc50to60K | CZ54: P55HH55to64HHInc60to75K | DA54: P55HH55to64HHInc75to100K | DB54: P55HH55to64HHInc100to125K | DC54: P55HH55to64HHInc125to150K | DD54: P55HH55to64HHInc150to200K | DE54: P55HH55to64HHInc>200K | DF54: P55HH65to74yrs | DG54: P55HH65to74HHInc<10K | DH54: P55HH65to74HHInc10to15K | DI54: P55HH65to74HHInc15to20K | DJ54: P55HH65to74HHInc20to25K | DK54: P55HH65to74HHInc25to30K | DL54: P55HH65to74HHInc30to35K | DM54: P55HH65to74HHInc35to40K | DN54: P55HH65to74HHInc40to45K | DO54: P55HH65to74HHInc45to50K | DP54: P55HH65to74HHInc50to60K | DQ54: P55HH65to74HHInc60to75K | DR54: P55HH65to74HHInc75to100K | DS54: P55HH65to74HHInc100to125K | DT54: P55HH65to74HHInc125to150K | DU54: P55HH65to74HHInc150to200K | DV54: P55HH65to74HHInc>200K | DW54: P55HH>75yrs | DX54: P55HH>75HHInc<10K | DY54: P55HH>75HHInc10to15K | DZ54: P55HH>75HHInc15to20K | EA54: P55HH>75HHInc20to25K | EB54: P55HH>75HHInc25to30K | EC54: P55HH>75HHInc30to35K | ED54: P55HH>75HHInc35to40K | EE54: P55HH>75HHInc40to45K | EF54: P55HH>75HHInc45to50K | EG54: P55HH>75HHInc50to60K | EH54: P55HH>75HHInc60to75K | EI54: P55HH>75HHInc75to100K | EJ54: P55HH>75HHInc100to125K | EK54: P55HH>75HHInc125to150K | EL54: P55HH>75HHInc150to200K | EM54: P55HH>75HHInc>200K | EN54: P56MedHHInc | EO54: P56MedHHIncHH<25y | EP54: P56MedHHIncHH25to34y | EQ54: P56MedHHIncHH35to44y | ER54: P56MedHHIncHH45to54y | ES54: P56MedHHIncHH55to64y | ET54: P56MedHHIncHH65to74y | EU54: P56MedHHIncHH>75y | EV54: P58Households3 | EW54: P58HHwithEarnings | EX54: P58HHNoEarnings | EY54: P59HHwWageSalInc | EZ54: P59HHNoWageSalInc | FA54: P60HHwSelfEmpInc | FB54: P60HHNoSelfEmpInc | FC54: P61HHwIndDivInc | FD54: P61HHNoIndDivInc | FE54: P62HHwSocSecInc | FF54: P62HHNoSocSecInc | FG54: P63HHwSSI | FH54: P63HHNoSSI | FI54: P64HHwPubAssInc | FJ54: P64HHNoPubAssInc | FK54: P65HHwRetInc | FL54: P65HHNoRetInc | FM54: P66HHwOtherTypInc | FN54: P66HHNoOtherTypInc | FO54: P67AggregEarnings | FP54: P68AggregWageSalInc | FQ54: P69AggregSelfEmpInc | FR54: P70AggregIntDivInc | FS54: P71AggregSocSecInc | FT54: P72AggregSSIInc | FU54: P73AggregPublicAssInc | FV54: P74AggregRetireInc | FW54: P76Families1 | FX54: P76FamInc<10K | FY54: P76FamInc10to15K | FZ54: P76FamInc15to20K | GA54: P76FamInc20to25K | GB54: P76FamInc25to30K | GC54: P76FamInc30to35K | GD54: P76FamInc35to40K | GE54: P76FamInc40to45K | GF54: P76FamInc45to50K | GG54: P76FamInc50to60K | GH54: P76FamInc60to75K | GI54: P76FamInc75to100K | GJ54: P76FamInc100to125K | GK54: P76FamInc125to150K | GL54: P76FamInc150to200K | GM54: P76FamInc>200K | GN54: P77MedFamInc | GO54: P78AggregFamInc | GP54: P79NonFamHH | GQ54: P79NonFamHHwInc<10K | GR54: P79NonFamHHwInc10to15K | GS54: P79NonFamHHwInc15to20K | GT54: P79NonFamHHwInc20to25K | GU54: P79NonFamHHwInc25to30K | GV54: P79NonFamHHwInc30to35K | GW54: P79NonFamHHwInc35to40K | GX54: P79NonFamHHwInc40to45K | GY54: P79NonFamHHwInc45to50K | GZ54: P79NonFamHHwInc50to60K | HA54: P79NonFamHHwInc60to75K | HB54: P79NonFamHHwInc75to100K | HC54: P79NonFamHHwInc100to125K | HD54: P79NonFamHHwInc125to150K | HE54: P79NonFamHHwInc150to200K | HF54: P79NonFamHHwInc200KorMore | HG54: P80MedNonFamInc | HH54: P82PerCapitaInc
A55: =VLOOKUP(DropDownList!$B$24,CntyQryCensus!$A$109:$HH$127,A$1) -> Albany | B55: =VLOOKUP(DropDownList!$B$24,CntyQryCensus!$A$109:$HH$127,B$1) -> 0000308 | C55: =VLOOKUP(DropDownList!$B$24,CntyQryCensus!$A$109:$HH$127,C$1) -> 00420 | D55: =VLOOKUP(DropDownList!$B$24,CntyQryCensus!$A$109:$HH$127,D$1) -> 654 | E55: =VLOOKUP(DropDownList!$B$24,CntyQryCensus!$A$109:$HH$127,E$1) -> 249 | F55: =VLOOKUP(DropDownList!$B$24,CntyQryCensus!$A$109:$HH$127,F$1) -> 24 | G55: =VLOOKUP(DropDownList!$B$24,CntyQryCensus!$A$109:$HH$127,G$1) -> 25 | H55: =VLOOKUP(DropDownList!$B$24,CntyQryCensus!$A$109:$HH$127,H$1) -> 30 | I55: =VLOOKUP(DropDownList!$B$24,CntyQryCensus!$A$109:$HH$127,I$1) -> 14 | J55: =VLOOKUP(DropDownList!$B$24,CntyQryCensus!$A$109:$HH$127,J$1) -> 17 | K55: =VLOOKUP(DropDownList!$B$24,CntyQryCensus!$A$109:$HH$127,K$1) -> 6 | L55: =VLOOKUP(DropDownList!$B$24,CntyQryCensus!$A$109:$HH$127,L$1) -> 21 | M55: =VLOOKUP(DropDownList!$B$24,CntyQryCensus!$A$109:$HH$127,M$1) -> 26 | N55: =VLOOKUP(DropDownList!$B$24,CntyQryCensus!$A$109:$HH$127,N$1) -> 12 | O55: =VLOOKUP(DropDownList!$B$24,CntyQryCensus!$A$109:$HH$127,O$1) -> 30 | P55: =VLOOKUP(DropDownList!$B$24,CntyQryCensus!$A$109:$HH$127,P$1) -> 20 | Q55: =VLOOKUP(DropDownList!$B$24,CntyQryCensus!$A$109:$HH$127,Q$1) -> 10 | R55: =VLOOKUP(DropDownList!$B$24,CntyQryCensus!$A$109:$HH$127,R$1) -> 3 | S55: =VLOOKUP(DropDownList!$B$24,CntyQryCensus!$A$109:$HH$127,S$1) -> 0 | T55: =VLOOKUP(DropDownList!$B$24,CntyQryCensus!$A$109:$HH$127,T$1) -> 8 | U55: =VLOOKUP(DropDownList!$B$24,CntyQryCensus!$A$109:$HH$127,U$1) -> 3 | V55: =VLOOKUP(DropDownList!$B$24,CntyQryCensus!$A$109:$HH$127,V$1) -> 36635 | W55: =VLOOKUP(DropDownList!$B$24,CntyQryCensus!$A$109:$HH$127,W$1) -> 12798700 | X55: =VLOOKUP(DropDownList!$B$24,CntyQryCensus!$A$109:$HH$127,X$1) -> 249 | Y55: =VLOOKUP(DropDownList!$B$24,CntyQryCensus!$A$109:$HH$127,Y$1) -> 7 | Z55: =VLOOKUP(DropDownList!$B$24,CntyQryCensus!$A$109:$HH$127,Z$1) -> 0 | AA55: =VLOOKUP(DropDownList!$B$24,CntyQryCensus!$A$109:$HH$127,AA$1) -> 0 | AB55: =VLOOKUP(DropDownList!$B$24,CntyQryCensus!$A$109:$HH$127,AB$1) -> 3 | AC55: =VLOOKUP(DropDownList!$B$24,CntyQryCensus!$A$109:$HH$127,AC$1) -> 1 | AD55: =VLOOKUP(DropDownList!$B$24,CntyQryCensus!$A$109:$HH$127,AD$1) -> 0 | AE55: =VLOOKUP(DropDownList!$B$24,CntyQryCensus!$A$109:$HH$127,AE$1) -> 1 | AF55: =VLOOKUP(DropDownList!$B$24,CntyQryCensus!$A$109:$HH$127,AF$1) -> 0 | AG55: =VLOOKUP(DropDownList!$B$24,CntyQryCensus!$A$109:$HH$127,AG$1) -> 1 | AH55: =VLOOKUP(DropDownList!$B$24,CntyQryCensus!$A$109:$HH$127,AH$1) -> 0 | AI55: =VLOOKUP(DropDownList!$B$24,CntyQryCensus!$A$109:$HH$127,AI$1) -> 1 | AJ55: =VLOOKUP(DropDownList!$B$24,CntyQryCensus!$A$109:$HH$127,AJ$1) -> 0 | AK55: =VLOOKUP(DropDownList!$B$24,CntyQryCensus!$A$109:$HH$127,AK$1) -> 0 | AL55: =VLOOKUP(DropDownList!$B$24,CntyQryCensus!$A$109:$HH$127,AL$1) -> 0 | AM55: =VLOOKUP(DropDownList!$B$24,CntyQryCensus!$A$109:$HH$127,AM$1) -> 0 | AN55: =VLOOKUP(DropDownList!$B$24,CntyQryCensus!$A$109:$HH$127,AN$1) -> 0 | AO55: =VLOOKUP(DropDownList!$B$24,CntyQryCensus!$A$109:$HH$127,AO$1) -> 0 | AP55: =VLOOKUP(DropDownList!$B$24,CntyQryCensus!$A$109:$HH$127,AP$1) -> 63 | AQ55: =VLOOKUP(DropDownList!$B$24,CntyQryCensus!$A$109:$HH$127,AQ$1) -> 6 | AR55: =VLOOKUP(DropDownList!$B$24,CntyQryCensus!$A$109:$HH$127,AR$1) -> 0 | AS55: =VLOOKUP(DropDownList!$B$24,CntyQryCensus!$A$109:$HH$127,AS$1) -> 12 | AT55: =VLOOKUP(DropDownList!$B$24,CntyQryCensus!$A$109:$HH$127,AT$1) -> 0 | AU55: =VLOOKUP(DropDownList!$B$24,CntyQryCensus!$A$109:$HH$127,AU$1) -> 0 | AV55: =VLOOKUP(DropDownList!$B$24,CntyQryCensus!$A$109:$HH$127,AV$1) -> 3 | AW55: =VLOOKUP(DropDownList!$B$24,CntyQryCensus!$A$109:$HH$127,AW$1) -> 12 | AX55: =VLOOKUP(DropDownList!$B$24,CntyQryCensus!$A$109:$HH$127,AX$1) -> 10 | AY55: =VLOOKUP(DropDownList!$B$24,CntyQryCensus!$A$109:$HH$127,AY$1) -> 0 | AZ55: =VLOOKUP(DropDownList!$B$24,CntyQryCensus!$A$109:$HH$127,AZ$1) -> 11 | BA55: =VLOOKUP(DropDownList!$B$24,CntyQryCensus!$A$109:$HH$127,BA$1) -> 7 | BB55: =VLOOKUP(DropDownList!$B$24,CntyQryCensus!$A$109:$HH$127,BB$1) -> 2 | BC55: =VLOOKUP(DropDownList!$B$24,CntyQryCensus!$A$109:$HH$127,BC$1) -> 0 | BD55: =VLOOKUP(DropDownList!$B$24,CntyQryCensus!$A$109:$HH$127,BD$1) -> 0 | BE55: =VLOOKUP(DropDownList!$B$24,CntyQryCensus!$A$109:$HH$127,BE$1) -> 0 | BF55: =VLOOKUP(DropDownList!$B$24,CntyQryCensus!$A$109:$HH$127,BF$1) -> 0 | BG55: =VLOOKUP(DropDownList!$B$24,CntyQryCensus!$A$109:$HH$127,BG$1) -> 67 | BH55: =VLOOKUP(DropDownList!$B$24,CntyQryCensus!$A$109:$HH$127,BH$1) -> 2 | BI55: =VLOOKUP(DropDownList!$B$24,CntyQryCensus!$A$109:$HH$127,BI$1) -> 5 | BJ55: =VLOOKUP(DropDownList!$B$24,CntyQryCensus!$A$109:$HH$127,BJ$1) -> 2 | BK55: =VLOOKUP(DropDownList!$B$24,CntyQryCensus!$A$109:$HH$127,BK$1) -> 5 | BL55: =VLOOKUP(DropDownList!$B$24,CntyQryCensus!$A$109:$HH$127,BL$1) -> 7 | BM55: =VLOOKUP(DropDownList!$B$24,CntyQryCensus!$A$109:$HH$127,BM$1) -> 0 | BN55: =VLOOKUP(DropDownList!$B$24,CntyQryCensus!$A$109:$HH$127,BN$1) -> 7 | BO55: =VLOOKUP(DropDownList!$B$24,CntyQryCensus!$A$109:$HH$127,BO$1) -> 8 | BP55: =VLOOKUP(DropDownList!$B$24,CntyQryCensus!$A$109:$HH$127,BP$1) -> 4 | BQ55: =VLOOKUP(DropDownList!$B$24,CntyQryCensus!$A$109:$HH$127,BQ$1) -> 13 | BR55: =VLOOKUP(DropDownList!$B$24,CntyQryCensus!$A$109:$HH$127,BR$1) -> 4 | BS55: =VLOOKUP(DropDownList!$B$24,CntyQryCensus!$A$109:$HH$127,BS$1) -> 3 | BT55: =VLOOKUP(DropDownList!$B$24,CntyQryCensus!$A$109:$HH$127,BT$1) -> 1 | BU55: =VLOOKUP(DropDownList!$B$24,CntyQryCensus!$A$109:$HH$127,BU$1) -> 0 | BV55: =VLOOKUP(DropDownList!$B$24,CntyQryCensus!$A$109:$HH$127,BV$1) -> 3 | BW55: =VLOOKUP(DropDownList!$B$24,CntyQryCensus!$A$109:$HH$127,BW$1) -> 3 | BX55: =VLOOKUP(DropDownList!$B$24,CntyQryCensus!$A$109:$HH$127,BX$1) -> 41 | BY55: =VLOOKUP(DropDownList!$B$24,CntyQryCensus!$A$109:$HH$127,BY$1) -> 5 | BZ55: =VLOOKUP(DropDownList!$B$24,CntyQryCensus!$A$109:$HH$127,BZ$1) -> 4 | CA55: =VLOOKUP(DropDownList!$B$24,CntyQryCensus!$A$109:$HH$127,CA$1) -> 2 | CB55: =VLOOKUP(DropDownList!$B$24,CntyQryCensus!$A$109:$HH$127,CB$1) -> 6 | CC55: =VLOOKUP(DropDownList!$B$24,CntyQryCensus!$A$109:$HH$127,CC$1) -> 2 | CD55: =VLOOKUP(DropDownList!$B$24,CntyQryCensus!$A$109:$HH$127,CD$1) -> 2 | CE55: =VLOOKUP(DropDownList!$B$24,CntyQryCensus!$A$109:$HH$127,CE$1) -> 2 | CF55: =VLOOKUP(DropDownList!$B$24,CntyQryCensus!$A$109:$HH$127,CF$1) -> 2 | CG55: =VLOOKUP(DropDownList!$B$24,CntyQryCensus!$A$109:$HH$127,CG$1) -> 0 | CH55: =VLOOKUP(DropDownList!$B$24,CntyQryCensus!$A$109:$HH$127,CH$1) -> 0 | CI55: =VLOOKUP(DropDownList!$B$24,CntyQryCensus!$A$109:$HH$127,CI$1) -> 4 | CJ55: =VLOOKUP(DropDownList!$B$24,CntyQryCensus!$A$109:$HH$127,CJ$1) -> 5 | CK55: =VLOOKUP(DropDownList!$B$24,CntyQryCensus!$A$109:$HH$127,CK$1) -> 2 | CL55: =VLOOKUP(DropDownList!$B$24,CntyQryCensus!$A$109:$HH$127,CL$1) -> 0 | CM55: =VLOOKUP(DropDownList!$B$24,CntyQryCensus!$A$109:$HH$127,CM$1) -> 5 | CN55: =VLOOKUP(DropDownList!$B$24,CntyQryCensus!$A$109:$HH$127,CN$1) -> 0 | CO55: =VLOOKUP(DropDownList!$B$24,CntyQryCensus!$A$109:$HH$127,CO$1) -> 36 | CP55: =VLOOKUP(DropDownList!$B$24,CntyQryCensus!$A$109:$HH$127,CP$1) -> 3 | CQ55: =VLOOKUP(DropDownList!$B$24,CntyQryCensus!$A$109:$HH$127,CQ$1) -> 6 | CR55: =VLOOKUP(DropDownList!$B$24,CntyQryCensus!$A$109:$HH$127,CR$1) -> 7 | CS55: =VLOOKUP(DropDownList!$B$24,CntyQryCensus!$A$109:$HH$127,CS$1) -> 0 | CT55: =VLOOKUP(DropDownList!$B$24,CntyQryCensus!$A$109:$HH$127,CT$1) -> 6 | CU55: =VLOOKUP(DropDownList!$B$24,CntyQryCensus!$A$109:$HH$127,CU$1) -> 0 | CV55: =VLOOKUP(DropDownList!$B$24,CntyQryCensus!$A$109:$HH$127,CV$1) -> 0 | CW55: =VLOOKUP(DropDownList!$B$24,CntyQryCensus!$A$109:$HH$127,CW$1) -> 3 | CX55: =VLOOKUP(DropDownList!$B$24,CntyQryCensus!$A$109:$HH$127,CX$1) -> 6 | CY55: =VLOOKUP(DropDownList!$B$24,CntyQryCensus!$A$109:$HH$127,CY$1) -> 3 | CZ55: =VLOOKUP(DropDownList!$B$24,CntyQryCensus!$A$109:$HH$127,CZ$1) -> 2 | DA55: =VLOOKUP(DropDownList!$B$24,CntyQryCensus!$A$109:$HH$127,DA$1) -> 0 | DB55: =VLOOKUP(DropDownList!$B$24,CntyQryCensus!$A$109:$HH$127,DB$1) -> 0 | DC55: =VLOOKUP(DropDownList!$B$24,CntyQryCensus!$A$109:$HH$127,DC$1) -> 0 | DD55: =VLOOKUP(DropDownList!$B$24,CntyQryCensus!$A$109:$HH$127,DD$1) -> 0 | DE55: =VLOOKUP(DropDownList!$B$24,CntyQryCensus!$A$109:$HH$127,DE$1) -> 0 | DF55: =VLOOKUP(DropDownList!$B$24,CntyQryCensus!$A$109:$HH$127,DF$1) -> 21 | DG55: =VLOOKUP(DropDownList!$B$24,CntyQryCensus!$A$109:$HH$127,DG$1) -> 8 | DH55: =VLOOKUP(DropDownList!$B$24,CntyQryCensus!$A$109:$HH$127,DH$1) -> 5 | DI55: =VLOOKUP(DropDownList!$B$24,CntyQryCensus!$A$109:$HH$127,DI$1) -> 4 | DJ55: =VLOOKUP(DropDownList!$B$24,CntyQryCensus!$A$109:$HH$127,DJ$1) -> 0 | DK55: =VLOOKUP(DropDownList!$B$24,CntyQryCensus!$A$109:$HH$127,DK$1) -> 0 | DL55: =VLOOKUP(DropDownList!$B$24,CntyQryCensus!$A$109:$HH$127,DL$1) -> 0 | DM55: =VLOOKUP(DropDownList!$B$24,CntyQryCensus!$A$109:$HH$127,DM$1) -> 0 | DN55: =VLOOKUP(DropDownList!$B$24,CntyQryCensus!$A$109:$HH$127,DN$1) -> 2 | DO55: =VLOOKUP(DropDownList!$B$24,CntyQryCensus!$A$109:$HH$127,DO$1) -> 2 | DP55: =VLOOKUP(DropDownList!$B$24,CntyQryCensus!$A$109:$HH$127,DP$1) -> 0 | DQ55: =VLOOKUP(DropDownList!$B$24,CntyQryCensus!$A$109:$HH$127,DQ$1) -> 0 | DR55: =VLOOKUP(DropDownList!$B$24,CntyQryCensus!$A$109:$HH$127,DR$1) -> 0 | DS55: =VLOOKUP(DropDownList!$B$24,CntyQryCensus!$A$109:$HH$127,DS$1) -> 0 | DT55: =VLOOKUP(DropDownList!$B$24,CntyQryCensus!$A$109:$HH$127,DT$1) -> 0 | DU55: =VLOOKUP(DropDownList!$B$24,CntyQryCensus!$A$109:$HH$127,DU$1) -> 0 | DV55: =VLOOKUP(DropDownList!$B$24,CntyQryCensus!$A$109:$HH$127,DV$1) -> 0 | DW55: =VLOOKUP(DropDownList!$B$24,CntyQryCensus!$A$109:$HH$127,DW$1) -> 14 | DX55: =VLOOKUP(DropDownList!$B$24,CntyQryCensus!$A$109:$HH$127,DX$1) -> 0 | DY55: =VLOOKUP(DropDownList!$B$24,CntyQryCensus!$A$109:$HH$127,DY$1) -> 5 | DZ55: =VLOOKUP(DropDownList!$B$24,CntyQryCensus!$A$109:$HH$127,DZ$1) -> 0 | EA55: =VLOOKUP(DropDownList!$B$24,CntyQryCensus!$A$109:$HH$127,EA$1) -> 2 | EB55: =VLOOKUP(DropDownList!$B$24,CntyQryCensus!$A$109:$HH$127,EB$1) -> 2 | EC55: =VLOOKUP(DropDownList!$B$24,CntyQryCensus!$A$109:$HH$127,EC$1) -> 0 | ED55: =VLOOKUP(DropDownList!$B$24,CntyQryCensus!$A$109:$HH$127,ED$1) -> 0 | EE55: =VLOOKUP(DropDownList!$B$24,CntyQryCensus!$A$109:$HH$127,EE$1) -> 0 | EF55: =VLOOKUP(DropDownList!$B$24,CntyQryCensus!$A$109:$HH$127,EF$1) -> 0 | EG55: =VLOOKUP(DropDownList!$B$24,CntyQryCensus!$A$109:$HH$127,EG$1) -> 2 | EH55: =VLOOKUP(DropDownList!$B$24,CntyQryCensus!$A$109:$HH$127,EH$1) -> 3 | EI55: =VLOOKUP(DropDownList!$B$24,CntyQryCensus!$A$109:$HH$127,EI$1) -> 0 | EJ55: =VLOOKUP(DropDownList!$B$24,CntyQryCensus!$A$109:$HH$127,EJ$1) -> 0 | EK55: =VLOOKUP(DropDownList!$B$24,CntyQryCensus!$A$109:$HH$127,EK$1) -> 0 | EL55: =VLOOKUP(DropDownList!$B$24,CntyQryCensus!$A$109:$HH$127,EL$1) -> 0 | EM55: =VLOOKUP(DropDownList!$B$24,CntyQryCensus!$A$109:$HH$127,EM$1) -> 0 | EN55: =VLOOKUP(DropDownList!$B$24,CntyQryCensus!$A$109:$HH$127,EN$1) -> 36635 | EO55: =VLOOKUP(DropDownList!$B$24,CntyQryCensus!$A$109:$HH$127,EO$1) -> 23750 | EP55: =VLOOKUP(DropDownList!$B$24,CntyQryCensus!$A$109:$HH$127,EP$1) -> 39375 | EQ55: =VLOOKUP(DropDownList!$B$24,CntyQryCensus!$A$109:$HH$127,EQ$1) -> 42292 | ER55: =VLOOKUP(DropDownList!$B$24,CntyQryCensus!$A$109:$HH$127,ER$1) -> 31875 | ES55: =VLOOKUP(DropDownList!$B$24,CntyQryCensus!$A$109:$HH$127,ES$1) -> 26667 | ET55: =VLOOKUP(DropDownList!$B$24,CntyQryCensus!$A$109:$HH$127,ET$1) -> 12083 | EU55: =VLOOKUP(DropDownList!$B$24,CntyQryCensus!$A$109:$HH$127,EU$1) -> 26250 | EV55: =VLOOKUP(DropDownList!$B$24,CntyQryCensus!$A$109:$HH$127,EV$1) -> 249 | EW55: =VLOOKUP(DropDownList!$B$24,CntyQryCensus!$A$109:$HH$127,EW$1) -> 202 | EX55: =VLOOKUP(DropDownList!$B$24,CntyQryCensus!$A$109:$HH$127,EX$1) -> 47 | EY55: =VLOOKUP(DropDownList!$B$24,CntyQryCensus!$A$109:$HH$127,EY$1) -> 182 | EZ55: =VLOOKUP(DropDownList!$B$24,CntyQryCensus!$A$109:$HH$127,EZ$1) -> 67 | FA55: =VLOOKUP(DropDownList!$B$24,CntyQryCensus!$A$109:$HH$127,FA$1) -> 34 | FB55: =VLOOKUP(DropDownList!$B$24,CntyQryCensus!$A$109:$HH$127,FB$1) -> 215 | FC55: =VLOOKUP(DropDownList!$B$24,CntyQryCensus!$A$109:$HH$127,FC$1) -> 41 | FD55: =VLOOKUP(DropDownList!$B$24,CntyQryCensus!$A$109:$HH$127,FD$1) -> 208 | FE55: =VLOOKUP(DropDownList!$B$24,CntyQryCensus!$A$109:$HH$127,FE$1) -> 64 | FF55: =VLOOKUP(DropDownList!$B$24,CntyQryCensus!$A$109:$HH$127,FF$1) -> 185 | FG55: =VLOOKUP(DropDownList!$B$24,CntyQryCensus!$A$109:$HH$127,FG$1) -> 9 | FH55: =VLOOKUP(DropDownList!$B$24,CntyQryCensus!$A$109:$HH$127,FH$1) -> 240 | FI55: =VLOOKUP(DropDownList!$B$24,CntyQryCensus!$A$109:$HH$127,FI$1) -> 11 | FJ55: =VLOOKUP(DropDownList!$B$24,CntyQryCensus!$A$109:$HH$127,FJ$1) -> 238 | FK55: =VLOOKUP(DropDownList!$B$24,CntyQryCensus!$A$109:$HH$127,FK$1) -> 30 | FL55: =VLOOKUP(DropDownList!$B$24,CntyQryCensus!$A$109:$HH$127,FL$1) -> 219 | FM55: =VLOOKUP(DropDownList!$B$24,CntyQryCensus!$A$109:$HH$127,FM$1) -> 30 | FN55: =VLOOKUP(DropDownList!$B$24,CntyQryCensus!$A$109:$HH$127,FN$1) -> 219 | FO55: =VLOOKUP(DropDownList!$B$24,CntyQryCensus!$A$109:$HH$127,FO$1) -> 8409800 | FP55: =VLOOKUP(DropDownList!$B$24,CntyQryCensus!$A$109:$HH$127,FP$1) -> 7320400 | FQ55: =VLOOKUP(DropDownList!$B$24,CntyQryCensus!$A$109:$HH$127,FQ$1) -> 1089400 | FR55: =VLOOKUP(DropDownList!$B$24,CntyQryCensus!$A$109:$HH$127,FR$1) -> 3198100 | FS55: =VLOOKUP(DropDownList!$B$24,CntyQryCensus!$A$109:$HH$127,FS$1) -> 610900 | FT55: =VLOOKUP(DropDownList!$B$24,CntyQryCensus!$A$109:$HH$127,FT$1) -> 36400 | FU55: =VLOOKUP(DropDownList!$B$24,CntyQryCensus!$A$109:$HH$127,FU$1) -> 58400 | FV55: =VLOOKUP(DropDownList!$B$24,CntyQryCensus!$A$109:$HH$127,FV$1) -> 350900 | FW55: =VLOOKUP(DropDownList!$B$24,CntyQryCensus!$A$109:$HH$127,FW$1) -> 167 | FX55: =VLOOKUP(DropDownList!$B$24,CntyQryCensus!$A$109:$HH$127,FX$1) -> 13 | FY55: =VLOOKUP(DropDownList!$B$24,CntyQryCensus!$A$109:$HH$127,FY$1) -> 9 | FZ55: =VLOOKUP(DropDownList!$B$24,CntyQryCensus!$A$109:$HH$127,FZ$1) -> 19 | GA55: =VLOOKUP(DropDownList!$B$24,CntyQryCensus!$A$109:$HH$127,GA$1) -> 8 | GB55: =VLOOKUP(DropDownList!$B$24,CntyQryCensus!$A$109:$HH$127,GB$1) -> 15 | GC55: =VLOOKUP(DropDownList!$B$24,CntyQryCensus!$A$109:$HH$127,GC$1) -> 6 | GD55: =VLOOKUP(DropDownList!$B$24,CntyQryCensus!$A$109:$HH$127,GD$1) -> 15 | GE55: =VLOOKUP(DropDownList!$B$24,CntyQryCensus!$A$109:$HH$127,GE$1) -> 25 | GF55: =VLOOKUP(DropDownList!$B$24,CntyQryCensus!$A$109:$HH$127,GF$1) -> 6 | GG55: =VLOOKUP(DropDownList!$B$24,CntyQryCensus!$A$109:$HH$127,GG$1) -> 22 | GH55: =VLOOKUP(DropDownList!$B$24,CntyQryCensus!$A$109:$HH$127,GH$1) -> 14 | GI55: =VLOOKUP(DropDownList!$B$24,CntyQryCensus!$A$109:$HH$127,GI$1) -> 5 | GJ55: =VLOOKUP(DropDownList!$B$24,CntyQryCensus!$A$109:$HH$127,GJ$1) -> 2 | GK55: =VLOOKUP(DropDownList!$B$24,CntyQryCensus!$A$109:$HH$127,GK$1) -> 0 | GL55: =VLOOKUP(DropDownList!$B$24,CntyQryCensus!$A$109:$HH$127,GL$1) -> 8 | GM55: =VLOOKUP(DropDownList!$B$24,CntyQryCensus!$A$109:$HH$127,GM$1) -> 0 | GN55: =VLOOKUP(DropDownList!$B$24,CntyQryCensus!$A$109:$HH$127,GN$1) -> 39250 | GO55: =VLOOKUP(DropDownList!$B$24,CntyQryCensus!$A$109:$HH$127,GO$1) -> 7285700 | GP55: =VLOOKUP(DropDownList!$B$24,CntyQryCensus!$A$109:$HH$127,GP$1) -> 82 | GQ55: =VLOOKUP(DropDownList!$B$24,CntyQryCensus!$A$109:$HH$127,GQ$1) -> 16 | GR55: =VLOOKUP(DropDownList!$B$24,CntyQryCensus!$A$109:$HH$127,GR$1) -> 15 | GS55: =VLOOKUP(DropDownList!$B$24,CntyQryCensus!$A$109:$HH$127,GS$1) -> 12 | GT55: =VLOOKUP(DropDownList!$B$24,CntyQryCensus!$A$109:$HH$127,GT$1) -> 9 | GU55: =VLOOKUP(DropDownList!$B$24,CntyQryCensus!$A$109:$HH$127,GU$1) -> 4 | GV55: =VLOOKUP(DropDownList!$B$24,CntyQryCensus!$A$109:$HH$127,GV$1) -> 3 | GW55: =VLOOKUP(DropDownList!$B$24,CntyQryCensus!$A$109:$HH$127,GW$1) -> 0 | GX55: =VLOOKUP(DropDownList!$B$24,CntyQryCensus!$A$109:$HH$127,GX$1) -> 0 | GY55: =VLOOKUP(DropDownList!$B$24,CntyQryCensus!$A$109:$HH$127,GY$1) -> 6 | GZ55: =VLOOKUP(DropDownList!$B$24,CntyQryCensus!$A$109:$HH$127,GZ$1) -> 4 | HA55: =VLOOKUP(DropDownList!$B$24,CntyQryCensus!$A$109:$HH$127,HA$1) -> 6 | HB55: =VLOOKUP(DropDownList!$B$24,CntyQryCensus!$A$109:$HH$127,HB$1) -> 3 | HC55: =VLOOKUP(DropDownList!$B$24,CntyQryCensus!$A$109:$HH$127,HC$1) -> 1 | HD55: =VLOOKUP(DropDownList!$B$24,CntyQryCensus!$A$109:$HH$127,HD$1) -> 0 | HE55: =VLOOKUP(DropDownList!$B$24,CntyQryCensus!$A$109:$HH$127,HE$1) -> 0 | HF55: =VLOOKUP(DropDownList!$B$24,CntyQryCensus!$A$109:$HH$127,HF$1) -> 3 | HG55: =VLOOKUP(DropDownList!$B$24,CntyQryCensus!$A$109:$HH$127,HG$1) -> 19583 | HH55: =VLOOKUP(DropDownList!$B$24,CntyQryCensus!$A$109:$HH$127,HH$1) -> 20690
A58: Census 2000 SummaryFile3 Sample Data - SF3TownQry2bPovertyChar
A59: NAME | B59: LOGRECNO | C59: COUNTY | D59: TotalPop | E59: P52Households1 | F59: P82PerCapitaInc | G59: P87PopForPovStatus | H59: P87PopWIncBelowPovStatus | I59: P87PopUnder5yrBelowPoverty | J59: P87Pop5yrBelowPoverty | K59: P87Pop5to11yrBelowPoverty | L59: P87Pop12to17yrBelowPoverty | M59: P87Pop18to64yrBelowPoverty | N59: P87Pop65to74yrBelowPoverty | O59: P87PopOver75yrBelowPoverty | P59: P87PopWIncAbovePovStatus | Q59: P87PopUnder5yrAbovePoverty | R59: P87Pop5yrAbovePoverty | S59: P87Pop5to11yrAbovePoverty | T59: P87Pop12to17yrAbovePoverty | U59: P87Pop18to64yrAbovePoverty | V59: P87Pop65to74yrAbovePoverty | W59: P87PopOver75yrAbovePoverty | X59: P90Families | Y59: P90FamWIncBelowPov | Z59: P90MarCupFamWIncBelowPov | AA59: P90MCFamWRltdChld<18WIncBelowPov | AB59: P90MCFamWRltdChld<5WIncBelowPov | AC59: P90MaleHhlrWIncBelowPov | AD59: P90MaleHhlrWRltdChld<18yrWIncBelowPov | AE59: P90MaleHhlrWRltdChld<5yrWIncBelowPov | AF59: P90FemaleHhlrWIncBelowPov | AG59: P90FemaleHhlrWRltdChld<18yWIncBelowPov | AH59: P90FemaleHhlrWRltdChld<5yWIncBelowPov | AI59: P90FamWIncAbovePov | AJ59: P90MarCupFamWIncAbovePov | AK59: P90MCFamWRltdChld<18WIncAbovePov | AL59: P90MCFamWRltdChld<5WIncAbovePov | AM59: P90MaleHhlrWIncAbovePov | AN59: P90MaleHhlrWRltdChld<18yrWIncAbovePov | AO59: P90MaleHhlrWRltdChld<5yrWIncAbovePov | AP59: P90FemaleHhlrWIncAbovePov | AQ59: P90FemaleHhlrWRltdChld<18yWIncAbovePov | AR59: P90FemaleHhlrWRltdChld<5yWIncAbovePov | AS59: P92Households | AT59: P92HHwIncBelowPov | AU59: P92FamHHwIncBelowPov | AV59: P92MCFamHHwIncBelowPov | AW59: P92MaleFamHHwIncBelowPov | AX59: P92FemaleFamHHwIncBelowPov | AY59: P92NonFamHHwIncBelowPov | AZ59: P92NonFamMaleHHwIncBelowPov | BA59: P92NonFamFemaleHHwIncBelowPov | BB59: P92HHwIncAbovePov | BC59: P92FamHHwIncAbovePov | BD59: P92MCFamHHwIncAbovePov | BE59: P92MaleFamHHwIncAbovePov | BF59: P92FemaleFamHHwIncAbovePov | BG59: P92NonFamHHwIncAbovePov | BH59: P92NonFamMaleHHwIncAbovePov | BI59: P92NonFamFemaleHHwIncAbovePov
A60: =VLOOKUP(DropDownList!$B$24,CntyQryCensus!$A$135:$FZ$153,A$1) -> Albany | B60: =VLOOKUP(DropDownList!$B$24,CntyQryCensus!$A$135:$FZ$153,B$1) -> 0000308 | C60: =VLOOKUP(DropDownList!$B$24,CntyQryCensus!$A$135:$FZ$153,C$1) -> 00420 | D60: =VLOOKUP(DropDownList!$B$24,CntyQryCensus!$A$135:$FZ$153,D$1) -> 654 | E60: =VLOOKUP(DropDownList!$B$24,CntyQryCensus!$A$135:$FZ$153,E$1) -> 249 | F60: =VLOOKUP(DropDownList!$B$24,CntyQryCensus!$A$135:$FZ$153,F$1) -> 20690 | G60: =VLOOKUP(DropDownList!$B$24,CntyQryCensus!$A$135:$FZ$153,G$1) -> 605 | H60: =VLOOKUP(DropDownList!$B$24,CntyQryCensus!$A$135:$FZ$153,H$1) -> 95 | I60: =VLOOKUP(DropDownList!$B$24,CntyQryCensus!$A$135:$FZ$153,I$1) -> 17 | J60: =VLOOKUP(DropDownList!$B$24,CntyQryCensus!$A$135:$FZ$153,J$1) -> 2 | K60: =VLOOKUP(DropDownList!$B$24,CntyQryCensus!$A$135:$FZ$153,K$1) -> 19 | L60: =VLOOKUP(DropDownList!$B$24,CntyQryCensus!$A$135:$FZ$153,L$1) -> 0 | M60: =VLOOKUP(DropDownList!$B$24,CntyQryCensus!$A$135:$FZ$153,M$1) -> 55 | N60: =VLOOKUP(DropDownList!$B$24,CntyQryCensus!$A$135:$FZ$153,N$1) -> 2 | O60: =VLOOKUP(DropDownList!$B$24,CntyQryCensus!$A$135:$FZ$153,O$1) -> 0 | P60: =VLOOKUP(DropDownList!$B$24,CntyQryCensus!$A$135:$FZ$153,P$1) -> 510 | Q60: =VLOOKUP(DropDownList!$B$24,CntyQryCensus!$A$135:$FZ$153,Q$1) -> 35 | R60: =VLOOKUP(DropDownList!$B$24,CntyQryCensus!$A$135:$FZ$153,R$1) -> 7 | S60: =VLOOKUP(DropDownList!$B$24,CntyQryCensus!$A$135:$FZ$153,S$1) -> 26 | T60: =VLOOKUP(DropDownList!$B$24,CntyQryCensus!$A$135:$FZ$153,T$1) -> 53 | U60: =VLOOKUP(DropDownList!$B$24,CntyQryCensus!$A$135:$FZ$153,U$1) -> 345 | V60: =VLOOKUP(DropDownList!$B$24,CntyQryCensus!$A$135:$FZ$153,V$1) -> 30 | W60: =VLOOKUP(DropDownList!$B$24,CntyQryCensus!$A$135:$FZ$153,W$1) -> 14 | X60: =VLOOKUP(DropDownList!$B$24,CntyQryCensus!$A$135:$FZ$153,X$1) -> 167 | Y60: =VLOOKUP(DropDownList!$B$24,CntyQryCensus!$A$135:$FZ$153,Y$1) -> 18 | Z60: =VLOOKUP(DropDownList!$B$24,CntyQryCensus!$A$135:$FZ$153,Z$1) -> 4 | AA60: =VLOOKUP(DropDownList!$B$24,CntyQryCensus!$A$135:$FZ$153,AA$1) -> 4 | AB60: =VLOOKUP(DropDownList!$B$24,CntyQryCensus!$A$135:$FZ$153,AB$1) -> 0 | AC60: =VLOOKUP(DropDownList!$B$24,CntyQryCensus!$A$135:$FZ$153,AC$1) -> 4 | AD60: =VLOOKUP(DropDownList!$B$24,CntyQryCensus!$A$135:$FZ$153,AD$1) -> 2 | AE60: =VLOOKUP(DropDownList!$B$24,CntyQryCensus!$A$135:$FZ$153,AE$1) -> 0 | AF60: =VLOOKUP(DropDownList!$B$24,CntyQryCensus!$A$135:$FZ$153,AF$1) -> 10 | AG60: =VLOOKUP(DropDownList!$B$24,CntyQryCensus!$A$135:$FZ$153,AG$1) -> 10 | AH60: =VLOOKUP(DropDownList!$B$24,CntyQryCensus!$A$135:$FZ$153,AH$1) -> 1 | AI60: =VLOOKUP(DropDownList!$B$24,CntyQryCensus!$A$135:$FZ$153,AI$1) -> 149 | AJ60: =VLOOKUP(DropDownList!$B$24,CntyQryCensus!$A$135:$FZ$153,AJ$1) -> 124 | AK60: =VLOOKUP(DropDownList!$B$24,CntyQryCensus!$A$135:$FZ$153,AK$1) -> 53 | AL60: =VLOOKUP(DropDownList!$B$24,CntyQryCensus!$A$135:$FZ$153,AL$1) -> 11 | AM60: =VLOOKUP(DropDownList!$B$24,CntyQryCensus!$A$135:$FZ$153,AM$1) -> 13 | AN60: =VLOOKUP(DropDownList!$B$24,CntyQryCensus!$A$135:$FZ$153,AN$1) -> 13 | AO60: =VLOOKUP(DropDownList!$B$24,CntyQryCensus!$A$135:$FZ$153,AO$1) -> 0 | AP60: =VLOOKUP(DropDownList!$B$24,CntyQryCensus!$A$135:$FZ$153,AP$1) -> 12 | AQ60: =VLOOKUP(DropDownList!$B$24,CntyQryCensus!$A$135:$FZ$153,AQ$1) -> 10 | AR60: =VLOOKUP(DropDownList!$B$24,CntyQryCensus!$A$135:$FZ$153,AR$1) -> 1 | AS60: =VLOOKUP(DropDownList!$B$24,CntyQryCensus!$A$135:$FZ$153,AS$1) -> 249 | AT60: =VLOOKUP(DropDownList!$B$24,CntyQryCensus!$A$135:$FZ$153,AT$1) -> 28 | AU60: =VLOOKUP(DropDownList!$B$24,CntyQryCensus!$A$135:$FZ$153,AU$1) -> 18 | AV60: =VLOOKUP(DropDownList!$B$24,CntyQryCensus!$A$135:$FZ$153,AV$1) -> 4 | AW60: =VLOOKUP(DropDownList!$B$24,CntyQryCensus!$A$135:$FZ$153,AW$1) -> 4 | AX60: =VLOOKUP(DropDownList!$B$24,CntyQryCensus!$A$135:$FZ$153,AX$1) -> 10 | AY60: =VLOOKUP(DropDownList!$B$24,CntyQryCensus!$A$135:$FZ$153,AY$1) -> 10 | AZ60: =VLOOKUP(DropDownList!$B$24,CntyQryCensus!$A$135:$FZ$153,AZ$1) -> 4 | BA60: =VLOOKUP(DropDownList!$B$24,CntyQryCensus!$A$135:$FZ$153,BA$1) -> 6 | BB60: =VLOOKUP(DropDownList!$B$24,CntyQryCensus!$A$135:$FZ$153,BB$1) -> 221 | BC60: =VLOOKUP(DropDownList!$B$24,CntyQryCensus!$A$135:$FZ$153,BC$1) -> 149 | BD60: =VLOOKUP(DropDownList!$B$24,CntyQryCensus!$A$135:$FZ$153,BD$1) -> 124 | BE60: =VLOOKUP(DropDownList!$B$24,CntyQryCensus!$A$135:$FZ$153,BE$1) -> 13 | BF60: =VLOOKUP(DropDownList!$B$24,CntyQryCensus!$A$135:$FZ$153,BF$1) -> 12 | BG60: =VLOOKUP(DropDownList!$B$24,CntyQryCensus!$A$135:$FZ$153,BG$1) -> 72 | BH60: =VLOOKUP(DropDownList!$B$24,CntyQryCensus!$A$135:$FZ$153,BH$1) -> 45 | BI60: =VLOOKUP(DropDownList!$B$24,CntyQryCensus!$A$135:$FZ$153,BI$1) -> 27
S61: =SUM(R60:T60) -> 86
A63: Census 2000 SummaryFile3 Sample Data - SF3TownQry7HousingA
A64: NAME | B64: LOGRECNO | C64: COUNTY | D64: TotalPop | E64: H1HousingUnitsTotal | F64: H2SampleHU | G64: H2SampleOccHU | H64: H2SampleVacHU | I64: H3HU100pctCount | J64: H5HUTotal | K64: H5HUUrban | L64: H5HUUrbanInUrbanAreas | M64: H5HUUrbanInUrbanClusters | N64: H5HURural | O64: H5HURuralFarm | P64: H5HURuralNonFarm | Q64: H7HUOcc | R64: H7HUOwnrOcc | S64: H7HURentrOcc | T64: H8HUVacant | U64: H8HUVacantForRent | V64: H8HUVacantForSale | W64: H8HUVacRentedorSold | X64: H8HUVacSeasonal | Y64: H8HUVacForMigrantWrkrs | Z64: H8HUOtherVacant | AA64: H14OccHUa | AB64: H14OwnerOccHU | AC64: H14OwnOccHuHh15to24 | AD64: H14OwnOccHuHh25to34 | AE64: H14OwnOccHuHh35to44 | AF64: H14OwnOccHuHh45to54 | AG64: H14OwnOccHuHh55to59 | AH64: H14OwnOccHuHh60to64 | AI64: H14OwnOccHuHh65to74 | AJ64: H14OwnOccHuHh75to84 | AK64: H14OwnOccHuHh85Over | AL64: H14RenterOccHU1 | AM64: H14RntrOccHuHh15to24 | AN64: H14RntrOccHuHh25to34 | AO64: H14RntrOccHuHh35to44 | AP64: H14RntrOccHuHh45to54 | AQ64: H14RntrOccHuHh55to59 | AR64: H14RntrOccHuHh60to64 | AS64: H14RntrOccHuHh65to74 | AT64: H14RntrOccHuHh75to84 | AU64: H14RntrOccHuHh85Over | AV64: H15PopInOccHU | AW64: H15PopInOwnOccHU1 | AX64: H15PopInRentOccHU1 | AY64: H17OccupHUb | AZ64: H17OwnOccHU2 | BA64: H17OwnOccHU1PersonHH | BB64: H17OwnOccHU2PersonHH | BC64: H17OwnOccHU3PersonHH | BD64: H17OwnOccHU4PersonHH | BE64: H17OwnOccHU5PersonHH | BF64: H17OwnOccHU6PersonHH | BG64: H17OwnOccHU7PlusPersonHH | BH64: H17RentOccHU2 | BI64: H17RntOccHU1PersonHH | BJ64: H17RntOccHU2PersonHH | BK64: H17RntOccHU3PersonHH | BL64: H17RntOccHU4PersonHH | BM64: H17RntOccHU5PersonHH | BN64: H17RntOccHU6PersonHH | BO64: H17RntOccHU7PlusPersonHH | BP64: H18AvgHHSize | BQ64: H18AvgHHSizeOwnOcc | BR64: H18AvgHHSizeRentOcc | BS64: H23TotHU | BT64: H23HU1Room | BU64: H23HU2Room | BV64: H23HU3Room | BW64: H23HU4Room | BX64: H23HU5Room | BY64: H23HU6Room | BZ64: H23HU7Room | CA64: H23HU8Room | CB64: H23HU9orMoreRoom | CC64: H24MedianNumRooms | CD64: H25AggregNumRooms | CE64: H30TotalHU | CF64: H30Det1HU | CG64: H30Att1HU | CH64: H30Units2 | CI64: H30Units3or4 | CJ64: H30Units5to9 | CK64: H30Units10to19 | CL64: H30Units20to49 | CM64: H30Units50orMore | CN64: H30UnitsMobileHome | CO64: H30UnitsBoatRv | CP64: H32OccHUcTotal | CQ64: H32OwnerOccHU3 | CR64: H32OwnOccHU1Det | CS64: H32OwnOccHU1Att | CT64: H32OwnOccHU2Unit | CU64: H32OwnOccHU3to4Unit | CV64: H32OwnOccHU5to9Unit | CW64: H32OwnOccHU10to19Unit | CX64: H32OwnOccHU20to49Unit | CY64: H32OwnOccHU50plusUnit | CZ64: H32OwnOccHUMobHom | DA64: H32OwnOccHUBoatRVOth | DB64: H32RentrOccHU3 | DC64: H32RntrOccHU1Det | DD64: H32RntrOccHU1Att | DE64: H32RntrOccHU2Unit | DF64: H32RntrOccHU3to4Unit | DG64: H32RntrOccHU5to9Unit | DH64: H32RntrOccHU10to19Unit | DI64: H32RntrOccHU20to49Unit | DJ64: H32RntrOccHU50PlusUnit | DK64: H32RntrOccHUMobHom | DL64: H32RntrOccHUBoatRVOth | DM64: H33TotPopInOccHU | DN64: H33PopInOwnOccHU2 | DO64: H33PopInOOHU1Det | DP64: H33PopInOOHU1Att | DQ64: H33PopInOOHU2unit | DR64: H33PopInOOHU3to4Unit | DS64: H33PopInOOHU5to9Unit | DT64: H33PopInOOHU10to19Unit | DU64: H33PopInOOHU20to49Unit | DV64: H33PopInOOHU50PlusUnit | DW64: H33PopInOOHUMobilHome | DX64: H33PopInOOHUOtherUnit | DY64: H33PopInRentOccHU2 | DZ64: H33PopInROHU1Det | EA64: H33PopInROHU1Att | EB64: H33PopInROHU2Unit | EC64: H33PopInROHU3to4Unit | ED64: H33PopInROHU5to9Unit | EE64: H33PopInROHU10to19Unit | EF64: H33PopInROHU20to49Unit | EG64: H33PopInROHU50PlusUnit | EH64: H33PopInROHUMobilHome | EI64: H33PopInROHUOtherUnit | EJ64: H36OccHousingUnitsdTotal | EK64: H36OwnerOccHU4 | EL64: H36OOHUBuilt99to0300 | EM64: H36OOHUBuilt95to98 | EN64: H36OOHUBuilt90to94 | EO64: H36OOHUBuilt80to89 | EP64: H36OOHUBuilt70to79 | EQ64: H36OOHUBuilt60to69 | ER64: H36OOHUBuilt50to59 | ES64: H36OOHUBuilt40to49 | ET64: H36OOHUBuilt39Earlier | EU64: H36RentOccHU4 | EV64: H36ROHUBuilt99to0300 | EW64: H36ROHUBuilt95to98 | EX64: H36ROHUBuilt90to94 | EY64: H36ROHUBuilt80to89 | EZ64: H36ROHUBuilt70to79 | FA64: H36ROHUBuilt60to69 | FB64: H36ROHUBuilt50to59 | FC64: H36ROHUBuilt40to49 | FD64: H36ROHUBuilt39Earlier | FE64: H40OccupHousUnitse | FF64: H40HeatFuelUtilGas | FG64: H40HeatFuelBotGas | FH64: H40HeatFuelElect | FI64: H40HeatFuelOilKero | FJ64: H40HeatFuelCoal | FK64: H40HeatFuelWood | FL64: H40HeatFuelSolar | FM64: H40HeatFuelOther | FN64: H40HeatFuelNone | FO64: H41TotalHU | FP64: H41HUNoBdrm | FQ64: H41HU1Bdrm | FR64: H41HU2Bdrm | FS64: H41HU3Bdrm | FT64: H41HU4Bdrm | FU64: H41HU5MoreBdrm | FV64: H42OccuHousUnitf | FW64: H42OwnerOccHU5 | FX64: H42OOHUNoBdrm | FY64: H42OOHU1Bdrm | FZ64: H42OOHU2Bdrm | GA64: H42OOHU3Bdrm | GB64: H42OOHU4Bdrm | GC64: H42OOHU5PlusBdrm | GD64: H42RentOccHU5 | GE64: H42ROHUNoBdrm | GF64: H42ROHU1Bdrm | GG64: H42ROHU2Bdrm | GH64: H42ROHU3Bdrm | GI64: H42ROHU4Bdrm | GJ64: H42ROHU5PlusBdrm | GK64: H48OccupHousUnitsg | GL64: H48OwnerOccHU6 | GM64: H48OOHUwCompltPlumFacil | GN64: H48OOHULackCompltPlumFacil | GO64: H48RentOccHU6 | GP64: H48ROHUwCompltPlumFacil | GQ64: H48ROHULackCompltPlumFacil | GR64: H51OccupHousUnitf | GS64: H51OwnerOccHU7 | GT64: H51OOHUwCompleteKitFacil | GU64: H51OOHULackCompleteKitFacil | GV64: H51RenterOccHU7 | GW64: H51ROHUwCompleteKitFacil | GX64: H51ROHULackCompleteKitFacil
A65: =VLOOKUP(DropDownList!$B$24,CntyQryCensus!$A$161:$GX$179,A$1) -> Albany | B65: =VLOOKUP(DropDownList!$B$24,CntyQryCensus!$A$161:$GX$179,B$1) -> 0000308 | C65: =VLOOKUP(DropDownList!$B$24,CntyQryCensus!$A$161:$GX$179,C$1) -> 00420 | D65: =VLOOKUP(DropDownList!$B$24,CntyQryCensus!$A$161:$GX$179,D$1) -> 654 | E65: =VLOOKUP(DropDownList!$B$24,CntyQryCensus!$A$161:$GX$179,E$1) -> 491 | F65: =VLOOKUP(DropDownList!$B$24,CntyQryCensus!$A$161:$GX$179,F$1) -> 228 | G65: =VLOOKUP(DropDownList!$B$24,CntyQryCensus!$A$161:$GX$179,G$1) -> 108 | H65: =VLOOKUP(DropDownList!$B$24,CntyQryCensus!$A$161:$GX$179,H$1) -> 120 | I65: =VLOOKUP(DropDownList!$B$24,CntyQryCensus!$A$161:$GX$179,I$1) -> 506 | J65: =VLOOKUP(DropDownList!$B$24,CntyQryCensus!$A$161:$GX$179,J$1) -> 491 | K65: =VLOOKUP(DropDownList!$B$24,CntyQryCensus!$A$161:$GX$179,K$1) -> 0 | L65: =VLOOKUP(DropDownList!$B$24,CntyQryCensus!$A$161:$GX$179,L$1) -> 0 | M65: =VLOOKUP(DropDownList!$B$24,CntyQryCensus!$A$161:$GX$179,M$1) -> 0 | N65: =VLOOKUP(DropDownList!$B$24,CntyQryCensus!$A$161:$GX$179,N$1) -> 491 | O65: =VLOOKUP(DropDownList!$B$24,CntyQryCensus!$A$161:$GX$179,O$1) -> 0 | P65: =VLOOKUP(DropDownList!$B$24,CntyQryCensus!$A$161:$GX$179,P$1) -> 491 | Q65: =VLOOKUP(DropDownList!$B$24,CntyQryCensus!$A$161:$GX$179,Q$1) -> 237 | R65: =VLOOKUP(DropDownList!$B$24,CntyQryCensus!$A$161:$GX$179,R$1) -> 187 | S65: =VLOOKUP(DropDownList!$B$24,CntyQryCensus!$A$161:$GX$179,S$1) -> 50 | T65: =VLOOKUP(DropDownList!$B$24,CntyQryCensus!$A$161:$GX$179,T$1) -> 254 | U65: =VLOOKUP(DropDownList!$B$24,CntyQryCensus!$A$161:$GX$179,U$1) -> 6 | V65: =VLOOKUP(DropDownList!$B$24,CntyQryCensus!$A$161:$GX$179,V$1) -> 7 | W65: =VLOOKUP(DropDownList!$B$24,CntyQryCensus!$A$161:$GX$179,W$1) -> 3 | X65: =VLOOKUP(DropDownList!$B$24,CntyQryCensus!$A$161:$GX$179,X$1) -> 207 | Y65: =VLOOKUP(DropDownList!$B$24,CntyQryCensus!$A$161:$GX$179,Y$1) -> 0 | Z65: =VLOOKUP(DropDownList!$B$24,CntyQryCensus!$A$161:$GX$179,Z$1) -> 31 | AA65: =VLOOKUP(DropDownList!$B$24,CntyQryCensus!$A$161:$GX$179,AA$1) -> 237 | AB65: =VLOOKUP(DropDownList!$B$24,CntyQryCensus!$A$161:$GX$179,AB$1) -> 187 | AC65: =VLOOKUP(DropDownList!$B$24,CntyQryCensus!$A$161:$GX$179,AC$1) -> 4 | AD65: =VLOOKUP(DropDownList!$B$24,CntyQryCensus!$A$161:$GX$179,AD$1) -> 31 | AE65: =VLOOKUP(DropDownList!$B$24,CntyQryCensus!$A$161:$GX$179,AE$1) -> 52 | AF65: =VLOOKUP(DropDownList!$B$24,CntyQryCensus!$A$161:$GX$179,AF$1) -> 40 | AG65: =VLOOKUP(DropDownList!$B$24,CntyQryCensus!$A$161:$GX$179,AG$1) -> 15 | AH65: =VLOOKUP(DropDownList!$B$24,CntyQryCensus!$A$161:$GX$179,AH$1) -> 11 | AI65: =VLOOKUP(DropDownList!$B$24,CntyQryCensus!$A$161:$GX$179,AI$1) -> 21 | AJ65: =VLOOKUP(DropDownList!$B$24,CntyQryCensus!$A$161:$GX$179,AJ$1) -> 9 | AK65: =VLOOKUP(DropDownList!$B$24,CntyQryCensus!$A$161:$GX$179,AK$1) -> 4 | AL65: =VLOOKUP(DropDownList!$B$24,CntyQryCensus!$A$161:$GX$179,AL$1) -> 50 | AM65: =VLOOKUP(DropDownList!$B$24,CntyQryCensus!$A$161:$GX$179,AM$1) -> 9 | AN65: =VLOOKUP(DropDownList!$B$24,CntyQryCensus!$A$161:$GX$179,AN$1) -> 16 | AO65: =VLOOKUP(DropDownList!$B$24,CntyQryCensus!$A$161:$GX$179,AO$1) -> 16 | AP65: =VLOOKUP(DropDownList!$B$24,CntyQryCensus!$A$161:$GX$179,AP$1) -> 5 | AQ65: =VLOOKUP(DropDownList!$B$24,CntyQryCensus!$A$161:$GX$179,AQ$1) -> 0 | AR65: =VLOOKUP(DropDownList!$B$24,CntyQryCensus!$A$161:$GX$179,AR$1) -> 4 | AS65: =VLOOKUP(DropDownList!$B$24,CntyQryCensus!$A$161:$GX$179,AS$1) -> 0 | AT65: =VLOOKUP(DropDownList!$B$24,CntyQryCensus!$A$161:$GX$179,AT$1) -> 0 | AU65: =VLOOKUP(DropDownList!$B$24,CntyQryCensus!$A$161:$GX$179,AU$1) -> 0 | AV65: =VLOOKUP(DropDownList!$B$24,CntyQryCensus!$A$161:$GX$179,AV$1) -> 600 | AW65: =VLOOKUP(DropDownList!$B$24,CntyQryCensus!$A$161:$GX$179,AW$1) -> 447 | AX65: =VLOOKUP(DropDownList!$B$24,CntyQryCensus!$A$161:$GX$179,AX$1) -> 153 | AY65: =VLOOKUP(DropDownList!$B$24,CntyQryCensus!$A$161:$GX$179,AY$1) -> 237 | AZ65: =VLOOKUP(DropDownList!$B$24,CntyQryCensus!$A$161:$GX$179,AZ$1) -> 187 | BA65: =VLOOKUP(DropDownList!$B$24,CntyQryCensus!$A$161:$GX$179,BA$1) -> 53 | BB65: =VLOOKUP(DropDownList!$B$24,CntyQryCensus!$A$161:$GX$179,BB$1) -> 59 | BC65: =VLOOKUP(DropDownList!$B$24,CntyQryCensus!$A$161:$GX$179,BC$1) -> 31 | BD65: =VLOOKUP(DropDownList!$B$24,CntyQryCensus!$A$161:$GX$179,BD$1) -> 35 | BE65: =VLOOKUP(DropDownList!$B$24,CntyQryCensus!$A$161:$GX$179,BE$1) -> 9 | BF65: =VLOOKUP(DropDownList!$B$24,CntyQryCensus!$A$161:$GX$179,BF$1) -> 0 | BG65: =VLOOKUP(DropDownList!$B$24,CntyQryCensus!$A$161:$GX$179,BG$1) -> 0 | BH65: =VLOOKUP(DropDownList!$B$24,CntyQryCensus!$A$161:$GX$179,BH$1) -> 50 | BI65: =VLOOKUP(DropDownList!$B$24,CntyQryCensus!$A$161:$GX$179,BI$1) -> 9 | BJ65: =VLOOKUP(DropDownList!$B$24,CntyQryCensus!$A$161:$GX$179,BJ$1) -> 16 | BK65: =VLOOKUP(DropDownList!$B$24,CntyQryCensus!$A$161:$GX$179,BK$1) -> 14 | BL65: =VLOOKUP(DropDownList!$B$24,CntyQryCensus!$A$161:$GX$179,BL$1) -> 8 | BM65: =VLOOKUP(DropDownList!$B$24,CntyQryCensus!$A$161:$GX$179,BM$1) -> 2 | BN65: =VLOOKUP(DropDownList!$B$24,CntyQryCensus!$A$161:$GX$179,BN$1) -> 1 | BO65: =VLOOKUP(DropDownList!$B$24,CntyQryCensus!$A$161:$GX$179,BO$1) -> 0 | BP65: =VLOOKUP(DropDownList!$B$24,CntyQryCensus!$A$161:$GX$179,BP$1) -> 3 | BQ65: =VLOOKUP(DropDownList!$B$24,CntyQryCensus!$A$161:$GX$179,BQ$1) -> 2 | BR65: =VLOOKUP(DropDownList!$B$24,CntyQryCensus!$A$161:$GX$179,BR$1) -> 3 | BS65: =VLOOKUP(DropDownList!$B$24,CntyQryCensus!$A$161:$GX$179,BS$1) -> 491 | BT65: =VLOOKUP(DropDownList!$B$24,CntyQryCensus!$A$161:$GX$179,BT$1) -> 16 | BU65: =VLOOKUP(DropDownList!$B$24,CntyQryCensus!$A$161:$GX$179,BU$1) -> 35 | BV65: =VLOOKUP(DropDownList!$B$24,CntyQryCensus!$A$161:$GX$179,BV$1) -> 45 | BW65: =VLOOKUP(DropDownList!$B$24,CntyQryCensus!$A$161:$GX$179,BW$1) -> 125 | BX65: =VLOOKUP(DropDownList!$B$24,CntyQryCensus!$A$161:$GX$179,BX$1) -> 105 | BY65: =VLOOKUP(DropDownList!$B$24,CntyQryCensus!$A$161:$GX$179,BY$1) -> 83 | BZ65: =VLOOKUP(DropDownList!$B$24,CntyQryCensus!$A$161:$GX$179,BZ$1) -> 46 | CA65: =VLOOKUP(DropDownList!$B$24,CntyQryCensus!$A$161:$GX$179,CA$1) -> 17 | CB65: =VLOOKUP(DropDownList!$B$24,CntyQryCensus!$A$161:$GX$179,CB$1) -> 19 | CC65: =VLOOKUP(DropDownList!$B$24,CntyQryCensus!$A$161:$GX$179,CC$1) -> 5 | CD65: =VLOOKUP(DropDownList!$B$24,CntyQryCensus!$A$161:$GX$179,CD$1) -> 2392 | CE65: =VLOOKUP(DropDownList!$B$24,CntyQryCensus!$A$161:$GX$179,CE$1) -> 491 | CF65: =VLOOKUP(DropDownList!$B$24,CntyQryCensus!$A$161:$GX$179,CF$1) -> 393 | CG65: =VLOOKUP(DropDownList!$B$24,CntyQryCensus!$A$161:$GX$179,CG$1) -> 0 | CH65: =VLOOKUP(DropDownList!$B$24,CntyQryCensus!$A$161:$GX$179,CH$1) -> 14 | CI65: =VLOOKUP(DropDownList!$B$24,CntyQryCensus!$A$161:$GX$179,CI$1) -> 0 | CJ65: =VLOOKUP(DropDownList!$B$24,CntyQryCensus!$A$161:$GX$179,CJ$1) -> 0 | CK65: =VLOOKUP(DropDownList!$B$24,CntyQryCensus!$A$161:$GX$179,CK$1) -> 0 | CL65: =VLOOKUP(DropDownList!$B$24,CntyQryCensus!$A$161:$GX$179,CL$1) -> 0 | CM65: =VLOOKUP(DropDownList!$B$24,CntyQryCensus!$A$161:$GX$179,CM$1) -> 0 | CN65: =VLOOKUP(DropDownList!$B$24,CntyQryCensus!$A$161:$GX$179,CN$1) -> 84 | CO65: =VLOOKUP(DropDownList!$B$24,CntyQryCensus!$A$161:$GX$179,CO$1) -> 0 | CP65: =VLOOKUP(DropDownList!$B$24,CntyQryCensus!$A$161:$GX$179,CP$1) -> 237 | CQ65: =VLOOKUP(DropDownList!$B$24,CntyQryCensus!$A$161:$GX$179,CQ$1) -> 187 | CR65: =VLOOKUP(DropDownList!$B$24,CntyQryCensus!$A$161:$GX$179,CR$1) -> 137 | CS65: =VLOOKUP(DropDownList!$B$24,CntyQryCensus!$A$161:$GX$179,CS$1) -> 0 | CT65: =VLOOKUP(DropDownList!$B$24,CntyQryCensus!$A$161:$GX$179,CT$1) -> 0 | CU65: =VLOOKUP(DropDownList!$B$24,CntyQryCensus!$A$161:$GX$179,CU$1) -> 0 | CV65: =VLOOKUP(DropDownList!$B$24,CntyQryCensus!$A$161:$GX$179,CV$1) -> 0 | CW65: =VLOOKUP(DropDownList!$B$24,CntyQryCensus!$A$161:$GX$179,CW$1) -> 0 | CX65: =VLOOKUP(DropDownList!$B$24,CntyQryCensus!$A$161:$GX$179,CX$1) -> 0 | CY65: =VLOOKUP(DropDownList!$B$24,CntyQryCensus!$A$161:$GX$179,CY$1) -> 0 | CZ65: =VLOOKUP(DropDownList!$B$24,CntyQryCensus!$A$161:$GX$179,CZ$1) -> 50 | DA65: =VLOOKUP(DropDownList!$B$24,CntyQryCensus!$A$161:$GX$179,DA$1) -> 0 | DB65: =VLOOKUP(DropDownList!$B$24,CntyQryCensus!$A$161:$GX$179,DB$1) -> 50 | DC65: =VLOOKUP(DropDownList!$B$24,CntyQryCensus!$A$161:$GX$179,DC$1) -> 35 | DD65: =VLOOKUP(DropDownList!$B$24,CntyQryCensus!$A$161:$GX$179,DD$1) -> 0 | DE65: =VLOOKUP(DropDownList!$B$24,CntyQryCensus!$A$161:$GX$179,DE$1) -> 6 | DF65: =VLOOKUP(DropDownList!$B$24,CntyQryCensus!$A$161:$GX$179,DF$1) -> 0 | DG65: =VLOOKUP(DropDownList!$B$24,CntyQryCensus!$A$161:$GX$179,DG$1) -> 0 | DH65: =VLOOKUP(DropDownList!$B$24,CntyQryCensus!$A$161:$GX$179,DH$1) -> 0 | DI65: =VLOOKUP(DropDownList!$B$24,CntyQryCensus!$A$161:$GX$179,DI$1) -> 0 | DJ65: =VLOOKUP(DropDownList!$B$24,CntyQryCensus!$A$161:$GX$179,DJ$1) -> 0 | DK65: =VLOOKUP(DropDownList!$B$24,CntyQryCensus!$A$161:$GX$179,DK$1) -> 9 | DL65: =VLOOKUP(DropDownList!$B$24,CntyQryCensus!$A$161:$GX$179,DL$1) -> 0 | DM65: =VLOOKUP(DropDownList!$B$24,CntyQryCensus!$A$161:$GX$179,DM$1) -> 600 | DN65: =VLOOKUP(DropDownList!$B$24,CntyQryCensus!$A$161:$GX$179,DN$1) -> 447 | DO65: =VLOOKUP(DropDownList!$B$24,CntyQryCensus!$A$161:$GX$179,DO$1) -> 330 | DP65: =VLOOKUP(DropDownList!$B$24,CntyQryCensus!$A$161:$GX$179,DP$1) -> 0 | DQ65: =VLOOKUP(DropDownList!$B$24,CntyQryCensus!$A$161:$GX$179,DQ$1) -> 0 | DR65: =VLOOKUP(DropDownList!$B$24,CntyQryCensus!$A$161:$GX$179,DR$1) -> 0 | DS65: =VLOOKUP(DropDownList!$B$24,CntyQryCensus!$A$161:$GX$179,DS$1) -> 0 | DT65: =VLOOKUP(DropDownList!$B$24,CntyQryCensus!$A$161:$GX$179,DT$1) -> 0 | DU65: =VLOOKUP(DropDownList!$B$24,CntyQryCensus!$A$161:$GX$179,DU$1) -> 0 | DV65: =VLOOKUP(DropDownList!$B$24,CntyQryCensus!$A$161:$GX$179,DV$1) -> 0 | DW65: =VLOOKUP(DropDownList!$B$24,CntyQryCensus!$A$161:$GX$179,DW$1) -> 117 | DX65: =VLOOKUP(DropDownList!$B$24,CntyQryCensus!$A$161:$GX$179,DX$1) -> 0 | DY65: =VLOOKUP(DropDownList!$B$24,CntyQryCensus!$A$161:$GX$179,DY$1) -> 153 | DZ65: =VLOOKUP(DropDownList!$B$24,CntyQryCensus!$A$161:$GX$179,DZ$1) -> 104 | EA65: =VLOOKUP(DropDownList!$B$24,CntyQryCensus!$A$161:$GX$179,EA$1) -> 0 | EB65: =VLOOKUP(DropDownList!$B$24,CntyQryCensus!$A$161:$GX$179,EB$1) -> 13 | EC65: =VLOOKUP(DropDownList!$B$24,CntyQryCensus!$A$161:$GX$179,EC$1) -> 0 | ED65: =VLOOKUP(DropDownList!$B$24,CntyQryCensus!$A$161:$GX$179,ED$1) -> 0 | EE65: =VLOOKUP(DropDownList!$B$24,CntyQryCensus!$A$161:$GX$179,EE$1) -> 0 | EF65: =VLOOKUP(DropDownList!$B$24,CntyQryCensus!$A$161:$GX$179,EF$1) -> 0 | EG65: =VLOOKUP(DropDownList!$B$24,CntyQryCensus!$A$161:$GX$179,EG$1) -> 0 | EH65: =VLOOKUP(DropDownList!$B$24,CntyQryCensus!$A$161:$GX$179,EH$1) -> 36 | EI65: =VLOOKUP(DropDownList!$B$24,CntyQryCensus!$A$161:$GX$179,EI$1) -> 0 | EJ65: =VLOOKUP(DropDownList!$B$24,CntyQryCensus!$A$161:$GX$179,EJ$1) -> 237 | EK65: =VLOOKUP(DropDownList!$B$24,CntyQryCensus!$A$161:$GX$179,EK$1) -> 187 | EL65: =VLOOKUP(DropDownList!$B$24,CntyQryCensus!$A$161:$GX$179,EL$1) -> 5 | EM65: =VLOOKUP(DropDownList!$B$24,CntyQryCensus!$A$161:$GX$179,EM$1) -> 15 | EN65: =VLOOKUP(DropDownList!$B$24,CntyQryCensus!$A$161:$GX$179,EN$1) -> 21 | EO65: =VLOOKUP(DropDownList!$B$24,CntyQryCensus!$A$161:$GX$179,EO$1) -> 42 | EP65: =VLOOKUP(DropDownList!$B$24,CntyQryCensus!$A$161:$GX$179,EP$1) -> 49 | EQ65: =VLOOKUP(DropDownList!$B$24,CntyQryCensus!$A$161:$GX$179,EQ$1) -> 13 | ER65: =VLOOKUP(DropDownList!$B$24,CntyQryCensus!$A$161:$GX$179,ER$1) -> 13 | ES65: =VLOOKUP(DropDownList!$B$24,CntyQryCensus!$A$161:$GX$179,ES$1) -> 8 | ET65: =VLOOKUP(DropDownList!$B$24,CntyQryCensus!$A$161:$GX$179,ET$1) -> 21 | EU65: =VLOOKUP(DropDownList!$B$24,CntyQryCensus!$A$161:$GX$179,EU$1) -> 50 | EV65: =VLOOKUP(DropDownList!$B$24,CntyQryCensus!$A$161:$GX$179,EV$1) -> 0 | EW65: =VLOOKUP(DropDownList!$B$24,CntyQryCensus!$A$161:$GX$179,EW$1) -> 3 | EX65: =VLOOKUP(DropDownList!$B$24,CntyQryCensus!$A$161:$GX$179,EX$1) -> 4 | EY65: =VLOOKUP(DropDownList!$B$24,CntyQryCensus!$A$161:$GX$179,EY$1) -> 1 | EZ65: =VLOOKUP(DropDownList!$B$24,CntyQryCensus!$A$161:$GX$179,EZ$1) -> 17 | FA65: =VLOOKUP(DropDownList!$B$24,CntyQryCensus!$A$161:$GX$179,FA$1) -> 2 | FB65: =VLOOKUP(DropDownList!$B$24,CntyQryCensus!$A$161:$GX$179,FB$1) -> 6 | FC65: =VLOOKUP(DropDownList!$B$24,CntyQryCensus!$A$161:$GX$179,FC$1) -> 6 | FD65: =VLOOKUP(DropDownList!$B$24,CntyQryCensus!$A$161:$GX$179,FD$1) -> 11 | FE65: =VLOOKUP(DropDownList!$B$24,CntyQryCensus!$A$161:$GX$179,FE$1) -> 237 | FF65: =VLOOKUP(DropDownList!$B$24,CntyQryCensus!$A$161:$GX$179,FF$1) -> 0 | FG65: =VLOOKUP(DropDownList!$B$24,CntyQryCensus!$A$161:$GX$179,FG$1) -> 55 | FH65: =VLOOKUP(DropDownList!$B$24,CntyQryCensus!$A$161:$GX$179,FH$1) -> 2 | FI65: =VLOOKUP(DropDownList!$B$24,CntyQryCensus!$A$161:$GX$179,FI$1) -> 160 | FJ65: =VLOOKUP(DropDownList!$B$24,CntyQryCensus!$A$161:$GX$179,FJ$1) -> 0 | FK65: =VLOOKUP(DropDownList!$B$24,CntyQryCensus!$A$161:$GX$179,FK$1) -> 20 | FL65: =VLOOKUP(DropDownList!$B$24,CntyQryCensus!$A$161:$GX$179,FL$1) -> 0 | FM65: =VLOOKUP(DropDownList!$B$24,CntyQryCensus!$A$161:$GX$179,FM$1) -> 0 | FN65: =VLOOKUP(DropDownList!$B$24,CntyQryCensus!$A$161:$GX$179,FN$1) -> 0 | FO65: =VLOOKUP(DropDownList!$B$24,CntyQryCensus!$A$161:$GX$179,FO$1) -> 491 | FP65: =VLOOKUP(DropDownList!$B$24,CntyQryCensus!$A$161:$GX$179,FP$1) -> 16 | FQ65: =VLOOKUP(DropDownList!$B$24,CntyQryCensus!$A$161:$GX$179,FQ$1) -> 100 | FR65: =VLOOKUP(DropDownList!$B$24,CntyQryCensus!$A$161:$GX$179,FR$1) -> 184 | FS65: =VLOOKUP(DropDownList!$B$24,CntyQryCensus!$A$161:$GX$179,FS$1) -> 140 | FT65: =VLOOKUP(DropDownList!$B$24,CntyQryCensus!$A$161:$GX$179,FT$1) -> 49 | FU65: =VLOOKUP(DropDownList!$B$24,CntyQryCensus!$A$161:$GX$179,FU$1) -> 2 | FV65: =VLOOKUP(DropDownList!$B$24,CntyQryCensus!$A$161:$GX$179,FV$1) -> 237 | FW65: =VLOOKUP(DropDownList!$B$24,CntyQryCensus!$A$161:$GX$179,FW$1) -> 187 | FX65: =VLOOKUP(DropDownList!$B$24,CntyQryCensus!$A$161:$GX$179,FX$1) -> 0 | FY65: =VLOOKUP(DropDownList!$B$24,CntyQryCensus!$A$161:$GX$179,FY$1) -> 7 | FZ65: =VLOOKUP(DropDownList!$B$24,CntyQryCensus!$A$161:$GX$179,FZ$1) -> 75 | GA65: =VLOOKUP(DropDownList!$B$24,CntyQryCensus!$A$161:$GX$179,GA$1) -> 86 | GB65: =VLOOKUP(DropDownList!$B$24,CntyQryCensus!$A$161:$GX$179,GB$1) -> 17 | GC65: =VLOOKUP(DropDownList!$B$24,CntyQryCensus!$A$161:$GX$179,GC$1) -> 2 | GD65: =VLOOKUP(DropDownList!$B$24,CntyQryCensus!$A$161:$GX$179,GD$1) -> 50 | GE65: =VLOOKUP(DropDownList!$B$24,CntyQryCensus!$A$161:$GX$179,GE$1) -> 0 | GF65: =VLOOKUP(DropDownList!$B$24,CntyQryCensus!$A$161:$GX$179,GF$1) -> 9 | GG65: =VLOOKUP(DropDownList!$B$24,CntyQryCensus!$A$161:$GX$179,GG$1) -> 15 | GH65: =VLOOKUP(DropDownList!$B$24,CntyQryCensus!$A$161:$GX$179,GH$1) -> 16 | GI65: =VLOOKUP(DropDownList!$B$24,CntyQryCensus!$A$161:$GX$179,GI$1) -> 10 | GJ65: =VLOOKUP(DropDownList!$B$24,CntyQryCensus!$A$161:$GX$179,GJ$1) -> 0 | GK65: =VLOOKUP(DropDownList!$B$24,CntyQryCensus!$A$161:$GX$179,GK$1) -> 237 | GL65: =VLOOKUP(DropDownList!$B$24,CntyQryCensus!$A$161:$GX$179,GL$1) -> 187 | GM65: =VLOOKUP(DropDownList!$B$24,CntyQryCensus!$A$161:$GX$179,GM$1) -> 187 | GN65: =VLOOKUP(DropDownList!$B$24,CntyQryCensus!$A$161:$GX$179,GN$1) -> 0 | GO65: =VLOOKUP(DropDownList!$B$24,CntyQryCensus!$A$161:$GX$179,GO$1) -> 50 | GP65: =VLOOKUP(DropDownList!$B$24,CntyQryCensus!$A$161:$GX$179,GP$1) -> 50 | GQ65: =VLOOKUP(DropDownList!$B$24,CntyQryCensus!$A$161:$GX$179,GQ$1) -> 0 | GR65: =VLOOKUP(DropDownList!$B$24,CntyQryCensus!$A$161:$GX$179,GR$1) -> 237 | GS65: =VLOOKUP(DropDownList!$B$24,CntyQryCensus!$A$161:$GX$179,GS$1) -> 187 | GT65: =VLOOKUP(DropDownList!$B$24,CntyQryCensus!$A$161:$GX$179,GT$1) -> 187 | GU65: =VLOOKUP(DropDownList!$B$24,CntyQryCensus!$A$161:$GX$179,GU$1) -> 0 | GV65: =VLOOKUP(DropDownList!$B$24,CntyQryCensus!$A$161:$GX$179,GV$1) -> 50 | GW65: =VLOOKUP(DropDownList!$B$24,CntyQryCensus!$A$161:$GX$179,GW$1) -> 50 | GX65: =VLOOKUP(DropDownList!$B$24,CntyQryCensus!$A$161:$GX$179,GX$1) -> 0
A68: Census 2000 SummaryFile3 Sample Data - SF3TownQry8HousingCostA
A69: NAME | B69: LOGRECNO | C69: COUNTY | D69: TotalPop | E69: H62RntrOccHU | F69: H62RntrOccHUwRent | G69: H62ROHUGRent<100 | H69: H62ROHUGRent100to149 | I69: H62ROHUGRent150to199 | J69: H62ROHUGRent200to249 | K69: H62ROHUGRent250to299 | L69: H62ROHUGRent300to349 | M69: H62ROHUGRent350to399 | N69: H62ROHUGRent400to449 | O69: H62ROHUGRent450to499 | P69: H62ROHUGRent500to549 | Q69: H62ROHUGRent550to599 | R69: H62ROHUGRent600to649 | S69: H62ROHUGRent650to699 | T69: H62ROHUGRent700to749 | U69: H62ROHUGRent750to799 | V69: H62ROHUGRent800to899 | W69: H62ROHUGRent900to999 | X69: H62ROHUGRent1000to1249 | Y69: H62ROHUGRent1250to1499 | Z69: H62ROHUGRent1500to1999 | AA69: H62ROHUGRent2000> | AB69: H62ROHUNoGRent | AC69: H63MedianGrossRnt | AD69: H69RenterOccHsU | AE69: H69GRnt<10PctHHInc | AF69: H69GRnt10to15PctHHInc | AG69: H69GRnt15to20PctHHInc | AH69: H69GRnt20to25PctHHInc | AI69: H69GRnt25to30PctHHInc | AJ69: H69GRnt30to35PctHHInc | AK69: H69GRnt35to40PctHHInc | AL69: H69GRnt40to50PctHHInc | AM69: H69GRnt>50PctHHInc | AN69: H69GRntPctNotcomputed | AO69: H73RenterOccHU | AP69: H73ROHUHhInc<10k | AQ69: H73ROHUHhInc<10kRnt<20pct | AR69: H73ROHUHhInc<10kRnt20to25pct | AS69: H73ROHUHhInc<10kRnt25to30pct | AT69: H73ROHUHhInc<10kRnt30to35pct | AU69: H73ROHUHhInc<10kRnt>35pct | AV69: H73ROHUHhInc<10kPctNotComput | AW69: H73ROHUHhInc10to20k | AX69: H73ROHUHhInc10to20kRnt<20pct | AY69: H73ROHUHhInc10to20kRnt20to25pct | AZ69: H73ROHUHhInc10to20kRnt25to30pct | BA69: H73ROHUHhInc10to20kRnt30to35pct | BB69: H73ROHUHhInc10to20kRnt>35pct | BC69: H73ROHUHhInc10to20kRntPctNC | BD69: H73ROHUHhInc20to35k | BE69: H73ROHUHhInc20to35kRnt<20pct | BF69: H73ROHUHhInc20to35kRnt20to25pct | BG69: H73ROHUHhInc20to35kRnt25to30pct | BH69: H73ROHUHhInc20to35kRnt30to35pct | BI69: H73ROHUHhInc20to35kRnt>35pct | BJ69: H73ROHUHhInc20to35kRntPctNC | BK69: H73ROHUHhInc35to40k | BL69: H73ROHUHhInc35to40kRnt<20pct | BM69: H73ROHUHhInc35to40kRnt20to25pct | BN69: H73ROHUHhInc35to40kRnt25to30pct | BO69: H73ROHUHhInc35to40kRnt30to35pct | BP69: H73ROHUHhInc35to40kRnt>35pct | BQ69: H73ROHUHhInc35to40kRntPctNC | BR69: H73ROHUHhInc50to75k | BS69: H73ROHUHhInc50to75kRnt<20pct | BT69: H73ROHUHhInc50to75kRnt20to25pct | BU69: H73ROHUHhInc50to75kRnt25to30pct | BV69: H73ROHUHhInc50to75kRnt30to35pct | BW69: H73ROHUHhInc50to75kRnt>35pct | BX69: H73ROHUHhInc50to75kRntPctNC | BY69: H73ROHUHhInc75to100k | BZ69: H73ROHUHhInc75to100kRnt<20pct | CA69: H73ROHUHhInc75to100kRnt20to25pct | CB69: H73ROHUHhInc75to100kRnt25to30pct | CC69: H73ROHUHhInc75to100kRnt30to35pct | CD69: H73ROHUHhInc75to100kRnt>35pct | CE69: H73ROHUHhInc75to100kRntPctNC | CF69: H73ROHUHhInc>100k | CG69: H73ROHUHhInc>100kRnt<20pct | CH69: H73ROHUHhInc>100kRnt20to25pct | CI69: H73ROHUHhInc>100kRnt25to30pct | CJ69: H73ROHUHhInc>100kRnt30to35pct | CK69: H73ROHUHhInc>100kRnt>35pct | CL69: H73ROHUHhInc>100kRntPctNC
A70: =VLOOKUP(DropDownList!$B$24,CntyQryCensus!$A$187:$CL$205,A$1) -> Albany | B70: =VLOOKUP(DropDownList!$B$24,CntyQryCensus!$A$187:$CL$205,B$1) -> 0000308 | C70: =VLOOKUP(DropDownList!$B$24,CntyQryCensus!$A$187:$CL$205,C$1) -> 00420 | D70: =VLOOKUP(DropDownList!$B$24,CntyQryCensus!$A$187:$CL$205,D$1) -> 654 | E70: =VLOOKUP(DropDownList!$B$24,CntyQryCensus!$A$187:$CL$205,E$1) -> 50 | F70: =VLOOKUP(DropDownList!$B$24,CntyQryCensus!$A$187:$CL$205,F$1) -> 46 | G70: =VLOOKUP(DropDownList!$B$24,CntyQryCensus!$A$187:$CL$205,G$1) -> 0 | H70: =VLOOKUP(DropDownList!$B$24,CntyQryCensus!$A$187:$CL$205,H$1) -> 0 | I70: =VLOOKUP(DropDownList!$B$24,CntyQryCensus!$A$187:$CL$205,I$1) -> 0 | J70: =VLOOKUP(DropDownList!$B$24,CntyQryCensus!$A$187:$CL$205,J$1) -> 0 | K70: =VLOOKUP(DropDownList!$B$24,CntyQryCensus!$A$187:$CL$205,K$1) -> 3 | L70: =VLOOKUP(DropDownList!$B$24,CntyQryCensus!$A$187:$CL$205,L$1) -> 1 | M70: =VLOOKUP(DropDownList!$B$24,CntyQryCensus!$A$187:$CL$205,M$1) -> 2 | N70: =VLOOKUP(DropDownList!$B$24,CntyQryCensus!$A$187:$CL$205,N$1) -> 3 | O70: =VLOOKUP(DropDownList!$B$24,CntyQryCensus!$A$187:$CL$205,O$1) -> 2 | P70: =VLOOKUP(DropDownList!$B$24,CntyQryCensus!$A$187:$CL$205,P$1) -> 0 | Q70: =VLOOKUP(DropDownList!$B$24,CntyQryCensus!$A$187:$CL$205,Q$1) -> 4 | R70: =VLOOKUP(DropDownList!$B$24,CntyQryCensus!$A$187:$CL$205,R$1) -> 4 | S70: =VLOOKUP(DropDownList!$B$24,CntyQryCensus!$A$187:$CL$205,S$1) -> 8 | T70: =VLOOKUP(DropDownList!$B$24,CntyQryCensus!$A$187:$CL$205,T$1) -> 9 | U70: =VLOOKUP(DropDownList!$B$24,CntyQryCensus!$A$187:$CL$205,U$1) -> 2 | V70: =VLOOKUP(DropDownList!$B$24,CntyQryCensus!$A$187:$CL$205,V$1) -> 6 | W70: =VLOOKUP(DropDownList!$B$24,CntyQryCensus!$A$187:$CL$205,W$1) -> 2 | X70: =VLOOKUP(DropDownList!$B$24,CntyQryCensus!$A$187:$CL$205,X$1) -> 0 | Y70: =VLOOKUP(DropDownList!$B$24,CntyQryCensus!$A$187:$CL$205,Y$1) -> 0 | Z70: =VLOOKUP(DropDownList!$B$24,CntyQryCensus!$A$187:$CL$205,Z$1) -> 0 | AA70: =VLOOKUP(DropDownList!$B$24,CntyQryCensus!$A$187:$CL$205,AA$1) -> 0 | AB70: =VLOOKUP(DropDownList!$B$24,CntyQryCensus!$A$187:$CL$205,AB$1) -> 4 | AC70: =VLOOKUP(DropDownList!$B$24,CntyQryCensus!$A$187:$CL$205,AC$1) -> 675 | AD70: =VLOOKUP(DropDownList!$B$24,CntyQryCensus!$A$187:$CL$205,AD$1) -> 50 | AE70: =VLOOKUP(DropDownList!$B$24,CntyQryCensus!$A$187:$CL$205,AE$1) -> 4 | AF70: =VLOOKUP(DropDownList!$B$24,CntyQryCensus!$A$187:$CL$205,AF$1) -> 5 | AG70: =VLOOKUP(DropDownList!$B$24,CntyQryCensus!$A$187:$CL$205,AG$1) -> 5 | AH70: =VLOOKUP(DropDownList!$B$24,CntyQryCensus!$A$187:$CL$205,AH$1) -> 9 | AI70: =VLOOKUP(DropDownList!$B$24,CntyQryCensus!$A$187:$CL$205,AI$1) -> 4 | AJ70: =VLOOKUP(DropDownList!$B$24,CntyQryCensus!$A$187:$CL$205,AJ$1) -> 2 | AK70: =VLOOKUP(DropDownList!$B$24,CntyQryCensus!$A$187:$CL$205,AK$1) -> 0 | AL70: =VLOOKUP(DropDownList!$B$24,CntyQryCensus!$A$187:$CL$205,AL$1) -> 8 | AM70: =VLOOKUP(DropDownList!$B$24,CntyQryCensus!$A$187:$CL$205,AM$1) -> 7 | AN70: =VLOOKUP(DropDownList!$B$24,CntyQryCensus!$A$187:$CL$205,AN$1) -> 6 | AO70: =VLOOKUP(DropDownList!$B$24,CntyQryCensus!$A$187:$CL$205,AO$1) -> 50 | AP70: =VLOOKUP(DropDownList!$B$24,CntyQryCensus!$A$187:$CL$205,AP$1) -> 7 | AQ70: =VLOOKUP(DropDownList!$B$24,CntyQryCensus!$A$187:$CL$205,AQ$1) -> 0 | AR70: =VLOOKUP(DropDownList!$B$24,CntyQryCensus!$A$187:$CL$205,AR$1) -> 0 | AS70: =VLOOKUP(DropDownList!$B$24,CntyQryCensus!$A$187:$CL$205,AS$1) -> 0 | AT70: =VLOOKUP(DropDownList!$B$24,CntyQryCensus!$A$187:$CL$205,AT$1) -> 0 | AU70: =VLOOKUP(DropDownList!$B$24,CntyQryCensus!$A$187:$CL$205,AU$1) -> 5 | AV70: =VLOOKUP(DropDownList!$B$24,CntyQryCensus!$A$187:$CL$205,AV$1) -> 2 | AW70: =VLOOKUP(DropDownList!$B$24,CntyQryCensus!$A$187:$CL$205,AW$1) -> 13 | AX70: =VLOOKUP(DropDownList!$B$24,CntyQryCensus!$A$187:$CL$205,AX$1) -> 3 | AY70: =VLOOKUP(DropDownList!$B$24,CntyQryCensus!$A$187:$CL$205,AY$1) -> 0 | AZ70: =VLOOKUP(DropDownList!$B$24,CntyQryCensus!$A$187:$CL$205,AZ$1) -> 0 | BA70: =VLOOKUP(DropDownList!$B$24,CntyQryCensus!$A$187:$CL$205,BA$1) -> 0 | BB70: =VLOOKUP(DropDownList!$B$24,CntyQryCensus!$A$187:$CL$205,BB$1) -> 8 | BC70: =VLOOKUP(DropDownList!$B$24,CntyQryCensus!$A$187:$CL$205,BC$1) -> 2 | BD70: =VLOOKUP(DropDownList!$B$24,CntyQryCensus!$A$187:$CL$205,BD$1) -> 10 | BE70: =VLOOKUP(DropDownList!$B$24,CntyQryCensus!$A$187:$CL$205,BE$1) -> 0 | BF70: =VLOOKUP(DropDownList!$B$24,CntyQryCensus!$A$187:$CL$205,BF$1) -> 0 | BG70: =VLOOKUP(DropDownList!$B$24,CntyQryCensus!$A$187:$CL$205,BG$1) -> 4 | BH70: =VLOOKUP(DropDownList!$B$24,CntyQryCensus!$A$187:$CL$205,BH$1) -> 2 | BI70: =VLOOKUP(DropDownList!$B$24,CntyQryCensus!$A$187:$CL$205,BI$1) -> 2 | BJ70: =VLOOKUP(DropDownList!$B$24,CntyQryCensus!$A$187:$CL$205,BJ$1) -> 2 | BK70: =VLOOKUP(DropDownList!$B$24,CntyQryCensus!$A$187:$CL$205,BK$1) -> 7 | BL70: =VLOOKUP(DropDownList!$B$24,CntyQryCensus!$A$187:$CL$205,BL$1) -> 0 | BM70: =VLOOKUP(DropDownList!$B$24,CntyQryCensus!$A$187:$CL$205,BM$1) -> 7 | BN70: =VLOOKUP(DropDownList!$B$24,CntyQryCensus!$A$187:$CL$205,BN$1) -> 0 | BO70: =VLOOKUP(DropDownList!$B$24,CntyQryCensus!$A$187:$CL$205,BO$1) -> 0 | BP70: =VLOOKUP(DropDownList!$B$24,CntyQryCensus!$A$187:$CL$205,BP$1) -> 0 | BQ70: =VLOOKUP(DropDownList!$B$24,CntyQryCensus!$A$187:$CL$205,BQ$1) -> 0 | BR70: =VLOOKUP(DropDownList!$B$24,CntyQryCensus!$A$187:$CL$205,BR$1) -> 9 | BS70: =VLOOKUP(DropDownList!$B$24,CntyQryCensus!$A$187:$CL$205,BS$1) -> 7 | BT70: =VLOOKUP(DropDownList!$B$24,CntyQryCensus!$A$187:$CL$205,BT$1) -> 2 | BU70: =VLOOKUP(DropDownList!$B$24,CntyQryCensus!$A$187:$CL$205,BU$1) -> 0 | BV70: =VLOOKUP(DropDownList!$B$24,CntyQryCensus!$A$187:$CL$205,BV$1) -> 0 | BW70: =VLOOKUP(DropDownList!$B$24,CntyQryCensus!$A$187:$CL$205,BW$1) -> 0 | BX70: =VLOOKUP(DropDownList!$B$24,CntyQryCensus!$A$187:$CL$205,BX$1) -> 0 | BY70: =VLOOKUP(DropDownList!$B$24,CntyQryCensus!$A$187:$CL$205,BY$1) -> 2 | BZ70: =VLOOKUP(DropDownList!$B$24,CntyQryCensus!$A$187:$CL$205,BZ$1) -> 2 | CA70: =VLOOKUP(DropDownList!$B$24,CntyQryCensus!$A$187:$CL$205,CA$1) -> 0 | CB70: =VLOOKUP(DropDownList!$B$24,CntyQryCensus!$A$187:$CL$205,CB$1) -> 0 | CC70: =VLOOKUP(DropDownList!$B$24,CntyQryCensus!$A$187:$CL$205,CC$1) -> 0 | CD70: =VLOOKUP(DropDownList!$B$24,CntyQryCensus!$A$187:$CL$205,CD$1) -> 0 | CE70: =VLOOKUP(DropDownList!$B$24,CntyQryCensus!$A$187:$CL$205,CE$1) -> 0 | CF70: =VLOOKUP(DropDownList!$B$24,CntyQryCensus!$A$187:$CL$205,CF$1) -> 2 | CG70: =VLOOKUP(DropDownList!$B$24,CntyQryCensus!$A$187:$CL$205,CG$1) -> 2 | CH70: =VLOOKUP(DropDownList!$B$24,CntyQryCensus!$A$187:$CL$205,CH$1) -> 0 | CI70: =VLOOKUP(DropDownList!$B$24,CntyQryCensus!$A$187:$CL$205,CI$1) -> 0 | CJ70: =VLOOKUP(DropDownList!$B$24,CntyQryCensus!$A$187:$CL$205,CJ$1) -> 0 | CK70: =VLOOKUP(DropDownList!$B$24,CntyQryCensus!$A$187:$CL$205,CK$1) -> 0 | CL70: =VLOOKUP(DropDownList!$B$24,CntyQryCensus!$A$187:$CL$205,CL$1) -> 0
A73: Census 2000 SummaryFile3 Sample Data - SF3TownQry8HousingCostB
A74: NAME | B74: LOGRECNO | C74: COUNTY | D74: TotalPop | E74: H74SpecOwnerOccHU | F74: H74OOHU<10k | G74: H74OOHU10to15k | H74: H74OOHU15to20k | I74: H74OOHU20to25k | J74: H74OOHU25to30k | K74: H74OOHU30to35k | L74: H74OOHU35to40k | M74: H74OOHU40to50k | N74: H74OOHU50to60k | O74: H74OOHU60to70k | P74: H74OOHU70to80k | Q74: H74OOHU80to90k | R74: H74OOHU90to100k | S74: H74OOHU100to125k | T74: H74OOHU125to150k | U74: H74OOHU150to175k | V74: H74OOHU175to200k | W74: H74OOHU200to250k | X74: H74OOHU250to300k | Y74: H74OOHU300to400k | Z74: H74OOHU400to500k | AA74: H74OOHU500to750k | AB74: H74OOHU750to1000k | AC74: H74OOHU1000kmore | AD74: H76OOHUMedianVal | AE74: H84OwnerOccHU | AF74: H84AllOOHU<10k | AG74: H84AllOOHU10to15k | AH74: H84AllOOHU15to20k | AI74: H84AllOOHU20to25k | AJ74: H84AllOOHU25to30k | AK74: H84AllOOHU30to35k | AL74: H84AllOOHU35to40k | AM74: H84AllOOHU40to50k | AN74: H84AllOOHU50to60k | AO74: H84AllOOHU60to70k | AP74: H84AllOOHU70to80k | AQ74: H84AllOOHU80to90k | AR74: H84AllOOHU90to100k | AS74: H84AllOOHU100to125k | AT74: H84AllOOHU125to150k | AU74: H84AllOOHU150to175k | AV74: H84AllOOHU175to200k | AW74: H84AllOOHU200to250k | AX74: H84AllOOHU250to300k | AY74: H84AllOOHU300to400k | AZ74: H84AllOOHU400to500k | BA74: H84AllOOHU500to750k | BB74: H84AllOOHU750to1000k | BC74: H84AllOOHU1000kmore | BD74: H85OOHUMedVal | BE74: H90SOOHU | BF74: H90HUwMorgt | BG74: H90HUwMtgHC<200 | BH74: H90HUwMtgHC200to300 | BI74: H90HUwMtgHC300to400 | BJ74: H90HUwMtgHC400to500 | BK74: H90HUwMtgHC500to600 | BL74: H90HUwMtgHC600to700 | BM74: H90HUwMtgHC700to800 | BN74: H90HUwMtgHC800to900 | BO74: H90HUwMtgHC900to1000 | BP74: H90HUwMtgHC1000to1250 | BQ74: H90HUwMtgHC1250to1500 | BR74: H90HUwMtgHC1500to2000 | BS74: H90HUwMtgHC2000to2500 | BT74: H90HUwMtgHC2500to3000 | BU74: H90HUwMtgHC3000orMore | BV74: H90HUwOutMorgt | BW74: H90HUwOutMtgHC<100 | BX74: H90HUwOutMtgHC100to150 | BY74: H90HUwOutMtgHC150to200 | BZ74: H90HUwOutMtgHC200to250 | CA74: H90HUwOutMtgHC250to300 | CB74: H90HUwOutMtgHC300to350 | CC74: H90HUwOutMtgHC350to400 | CD74: H90HUwOutMtgHC400to500 | CE74: H90HUwOutMtgHC500to600 | CF74: H90HUwOutMtgHC600to700 | CG74: H90HUwOutMtgHC700to800 | CH74: H90HUwOutMtgHC800to900 | CI74: H90HUwOutMtgHC900to1000 | CJ74: H90HUwOutMtgHC1000orMore | CK74: H91MedianOCHUwMtg | CL74: H91MedianOCHUwOutMtg | CM74: H94SpecOOHU | CN74: H94HUwMortg | CO74: H94HUwMtgHC<10pct | CP74: H94HUwMtgHC10to15pct | CQ74: H94HUwMtgHC15to20pct | CR74: H94HUwMtgHC20to25pct | CS74: H94HUwMtgHC25to30pct | CT74: H94HUwMtgHC30to35pct | CU74: H94HUwMtgHC35to40pct | CV74: H94HUwMtgHC40to50pct | CW74: H94HUwMtgHC50pctOrMore | CX74: H94HUwMtgHCpctNotComp | CY74: H94HUWOutMortg | CZ74: H94HUWOutMortgHC<10pct | DA74: H94HUWOutMortgHC10to15pct | DB74: H94HUWOutMortgHC15to20pct | DC74: H94HUWOutMortgHC20to25pct | DD74: H94HUWOutMortgHC25to30pct | DE74: H94HUWOutMortgHC30to35pct | DF74: H94HUWOutMortgHC35to40pct | DG74: H94HUWOutMortgHC40to50pct | DH74: H94HUWOutMortgHC50pctOrMore | DI74: H94HUWOutMortgHCpctNotComp | DJ74: H97SpecifOwnOccHU | DK74: H97SOOHUInc<10k | DL74: H97SOOHUInc<10kHC<20pct | DM74: H97SOOHUInc<10kHC20to25pct | DN74: H97SOOHUInc<10kHC25to30pct | DO74: H97SOOHUInc<10kHC30to35pct | DP74: H97SOOHUInc<10kHC>35pct | DQ74: H97SOOHUInc<10kHCpctNotComput | DR74: H97SOOHUInc10to20k | DS74: H97SOOHUInc10to20kHC<20pct | DT74: H97SOOHUInc10to20kHC20to25pct | DU74: H97SOOHUInc10to20kHC25to30pct | DV74: H97SOOHUInc10to20kHC30to35pct | DW74: H97SOOHUInc10to20kHC>35pct | DX74: H97SOOHUInc10to20kHCpctNotComput | DY74: H97SOOHUInc20to35k | DZ74: H97SOOHUInc20to35kRC<20pct | EA74: H97SOOHUInc20to35kRC20to25pct | EB74: H97SOOHUInc20to35kRC25to30pct | EC74: H97SOOHUInc20to35kRC30to35pct | ED74: H97SOOHUInc20to35kRC>35pct | EE74: H97SOOHUInc20to35kRCpctNotComput | EF74: H97SOOHUInc35to50k | EG74: H97SOOHUInc35to50kRC<20pct | EH74: H97SOOHUInc35to50kRC20to25pct | EI74: H97SOOHUInc35to50kRC25to30pct | EJ74: H97SOOHUInc35to50kRC30to35pct | EK74: H97SOOHUInc35to50kRC>35pct | EL74: H97SOOHUInc35to50kRCpctNotCompute | EM74: H97SOOHUInc50to75k | EN74: H97SOOHUInc50to75kRC<20pct | EO74: H97SOOHUInc50to75kRC20to25pct | EP74: H97SOOHUInc50to75kRC25to30pct | EQ74: H97SOOHUInc50to75kRC30to35pct | ER74: H97SOOHUInc50to75kRC>35pct | ES74: H97SOOHUInc50to75kRCpctNotComput | ET74: H97SOOHUInc75to100k | EU74: H97SOOHUInc75to100kRC<20pct | EV74: H97SOOHUInc75to100kRC20to25pct | EW74: H97SOOHUInc75to100kRC25to30pct | EX74: H97SOOHUInc75to100kRC30to35pct | EY74: H97SOOHUInc75to100kRC>35pct | EZ74: H97SOOHUInc75to100kRCpctNotCompute | FA74: H97SOOHUInc100to150k | FB74: H97SOOHUInc100to150kRC<20pct | FC74: H97SOOHUInc100to150kRC20to25pct | FD74: H97SOOHUInc100to150kRC25to30pct | FE74: H97SOOHUInc100to150kRC30to35pct | FF74: H97SOOHUInc100to150kRC>35pct | FG74: H97SOOHUInc100to150kRCpctNotCompute | FH74: H97SOOHUInc>150k | FI74: H97SOOHUInc>150kRC<20pct | FJ74: H97SOOHUInc>150kRC20to25pct | FK74: H97SOOHUInc>150kRC25to30pct | FL74: H97SOOHUInc>150kRC30to35pct | FM74: H97SOOHUInc>150kRC>35pct | FN74: H97SOOHUInc>150kRCpctNotCompute
A75: =VLOOKUP(DropDownList!$B$24,CntyQryCensus!$A$213:$FN$231,A$1) -> Albany | B75: =VLOOKUP(DropDownList!$B$24,CntyQryCensus!$A$213:$FN$231,B$1) -> 0000308 | C75: =VLOOKUP(DropDownList!$B$24,CntyQryCensus!$A$213:$FN$231,C$1) -> 00420 | D75: =VLOOKUP(DropDownList!$B$24,CntyQryCensus!$A$213:$FN$231,D$1) -> 654 | E75: =VLOOKUP(DropDownList!$B$24,CntyQryCensus!$A$213:$FN$231,E$1) -> 122 | F75: =VLOOKUP(DropDownList!$B$24,CntyQryCensus!$A$213:$FN$231,F$1) -> 2 | G75: =VLOOKUP(DropDownList!$B$24,CntyQryCensus!$A$213:$FN$231,G$1) -> 0 | H75: =VLOOKUP(DropDownList!$B$24,CntyQryCensus!$A$213:$FN$231,H$1) -> 0 | I75: =VLOOKUP(DropDownList!$B$24,CntyQryCensus!$A$213:$FN$231,I$1) -> 0 | J75: =VLOOKUP(DropDownList!$B$24,CntyQryCensus!$A$213:$FN$231,J$1) -> 0 | K75: =VLOOKUP(DropDownList!$B$24,CntyQryCensus!$A$213:$FN$231,K$1) -> 0 | L75: =VLOOKUP(DropDownList!$B$24,CntyQryCensus!$A$213:$FN$231,L$1) -> 0 | M75: =VLOOKUP(DropDownList!$B$24,CntyQryCensus!$A$213:$FN$231,M$1) -> 4 | N75: =VLOOKUP(DropDownList!$B$24,CntyQryCensus!$A$213:$FN$231,N$1) -> 7 | O75: =VLOOKUP(DropDownList!$B$24,CntyQryCensus!$A$213:$FN$231,O$1) -> 12 | P75: =VLOOKUP(DropDownList!$B$24,CntyQryCensus!$A$213:$FN$231,P$1) -> 28 | Q75: =VLOOKUP(DropDownList!$B$24,CntyQryCensus!$A$213:$FN$231,Q$1) -> 14 | R75: =VLOOKUP(DropDownList!$B$24,CntyQryCensus!$A$213:$FN$231,R$1) -> 7 | S75: =VLOOKUP(DropDownList!$B$24,CntyQryCensus!$A$213:$FN$231,S$1) -> 16 | T75: =VLOOKUP(DropDownList!$B$24,CntyQryCensus!$A$213:$FN$231,T$1) -> 12 | U75: =VLOOKUP(DropDownList!$B$24,CntyQryCensus!$A$213:$FN$231,U$1) -> 14 | V75: =VLOOKUP(DropDownList!$B$24,CntyQryCensus!$A$213:$FN$231,V$1) -> 2 | W75: =VLOOKUP(DropDownList!$B$24,CntyQryCensus!$A$213:$FN$231,W$1) -> 0 | X75: =VLOOKUP(DropDownList!$B$24,CntyQryCensus!$A$213:$FN$231,X$1) -> 2 | Y75: =VLOOKUP(DropDownList!$B$24,CntyQryCensus!$A$213:$FN$231,Y$1) -> 0 | Z75: =VLOOKUP(DropDownList!$B$24,CntyQryCensus!$A$213:$FN$231,Z$1) -> 2 | AA75: =VLOOKUP(DropDownList!$B$24,CntyQryCensus!$A$213:$FN$231,AA$1) -> 0 | AB75: =VLOOKUP(DropDownList!$B$24,CntyQryCensus!$A$213:$FN$231,AB$1) -> 0 | AC75: =VLOOKUP(DropDownList!$B$24,CntyQryCensus!$A$213:$FN$231,AC$1) -> 0 | AD75: =VLOOKUP(DropDownList!$B$24,CntyQryCensus!$A$213:$FN$231,AD$1) -> 85700 | AE75: =VLOOKUP(DropDownList!$B$24,CntyQryCensus!$A$213:$FN$231,AE$1) -> 187 | AF75: =VLOOKUP(DropDownList!$B$24,CntyQryCensus!$A$213:$FN$231,AF$1) -> 4 | AG75: =VLOOKUP(DropDownList!$B$24,CntyQryCensus!$A$213:$FN$231,AG$1) -> 12 | AH75: =VLOOKUP(DropDownList!$B$24,CntyQryCensus!$A$213:$FN$231,AH$1) -> 8 | AI75: =VLOOKUP(DropDownList!$B$24,CntyQryCensus!$A$213:$FN$231,AI$1) -> 14 | AJ75: =VLOOKUP(DropDownList!$B$24,CntyQryCensus!$A$213:$FN$231,AJ$1) -> 3 | AK75: =VLOOKUP(DropDownList!$B$24,CntyQryCensus!$A$213:$FN$231,AK$1) -> 3 | AL75: =VLOOKUP(DropDownList!$B$24,CntyQryCensus!$A$213:$FN$231,AL$1) -> 0 | AM75: =VLOOKUP(DropDownList!$B$24,CntyQryCensus!$A$213:$FN$231,AM$1) -> 12 | AN75: =VLOOKUP(DropDownList!$B$24,CntyQryCensus!$A$213:$FN$231,AN$1) -> 7 | AO75: =VLOOKUP(DropDownList!$B$24,CntyQryCensus!$A$213:$FN$231,AO$1) -> 12 | AP75: =VLOOKUP(DropDownList!$B$24,CntyQryCensus!$A$213:$FN$231,AP$1) -> 30 | AQ75: =VLOOKUP(DropDownList!$B$24,CntyQryCensus!$A$213:$FN$231,AQ$1) -> 14 | AR75: =VLOOKUP(DropDownList!$B$24,CntyQryCensus!$A$213:$FN$231,AR$1) -> 7 | AS75: =VLOOKUP(DropDownList!$B$24,CntyQryCensus!$A$213:$FN$231,AS$1) -> 20 | AT75: =VLOOKUP(DropDownList!$B$24,CntyQryCensus!$A$213:$FN$231,AT$1) -> 14 | AU75: =VLOOKUP(DropDownList!$B$24,CntyQryCensus!$A$213:$FN$231,AU$1) -> 16 | AV75: =VLOOKUP(DropDownList!$B$24,CntyQryCensus!$A$213:$FN$231,AV$1) -> 4 | AW75: =VLOOKUP(DropDownList!$B$24,CntyQryCensus!$A$213:$FN$231,AW$1) -> 0 | AX75: =VLOOKUP(DropDownList!$B$24,CntyQryCensus!$A$213:$FN$231,AX$1) -> 2 | AY75: =VLOOKUP(DropDownList!$B$24,CntyQryCensus!$A$213:$FN$231,AY$1) -> 0 | AZ75: =VLOOKUP(DropDownList!$B$24,CntyQryCensus!$A$213:$FN$231,AZ$1) -> 2 | BA75: =VLOOKUP(DropDownList!$B$24,CntyQryCensus!$A$213:$FN$231,BA$1) -> 3 | BB75: =VLOOKUP(DropDownList!$B$24,CntyQryCensus!$A$213:$FN$231,BB$1) -> 0 | BC75: =VLOOKUP(DropDownList!$B$24,CntyQryCensus!$A$213:$FN$231,BC$1) -> 0 | BD75: =VLOOKUP(DropDownList!$B$24,CntyQryCensus!$A$213:$FN$231,BD$1) -> 76200 | BE75: =VLOOKUP(DropDownList!$B$24,CntyQryCensus!$A$213:$FN$231,BE$1) -> 122 | BF75: =VLOOKUP(DropDownList!$B$24,CntyQryCensus!$A$213:$FN$231,BF$1) -> 84 | BG75: =VLOOKUP(DropDownList!$B$24,CntyQryCensus!$A$213:$FN$231,BG$1) -> 0 | BH75: =VLOOKUP(DropDownList!$B$24,CntyQryCensus!$A$213:$FN$231,BH$1) -> 3 | BI75: =VLOOKUP(DropDownList!$B$24,CntyQryCensus!$A$213:$FN$231,BI$1) -> 2 | BJ75: =VLOOKUP(DropDownList!$B$24,CntyQryCensus!$A$213:$FN$231,BJ$1) -> 11 | BK75: =VLOOKUP(DropDownList!$B$24,CntyQryCensus!$A$213:$FN$231,BK$1) -> 8 | BL75: =VLOOKUP(DropDownList!$B$24,CntyQryCensus!$A$213:$FN$231,BL$1) -> 12 | BM75: =VLOOKUP(DropDownList!$B$24,CntyQryCensus!$A$213:$FN$231,BM$1) -> 13 | BN75: =VLOOKUP(DropDownList!$B$24,CntyQryCensus!$A$213:$FN$231,BN$1) -> 9 | BO75: =VLOOKUP(DropDownList!$B$24,CntyQryCensus!$A$213:$FN$231,BO$1) -> 10 | BP75: =VLOOKUP(DropDownList!$B$24,CntyQryCensus!$A$213:$FN$231,BP$1) -> 6 | BQ75: =VLOOKUP(DropDownList!$B$24,CntyQryCensus!$A$213:$FN$231,BQ$1) -> 4 | BR75: =VLOOKUP(DropDownList!$B$24,CntyQryCensus!$A$213:$FN$231,BR$1) -> 4 | BS75: =VLOOKUP(DropDownList!$B$24,CntyQryCensus!$A$213:$FN$231,BS$1) -> 0 | BT75: =VLOOKUP(DropDownList!$B$24,CntyQryCensus!$A$213:$FN$231,BT$1) -> 0 | BU75: =VLOOKUP(DropDownList!$B$24,CntyQryCensus!$A$213:$FN$231,BU$1) -> 2 | BV75: =VLOOKUP(DropDownList!$B$24,CntyQryCensus!$A$213:$FN$231,BV$1) -> 38 | BW75: =VLOOKUP(DropDownList!$B$24,CntyQryCensus!$A$213:$FN$231,BW$1) -> 2 | BX75: =VLOOKUP(DropDownList!$B$24,CntyQryCensus!$A$213:$FN$231,BX$1) -> 2 | BY75: =VLOOKUP(DropDownList!$B$24,CntyQryCensus!$A$213:$FN$231,BY$1) -> 2 | BZ75: =VLOOKUP(DropDownList!$B$24,CntyQryCensus!$A$213:$FN$231,BZ$1) -> 0 | CA75: =VLOOKUP(DropDownList!$B$24,CntyQryCensus!$A$213:$FN$231,CA$1) -> 3 | CB75: =VLOOKUP(DropDownList!$B$24,CntyQryCensus!$A$213:$FN$231,CB$1) -> 10 | CC75: =VLOOKUP(DropDownList!$B$24,CntyQryCensus!$A$213:$FN$231,CC$1) -> 6 | CD75: =VLOOKUP(DropDownList!$B$24,CntyQryCensus!$A$213:$FN$231,CD$1) -> 5 | CE75: =VLOOKUP(DropDownList!$B$24,CntyQryCensus!$A$213:$FN$231,CE$1) -> 6 | CF75: =VLOOKUP(DropDownList!$B$24,CntyQryCensus!$A$213:$FN$231,CF$1) -> 0 | CG75: =VLOOKUP(DropDownList!$B$24,CntyQryCensus!$A$213:$FN$231,CG$1) -> 2 | CH75: =VLOOKUP(DropDownList!$B$24,CntyQryCensus!$A$213:$FN$231,CH$1) -> 0 | CI75: =VLOOKUP(DropDownList!$B$24,CntyQryCensus!$A$213:$FN$231,CI$1) -> 0 | CJ75: =VLOOKUP(DropDownList!$B$24,CntyQryCensus!$A$213:$FN$231,CJ$1) -> 0 | CK75: =VLOOKUP(DropDownList!$B$24,CntyQryCensus!$A$213:$FN$231,CK$1) -> 746 | CL75: =VLOOKUP(DropDownList!$B$24,CntyQryCensus!$A$213:$FN$231,CL$1) -> 350 | CM75: =VLOOKUP(DropDownList!$B$24,CntyQryCensus!$A$213:$FN$231,CM$1) -> 122 | CN75: =VLOOKUP(DropDownList!$B$24,CntyQryCensus!$A$213:$FN$231,CN$1) -> 84 | CO75: =VLOOKUP(DropDownList!$B$24,CntyQryCensus!$A$213:$FN$231,CO$1) -> 6 | CP75: =VLOOKUP(DropDownList!$B$24,CntyQryCensus!$A$213:$FN$231,CP$1) -> 9 | CQ75: =VLOOKUP(DropDownList!$B$24,CntyQryCensus!$A$213:$FN$231,CQ$1) -> 32 | CR75: =VLOOKUP(DropDownList!$B$24,CntyQryCensus!$A$213:$FN$231,CR$1) -> 8 | CS75: =VLOOKUP(DropDownList!$B$24,CntyQryCensus!$A$213:$FN$231,CS$1) -> 10 | CT75: =VLOOKUP(DropDownList!$B$24,CntyQryCensus!$A$213:$FN$231,CT$1) -> 6 | CU75: =VLOOKUP(DropDownList!$B$24,CntyQryCensus!$A$213:$FN$231,CU$1) -> 2 | CV75: =VLOOKUP(DropDownList!$B$24,CntyQryCensus!$A$213:$FN$231,CV$1) -> 7 | CW75: =VLOOKUP(DropDownList!$B$24,CntyQryCensus!$A$213:$FN$231,CW$1) -> 4 | CX75: =VLOOKUP(DropDownList!$B$24,CntyQryCensus!$A$213:$FN$231,CX$1) -> 0 | CY75: =VLOOKUP(DropDownList!$B$24,CntyQryCensus!$A$213:$FN$231,CY$1) -> 38 | CZ75: =VLOOKUP(DropDownList!$B$24,CntyQryCensus!$A$213:$FN$231,CZ$1) -> 6 | DA75: =VLOOKUP(DropDownList!$B$24,CntyQryCensus!$A$213:$FN$231,DA$1) -> 8 | DB75: =VLOOKUP(DropDownList!$B$24,CntyQryCensus!$A$213:$FN$231,DB$1) -> 5 | DC75: =VLOOKUP(DropDownList!$B$24,CntyQryCensus!$A$213:$FN$231,DC$1) -> 7 | DD75: =VLOOKUP(DropDownList!$B$24,CntyQryCensus!$A$213:$FN$231,DD$1) -> 2 | DE75: =VLOOKUP(DropDownList!$B$24,CntyQryCensus!$A$213:$FN$231,DE$1) -> 0 | DF75: =VLOOKUP(DropDownList!$B$24,CntyQryCensus!$A$213:$FN$231,DF$1) -> 0 | DG75: =VLOOKUP(DropDownList!$B$24,CntyQryCensus!$A$213:$FN$231,DG$1) -> 4 | DH75: =VLOOKUP(DropDownList!$B$24,CntyQryCensus!$A$213:$FN$231,DH$1) -> 6 | DI75: =VLOOKUP(DropDownList!$B$24,CntyQryCensus!$A$213:$FN$231,DI$1) -> 0 | DJ75: =VLOOKUP(DropDownList!$B$24,CntyQryCensus!$A$213:$FN$231,DJ$1) -> 122 | DK75: =VLOOKUP(DropDownList!$B$24,CntyQryCensus!$A$213:$FN$231,DK$1) -> 9 | DL75: =VLOOKUP(DropDownList!$B$24,CntyQryCensus!$A$213:$FN$231,DL$1) -> 0 | DM75: =VLOOKUP(DropDownList!$B$24,CntyQryCensus!$A$213:$FN$231,DM$1) -> 2 | DN75: =VLOOKUP(DropDownList!$B$24,CntyQryCensus!$A$213:$FN$231,DN$1) -> 0 | DO75: =VLOOKUP(DropDownList!$B$24,CntyQryCensus!$A$213:$FN$231,DO$1) -> 0 | DP75: =VLOOKUP(DropDownList!$B$24,CntyQryCensus!$A$213:$FN$231,DP$1) -> 7 | DQ75: =VLOOKUP(DropDownList!$B$24,CntyQryCensus!$A$213:$FN$231,DQ$1) -> 0 | DR75: =VLOOKUP(DropDownList!$B$24,CntyQryCensus!$A$213:$FN$231,DR$1) -> 17 | DS75: =VLOOKUP(DropDownList!$B$24,CntyQryCensus!$A$213:$FN$231,DS$1) -> 3 | DT75: =VLOOKUP(DropDownList!$B$24,CntyQryCensus!$A$213:$FN$231,DT$1) -> 3 | DU75: =VLOOKUP(DropDownList!$B$24,CntyQryCensus!$A$213:$FN$231,DU$1) -> 2 | DV75: =VLOOKUP(DropDownList!$B$24,CntyQryCensus!$A$213:$FN$231,DV$1) -> 0 | DW75: =VLOOKUP(DropDownList!$B$24,CntyQryCensus!$A$213:$FN$231,DW$1) -> 9 | DX75: =VLOOKUP(DropDownList!$B$24,CntyQryCensus!$A$213:$FN$231,DX$1) -> 0 | DY75: =VLOOKUP(DropDownList!$B$24,CntyQryCensus!$A$213:$FN$231,DY$1) -> 21 | DZ75: =VLOOKUP(DropDownList!$B$24,CntyQryCensus!$A$213:$FN$231,DZ$1) -> 10 | EA75: =VLOOKUP(DropDownList!$B$24,CntyQryCensus!$A$213:$FN$231,EA$1) -> 2 | EB75: =VLOOKUP(DropDownList!$B$24,CntyQryCensus!$A$213:$FN$231,EB$1) -> 2 | EC75: =VLOOKUP(DropDownList!$B$24,CntyQryCensus!$A$213:$FN$231,EC$1) -> 2 | ED75: =VLOOKUP(DropDownList!$B$24,CntyQryCensus!$A$213:$FN$231,ED$1) -> 5 | EE75: =VLOOKUP(DropDownList!$B$24,CntyQryCensus!$A$213:$FN$231,EE$1) -> 0 | EF75: =VLOOKUP(DropDownList!$B$24,CntyQryCensus!$A$213:$FN$231,EF$1) -> 38 | EG75: =VLOOKUP(DropDownList!$B$24,CntyQryCensus!$A$213:$FN$231,EG$1) -> 21 | EH75: =VLOOKUP(DropDownList!$B$24,CntyQryCensus!$A$213:$FN$231,EH$1) -> 7 | EI75: =VLOOKUP(DropDownList!$B$24,CntyQryCensus!$A$213:$FN$231,EI$1) -> 6 | EJ75: =VLOOKUP(DropDownList!$B$24,CntyQryCensus!$A$213:$FN$231,EJ$1) -> 2 | EK75: =VLOOKUP(DropDownList!$B$24,CntyQryCensus!$A$213:$FN$231,EK$1) -> 2 | EL75: =VLOOKUP(DropDownList!$B$24,CntyQryCensus!$A$213:$FN$231,EL$1) -> 0 | EM75: =VLOOKUP(DropDownList!$B$24,CntyQryCensus!$A$213:$FN$231,EM$1) -> 27 | EN75: =VLOOKUP(DropDownList!$B$24,CntyQryCensus!$A$213:$FN$231,EN$1) -> 22 | EO75: =VLOOKUP(DropDownList!$B$24,CntyQryCensus!$A$213:$FN$231,EO$1) -> 1 | EP75: =VLOOKUP(DropDownList!$B$24,CntyQryCensus!$A$213:$FN$231,EP$1) -> 2 | EQ75: =VLOOKUP(DropDownList!$B$24,CntyQryCensus!$A$213:$FN$231,EQ$1) -> 2 | ER75: =VLOOKUP(DropDownList!$B$24,CntyQryCensus!$A$213:$FN$231,ER$1) -> 0 | ES75: =VLOOKUP(DropDownList!$B$24,CntyQryCensus!$A$213:$FN$231,ES$1) -> 0 | ET75: =VLOOKUP(DropDownList!$B$24,CntyQryCensus!$A$213:$FN$231,ET$1) -> 4 | EU75: =VLOOKUP(DropDownList!$B$24,CntyQryCensus!$A$213:$FN$231,EU$1) -> 4 | EV75: =VLOOKUP(DropDownList!$B$24,CntyQryCensus!$A$213:$FN$231,EV$1) -> 0 | EW75: =VLOOKUP(DropDownList!$B$24,CntyQryCensus!$A$213:$FN$231,EW$1) -> 0 | EX75: =VLOOKUP(DropDownList!$B$24,CntyQryCensus!$A$213:$FN$231,EX$1) -> 0 | EY75: =VLOOKUP(DropDownList!$B$24,CntyQryCensus!$A$213:$FN$231,EY$1) -> 0 | EZ75: =VLOOKUP(DropDownList!$B$24,CntyQryCensus!$A$213:$FN$231,EZ$1) -> 0 | FA75: =VLOOKUP(DropDownList!$B$24,CntyQryCensus!$A$213:$FN$231,FA$1) -> 2 | FB75: =VLOOKUP(DropDownList!$B$24,CntyQryCensus!$A$213:$FN$231,FB$1) -> 2 | FC75: =VLOOKUP(DropDownList!$B$24,CntyQryCensus!$A$213:$FN$231,FC$1) -> 0 | FD75: =VLOOKUP(DropDownList!$B$24,CntyQryCensus!$A$213:$FN$231,FD$1) -> 0 | FE75: =VLOOKUP(DropDownList!$B$24,CntyQryCensus!$A$213:$FN$231,FE$1) -> 0 | FF75: =VLOOKUP(DropDownList!$B$24,CntyQryCensus!$A$213:$FN$231,FF$1) -> 0 | FG75: =VLOOKUP(DropDownList!$B$24,CntyQryCensus!$A$213:$FN$231,FG$1) -> 0 | FH75: =VLOOKUP(DropDownList!$B$24,CntyQryCensus!$A$213:$FN$231,FH$1) -> 4 | FI75: =VLOOKUP(DropDownList!$B$24,CntyQryCensus!$A$213:$FN$231,FI$1) -> 4 | FJ75: =VLOOKUP(DropDownList!$B$24,CntyQryCensus!$A$213:$FN$231,FJ$1) -> 0 | FK75: =VLOOKUP(DropDownList!$B$24,CntyQryCensus!$A$213:$FN$231,FK$1) -> 0 | FL75: =VLOOKUP(DropDownList!$B$24,CntyQryCensus!$A$213:$FN$231,FL$1) -> 0 | FM75: =VLOOKUP(DropDownList!$B$24,CntyQryCensus!$A$213:$FN$231,FM$1) -> 0 | FN75: =VLOOKUP(DropDownList!$B$24,CntyQryCensus!$A$213:$FN$231,FN$1) -> 0
A78: Census 2000 SummaryFile3 Sample Data - SF3TownQry9HHIncomeByTenure
A79: NAME | B79: LOGRECNO | C79: COUNTY | D79: TotalPop | E79: HCT11OccHU | F79: HCT11OwnOccHU | G79: HCT11OOHUInc<5K | H79: HCT11OOHUInc5to10K | I79: HCT11OOHUInc10to15K | J79: HCT11OOHUInc15to20K | K79: HCT11OOHUInc20to25K | L79: HCT11OOHUInc25to35K | M79: HCT11OOHUInc35to50K | N79: HCT11OOHUInc50to75K | O79: HCT11OOHUInc75to100K | P79: HCT11OOHUInc100to150K | Q79: HCT11OOHUInc>150K | R79: HCT11RentOccHU | S79: HCT11ROHUInc<5K | T79: HCT11ROHUInc5to10K | U79: HCT11ROHUInc10to15K | V79: HCT11ROHUInc15to20K | W79: HCT11ROHUInc20to25K | X79: HCT11ROHUInc25to35K | Y79: HCT11ROHUInc35to50K | Z79: HCT11ROHUInc50to75K | AA79: HCT11ROHUInc75to100K | AB79: HCT11ROHUInc100to150K | AC79: HCT11ROHUInc>150K | AD79: HCT12MedHHInc | AE79: HCT12MedOwnOccHHInc | AF79: HCT12MedRentOccHHInc
A80: =VLOOKUP(DropDownList!$B$24,CntyQryCensus!$A$239:$AX$257,A$1) -> Albany | B80: =VLOOKUP(DropDownList!$B$24,CntyQryCensus!$A$239:$AX$257,B$1) -> 0000308 | C80: =VLOOKUP(DropDownList!$B$24,CntyQryCensus!$A$239:$AX$257,C$1) -> 00420 | D80: =VLOOKUP(DropDownList!$B$24,CntyQryCensus!$A$239:$AX$257,D$1) -> 654 | E80: =VLOOKUP(DropDownList!$B$24,CntyQryCensus!$A$239:$AX$257,E$1) -> 237 | F80: =VLOOKUP(DropDownList!$B$24,CntyQryCensus!$A$239:$AX$257,F$1) -> 187 | G80: =VLOOKUP(DropDownList!$B$24,CntyQryCensus!$A$239:$AX$257,G$1) -> 4 | H80: =VLOOKUP(DropDownList!$B$24,CntyQryCensus!$A$239:$AX$257,H$1) -> 11 | I80: =VLOOKUP(DropDownList!$B$24,CntyQryCensus!$A$239:$AX$257,I$1) -> 22 | J80: =VLOOKUP(DropDownList!$B$24,CntyQryCensus!$A$239:$AX$257,J$1) -> 19 | K80: =VLOOKUP(DropDownList!$B$24,CntyQryCensus!$A$239:$AX$257,K$1) -> 10 | L80: =VLOOKUP(DropDownList!$B$24,CntyQryCensus!$A$239:$AX$257,L$1) -> 20 | M80: =VLOOKUP(DropDownList!$B$24,CntyQryCensus!$A$239:$AX$257,M$1) -> 45 | N80: =VLOOKUP(DropDownList!$B$24,CntyQryCensus!$A$239:$AX$257,N$1) -> 37 | O80: =VLOOKUP(DropDownList!$B$24,CntyQryCensus!$A$239:$AX$257,O$1) -> 8 | P80: =VLOOKUP(DropDownList!$B$24,CntyQryCensus!$A$239:$AX$257,P$1) -> 2 | Q80: =VLOOKUP(DropDownList!$B$24,CntyQryCensus!$A$239:$AX$257,Q$1) -> 9 | R80: =VLOOKUP(DropDownList!$B$24,CntyQryCensus!$A$239:$AX$257,R$1) -> 50 | S80: =VLOOKUP(DropDownList!$B$24,CntyQryCensus!$A$239:$AX$257,S$1) -> 4 | T80: =VLOOKUP(DropDownList!$B$24,CntyQryCensus!$A$239:$AX$257,T$1) -> 3 | U80: =VLOOKUP(DropDownList!$B$24,CntyQryCensus!$A$239:$AX$257,U$1) -> 2 | V80: =VLOOKUP(DropDownList!$B$24,CntyQryCensus!$A$239:$AX$257,V$1) -> 11 | W80: =VLOOKUP(DropDownList!$B$24,CntyQryCensus!$A$239:$AX$257,W$1) -> 4 | X80: =VLOOKUP(DropDownList!$B$24,CntyQryCensus!$A$239:$AX$257,X$1) -> 6 | Y80: =VLOOKUP(DropDownList!$B$24,CntyQryCensus!$A$239:$AX$257,Y$1) -> 7 | Z80: =VLOOKUP(DropDownList!$B$24,CntyQryCensus!$A$239:$AX$257,Z$1) -> 9 | AA80: =VLOOKUP(DropDownList!$B$24,CntyQryCensus!$A$239:$AX$257,AA$1) -> 2 | AB80: =VLOOKUP(DropDownList!$B$24,CntyQryCensus!$A$239:$AX$257,AB$1) -> 2 | AC80: =VLOOKUP(DropDownList!$B$24,CntyQryCensus!$A$239:$AX$257,AC$1) -> 0 | AD80: =VLOOKUP(DropDownList!$B$24,CntyQryCensus!$A$239:$AX$257,AD$1) -> 35481 | AE80: =VLOOKUP(DropDownList!$B$24,CntyQryCensus!$A$239:$AX$257,AE$1) -> 36442 | AF80: =VLOOKUP(DropDownList!$B$24,CntyQryCensus!$A$239:$AX$257,AF$1) -> 28750
A86: =A96 -> Albany
A94: Census 2000 SummaryFile3 Sample Data - SF3TownQry10Disabil
A95: NAME | B95: LOGRECNO | C95: COUNTY | D95: TotalPop | E95: PCT026001-NonInstPop5yrs+ | F95: PCT026002-MaleNonInstPop5yrs+ | G95: PCT026003 | H95: PCT026004 | I95: PCT026005 | J95: PCT026006 | K95: PCT026007 | L95: PCT026008 | M95: PCT026009 | N95: PCT026010 | O95: PCT026011 | P95: PCT026012 | Q95: PCT026013 | R95: PCT026014 | S95: PCT026015 | T95: PCT026016 | U95: PCT026017 | V95: PCT026018 | W95: PCT026019 | X95: PCT026020 | Y95: PCT026021 | Z95: PCT026022 | AA95: PCT026023 | AB95: PCT026024 | AC95: PCT026025 | AD95: PCT026026 | AE95: PCT026027 | AF95: PCT026028 | AG95: PCT026029 | AH95: PCT026030 | AI95: PCT026031 | AJ95: PCT026032 | AK95: PCT026033 | AL95: PCT026034 | AM95: PCT026035 | AN95: PCT026036 | AO95: PCT026037 | AP95: PCT026038 | AQ95: PCT026039 | AR95: PCT026040 | AS95: PCT026041 | AT95: PCT026042 | AU95: PCT026043 | AV95: PCT026044 | AW95: PCT026045 | AX95: PCT026046 | AY95: PCT026047 | AZ95: PCT026048 | BA95: PCT026049 | BB95: PCT026050 | BC95: PCT026051 | BD95: PCT026052 | BE95: PCT026053 | BF95: PCT026054 | BG95: PCT026055 | BH95: PCT026056 | BI95: PCT026057 | BJ95: PCT026058 | BK95: PCT026059 | BL95: PCT026060 | BM95: PCT026061 | BN95: PCT026062 | BO95: PCT026063 | BP95: PCT026064 | BQ95: PCT026065 | BR95: PCT026066 | BS95: PCT026067 | BT95: PCT026068 | BU95: PCT026069 | BV95: PCT026070 | BW95: PCT026071 | BX95: PCT026072 | BY95: PCT026073 | BZ95: PCT026074 | CA95: PCT026075 | CB95: PCT026076 | CC95: PCT026077 | CD95: PCT026078 | CE95: PCT026079 | CF95: PCT026080 | CG95: PCT026081 | CH95: PCT026082 | CI95: PCT026083 | CJ95: PCT026084 | CK95: PCT026085 | CL95: PCT026086 | CM95: PCT026087 | CN95: PCT026088 | CO95: PCT026089 | CP95: PCT026090 | CQ95: PCT026091 | CR95: PCT026092 | CS95: PCT026093 | CT95: PCT026094 | CU95: PCT026095 | CV95: PCT026096 | CW95: PCT026097 | CX95: PCT026098 | CY95: PCT026099 | CZ95: PCT026100 | DA95: PCT026101
A96: =VLOOKUP(DropDownList!$B$24,CntyQuery!$A$70:$CF$88,A$1) -> Albany | B96: =VLOOKUP(DropDownList!$B$24,CntyQryCensus!$A$266:$DA$284,B$1) -> 0000308 | C96: =VLOOKUP(DropDownList!$B$24,CntyQryCensus!$A$266:$DA$284,C$1) -> 00420 | D96: =VLOOKUP(DropDownList!$B$24,CntyQryCensus!$A$266:$DA$284,D$1) -> 654 | E96: =VLOOKUP(DropDownList!$B$24,CntyQryCensus!$A$266:$DA$284,E$1) -> 555 | F96: =VLOOKUP(DropDownList!$B$24,CntyQryCensus!$A$266:$DA$284,F$1) -> 280 | G96: =VLOOKUP(DropDownList!$B$24,CntyQryCensus!$A$266:$DA$284,G$1) -> 30 | H96: =VLOOKUP(DropDownList!$B$24,CntyQryCensus!$A$266:$DA$284,H$1) -> 0 | I96: =VLOOKUP(DropDownList!$B$24,CntyQryCensus!$A$266:$DA$284,I$1) -> 0 | J96: =VLOOKUP(DropDownList!$B$24,CntyQryCensus!$A$266:$DA$284,J$1) -> 0 | K96: =VLOOKUP(DropDownList!$B$24,CntyQryCensus!$A$266:$DA$284,K$1) -> 0 | L96: =VLOOKUP(DropDownList!$B$24,CntyQryCensus!$A$266:$DA$284,L$1) -> 0 | M96: =VLOOKUP(DropDownList!$B$24,CntyQryCensus!$A$266:$DA$284,M$1) -> 0 | N96: =VLOOKUP(DropDownList!$B$24,CntyQryCensus!$A$266:$DA$284,N$1) -> 0 | O96: =VLOOKUP(DropDownList!$B$24,CntyQryCensus!$A$266:$DA$284,O$1) -> 0 | P96: =VLOOKUP(DropDownList!$B$24,CntyQryCensus!$A$266:$DA$284,P$1) -> 30 | Q96: =VLOOKUP(DropDownList!$B$24,CntyQryCensus!$A$266:$DA$284,Q$1) -> 24 | R96: =VLOOKUP(DropDownList!$B$24,CntyQryCensus!$A$266:$DA$284,R$1) -> 5 | S96: =VLOOKUP(DropDownList!$B$24,CntyQryCensus!$A$266:$DA$284,S$1) -> 0 | T96: =VLOOKUP(DropDownList!$B$24,CntyQryCensus!$A$266:$DA$284,T$1) -> 0 | U96: =VLOOKUP(DropDownList!$B$24,CntyQryCensus!$A$266:$DA$284,U$1) -> 1 | V96: =VLOOKUP(DropDownList!$B$24,CntyQryCensus!$A$266:$DA$284,V$1) -> 0 | W96: =VLOOKUP(DropDownList!$B$24,CntyQryCensus!$A$266:$DA$284,W$1) -> 0 | X96: =VLOOKUP(DropDownList!$B$24,CntyQryCensus!$A$266:$DA$284,X$1) -> 4 | Y96: =VLOOKUP(DropDownList!$B$24,CntyQryCensus!$A$266:$DA$284,Y$1) -> 4 | Z96: =VLOOKUP(DropDownList!$B$24,CntyQryCensus!$A$266:$DA$284,Z$1) -> 0 | AA96: =VLOOKUP(DropDownList!$B$24,CntyQryCensus!$A$266:$DA$284,AA$1) -> 4 | AB96: =VLOOKUP(DropDownList!$B$24,CntyQryCensus!$A$266:$DA$284,AB$1) -> 0 | AC96: =VLOOKUP(DropDownList!$B$24,CntyQryCensus!$A$266:$DA$284,AC$1) -> 4 | AD96: =VLOOKUP(DropDownList!$B$24,CntyQryCensus!$A$266:$DA$284,AD$1) -> 15 | AE96: =VLOOKUP(DropDownList!$B$24,CntyQryCensus!$A$266:$DA$284,AE$1) -> 204 | AF96: =VLOOKUP(DropDownList!$B$24,CntyQryCensus!$A$266:$DA$284,AF$1) -> 60 | AG96: =VLOOKUP(DropDownList!$B$24,CntyQryCensus!$A$266:$DA$284,AG$1) -> 3 | AH96: =VLOOKUP(DropDownList!$B$24,CntyQryCensus!$A$266:$DA$284,AH$1) -> 2 | AI96: =VLOOKUP(DropDownList!$B$24,CntyQryCensus!$A$266:$DA$284,AI$1) -> 14 | AJ96: =VLOOKUP(DropDownList!$B$24,CntyQryCensus!$A$266:$DA$284,AJ$1) -> 0 | AK96: =VLOOKUP(DropDownList!$B$24,CntyQryCensus!$A$266:$DA$284,AK$1) -> 0 | AL96: =VLOOKUP(DropDownList!$B$24,CntyQryCensus!$A$266:$DA$284,AL$1) -> 41 | AM96: =VLOOKUP(DropDownList!$B$24,CntyQryCensus!$A$266:$DA$284,AM$1) -> 17 | AN96: =VLOOKUP(DropDownList!$B$24,CntyQryCensus!$A$266:$DA$284,AN$1) -> 2 | AO96: =VLOOKUP(DropDownList!$B$24,CntyQryCensus!$A$266:$DA$284,AO$1) -> 15 | AP96: =VLOOKUP(DropDownList!$B$24,CntyQryCensus!$A$266:$DA$284,AP$1) -> 0 | AQ96: =VLOOKUP(DropDownList!$B$24,CntyQryCensus!$A$266:$DA$284,AQ$1) -> 15 | AR96: =VLOOKUP(DropDownList!$B$24,CntyQryCensus!$A$266:$DA$284,AR$1) -> 127 | AS96: =VLOOKUP(DropDownList!$B$24,CntyQryCensus!$A$266:$DA$284,AS$1) -> 22 | AT96: =VLOOKUP(DropDownList!$B$24,CntyQryCensus!$A$266:$DA$284,AT$1) -> 4 | AU96: =VLOOKUP(DropDownList!$B$24,CntyQryCensus!$A$266:$DA$284,AU$1) -> 0 | AV96: =VLOOKUP(DropDownList!$B$24,CntyQryCensus!$A$266:$DA$284,AV$1) -> 2 | AW96: =VLOOKUP(DropDownList!$B$24,CntyQryCensus!$A$266:$DA$284,AW$1) -> 2 | AX96: =VLOOKUP(DropDownList!$B$24,CntyQryCensus!$A$266:$DA$284,AX$1) -> 0 | AY96: =VLOOKUP(DropDownList!$B$24,CntyQryCensus!$A$266:$DA$284,AY$1) -> 0 | AZ96: =VLOOKUP(DropDownList!$B$24,CntyQryCensus!$A$266:$DA$284,AZ$1) -> 7 | BA96: =VLOOKUP(DropDownList!$B$24,CntyQryCensus!$A$266:$DA$284,BA$1) -> 4 | BB96: =VLOOKUP(DropDownList!$B$24,CntyQryCensus!$A$266:$DA$284,BB$1) -> 3 | BC96: =VLOOKUP(DropDownList!$B$24,CntyQryCensus!$A$266:$DA$284,BC$1) -> 11 | BD96: =VLOOKUP(DropDownList!$B$24,CntyQryCensus!$A$266:$DA$284,BD$1) -> 275 | BE96: =VLOOKUP(DropDownList!$B$24,CntyQryCensus!$A$266:$DA$284,BE$1) -> 56 | BF96: =VLOOKUP(DropDownList!$B$24,CntyQryCensus!$A$266:$DA$284,BF$1) -> 3 | BG96: =VLOOKUP(DropDownList!$B$24,CntyQryCensus!$A$266:$DA$284,BG$1) -> 0 | BH96: =VLOOKUP(DropDownList!$B$24,CntyQryCensus!$A$266:$DA$284,BH$1) -> 3 | BI96: =VLOOKUP(DropDownList!$B$24,CntyQryCensus!$A$266:$DA$284,BI$1) -> 0 | BJ96: =VLOOKUP(DropDownList!$B$24,CntyQryCensus!$A$266:$DA$284,BJ$1) -> 0 | BK96: =VLOOKUP(DropDownList!$B$24,CntyQryCensus!$A$266:$DA$284,BK$1) -> 0 | BL96: =VLOOKUP(DropDownList!$B$24,CntyQryCensus!$A$266:$DA$284,BL$1) -> 0 | BM96: =VLOOKUP(DropDownList!$B$24,CntyQryCensus!$A$266:$DA$284,BM$1) -> 0 | BN96: =VLOOKUP(DropDownList!$B$24,CntyQryCensus!$A$266:$DA$284,BN$1) -> 53 | BO96: =VLOOKUP(DropDownList!$B$24,CntyQryCensus!$A$266:$DA$284,BO$1) -> 13 | BP96: =VLOOKUP(DropDownList!$B$24,CntyQryCensus!$A$266:$DA$284,BP$1) -> 4 | BQ96: =VLOOKUP(DropDownList!$B$24,CntyQryCensus!$A$266:$DA$284,BQ$1) -> 0 | BR96: =VLOOKUP(DropDownList!$B$24,CntyQryCensus!$A$266:$DA$284,BR$1) -> 0 | BS96: =VLOOKUP(DropDownList!$B$24,CntyQryCensus!$A$266:$DA$284,BS$1) -> 0 | BT96: =VLOOKUP(DropDownList!$B$24,CntyQryCensus!$A$266:$DA$284,BT$1) -> 0 | BU96: =VLOOKUP(DropDownList!$B$24,CntyQryCensus!$A$266:$DA$284,BU$1) -> 0 | BV96: =VLOOKUP(DropDownList!$B$24,CntyQryCensus!$A$266:$DA$284,BV$1) -> 4 | BW96: =VLOOKUP(DropDownList!$B$24,CntyQryCensus!$A$266:$DA$284,BW$1) -> 0 | BX96: =VLOOKUP(DropDownList!$B$24,CntyQryCensus!$A$266:$DA$284,BX$1) -> 0 | BY96: =VLOOKUP(DropDownList!$B$24,CntyQryCensus!$A$266:$DA$284,BY$1) -> 0 | BZ96: =VLOOKUP(DropDownList!$B$24,CntyQryCensus!$A$266:$DA$284,BZ$1) -> 0 | CA96: =VLOOKUP(DropDownList!$B$24,CntyQryCensus!$A$266:$DA$284,CA$1) -> 0 | CB96: =VLOOKUP(DropDownList!$B$24,CntyQryCensus!$A$266:$DA$284,CB$1) -> 9 | CC96: =VLOOKUP(DropDownList!$B$24,CntyQryCensus!$A$266:$DA$284,CC$1) -> 182 | CD96: =VLOOKUP(DropDownList!$B$24,CntyQryCensus!$A$266:$DA$284,CD$1) -> 34 | CE96: =VLOOKUP(DropDownList!$B$24,CntyQryCensus!$A$266:$DA$284,CE$1) -> 2 | CF96: =VLOOKUP(DropDownList!$B$24,CntyQryCensus!$A$266:$DA$284,CF$1) -> 4 | CG96: =VLOOKUP(DropDownList!$B$24,CntyQryCensus!$A$266:$DA$284,CG$1) -> 0 | CH96: =VLOOKUP(DropDownList!$B$24,CntyQryCensus!$A$266:$DA$284,CH$1) -> 0 | CI96: =VLOOKUP(DropDownList!$B$24,CntyQryCensus!$A$266:$DA$284,CI$1) -> 0 | CJ96: =VLOOKUP(DropDownList!$B$24,CntyQryCensus!$A$266:$DA$284,CJ$1) -> 28 | CK96: =VLOOKUP(DropDownList!$B$24,CntyQryCensus!$A$266:$DA$284,CK$1) -> 24 | CL96: =VLOOKUP(DropDownList!$B$24,CntyQryCensus!$A$266:$DA$284,CL$1) -> 7 | CM96: =VLOOKUP(DropDownList!$B$24,CntyQryCensus!$A$266:$DA$284,CM$1) -> 17 | CN96: =VLOOKUP(DropDownList!$B$24,CntyQryCensus!$A$266:$DA$284,CN$1) -> 0 | CO96: =VLOOKUP(DropDownList!$B$24,CntyQryCensus!$A$266:$DA$284,CO$1) -> 17 | CP96: =VLOOKUP(DropDownList!$B$24,CntyQryCensus!$A$266:$DA$284,CP$1) -> 124 | CQ96: =VLOOKUP(DropDownList!$B$24,CntyQryCensus!$A$266:$DA$284,CQ$1) -> 24 | CR96: =VLOOKUP(DropDownList!$B$24,CntyQryCensus!$A$266:$DA$284,CR$1) -> 2 | CS96: =VLOOKUP(DropDownList!$B$24,CntyQryCensus!$A$266:$DA$284,CS$1) -> 0 | CT96: =VLOOKUP(DropDownList!$B$24,CntyQryCensus!$A$266:$DA$284,CT$1) -> 2 | CU96: =VLOOKUP(DropDownList!$B$24,CntyQryCensus!$A$266:$DA$284,CU$1) -> 0 | CV96: =VLOOKUP(DropDownList!$B$24,CntyQryCensus!$A$266:$DA$284,CV$1) -> 0 | CW96: =VLOOKUP(DropDownList!$B$24,CntyQryCensus!$A$266:$DA$284,CW$1) -> 0 | CX96: =VLOOKUP(DropDownList!$B$24,CntyQryCensus!$A$266:$DA$284,CX$1) -> 8 | CY96: =VLOOKUP(DropDownList!$B$24,CntyQryCensus!$A$266:$DA$284,CY$1) -> 6 | CZ96: =VLOOKUP(DropDownList!$B$24,CntyQryCensus!$A$266:$DA$284,CZ$1) -> 2 | DA96: =VLOOKUP(DropDownList!$B$24,CntyQryCensus!$A$266:$DA$284,DA$1) -> 14
A105: ACS | B105: 2 | C105: =B105+1 -> 3 | D105: =C105+1 -> 4 | E105: 5 | F105: 6 | G105: 7 | H105: 8 | I105: 9 | J105: 10 | K105: 11 | L105: =K105+1 -> 12 | M105: 13 | N105: 14 | O105: 15 | P105: =O105+1 -> 16 | Q105: 17 | R105: 18 | S105: 19 | T105: 20 | U105: 21 | V105: 22 | W105: 23 | X105: 24 | Y105: 25 | Z105: 26 | AA105: 27 | AB105: 28 | AC105: 29 | AD105: 30 | AE105: 31 | AF105: 32 | AG105: 33 | AH105: 34 | AI105: 35 | AJ105: 36 | AK105: 37 | AL105: 38 | AM105: 39 | AN105: 40 | AO105: 41 | AP105: 42 | AQ105: 43 | AR105: 44 | AS105: 45 | AT105: 46 | AU105: 47 | AV105: 48 | AW105: 49 | AX105: 50 | AY105: 51 | AZ105: 52 | BA105: 53 | BB105: 54 | BC105: 55 | BD105: 56 | BE105: 57 | BF105: 58 | BG105: 59 | BH105: 60 | BI105: 61 | BJ105: 62 | BK105: 63 | BL105: 64 | BM105: 65 | BN105: 66 | BO105: 67 | BP105: =BO105+1 -> 68 | BQ105: 69 | BR105: 70 | BS105: 71 | BT105: 72 | BU105: 73 | BV105: 74 | BW105: 75 | BX105: 76 | BY105: 77 | BZ105: 78 | CA105: 79 | CB105: 80 | CC105: 81 | CD105: 82 | CE105: 83 | CF105: 84 | CG105: 85 | CH105: 86 | CI105: 87 | CJ105: 88 | CK105: 89 | CL105: 90 | CM105: 91 | CN105: 92 | CO105: 93 | CP105: 94 | CQ105: 95 | CR105: 96 | CS105: 97 | CT105: 98 | CU105: 99 | CV105: 100 | CW105: 101 | CX105: 102 | CY105: 103 | CZ105: 104 | DA105: 105 | DB105: 106 | DC105: 107 | DD105: 108 | DE105: 109 | DF105: 110 | DG105: 111 | DH105: 112 | DI105: 113 | DJ105: 114 | DK105: 115 | DL105: 116 | DM105: 117 | DN105: 118 | DO105: 119 | DP105: 120 | DQ105: 121 | DR105: 122 | DS105: 123 | DT105: 124 | DU105: 125
A106: Househould Data (Housing Unit Type)
A107: NAME | B107: TotalHU | C107: ="MOE "&B107 -> MOE TotalHU | D107: TotalOccHU | E107: ="MOE "&D107 -> MOE TotalOccHU | F107: TotalOwnerOccUn | G107: ="MOE "&F107 -> MOE TotalOwnerOccUn | H107: TotalRenterOccn | I107: ="MOE "&H107 -> MOE TotalRenterOccn | J107: TotalVacantUntis | K107: ="MOE "&J107 -> MOE TotalVacantUntis | L107: VacantUnitsForRent | M107: ="MOE "&L107 -> MOE VacantUnitsForRent | N107: VacantUnitRentedNotOcc | O107: ="MOE "&N107 -> MOE VacantUnitRentedNotOcc | P107: VacantUnitForSale | Q107: ="MOE "&P107 -> MOE VacantUnitForSale | R107: VacantUnitSoldNotOcc | S107: ="MOE "&R107 -> MOE VacantUnitSoldNotOcc | T107: VacantUnitSeasonalRec | U107: ="MOE "&T107 -> MOE VacantUnitSeasonalRec | V107: TotalPopInHousingUnits | W107: ="MOE "&V107 -> MOE TotalPopInHousingUnits | X107: OwnerOccPopHousingUnits | Y107: ="MOE "&X107 -> MOE OwnerOccPopHousingUnits | Z107: RenterOccPopHousingUnits | AA107: ="MOE "&Z107 -> MOE RenterOccPopHousingUnits | AB107: TotalUntis | AC107: ="MOE "&AB107 -> MOE TotalUntis | AD107: TotalOwnerOccUnits | AE107: ="MOE "&AD107 -> MOE TotalOwnerOccUnits | AF107: SigFamOwnerOcc | AG107: ="MOE "&AF107 -> MOE SigFamOwnerOcc | AH107: MultiFamOwnerOcc | AI107: ="MOE "&AH107 -> MOE MultiFamOwnerOcc | AJ107: MobileOwnerOcc | AK107: ="MOE "&AJ107 -> MOE MobileOwnerOcc | AL107: TotalRenterOccUnits | AM107: ="MOE "&AL107 -> MOE TotalRenterOccUnits | AN107: SigFamRenterOcc | AO107: ="MOE "&AN107 -> MOE SigFamRenterOcc | AP107: MultiFamRenterOcc | AQ107: ="MOE "&AP107 -> MOE MultiFamRenterOcc | AR107: MobileRenterOcc | AS107: ="MOE "&AR107 -> MOE MobileRenterOcc | AT107: TotalSigFamilyUnits | AU107: ="MOE "&AT107 -> MOE TotalSigFamilyUnits | AV107: TotalMultiFamilyUnits | AW107: ="MOE "&AV107 -> MOE TotalMultiFamilyUnits | AX107: TotalMobileUnits | AY107: ="MOE "&AX107 -> MOE TotalMobileUnits | AZ107: YrHouseBuilt2014Later | BA107: ="MOE "&AZ107 -> MOE YrHouseBuilt2014Later | BB107: YrHouseBuilt2010-2013 | BC107: ="MOE "&BB107 -> MOE YrHouseBuilt2010-2013 | BD107: YrHouseBuilt2000-2009 | BE107: ="MOE "&BD107 -> MOE YrHouseBuilt2000-2009 | BF107: YrHouseBuilt1990-1999 | BG107: ="MOE "&BF107 -> MOE YrHouseBuilt1990-1999 | BH107: YrHouseBuilt1980-1989 | BI107: ="MOE "&BH107 -> MOE YrHouseBuilt1980-1989 | BJ107: YrHouseBuilt1970-1979 | BK107: ="MOE "&BJ107 -> MOE YrHouseBuilt1970-1979 | BL107: YrHouseBuilt1960-1969 | BM107: ="MOE "&BL107 -> MOE YrHouseBuilt1960-1969 | BN107: YrHouseBuilt1950-1959 | BO107: ="MOE "&BN107 -> MOE YrHouseBuilt1950-1959 | BP107: YrHouseBuilt1940-1949 | BQ107: ="MOE "&BP107 -> MOE YrHouseBuilt1940-1949 | BR107: YrHouseBuilt1939orEarlier | BS107: ="MOE "&BR107 -> MOE YrHouseBuilt1939orEarlier | BT107: NoBedrooms | BU107: ="MOE "&BT107 -> MOE NoBedrooms | BV107: 1Bedroom | BW107: ="MOE "&BV107 -> MOE 1Bedroom | BX107: 2Bedroom | BY107: ="MOE "&BX107 -> MOE 2Bedroom | BZ107: 3Bedroom | CA107: ="MOE "&BZ107 -> MOE 3Bedroom | CB107: 4+Bedroom | CC107: ="MOE "&CB107 -> MOE 4+Bedroom
A108: =VLOOKUP(DropDownList!$B$24,CntyQuery!$A$70:$CF$88,A$1) -> Albany | B108: 542 | C108: 74 | D108: 307 | E108: 58 | F108: 272 | G108: 56 | H108: 35 | I108: 17 | J108: 235 | K108: 53 | L108: 0 | M108: 11 | N108: 0 | O108: 11 | P108: 12 | Q108: 13 | R108: 5 | S108: 9 | T108: 199 | U108: 50 | V108: 703 | W108: 142 | X108: 618 | Y108: 141 | Z108: 85 | AA108: 49 | AB108: 307 | AC108: 58 | AD108: 272 | AE108: 56 | AF108: 216 | AG108: 46 | AH108: 9 | AI108: 29.9165506 | AJ108: 47 | AK108: 25.49509757 | AL108: 35 | AM108: 17 | AN108: 11 | AO108: 9 | AP108: 16 | AQ108: 29.24038303 | AR108: 8 | AS108: 13.03840481 | AT108: 434 | AU108: 68 | AV108: 25 | AW108: 31.48015248 | AX108: 83 | AY108: 29.15475947 | AZ108: 3 | BA108: 4 | BB108: 22 | BC108: 12 | BD108: 66 | BE108: 25 | BF108: 40 | BG108: 18 | BH108: 109 | BI108: 36 | BJ108: 92 | BK108: 35 | BL108: 64 | BM108: 31 | BN108: 36 | BO108: 21 | BP108: 22 | BQ108: 17 | BR108: 88 | BS108: 30 | BT108: 46 | BU108: 26 | BV108: 39 | BW108: 22 | BX108: 204 | BY108: 45 | BZ108: 194 | CA108: 50 | CB108: 59 | CC108: 26.62705391
A110: Disability Data
A111: NAME | B111: TotalPop | C111: ="MOE "&B111 -> MOE TotalPop | D111: PopUnder 5 years: | E111: ="MOE "&D111 -> MOE PopUnder 5 years: | F111: =D$111&"-WithDisability" -> PopUnder 5 years:-WithDisability | G111: ="MOE "&F111 -> MOE PopUnder 5 years:-WithDisability | H111: =D111&"-NoDisability" -> PopUnder 5 years:-NoDisability | I111: ="MOE "&H111 -> MOE PopUnder 5 years:-NoDisability | J111: PopUnder 5 to 17years: | K111: ="MOE "&J111 -> MOE PopUnder 5 to 17years: | L111: =J$111&"-WithDisability" -> PopUnder 5 to 17years:-WithDisability | M111: ="MOE "&L111 -> MOE PopUnder 5 to 17years:-WithDisability | N111: =J111&"-NoDisability" -> PopUnder 5 to 17years:-NoDisability | O111: ="MOE "&N111 -> MOE PopUnder 5 to 17years:-NoDisability | P111: PopUnder 18 to 34 years: | Q111: ="MOE "&P111 -> MOE PopUnder 18 to 34 years: | R111: =P$111&"-WithDisability" -> PopUnder 18 to 34 years:-WithDisability | S111: ="MOE "&R111 -> MOE PopUnder 18 to 34 years:-WithDisability | T111: =P111&"-NoDisability" -> PopUnder 18 to 34 years:-NoDisability | U111: ="MOE "&T111 -> MOE PopUnder 18 to 34 years:-NoDisability | V111: Pop 35 years to 64: | W111: ="MOE "&V111 -> MOE Pop 35 years to 64: | X111: =$V$111&"-WithDisability" -> Pop 35 years to 64:-WithDisability | Y111: ="MOE "&X111 -> MOE Pop 35 years to 64:-WithDisability | Z111: =$V$111&"-NoDisability" -> Pop 35 years to 64:-NoDisability | AA111: ="MOE "&Z111 -> MOE Pop 35 years to 64:-NoDisability | AB111: Pop 65 years to 74: | AC111: ="MOE "&AB111 -> MOE Pop 65 years to 74: | AD111: =$AB$111&"-WithDisability" -> Pop 65 years to 74:-WithDisability | AE111: ="MOE "&AD111 -> MOE Pop 65 years to 74:-WithDisability | AF111: =$AB$111&"-NoDisability" -> Pop 65 years to 74:-NoDisability | AG111: ="MOE "&AF111 -> MOE Pop 65 years to 74:-NoDisability | AH111: Pop 75 and older: | AI111: ="MOE "&AH111 -> MOE Pop 75 and older: | AJ111: =$AH$111&"-WithDisability" -> Pop 75 and older:-WithDisability | AK111: ="MOE "&AJ111 -> MOE Pop 75 and older:-WithDisability | AL111: =$AH$111&"-NoDisability" -> Pop 75 and older:-NoDisability | AM111: ="MOE "&AL111 -> MOE Pop 75 and older:-NoDisability | AN111: TotalPopUnder5_HearingDisability | AO111: ="MOE "&AN111 -> MOE TotalPopUnder5_HearingDisability | AP111: TotalPopUnder5_HearingDisability | AQ111: ="MOE "&AP111 -> MOE TotalPopUnder5_HearingDisability | AR111: TotalPop18To34_HearingDisability | AS111: ="MOE "&AR111 -> MOE TotalPop18To34_HearingDisability | AT111: TotalPop35To64_HearingDisability | AU111: ="MOE "&AT111 -> MOE TotalPop35To64_HearingDisability | AV111: TotalPop65To74_HearingDisability | AW111: ="MOE "&AV111 -> MOE TotalPop65To74_HearingDisability | AX111: TotalPop75andOlder_HearingDisability | AY111: ="MOE "&AX111 -> MOE TotalPop75andOlder_HearingDisability | AZ111: TotalPopUnder5_VisionDisability | BA111: ="MOE "&AZ111 -> MOE TotalPopUnder5_VisionDisability | BB111: TotalPop5To17_VisionDisability | BC111: ="MOE "&BB111 -> MOE TotalPop5To17_VisionDisability | BD111: TotalPop18To34_VisionDisability | BE111: ="MOE "&BD111 -> MOE TotalPop18To34_VisionDisability | BF111: TotalPop35To64_VisionDisability | BG111: ="MOE "&BF111 -> MOE TotalPop35To64_VisionDisability | BH111: TotalPop65To74_VisionDisability | BI111: ="MOE "&BH111 -> MOE TotalPop65To74_VisionDisability | BJ111: TotalPop75andOlder_VisionDisability | BK111: ="MOE "&BJ111 -> MOE TotalPop75andOlder_VisionDisability | BL111: TotalPop5To17_CongnitiveDisability | BM111: ="MOE "&BL111 -> MOE TotalPop5To17_CongnitiveDisability | BN111: TotalPop18To34_CongnitiveDisability | BO111: ="MOE "&BN111 -> MOE TotalPop18To34_CongnitiveDisability | BP111: TotalPop35To64_CongnitiveDisability | BQ111: ="MOE "&BP111 -> MOE TotalPop35To64_CongnitiveDisability | BR111: TotalPop65To74_CongnitiveDisability | BS111: ="MOE "&BR111 -> MOE TotalPop65To74_CongnitiveDisability | BT111: TotalPop75andOlder_CongnitiveDisability | BU111: ="MOE "&BT111 -> MOE TotalPop75andOlder_CongnitiveDisability | BV111: TotalPop5To17_AmbulatoryDisability | BW111: ="MOE "&BV111 -> MOE TotalPop5To17_AmbulatoryDisability | BX111: TotalPop18To34_AmbulatoryDisability | BY111: ="MOE "&BX111 -> MOE TotalPop18To34_AmbulatoryDisability | BZ111: TotalPop35To64_AmbulatoryDisability | CA111: ="MOE "&BZ111 -> MOE TotalPop35To64_AmbulatoryDisability | CB111: TotalPop65To74_AmbulatoryDisability | CC111: ="MOE "&CB111 -> MOE TotalPop65To74_AmbulatoryDisability | CD111: TotalPop75andOlder_AmbulatoryDisability | CE111: ="MOE "&CD111 -> MOE TotalPop75andOlder_AmbulatoryDisability | CF111: TotalPop5To17_SelfCareDisability | CG111: ="MOE "&CF111 -> MOE TotalPop5To17_SelfCareDisability | CH111: TotalPop18To34_SelfCareDisability | CI111: ="MOE "&CH111 -> MOE TotalPop18To34_SelfCareDisability | CJ111: TotalPop35To64_SelfCareDisability | CK111: ="MOE "&CJ111 -> MOE TotalPop35To64_SelfCareDisability | CL111: TotalPop65To74_SelfCareDisability | CM111: ="MOE "&CL111 -> MOE TotalPop65To74_SelfCareDisability | CN111: TotalPop75andOlder_SelfCareDisability | CO111: ="MOE "&CN111 -> MOE TotalPop75andOlder_SelfCareDisability | CP111: TotalPop18To34_IndependantLivingDisability | CQ111: ="MOE "&CP111 -> MOE TotalPop18To34_IndependantLivingDisability | CR111: TotalPop35To64_IndependantLivingDisability | CS111: ="MOE "&CR111 -> MOE TotalPop35To64_IndependantLivingDisability | CT111: TotalPop65To74_IndependantLivingDisability | CU111: ="MOE "&CT111 -> MOE TotalPop65To74_IndependantLivingDisability | CV111: TotalPop75andOlder_IndependantLivingDisability | CW111: ="MOE "&CV111 -> MOE TotalPop75andOlder_IndependantLivingDisability | CX111: TotalUnder5_HearingorVisionDisability | CY111: ="MOE "&CX111 -> MOE TotalUnder5_HearingorVisionDisability | CZ111: TotalUnder5_HearingandVisionDisability | DA111: ="MOE "&CZ111 -> MOE TotalUnder5_HearingandVisionDisability | DB111: 5to17YearWIthOneDisability | DC111: ="MOE "&DB111 -> MOE 5to17YearWIthOneDisability | DD111: 5to17YearWIthTwoOrMoreDisability | DE111: ="MOE "&DD111 -> MOE 5to17YearWIthTwoOrMoreDisability | DF111: 18to34YearWIthOneDisability | DG111: ="MOE "&DF111 -> MOE 18to34YearWIthOneDisability | DH111: 18to34YearWIthTwoOrMoreDisability | DI111: ="MOE "&DH111 -> MOE 18to34YearWIthTwoOrMoreDisability | DJ111: 35to64YearWIthOneDisability | DK111: ="MOE "&DJ111 -> MOE 35to64YearWIthOneDisability | DL111: 35to64YearWIthTwoOrMoreDisability | DM111: ="MOE "&DL111 -> MOE 35to64YearWIthTwoOrMoreDisability | DN111: 65to74YearWIthOneDisability | DO111: ="MOE "&DN111 -> MOE 65to74YearWIthOneDisability | DP111: 65to74YearWIthTwoOrMoreDisability | DQ111: ="MOE "&DP111 -> MOE 65to74YearWIthTwoOrMoreDisability | DR111: 75AndOlderWIthOneDisability | DS111: ="MOE "&DR111 -> MOE 75AndOlderWIthOneDisability | DT111: 75AndOlderWIthTwoOrMoreDisability | DU111: ="MOE "&DT111 -> MOE 75AndOlderWIthTwoOrMoreDisability
A112: =VLOOKUP(DropDownList!$B$24,CntyQuery!$A$70:$CF$88,A$1) -> Albany | B112: 703 | C112: 142 | D112: 27 | E112: 29.41088234 | F112: 0 | G112: 15.55634919 | H112: 27 | I112: 29.41088234 | J112: 83 | K112: 33.61547263 | L112: 6 | M112: 6.403124237 | N112: 77 | O112: 33.61547263 | P112: 116 | Q112: 50.99019514 | R112: 15 | S112: 15 | T112: 101 | U112: 48.16637832 | V112: 327 | W112: 61.22091146 | X112: 37 | Y112: 21.02379604 | Z112: 290 | AA112: 60.21627687 | AB112: 87 | AC112: 30.23243292 | AD112: 3 | AE112: 11.70469991 | AF112: 84 | AG112: 29.68164416 | AH112: 63 | AI112: 28.63564213 | AJ112: 38 | AK112: 26.2488095 | AL112: 25 | AM112: 12.04159458 | AN112: 0 | AO112: 15.55634919 | AP112: 0 | AQ112: 15.55634919 | AR112: 0 | AS112: 15.55634919 | AT112: 11 | AU112: 8.602325267 | AV112: 3 | AW112: 11.70469991 | AX112: 14 | AY112: 13.34166406 | AZ112: 0 | BA112: 15.55634919 | BB112: 0 | BC112: 15.55634919 | BD112: 0 | BE112: 15.55634919 | BF112: 6 | BG112: 14.2126704 | BH112: 0 | BI112: 15.55634919 | BJ112: 0 | BK112: 15.55634919 | BL112: 6 | BM112: 6.403124237 | BN112: 15 | BO112: 15 | BP112: 11 | BQ112: 11.70469991 | BR112: 0 | BS112: 15.55634919 | BT112: 22 | BU112: 24.18677324 | BV112: 0 | BW112: 15.55634919 | BX112: 0 | BY112: 15.55634919 | BZ112: 44 | CA112: 21.9317122 | CB112: 12 | CC112: 10 | CD112: 27 | CE112: 19.72308292 | CF112: 0 | CG112: 15.55634919 | CH112: 0 | CI112: 15.55634919 | CJ112: 12 | CK112: 9.219544457 | CL112: 0 | CM112: 15.55634919 | CN112: 20 | CO112: 26.40075756 | CP112: 5 | CQ112: 13.03840481 | CR112: 11 | CS112: 8.485281374 | CT112: 0 | CU112: 15.55634919 | CV112: 24 | CW112: 25.17935662 | CX112: 6 | CY112: 7 | CZ112: 0 | DA112: 11 | DB112: 27 | DC112: 21 | DD112: 25 | DE112: 17 | DF112: 15 | DG112: 9 | DH112: 26 | DI112: 25
A114: Househould Income By Age
A115: NAME | B115: TotalHouseholds | C115: ="MOE "&B115 -> MOE TotalHouseholds | D115: HHInc<10K | E115: ="MOE "&D115 -> MOE HHInc<10K | F115: HHInc10to15K | G115: ="MOE "&F115 -> MOE HHInc10to15K | H115: HHInc15to20K | I115: ="MOE "&H115 -> MOE HHInc15to20K | J115: HHInc20to25K | K115: ="MOE "&J115 -> MOE HHInc20to25K | L115: HHInc25to30K | M115: ="MOE "&L115 -> MOE HHInc25to30K | N115: HHInc30to35K | O115: ="MOE "&N115 -> MOE HHInc30to35K | P115: HHInc35to40K | Q115: ="MOE "&P115 -> MOE HHInc35to40K | R115: HHInc40to45K | S115: ="MOE "&R115 -> MOE HHInc40to45K | T115: HHInc45to50K | U115: ="MOE "&T115 -> MOE HHInc45to50K | V115: HHInc50to60K | W115: ="MOE "&V115 -> MOE HHInc50to60K | X115: HHInc60to75K | Y115: ="MOE "&X115 -> MOE HHInc60to75K | Z115: HHInc75to100K | AA115: ="MOE "&Z115 -> MOE HHInc75to100K | AB115: HHInc100to125K | AC115: ="MOE "&AB115 -> MOE HHInc100to125K | AD115: HHInc125to150K | AE115: ="MOE "&AD115 -> MOE HHInc125to150K | AF115: HHInc150to200K | AG115: ="MOE "&AF115 -> MOE HHInc150to200K | AH115: HHInc>200K | AI115: ="MOE "&AH115 -> MOE HHInc>200K | AJ115: TotalHH | AK115: ="MOE "&AJ115 -> MOE TotalHH | AL115: HHAgeHHUnder25yrs | AM115: ="MOE "&AL115 -> MOE HHAgeHHUnder25yrs | AN115: HHAgeHH<25HHInc<10K | AO115: ="MOE "&AN115 -> MOE HHAgeHH<25HHInc<10K | AP115: HHAgeHH<25HHInc10to15K | AQ115: ="MOE "&AP115 -> MOE HHAgeHH<25HHInc10to15K | AR115: HHAgeHH<25HHInc15to20K | AS115: ="MOE "&AR115 -> MOE HHAgeHH<25HHInc15to20K | AT115: HHAgeHH<25HHInc20to25K | AU115: ="MOE "&AT115 -> MOE HHAgeHH<25HHInc20to25K | AV115: HHAgeHH<25HHInc25to30K | AW115: ="MOE "&AV115 -> MOE HHAgeHH<25HHInc25to30K | AX115: HHAgeHH<25HHInc30to35K | AY115: ="MOE "&AX115 -> MOE HHAgeHH<25HHInc30to35K | AZ115: HHAgeHH<25HHInc35to40K | BA115: ="MOE "&AZ115 -> MOE HHAgeHH<25HHInc35to40K | BB115: HHAgeHH<25HHInc40to45K | BC115: ="MOE "&BB115 -> MOE HHAgeHH<25HHInc40to45K | BD115: HHAgeHH<25HHInc45to50K | BE115: ="MOE "&BD115 -> MOE HHAgeHH<25HHInc45to50K | BF115: HHAgeHH<25HHInc50to60K | BG115: ="MOE "&BF115 -> MOE HHAgeHH<25HHInc50to60K | BH115: HHAgeHH<25HHInc60to75K | BI115: ="MOE "&BH115 -> MOE HHAgeHH<25HHInc60to75K | BJ115: HHAgeHH<25HHInc75to100K | BK115: ="MOE "&BJ115 -> MOE HHAgeHH<25HHInc75to100K | BL115: HHAgeHH<25HHInc100to125K | BM115: ="MOE "&BL115 -> MOE HHAgeHH<25HHInc100to125K | BN115: HHAgeHH<25HHInc125to150K | BO115: ="MOE "&BN115 -> MOE HHAgeHH<25HHInc125to150K | BP115: HHAgeHH<25HHInc150to200K | BQ115: ="MOE "&BP115 -> MOE HHAgeHH<25HHInc150to200K | BR115: HHAge<25HHInc>200K | BS115: ="MOE "&BR115 -> MOE HHAge<25HHInc>200K | BT115: HHAgeHH25to44yrs | BU115: ="MOE "&BT115 -> MOE HHAgeHH25to44yrs | BV115: HHAgeHH25To44yrsHHInc<10K | BW115: ="MOE "&BV115 -> MOE HHAgeHH25To44yrsHHInc<10K | BX115: HHAgeHH25To44yrsHHInc10to15K | BY115: ="MOE "&BX115 -> MOE HHAgeHH25To44yrsHHInc10to15K | BZ115: HHAgeHH25To44yrsHHInc15to20K | CA115: ="MOE "&BZ115 -> MOE HHAgeHH25To44yrsHHInc15to20K | CB115: HHAgeHH25To44yrsHHInc20to25K | CC115: ="MOE "&CB115 -> MOE HHAgeHH25To44yrsHHInc20to25K | CD115: HHAgeHH25To44yrsHHInc25to30K | CE115: ="MOE "&CD115 -> MOE HHAgeHH25To44yrsHHInc25to30K | CF115: HHAgeHH25To44yrsHHInc30to35K | CG115: ="MOE "&CF115 -> MOE HHAgeHH25To44yrsHHInc30to35K | CH115: HHAgeHH25To44yrsHHInc35to40K | CI115: ="MOE "&CH115 -> MOE HHAgeHH25To44yrsHHInc35to40K | CJ115: HHAgeHH25To44yrsHHInc40to45K | CK115: ="MOE "&CJ115 -> MOE HHAgeHH25To44yrsHHInc40to45K | CL115: HHAgeHH25To44yrsHHInc45to50K | CM115: ="MOE "&CL115 -> MOE HHAgeHH25To44yrsHHInc45to50K | CN115: HHAgeHH25To44yrsHHInc50to60K | CO115: ="MOE "&CN115 -> MOE HHAgeHH25To44yrsHHInc50to60K | CP115: HHAgeHH25To44yrsHHInc60to75K | CQ115: ="MOE "&CP115 -> MOE HHAgeHH25To44yrsHHInc60to75K | CR115: HHAgeHH25To44yrsHHInc75to100K | CS115: ="MOE "&CR115 -> MOE HHAgeHH25To44yrsHHInc75to100K | CT115: HHAgeHH25To44yrsHHInc100to125K | CU115: ="MOE "&CT115 -> MOE HHAgeHH25To44yrsHHInc100to125K | CV115: HHAgeHH25To44yrsHHInc125to150K | CW115: ="MOE "&CV115 -> MOE HHAgeHH25To44yrsHHInc125to150K | CX115: HHAgeHH25To44yrsHHInc150to200K | CY115: ="MOE "&CX115 -> MOE HHAgeHH25To44yrsHHInc150to200K | CZ115: HHAge25To44yrsHHInc>200K | DA115: ="MOE "&CZ115 -> MOE HHAge25To44yrsHHInc>200K | DB115: HHAgeHH45To64yrs | DC115: ="MOE "&DB115 -> MOE HHAgeHH45To64yrs | DD115: HHAgeHH45To64yrsHHInc<10K | DE115: ="MOE "&DD115 -> MOE HHAgeHH45To64yrsHHInc<10K | DF115: HHAgeHH45To64yrsHHInc10to15K | DG115: ="MOE "&DF115 -> MOE HHAgeHH45To64yrsHHInc10to15K | DH115: HHAgeHH45To64yrsHHInc15to20K | DI115: ="MOE "&DH115 -> MOE HHAgeHH45To64yrsHHInc15to20K | DJ115: HHAgeHH45To64yrsHHInc20to25K | DK115: ="MOE "&DJ115 -> MOE HHAgeHH45To64yrsHHInc20to25K | DL115: HHAgeHH45To64yrsHHInc25to30K | DM115: ="MOE "&DL115 -> MOE HHAgeHH45To64yrsHHInc25to30K | DN115: HHAgeHH45To64yrsHHInc30to35K | DO115: ="MOE "&DN115 -> MOE HHAgeHH45To64yrsHHInc30to35K | DP115: HHAgeHH45To64yrsHHInc35to40K | DQ115: ="MOE "&DP115 -> MOE HHAgeHH45To64yrsHHInc35to40K | DR115: HHAgeHH45To64yrsHHInc40to45K | DS115: ="MOE "&DR115 -> MOE HHAgeHH45To64yrsHHInc40to45K | DT115: HHAgeHH45To64yrsHHInc45to50K | DU115: ="MOE "&DT115 -> MOE HHAgeHH45To64yrsHHInc45to50K | DV115: HHAgeHH45To64yrsHHInc50to60K | DW115: ="MOE "&DV115 -> MOE HHAgeHH45To64yrsHHInc50to60K | DX115: HHAgeHH45To64yrsHHInc60to75K | DY115: ="MOE "&DX115 -> MOE HHAgeHH45To64yrsHHInc60to75K | DZ115: HHAgeHH45To64yrsHHInc75to100K | EA115: ="MOE "&DZ115 -> MOE HHAgeHH45To64yrsHHInc75to100K | EB115: HHAgeHH45To64yrsHHInc100to125K | EC115: ="MOE "&EB115 -> MOE HHAgeHH45To64yrsHHInc100to125K | ED115: HHAgeHH45To64yrsHHInc125to150K | EE115: ="MOE "&ED115 -> MOE HHAgeHH45To64yrsHHInc125to150K | EF115: HHAgeHH45To64yrsHHInc150to200K | EG115: ="MOE "&EF115 -> MOE HHAgeHH45To64yrsHHInc150to200K | EH115: HHAge45To64yrsHHInc>200K | EI115: ="MOE "&EH115 -> MOE HHAge45To64yrsHHInc>200K | EJ115: HHAgeHH65yrsorOlder | EK115: ="MOE "&EJ115 -> MOE HHAgeHH65yrsorOlder | EL115: HHAgeHH65yrsorOlderHHInc<10K | EM115: ="MOE "&EL115 -> MOE HHAgeHH65yrsorOlderHHInc<10K | EN115: HHAgeHH65yrsorOlderHHInc10to15K | EO115: ="MOE "&EN115 -> MOE HHAgeHH65yrsorOlderHHInc10to15K | EP115: HHAgeHH65yrsorOlderHHInc15to20K | EQ115: ="MOE "&EP115 -> MOE HHAgeHH65yrsorOlderHHInc15to20K | ER115: HHAgeHH65yrsorOlderHHInc20to25K | ES115: ="MOE "&ER115 -> MOE HHAgeHH65yrsorOlderHHInc20to25K | ET115: HHAgeHH65yrsorOlderHHInc25to30K | EU115: ="MOE "&ET115 -> MOE HHAgeHH65yrsorOlderHHInc25to30K | EV115: HHAgeHH65yrsorOlderHHInc30to35K | EW115: ="MOE "&EV115 -> MOE HHAgeHH65yrsorOlderHHInc30to35K | EX115: HHAgeHH65yrsorOlderHHInc35to40K | EY115: ="MOE "&EX115 -> MOE HHAgeHH65yrsorOlderHHInc35to40K | EZ115: HHAgeHH65yrsorOlderHHInc40to45K | FA115: ="MOE "&EZ115 -> MOE HHAgeHH65yrsorOlderHHInc40to45K | FB115: HHAgeHH65yrsorOlderHHInc45to50K | FC115: ="MOE "&FB115 -> MOE HHAgeHH65yrsorOlderHHInc45to50K | FD115: HHAgeHH65yrsorOlderHHInc50to60K | FE115: ="MOE "&FD115 -> MOE HHAgeHH65yrsorOlderHHInc50to60K | FF115: HHAgeHH65yrsorOlderHHInc60to75K | FG115: ="MOE "&FF115 -> MOE HHAgeHH65yrsorOlderHHInc60to75K | FH115: HHAgeHH65yrsorOlderHHInc75to100K | FI115: ="MOE "&FH115 -> MOE HHAgeHH65yrsorOlderHHInc75to100K | FJ115: HHAgeHH65yrsorOlderHHInc100to125K | FK115: ="MOE "&FJ115 -> MOE HHAgeHH65yrsorOlderHHInc100to125K | FL115: HHAgeHH65yrsorOlderHHInc125to150K | FM115: ="MOE "&FL115 -> MOE HHAgeHH65yrsorOlderHHInc125to150K | FN115: HHAgeHH65yrsorOlderHHInc150to200K | FO115: ="MOE "&FN115 -> MOE HHAgeHH65yrsorOlderHHInc150to200K | FP115: HHAge65yrsorOlderHHInc>200K | FQ115: ="MOE "&FP115 -> MOE HHAge65yrsorOlderHHInc>200K | FR115: MedianHHInc | FS115: ="MOE "&FR115 -> MOE MedianHHInc | FT115: HH under 25 years | FU115: ="MOE "&FT115 -> MOE HH under 25 years | FV115: Householder 25 to 44 years | FW115: ="MOE "&FV115 -> MOE Householder 25 to 44 years | FX115: Householder 45 to 64 years | FY115: ="MOE "&FX115 -> MOE Householder 45 to 64 years | FZ115: Householder 65 years and over | GA115: ="MOE "&FZ115 -> MOE Householder 65 years and over
A116: =VLOOKUP(DropDownList!$B$24,CntyQuery!$A$70:$CF$88,A$1) -> Albany | B116: 307 | C116: 58 | D116: 12 | E116: 13 | F116: 22 | G116: 16 | H116: 18 | I116: 16 | J116: 3 | K116: 4 | L116: 29 | M116: 20 | N116: 13 | O116: 9 | P116: 4 | Q116: 4 | R116: 34 | S116: 23 | T116: 5 | U116: 6 | V116: 14 | W116: 8 | X116: 25 | Y116: 18 | Z116: 37 | AA116: 15 | AB116: 27 | AC116: 18 | AD116: 42 | AE116: 23 | AF116: 16 | AG116: 11 | AH116: 6 | AI116: 5 | AJ116: 307 | AK116: 58 | AL116: 15 | AM116: 17 | AN116: 7 | AO116: 12 | AP116: 0 | AQ116: 11 | AR116: 0 | AS116: 11 | AT116: 0 | AU116: 11 | AV116: 0 | AW116: 11 | AX116: 0 | AY116: 11 | AZ116: 0 | BA116: 11 | BB116: 8 | BC116: 12 | BD116: 0 | BE116: 11 | BF116: 0 | BG116: 11 | BH116: 0 | BI116: 11 | BJ116: 0 | BK116: 11 | BL116: 0 | BM116: 11 | BN116: 0 | BO116: 11 | BP116: 0 | BQ116: 11 | BR116: 0 | BS116: 11 | BT116: 71 | BU116: 33 | BV116: 2 | BW116: 4 | BX116: 4 | BY116: 7 | BZ116: 0 | CA116: 11 | CB116: 0 | CC116: 11 | CD116: 10 | CE116: 12 | CF116: 9 | CG116: 8 | CH116: 0 | CI116: 11 | CJ116: 4 | CK116: 6 | CL116: 3 | CM116: 5 | CN116: 2 | CO116: 3 | CP116: 6 | CQ116: 7 | CR116: 13 | CS116: 13 | CT116: 0 | CU116: 11 | CV116: 16 | CW116: 19 | CX116: 2 | CY116: 4 | CZ116: 0 | DA116: 11 | DB116: 133 | DC116: 34 | DD116: 0 | DE116: 11 | DF116: 9 | DG116: 13 | DH116: 8 | DI116: 11 | DJ116: 0 | DK116: 11 | DL116: 11 | DM116: 10 | DN116: 0 | DO116: 11 | DP116: 2 | DQ116: 3 | DR116: 13 | DS116: 9 | DT116: 0 | DU116: 11 | DV116: 10 | DW116: 8 | DX116: 17 | DY116: 15 | DZ116: 11 | EA116: 7 | EB116: 16 | EC116: 14 | ED116: 19 | EE116: 15 | EF116: 11 | EG116: 11 | EH116: 6 | EI116: 5 | EJ116: 88 | EK116: 30 | EL116: 3 | EM116: 4 | EN116: 9 | EO116: 7 | EP116: 10 | EQ116: 13 | ER116: 3 | ES116: 4 | ET116: 8 | EU116: 12 | EV116: 4 | EW116: 4 | EX116: 2 | EY116: 3 | EZ116: 9 | FA116: 12 | FB116: 2 | FC116: 3 | FD116: 2 | FE116: 4 | FF116: 2 | FG116: 3 | FH116: 13 | FI116: 9 | FJ116: 11 | FK116: 9 | FL116: 7 | FM116: 7 | FN116: 3 | FO116: 4 | FP116: 0 | FQ116: 11 | FR116: 59821 | FS116: 12952 | FT116: - | FU116: ** | FV116: 61250 | FW116: 37969 | FX116: 73542 | FY116: 29303 | FZ116: 41786 | GA116: 28318
A118: Number of Households by Income
A119: NAME | B119: HHIncLessThn10k | C119: ="MOE "&B119 -> MOE HHIncLessThn10k | D119: HHInc10to15K | E119: ="MOE "&D119 -> MOE HHInc10to15K | F119: HHInc15to25K | G119: ="MOE "&F119 -> MOE HHInc15to25K | H119: HHInc25to35K | I119: ="MOE "&H119 -> MOE HHInc25to35K | J119: HHInc35to50K | K119: ="MOE "&J119 -> MOE HHInc35to50K | L119: HHInc50to75K | M119: ="MOE "&L119 -> MOE HHInc50to75K | N119: HHInc75to100K | O119: ="MOE "&N119 -> MOE HHInc75to100K | P119: HHInc100to150K | Q119: ="MOE "&P119 -> MOE HHInc100to150K | R119: HHInc150to200K | S119: ="MOE "&R119 -> MOE HHInc150to200K | T119: HHIncOver200K | U119: ="MOE "&T119 -> MOE HHIncOver200K
A120: =VLOOKUP(DropDownList!$B$24,CntyQuery!$A$70:$CF$88,A$1) -> Albany | B120: 12 | C120: 13 | D120: 22 | E120: 16 | F120: 21 | G120: 16.4924225 | H120: 42 | I120: 21.9317122 | J120: 43 | K120: 24.10394159 | L120: 39 | M120: 19.6977156 | N120: 37 | O120: 15 | P120: 69 | Q120: 29.20616373 | R120: 16 | S120: 11 | T120: 6 | U120: 5 | V120: 30 | W120: 19 | X120: 39 | Y120: 22 | Z120: 12 | AA120: 9 | AB120: 27 | AC120: 22 | AD120: 0 | AE120: 114 | AF120: 30 | AG120: 19 | CH120: Ossipee | CJ120: Estimate | CK120: Margin of Error | CL120: 1842 | CM120: 183 | CP120: 153 | CQ120: 99 | CR120: 80 | CS120: 46 | CT120: 84 | CU120: 79 | CV120: 86 | CW120: 59 | CX120: 155 | CY120: 88 | CZ120: 118 | DA120: 80 | DB120: 127 | DC120: 78 | DD120: 74 | DE120: 51 | DF120: 65 | DG120: 55 | DH120: 295 | DI120: 111 | DJ120: 196 | DK120: 108 | DL120: 263 | DM120: 113 | DN120: 55 | DO120: 34 | DP120: 41 | DQ120: 33 | DR120: 0 | DS120: 114 | DT120: 50 | DU120: 50 | EJ120: Ossipee | EL120: Estimate | EM120: Margin of Error | EN120: 1842 | EO120: 183 | ER120: 153 | ES120: 99 | ET120: 80 | EU120: 46 | EV120: 170 | EW120: 98.60020284 | EX120: 273 | EY120: 118.92855 | EZ120: 266 | FA120: 108.2127534 | FB120: 491 | FC120: 154.870914 | FD120: 263 | FE120: 113 | FF120: 96 | FG120: 47.38143096 | FH120: 0 | FI120: 114 | FJ120: 50 | FK120: 50
A123: NAME | B123: TotalPop | C123: ="MOE "&B123 -> MOE TotalPop | D123: Total Individuals living in Poverty | E123: ="MOE "&D123 -> MOE Total Individuals living in Poverty | F123: Under 5 yrs. | G123: ="MOE "&F123 -> MOE Under 5 yrs. | H123: 5 to 17 yrs. | I123: ="MOE "&H123 -> MOE 5 to 17 yrs. | J123: 18 to 64 yrs. | K123: ="MOE "&J123 -> MOE 18 to 64 yrs. | L123: 65 to 74 yrs. | M123: ="MOE "&L123 -> MOE 65 to 74 yrs. | N123: 75 yrs. & Over | O123: ="MOE "&N123 -> MOE 75 yrs. & Over | P123: Total Individuals Not living Poverty | Q123: ="MOE "&P123 -> MOE Total Individuals Not living Poverty | R123: Under 5 yrs. | S123: ="MOE "&R123 -> MOE Under 5 yrs. | T123: 5 to 17 yrs. | U123: ="MOE "&T123 -> MOE 5 to 17 yrs. | V123: 18 to 64 yrs. | W123: ="MOE "&V123 -> MOE 18 to 64 yrs. | X123: 65 to 74 yrs. | Y123: ="MOE "&X123 -> MOE 65 to 74 yrs. | Z123: 75 yrs. & Over | AA123: ="MOE "&Z123 -> MOE 75 yrs. & Over | AB123: Total HH | AC123: ="MOE "&AB123 -> MOE Total HH | AD123: Total Households Below Poverty | AE123: ="MOE "&AD123 -> MOE Total Households Below Poverty | AF123: Family Households in Poverty | AG123: ="MOE "&AF123 -> MOE Family Households in Poverty | AH123: Married Couple Fam HH | AI123: ="MOE "&AH123 -> MOE Married Couple Fam HH | AJ123: Other Family | AK123: ="MOE "&AJ123 -> MOE Other Family | AL123: Male Head of Family HH no wife | AM123: ="MOE "&AL123 -> MOE Male Head of Family HH no wife | AN123: Female Head of Family HH no husband | AO123: ="MOE "&AN123 -> MOE Female Head of Family HH no husband | AP123: Non-Family HH | AQ123: ="MOE "&AP123 -> MOE Non-Family HH | AR123: Non-Family Male HH | AS123: ="MOE "&AR123 -> MOE Non-Family Male HH | AT123: Non-Family Female HH | AU123: ="MOE "&AT123 -> MOE Non-Family Female HH | AV123: Total Households at or Above Poverty | AW123: ="MOE "&AV123 -> MOE Total Households at or Above Poverty | AX123: Family Households above Poverty | AY123: ="MOE "&AX123 -> MOE Family Households above Poverty | AZ123: Married Couple Fam HH | BA123: ="MOE "&AZ123 -> MOE Married Couple Fam HH | BB123: Other Family | BC123: ="MOE "&BB123 -> MOE Other Family | BD123: Male Head of Family HH no wife | BE123: ="MOE "&BD123 -> MOE Male Head of Family HH no wife | BF123: Female Head of Family HH no husband | BG123: ="MOE "&BF123 -> MOE Female Head of Family HH no husband | BH123: Non-Family HH | BI123: ="MOE "&BH123 -> MOE Non-Family HH | BJ123: Non-Family Male HH | BK123: ="MOE "&BJ123 -> MOE Non-Family Male HH | BL123: Non-Family Female HH | BM123: ="MOE "&BL123 -> MOE Non-Family Female HH | BN123: Married Couple with Children Below Poverty | BO123: ="MOE "&BN123 -> MOE Married Couple with Children Below Poverty | BP123: Male HH with children below poverty | BQ123: ="MOE "&BP123 -> MOE Male HH with children below poverty | BR123: Female HH with children below poverty | BS123: ="MOE "&BR123 -> MOE Female HH with children below poverty | BT123: Married Couple with Children At or Above Poverty | BU123: ="MOE "&BT123 -> MOE Married Couple with Children At or Above Poverty | BV123: Male HH with children at or above poverty | BW123: ="MOE "&BV123 -> MOE Male HH with children at or above poverty | BX123: Female HH with children at or above poverty | BY123: ="MOE "&BX123 -> MOE Female HH with children at or above poverty
A124: =VLOOKUP(DropDownList!$B$24,CntyQuery!$A$70:$CF$88,A$1) -> Albany | B124: 699 | C124: 142 | D124: 81 | E124: 45 | F124: 15 | G124: 30.08321791 | H124: 7 | I124: 30.52867504 | J124: 44 | K124: 31.27299154 | L124: 5 | M124: 5.656854249 | N124: 10 | O124: 12.36931688 | P124: 618 | Q124: 123 | R124: 8 | S124: 8.94427191 | T124: 76 | U124: 33.12099032 | V124: 399 | W124: 72.9725976 | X124: 82 | Y124: 29.68164416 | Z124: 53 | AA124: 21.9544984 | AB124: 307 | AC124: 58 | AD124: 30 | AE124: 18 | AF124: 14 | AG124: 13 | AH124: 0 | AI124: 11 | AJ124: 14 | AK124: 13 | AL124: 8 | AM124: 11 | AN124: 6 | AO124: 8 | AP124: 16 | AQ124: 14 | AR124: 6 | AS124: 7 | AT124: 10 | AU124: 13 | AV124: 277 | AW124: 55 | AX124: 198 | AY124: 47 | AZ124: 162 | BA124: 42 | BB124: 36 | BC124: 21 | BD124: 3 | BE124: 5 | BF124: 33 | BG124: 21 | BH124: 79 | BI124: 29 | BJ124: 41 | BK124: 24 | BL124: 38 | BM124: 19 | BN124: 0 | BO124: 11 | BP124: 2 | BQ124: 5 | BR124: 6 | BS124: 8 | BT124: 45 | BU124: 24 | BV124: 3 | BW124: 5 | BX124: 11 | BY124: 12 | EL124: Albany | EN124: Estimate | EO124: Margin of Error | EP124: 797 | EQ124: 175 | ER124: 131 | ES124: 102 | ET124: 19 | EU124: 21.58703314 | EV124: 24 | EW124: 34.20526275 | EX124: 83 | EY124: 49.40647731 | EZ124: 3 | FA124: 12.08304597 | FB124: 2 | FC124: 11.70469991 | FD124: 666 | FE124: 171 | FF124: 41 | FG124: 33.83784863 | FH124: 128 | FI124: 59.71599451 | FJ124: 368 | FK124: 72.22188034 | FL124: 73 | FM124: 25.45584412 | FN124: 56 | FO124: 24.04163056 | JD124: Albany | JF124: Estimate | JG124: Margin of Error | JH124: 966 | JI124: 265 | JJ124: 280 | JK124: 139 | JL124: 30 | JM124: 115.1173314 | JN124: 100 | JO124: 169.7233042 | JP124: 139 | JQ124: 172.3745921 | JR124: 11 | JS124: 9.899494937 | JT124: 0 | JU124: 161.2203461 | JV124: 686 | JW124: 217 | JX124: 14 | JY124: 12.08304597 | JZ124: 101 | KA124: 202.2918683 | KB124: 468 | KC124: 108.1665383 | KD124: 70 | KE124: 30.41381265 | KF124: 33 | KG124: 28.16025568
A126: Household Income By Tenure
A127: NAME | B127: TotalOccHU | C127: ="MOE "&B127 -> MOE TotalOccHU | D127: OwnOccHU | E127: ="MOE "&D127 -> MOE OwnOccHU | F127: OOHUInc<5K | G127: ="MOE "&F127 -> MOE OOHUInc<5K | H127: OOHUInc5to10K | I127: ="MOE "&H127 -> MOE OOHUInc5to10K | J127: OOHUInc10to15K | K127: ="MOE "&J127 -> MOE OOHUInc10to15K | L127: OOHUInc15to20K | M127: ="MOE "&L127 -> MOE OOHUInc15to20K | N127: OOHUInc20to25K | O127: ="MOE "&N127 -> MOE OOHUInc20to25K | P127: OOHUInc25to35K | Q127: ="MOE "&P127 -> MOE OOHUInc25to35K | R127: OOHUInc35to50K | S127: ="MOE "&R127 -> MOE OOHUInc35to50K | T127: OOHUInc50to75K | U127: ="MOE "&T127 -> MOE OOHUInc50to75K | V127: OOHUInc75to100K | W127: ="MOE "&V127 -> MOE OOHUInc75to100K | X127: OOHUInc100to150K | Y127: ="MOE "&X127 -> MOE OOHUInc100to150K | Z127: OOHUInc>150K | AA127: ="MOE "&Z127 -> MOE OOHUInc>150K | AB127: RentOccHU | AC127: ="MOE "&AB127 -> MOE RentOccHU | AD127: ROHUInc<5K | AE127: ="MOE "&AD127 -> MOE ROHUInc<5K | AF127: ROHUInc5to10K | AG127: ="MOE "&AF127 -> MOE ROHUInc5to10K | AH127: ROHUInc10to15K | AI127: ="MOE "&AH127 -> MOE ROHUInc10to15K | AJ127: ROHUInc15to20K | AK127: ="MOE "&AJ127 -> MOE ROHUInc15to20K | AL127: ROHUInc20to25K | AM127: ="MOE "&AL127 -> MOE ROHUInc20to25K | AN127: ROHUInc25to35K | AO127: ="MOE "&AN127 -> MOE ROHUInc25to35K | AP127: ROHUInc35to50K | AQ127: ="MOE "&AP127 -> MOE ROHUInc35to50K | AR127: ROHUInc50to75K | AS127: ="MOE "&AR127 -> MOE ROHUInc50to75K | AT127: ROHUInc75to100K | AU127: ="MOE "&AT127 -> MOE ROHUInc75to100K | AV127: ROHUInc100to150K | AW127: ="MOE "&AV127 -> MOE ROHUInc100to150K | AX127: ROHUInc>150K | AY127: ="MOE "&AX127 -> MOE ROHUInc>150K | AZ127: Total OCC HUInc<5K | BA127: ="MOE "&AZ127 -> MOE Total OCC HUInc<5K | BB127: Total OCC HUInc5to10K | BC127: ="MOE "&BB127 -> MOE Total OCC HUInc5to10K | BD127: Total OCC HUInc10to15K | BE127: ="MOE "&BD127 -> MOE Total OCC HUInc10to15K | BF127: Total OCC HUInc15to20K | BG127: ="MOE "&BF127 -> MOE Total OCC HUInc15to20K | BH127: Total OCC HUInc20to25K | BI127: ="MOE "&BH127 -> MOE Total OCC HUInc20to25K | BJ127: Total OCC HUInc25to35K | BK127: ="MOE "&BJ127 -> MOE Total OCC HUInc25to35K | BL127: Total OCC HUInc35to50K | BM127: ="MOE "&BL127 -> MOE Total OCC HUInc35to50K | BN127: Total OCC HUInc50to75K | BO127: ="MOE "&BN127 -> MOE Total OCC HUInc50to75K | BP127: Total OCC HUInc75to100K | BQ127: ="MOE "&BP127 -> MOE Total OCC HUInc75to100K | BR127: Total OCC HUInc100to150K | BS127: ="MOE "&BR127 -> MOE Total OCC HUInc100to150K | BT127: Total OCC HUInc>150K | BU127: ="MOE "&BT127 -> MOE Total OCC HUInc>150K | BV127: MedHHInc | BW127: ="MOE "&BV127 -> MOE MedHHInc | BX127: MedOwnOccHHInc | BY127: ="MOE "&BX127 -> MOE MedOwnOccHHInc | BZ127: MedRentOccHHInc | CA127: ="MOE "&BZ127 -> MOE MedRentOccHHInc
A128: =VLOOKUP(DropDownList!$B$24,CntyQuery!$A$70:$CF$88,A$1) -> Albany | B128: 307 | C128: 58 | D128: 272 | E128: 56 | F128: 3 | G128: 4 | H128: 9 | I128: 13 | J128: 20 | K128: 16 | L128: 16 | M128: 15 | N128: 3 | O128: 4 | P128: 28 | Q128: 20 | R128: 31 | S128: 16 | T128: 39 | U128: 20 | V128: 37 | W128: 15 | X128: 66 | Y128: 28 | Z128: 20 | AA128: 12 | AB128: 35 | AC128: 17 | AD128: 0 | AE128: 11 | AF128: 0 | AG128: 11 | AH128: 2 | AI128: 4 | AJ128: 2 | AK128: 5 | AL128: 0 | AM128: 11 | AN128: 14 | AO128: 12 | AP128: 12 | AQ128: 14 | AR128: 0 | AS128: 11 | AT128: 0 | AU128: 11 | AV128: 3 | AW128: 4 | AX128: 2 | AY128: 3 | AZ128: 3 | BA128: 11.70469991 | BB128: 9 | BC128: 17.02938637 | BD128: 22 | BE128: 16.4924225 | BF128: 18 | BG128: 15.8113883 | BH128: 3 | BI128: 11.70469991 | BJ128: 42 | BK128: 23.32380758 | BL128: 43 | BM128: 21.26029163 | BN128: 39 | BO128: 22.82542442 | BP128: 37 | BQ128: 18.60107524 | BR128: 69 | BS128: 28.28427125 | BT128: 22 | BU128: 12.36931688 | BV128: 59821 | BW128: 12952 | BX128: 67500 | BY128: 15929 | BZ128: 34583 | CA128: 15766
A130: Population Data
A131: NAME | B131: Total Population | C131: MOE Total Population | D131: Under 15 Years | E131: MOE Under 15 yrs. | F131: 15 to 24 yrs. | G131: MOE 15 to 24 yrs. | H131: 25 to 34 yrs. | I131: MOE 25 to 34 yrs. | J131: 35 to 44 yrs. | K131: MOE 35 to 44 yrs. | L131: 45 to 54 yrs. | M131: MOE 45 to 54 yrs. | N131: 55 to 64 yrs. | O131: MOE 55 to 64 yrs. | P131: 65 to 74 yrs. | Q131: MOE 65 to 74 yrs. | R131: Over 74 yrs. | S131: MOE Over 74 yrs. | T131: TotalHH | U131: MOE TotalHH | V131: FamilyHH | W131: MOE FamilyHH | X131: MarriedFamilyHH | Y131: MOE MarriedFamilyHH | Z131: SingleFamilyHH | AA131: MOE SingleFamilyHH | AB131: Sfamily-MaleHH | AC131: MOE Sfamily-MaleHH | AD131: Sfamily-FemaleHH | AE131: MOE Sfamily-FemaleHH | AF131: NonFamilyHH | AG131: MOE NonFamilyHH | AH131: NonFamilyHH-LivingAlone | AI131: MOE NonFamilyHH-LivingAlone | AJ131: NonFamilyHH-NotLivingAlone | AK131: MOE NonFamilyHH-NotLivingAlone | AL131: PopRaceWhite | AM131: MOE PopRaceWhite | AN131: PopRaceBlack | AO131: MOE PopRaceBlack | AP131: PopRaceAmerican Indian | AQ131: MOE PopRaceAmerican Indian | AR131: PopRaceAsian &Pacific Is. | AS131: MOE PopRaceAsian &Pacific Is. | AT131: PopRaceOther* | AU131: MOE PopRaceOther* | AV131: PopRaceHispanic or Latino: | AW131: MOE PopRaceHispanic or Latino: | AX131: MedianAgeTotalPop | AY131: MOE MedianAgeTotalPop | AZ131: MedianAgeMale | BA131: MOE MedianAgeMale | BB131: MedianAgeFemale | BC131: MOE MedianAgeFemale | BD131: AvgHHSizeTotal | BE131: MOE AvgHHSizeTotal | BF131: AvgHHSizeFamilyHH | BG131: MOE AvgHHSizeFamilyHH | BH131: AvgHHSizeNonFamilyHH | BI131: MOE AvgHHSizeNonFamilyHH
